Workbook

Sheet Inputs
A1: Note: Input Values in English Units | D1: Select Physiographic Region | F1: Units (Output) | L1: metric | N1: engl
A2: Type of Simulation | K2: 1 | L2: =2.47105*B9 -> 1482.63 | M2: N | N2: =+L2*0.4047 -> 600.020361
A3: From Establishment (Planting) | K3: 1 | L3: =+B10*0.3048 -> 16.764 | M3: SI | N3: =+M5 -> 94.48323247
A4: From Inventory Post Establishment | K4: 2 | L4: 0 | M4: =IF($K$4=1,1,IF(K9=1,F14,G14)) -> 25 | N4: Starting Age
K5: Errors | L5: =IF($B$17<>"",1,0)+ IF($C$20<>"",1,0)+ IF($C$18<>"",1,0)+ IF($C$17<>"",1,0) -> 0 | M5: =+IF($K$4=1,$K$13,$M$14) -> 94.48323247 | N5: SI
A6: Rotation Age (yr.) | B6: 30 | M6: =+MAX(K11,M12) -> 300 | N6: N
K7: FALSE | L7: age1 | M7: =+M4 -> 25
A8: Simulation From Planting | E8: Simulation From Inventory | G8: =+IF(K4=2,"RECOMMENDED FOR AGE > 5 YRS.","") -> RECOMMENDED FOR AGE > 5 YRS. | K8: TRUE | L8: age2 | M8: =+IF(K15=FALSE,B6,B6*B20) -> 30
A9: N/acre at Establishment (planting) | B9: 600 | E9: From Inventory Tree List | K9: 1 | L9: (assume No P Defficient)
A10: Site Index (ft) base age =25 | B10: 55 | E10: From Inventory Summary | K10: From Planting | L10: English | M10: Inventory | N10: English
K11: =+IF($K$4=1,$B$9,"") ->  | L11: N | M11: =IF($K$4=1,0,$M$5*(('Equations - Parameters'!$E$12)/(1-EXP('Equations - Parameters'!$F$12*$M$4)))^('Equations - Parameters'!$G$12)) -> 94.48324882 | N11: Hdom
A12: Simulate Thinning? | E12: Simulation From Inventory (Data From Inventory List or from external summary) | M12: =+IF($K$4=1,0,IF($K$9=1,F15,G15)) -> 300 | N12: N
E13: INPUTS | F13: From Inventory Tab | G13: Enter Inventory Summary | K13: =+IF($K$4=1,$B$10,"") ->  | L13: SI | M13: =IF(K4=1,0,IF(K2=1,EXP('Equations - Parameters'!$D$18+('Equations - Parameters'!$E$18/M4)+'Equations - Parameters'!$F$18*(LN(M12))+'Equations - Parameters'!$G$18*(LN(M11))+'Equations - Parameters'!$H$18*(LN(M12)/M4)+'Equations - Parameters'!$I$18*(LN(M11)/M4)),EXP('Equations - Parameters'!$D$19+('Equations - Parameters'!$E$19/M4)+'Equations - Parameters'!$F$19*(LN(M12))+'Equations - Parameters'!$G$19*(LN(M11))+'Equations - Parameters'!$H$19*(LN(M12)/M4)+'Equations - Parameters'!$I$19*(LN(M11)/M4)))) -> 190.5197986 | N13: BA
A14: Thinning at Fixed Age | B14: Age (years) | C14: % N Removal | D14: =+IF($K$7=TRUE,"Required","Not Needed") -> Not Needed | E14: Age | F14: =+IF($K$4=1,"",IF($K$9=2,"",IF(Inventory!$Q$3="","",Inventory!$Q$3))) -> 25 | G14: 5 | K14: FALSE | M14: =+IF($K$4=1,0,IF($K$9=1,F17,G17)) -> 94.48323247 | N14: SI
A15: Th1 | E15: Stem Density (trees / acre) | F15: =+IF($K$4=1,"",IF($K$9=2,"",IF(Inventory!$V$4="","",Inventory!$V$4))) -> 300 | G15: 500 | K15: FALSE
A16: Th2 | E16: BA (ft2 / acre) | F16: =+IF($K$4=1,"",IF($K$9=2,"",IF(Inventory!$V$5="","",Inventory!$V$5))) -> 223.4926832 | K16: TRUE
B17: =+IF(B15="","",IF(B15>=$B$6,"ERROR IN THINNING AGE",IF(B15<$M$4,"ERROR IN THINNING AGE",IF(B16="","",IF(B16>=$B$6,"ERROR IN THINNING AGE",""))))) ->  | C17: =+IF(C15="","",IF(C15>=1,"ERROR IN % REMOVAL",IF(C15=0,"ERROR IN % REMOVAL",IF(C16="","",IF(C16>=1,"ERROR IN % REMOVAL",IF(C16=0,"ERROR IN % REMOVAL","")))))) ->  | E17: Site Index (ft) base age = 25 | F17: =+IF($K$4=1,"",IF($K$9=2,"",IF(Inventory!$V$7="","",Inventory!$V$7))) -> 94.48323247 | G17: 80
A18: Assessing C Balance? | C18: =+IF(B20*B6>500,"Error…... Maximum Simulation Length: 500 yrs.","") ->  | K18: =+IF($K$31=TRUE,FALSE,IF($L$19=1,TRUE,FALSE)) -> TRUE
A19: Simulate Multiple Rotations | K19: =+IF($K$31=TRUE,FALSE,IF($L$19=2,TRUE,FALSE)) -> FALSE | L19: 1
A20: # Rotations to Simulate ? | B20: 10 | C20: =+IF(AND($K$15=TRUE,$B$20=""),"Need to Enter # Rotations","") ->  | K20: =+IF($K$31=TRUE,FALSE,IF($L$19=3,TRUE,FALSE)) -> FALSE
A21: Burning Residues at Site Prep.? | C21: =+IF($K$15=TRUE, "Required","") ->  | E21: Tillage | K21: =+IF($K$31=TRUE,FALSE,IF($L$19=4,TRUE,FALSE)) -> FALSE
K22: =+IF($K$31=TRUE,FALSE,IF($L$19=5,TRUE,FALSE)) -> FALSE
A23: Herbaceous Weed Control | K23: =+IF($K$31=TRUE,FALSE,IF($L$19=6,TRUE,FALSE)) -> FALSE
A24: First Treatment | B24: Second Treatment | E24: Hardwood Release ? | K24: =+IF($K$31=TRUE,FALSE,IF($L$19=7,TRUE,FALSE)) -> FALSE
A25: Banded - no grass Year 1 | E25: Age | F25: 14 | K25: =+IF($K$31=TRUE,FALSE,IF($L$19=8,TRUE,FALSE)) -> FALSE
A26: Banded - grass Year 1 | E26: % Reduction | F26: 0.5 | K26: =+IF($K$31=TRUE,FALSE,IF($L$19=9,TRUE,FALSE)) -> FALSE
A27: Broadcast - no grass Year 1 | E27: % Hardwood Basal Area at age 5 | F27: 12 | K27: =+IF($K$31=TRUE,FALSE,IF($L$19=10,TRUE,FALSE)) -> FALSE | L27: =+F26*100 -> 50
A28: Broadcast - grass Year 1 | K28: =+IF($K$31=TRUE,FALSE,IF($L$19=11,TRUE,FALSE)) -> FALSE
A29: Banded - no grass Year 2 | K29: =+IF($K$31=TRUE,FALSE,IF($L$19=12,TRUE,FALSE)) -> FALSE
A30: Banded - grass Year 2 | E30: Fertilization
A31: Broadcast - no grass Year 2 | E31: Fert_number | F31: Age (year) | G31: N (lbs / acre) | H31: P (lbs / acre) | K31: FALSE
A32: Broadcast - grass Year 2 | E32: F1 | F32: 5 | G32: 135 | H32: 25
A33: Broadcast - no grass Year 1 | B33: Banded - no grass Year 2 | E33: F2 | F33: 10 | G33: 225 | H33: 25 | K33: =+IF(AND(K34=FALSE,K35=FALSE,K36=FALSE,K37=FALSE),FALSE,TRUE) -> TRUE | L33: lbsN | M33: lbsP | N33: age
A34: Banded - grass Year 1 | B34: Banded - grass Year 2 | E34: F3 | F34: 15 | G34: 225 | H34: 25 | K34: TRUE | L34: =+G32*1 -> 135 | M34: 25 | N34: =+IF(F32="",100,F32) -> 5
A35: Broadcast - no grass Year 1 | B35: Broadcast - no grass Year 2 | E35: F4 | K35: TRUE | L35: 225 | M35: 25 | N35: =+IF(F33="",100,F33) -> 10
A36: Broadcast - grass Year 1 | B36: Broadcast - grass Year 2 | K36: FALSE | L36: 225 | M36: 25 | N36: =+IF(F34="",100,F34) -> 15
E37: Stand Location (to determine CWD decay rate) (in decimal degrees) | K37: FALSE | L37: 0 | M37: 0 | N37: =+IF(F35="",100,F35) -> 100
A38: NO Herbaceous Weed Control Treatment | E38: Latitude (N) | F38: 28
E39: Longitude (-W) | F39: 82
C40: (If No HWC Treatment is selected all the above are not taken in account)
A50: Silvic. Scheme | B50: Age-Th1 | C50: % removal_Th1 | D50: Age_Th2 | E50: % removal-Th2 | F50: Age_harvest
A51: Unthinned | F51: =+$B$6 -> 30
A52: 1 Thinning | B52: =+$B$15 -> 0 | C52: =+$C$15 -> 0 | F52: =+$B$6 -> 30
A53: 2 Thinnings | B53: =+$B$15 -> 0 | C53: =+$C$15 -> 0 | D53: =+$B$16 -> 0 | E53: =+$C$16 -> 0 | F53: =+$B$6 -> 30

Sheet Inventory (hidden)
A1: Note: Input Values in English Units From a Single Inventory Plot | U1: OUTPUTS
A3: Tree Number | B3: DBH (inch) | C3: Height (ft) | D3: lnD | E3: D_1 | F3: lnH | G3: ba ft2 | H3: count | I3: Height2 (ft) | J3: count | K3: Rank | L3: Height (ft) Dom. Trees | P3: Age | Q3: 25 | R3: years | U3: Stand-Level Parameters
A4: =+IF(B4="","",1) -> 1 | B4: 16.3 | C4: 74 | D4: =IF(B4="","",LN(B4)) -> 2.791165108 | E4: =IF(B4="","",1/B4) -> 0.06134969325 | F4: =IF(C4="","",LN(C4)) -> 4.304065093 | G4: =IF(B4="","",(PI()*(B4/12)^2)/4) -> 1.449114153 | H4: =+IF(B4=0,0,IF(B4="",0,1)) -> 1 | I4: =IF(B4="","",IF(C4<>"",C4,IF($J$6<>"",3.28084*'Equations - Parameters'!$P$101*((2.54*B4)^'Equations - Parameters'!$Q$101)*($Q$3^'Equations - Parameters'!$R$101)*((2.47105*$V$4)^'Equations - Parameters'!$S$101)))) -> 74 | J4: =+COUNT(C4:C1003) -> 10 | K4: =IF(B4="","",RANK(I4,$I$4:$I$1003,0)) -> 11 | L4: =+IF(K4<=$M$10,I4,"") ->  | M4: percentile (top 25%) | P4: Plot Size | Q4: 0.1 | R4: acre | U4: TPA (acre-1) | V4: =+IF(A4="","",IF(Q4="","",COUNTIF(H4:H1003,1)/$Q$4)) -> 300
A5: =+IF(B5="","",A4+1) -> 2 | B5: 8.9 | D5: =IF(B5="","",LN(B5)) -> 2.186051277 | E5: =IF(B5="","",1/B5) -> 0.1123595506 | F5: =IF(C5="","",LN(C5)) ->  | G5: =IF(B5="","",(PI()*(B5/12)^2)/4) -> 0.4320235314 | H5: =+IF(B5=0,0,IF(B5="",0,1)) -> 1 | I5: =IF(B5="","",IF(C5<>"",C5,IF($J$6<>"",3.28084*'Equations - Parameters'!$P$101*((2.54*B5)^'Equations - Parameters'!$Q$101)*($Q$3^'Equations - Parameters'!$R$101)*((2.47105*$V$4)^'Equations - Parameters'!$S$101)))) -> 63.27811231 | J5: slope | K5: =IF(B5="","",RANK(I5,$I$4:$I$1003,0)) -> 17 | L5: =+IF(K5<=$M$10,I5,"") ->  | M5: =+_xlfn.PERCENTILE.INC($I$4:$I$1003,0.75) -> 76.84739875 | U5: BA (ft2/acre) | V5: =+IF(A4="","",IF(Q4="","",SUM(G4:G1003)/$Q$4)) -> 223.4926832
A6: =+IF(B6="","",A5+1) -> 3 | B6: 10.7 | C6: 70 | D6: 2.370243741 | E6: 0.09345794393 | F6: =IF(C6="","",LN(C6)) -> 4.248495242 | G6: 0.6244460814 | H6: 1 | I6: =IF(B6="","",IF(C6<>"",C6,IF($J$6<>"",3.28084*'Equations - Parameters'!$P$101*((2.54*B6)^'Equations - Parameters'!$Q$101)*($Q$3^'Equations - Parameters'!$R$101)*((2.47105*$V$4)^'Equations - Parameters'!$S$101)))) -> 70 | J6: =+IF(J4<3,"",SLOPE(F4:F1003,E4:E1003)) -> -6.291850846 | K6: 15 | M6: N_plot | U6: Hdom (ft) | V6: =+IF(A4="","",IF(Q4="","",AVERAGE(L4:L1003))) -> 94.48324882
A7: 4 | B7: 8.8 | D7: 2.174751721 | E7: 0.1136363636 | F7: =IF(C7="","",LN(C7)) ->  | G7: 0.422369679 | H7: 1 | I7: =IF(B7="","",IF(C7<>"",C7,IF($J$6<>"",3.28084*'Equations - Parameters'!$P$101*((2.54*B7)^'Equations - Parameters'!$Q$101)*($Q$3^'Equations - Parameters'!$R$101)*((2.47105*$V$4)^'Equations - Parameters'!$S$101)))) -> 62.62575844 | J7: intercept | K7: 19 | M7: =+MAX(A4:A1003) -> 30 | U7: SI (ft) base age=25 yrs. | V7: =+IF(A4="","",IF(Q4="","",$V$6/(('Equations - Parameters'!$E$12)/(1-EXP('Equations - Parameters'!$F$12*$Q$3)))^('Equations - Parameters'!$G$12))) -> 94.48323247
A8: 5 | B8: 11 | D8: 2.397895273 | E8: 0.09090909091 | F8: =IF(C8="","",LN(C8)) ->  | G8: 0.6599526234 | H8: 1 | I8: =IF(B8="","",IF(C8<>"",C8,IF($J$6<>"",3.28084*'Equations - Parameters'!$P$101*((2.54*B8)^'Equations - Parameters'!$Q$101)*($Q$3^'Equations - Parameters'!$R$101)*((2.47105*$V$4)^'Equations - Parameters'!$S$101)))) -> 76.84739875 | J8: =+IF(J4<3,"",INTERCEPT(F4:F1003,E4:E1003)) -> 4.688739301 | K8: 7 | L8: 76.84739875
A9: 6 | B9: 10 | C9: 50 | D9: 2.302585093 | E9: 0.1 | F9: 3.912023005 | G9: 0.5454153912 | H9: 1 | I9: =IF(B9="","",IF(C9<>"",C9,IF($J$6<>"",3.28084*'Equations - Parameters'!$P$101*((2.54*B9)^'Equations - Parameters'!$Q$101)*($Q$3^'Equations - Parameters'!$R$101)*((2.47105*$V$4)^'Equations - Parameters'!$S$101)))) -> 50 | K9: 27 | M9: Rank75%
A10: 7 | B10: 6 | D10: 1.791759469 | E10: 0.1666666667 | G10: 0.1963495408 | H10: 1 | I10: =IF(B10="","",IF(C10<>"",C10,IF($J$6<>"",3.28084*'Equations - Parameters'!$P$101*((2.54*B10)^'Equations - Parameters'!$Q$101)*($Q$3^'Equations - Parameters'!$R$101)*((2.47105*$V$4)^'Equations - Parameters'!$S$101)))) -> 44.07684005 | K10: 29 | M10: =ROUND(0.25*M7,0) -> 8
A11: 8 | B11: 8 | D11: 2.079441542 | E11: 0.125 | G11: 0.3490658504 | H11: 1 | I11: =IF(B11="","",IF(C11<>"",C11,IF($J$6<>"",3.28084*'Equations - Parameters'!$P$101*((2.54*B11)^'Equations - Parameters'!$Q$101)*($Q$3^'Equations - Parameters'!$R$101)*((2.47105*$V$4)^'Equations - Parameters'!$S$101)))) -> 57.38412541 | K11: 23
A12: 9 | B12: 9 | C12: 56 | D12: 2.197224577 | E12: 0.1111111111 | F12: 4.025351691 | G12: 0.4417864669 | H12: 1 | I12: =IF(B12="","",IF(C12<>"",C12,IF($J$6<>"",3.28084*'Equations - Parameters'!$P$101*((2.54*B12)^'Equations - Parameters'!$Q$101)*($Q$3^'Equations - Parameters'!$R$101)*((2.47105*$V$4)^'Equations - Parameters'!$S$101)))) -> 56 | K12: 25
A13: 10 | B13: 11 | D13: 2.397895273 | E13: 0.09090909091 | G13: 0.6599526234 | H13: 1 | I13: =IF(B13="","",IF(C13<>"",C13,IF($J$6<>"",3.28084*'Equations - Parameters'!$P$101*((2.54*B13)^'Equations - Parameters'!$Q$101)*($Q$3^'Equations - Parameters'!$R$101)*((2.47105*$V$4)^'Equations - Parameters'!$S$101)))) -> 76.84739875 | K13: 7 | L13: 76.84739875
A14: 11 | B14: 15 | D14: 2.708050201 | E14: 0.06666666667 | G14: 1.22718463 | H14: 1 | I14: =IF(B14="","",IF(C14<>"",C14,IF($J$6<>"",3.28084*'Equations - Parameters'!$P$101*((2.54*B14)^'Equations - Parameters'!$Q$101)*($Q$3^'Equations - Parameters'!$R$101)*((2.47105*$V$4)^'Equations - Parameters'!$S$101)))) -> 102.1318582 | K14: 3 | L14: 102.1318582
A15: 12 | B15: 18 | D15: 2.890371758 | E15: 0.05555555556 | G15: 1.767145868 | H15: 1 | I15: =IF(B15="","",IF(C15<>"",C15,IF($J$6<>"",3.28084*'Equations - Parameters'!$P$101*((2.54*B15)^'Equations - Parameters'!$Q$101)*($Q$3^'Equations - Parameters'!$R$101)*((2.47105*$V$4)^'Equations - Parameters'!$S$101)))) -> 120.7197575 | K15: 1 | L15: 120.7197575
A16: 13 | B16: 12 | C16: 62 | D16: 2.48490665 | E16: 0.08333333333 | F16: 4.127134385 | G16: 0.7853981634 | H16: 1 | I16: =IF(B16="","",IF(C16<>"",C16,IF($J$6<>"",3.28084*'Equations - Parameters'!$P$101*((2.54*B16)^'Equations - Parameters'!$Q$101)*($Q$3^'Equations - Parameters'!$R$101)*((2.47105*$V$4)^'Equations - Parameters'!$S$101)))) -> 62 | K16: 21
A17: 14 | B17: 10 | D17: 2.302585093 | E17: 0.1 | G17: 0.5454153912 | H17: 1 | I17: =IF(B17="","",IF(C17<>"",C17,IF($J$6<>"",3.28084*'Equations - Parameters'!$P$101*((2.54*B17)^'Equations - Parameters'!$Q$101)*($Q$3^'Equations - Parameters'!$R$101)*((2.47105*$V$4)^'Equations - Parameters'!$S$101)))) -> 70.41544689 | K17: 13
A18: 15 | B18: 14 | D18: 2.63905733 | E18: 0.07142857143 | G18: 1.069014167 | H18: 1 | I18: =IF(B18="","",IF(C18<>"",C18,IF($J$6<>"",3.28084*'Equations - Parameters'!$P$101*((2.54*B18)^'Equations - Parameters'!$Q$101)*($Q$3^'Equations - Parameters'!$R$101)*((2.47105*$V$4)^'Equations - Parameters'!$S$101)))) -> 95.86983091 | K18: 5 | L18: 95.86983091
A19: 16 | B19: 16.3 | C19: 74 | D19: 2.791165108 | E19: 0.06134969325 | F19: 4.304065093 | G19: 1.449114153 | H19: 1 | I19: =IF(B19="","",IF(C19<>"",C19,IF($J$6<>"",3.28084*'Equations - Parameters'!$P$101*((2.54*B19)^'Equations - Parameters'!$Q$101)*($Q$3^'Equations - Parameters'!$R$101)*((2.47105*$V$4)^'Equations - Parameters'!$S$101)))) -> 74 | K19: 11
A20: 17 | B20: 8.9 | D20: 2.186051277 | E20: 0.1123595506 | G20: 0.4320235314 | H20: 1 | I20: =IF(B20="","",IF(C20<>"",C20,IF($J$6<>"",3.28084*'Equations - Parameters'!$P$101*((2.54*B20)^'Equations - Parameters'!$Q$101)*($Q$3^'Equations - Parameters'!$R$101)*((2.47105*$V$4)^'Equations - Parameters'!$S$101)))) -> 63.27811231 | K20: 17
A21: 18 | B21: 10.7 | C21: 70 | D21: 2.370243741 | E21: 0.09345794393 | F21: 4.248495242 | G21: 0.6244460814 | H21: 1 | I21: =IF(B21="","",IF(C21<>"",C21,IF($J$6<>"",3.28084*'Equations - Parameters'!$P$101*((2.54*B21)^'Equations - Parameters'!$Q$101)*($Q$3^'Equations - Parameters'!$R$101)*((2.47105*$V$4)^'Equations - Parameters'!$S$101)))) -> 70 | K21: 15
A22: 19 | B22: 8.8 | D22: 2.174751721 | E22: 0.1136363636 | G22: 0.422369679 | H22: 1 | I22: =IF(B22="","",IF(C22<>"",C22,IF($J$6<>"",3.28084*'Equations - Parameters'!$P$101*((2.54*B22)^'Equations - Parameters'!$Q$101)*($Q$3^'Equations - Parameters'!$R$101)*((2.47105*$V$4)^'Equations - Parameters'!$S$101)))) -> 62.62575844 | K22: 19
A23: 20 | B23: 11 | D23: 2.397895273 | E23: 0.09090909091 | G23: 0.6599526234 | H23: 1 | I23: =IF(B23="","",IF(C23<>"",C23,IF($J$6<>"",3.28084*'Equations - Parameters'!$P$101*((2.54*B23)^'Equations - Parameters'!$Q$101)*($Q$3^'Equations - Parameters'!$R$101)*((2.47105*$V$4)^'Equations - Parameters'!$S$101)))) -> 76.84739875 | K23: 7 | L23: 76.84739875
A24: 21 | B24: 10 | C24: 50 | D24: 2.302585093 | E24: 0.1 | F24: 3.912023005 | G24: 0.5454153912 | H24: 1 | I24: =IF(B24="","",IF(C24<>"",C24,IF($J$6<>"",3.28084*'Equations - Parameters'!$P$101*((2.54*B24)^'Equations - Parameters'!$Q$101)*($Q$3^'Equations - Parameters'!$R$101)*((2.47105*$V$4)^'Equations - Parameters'!$S$101)))) -> 50 | K24: 27
A25: 22 | B25: 6 | D25: 1.791759469 | E25: 0.1666666667 | G25: 0.1963495408 | H25: 1 | I25: =IF(B25="","",IF(C25<>"",C25,IF($J$6<>"",3.28084*'Equations - Parameters'!$P$101*((2.54*B25)^'Equations - Parameters'!$Q$101)*($Q$3^'Equations - Parameters'!$R$101)*((2.47105*$V$4)^'Equations - Parameters'!$S$101)))) -> 44.07684005 | K25: 29
A26: 23 | B26: 8 | D26: =IF(B26="","",LN(B26)) -> 2.079441542 | E26: =IF(B26="","",1/B26) -> 0.125 | G26: 0.3490658504 | H26: 1 | I26: =IF(B26="","",IF(C26<>"",C26,IF($J$6<>"",3.28084*'Equations - Parameters'!$P$101*((2.54*B26)^'Equations - Parameters'!$Q$101)*($Q$3^'Equations - Parameters'!$R$101)*((2.47105*$V$4)^'Equations - Parameters'!$S$101)))) -> 57.38412541 | K26: 23
A27: 24 | B27: 9 | C27: 56 | D27: 2.197224577 | E27: 0.1111111111 | F27: 4.025351691 | G27: 0.4417864669 | H27: 1 | I27: =IF(B27="","",IF(C27<>"",C27,IF($J$6<>"",3.28084*'Equations - Parameters'!$P$101*((2.54*B27)^'Equations - Parameters'!$Q$101)*($Q$3^'Equations - Parameters'!$R$101)*((2.47105*$V$4)^'Equations - Parameters'!$S$101)))) -> 56 | K27: 25
A28: 25 | B28: 11 | D28: 2.397895273 | E28: 0.09090909091 | G28: 0.6599526234 | H28: 1 | I28: =IF(B28="","",IF(C28<>"",C28,IF($J$6<>"",3.28084*'Equations - Parameters'!$P$101*((2.54*B28)^'Equations - Parameters'!$Q$101)*($Q$3^'Equations - Parameters'!$R$101)*((2.47105*$V$4)^'Equations - Parameters'!$S$101)))) -> 76.84739875 | K28: 7 | L28: 76.84739875
A29: 26 | B29: 15 | D29: 2.708050201 | E29: 0.06666666667 | G29: 1.22718463 | H29: 1 | I29: =IF(B29="","",IF(C29<>"",C29,IF($J$6<>"",3.28084*'Equations - Parameters'!$P$101*((2.54*B29)^'Equations - Parameters'!$Q$101)*($Q$3^'Equations - Parameters'!$R$101)*((2.47105*$V$4)^'Equations - Parameters'!$S$101)))) -> 102.1318582 | K29: 3 | L29: 102.1318582
A30: 27 | B30: 18 | D30: 2.890371758 | E30: 0.05555555556 | G30: 1.767145868 | H30: 1 | I30: =IF(B30="","",IF(C30<>"",C30,IF($J$6<>"",3.28084*'Equations - Parameters'!$P$101*((2.54*B30)^'Equations - Parameters'!$Q$101)*($Q$3^'Equations - Parameters'!$R$101)*((2.47105*$V$4)^'Equations - Parameters'!$S$101)))) -> 120.7197575 | K30: 1 | L30: 120.7197575
A31: 28 | B31: 12 | C31: 62 | D31: 2.48490665 | E31: 0.08333333333 | F31: 4.127134385 | G31: 0.7853981634 | H31: 1 | I31: =IF(B31="","",IF(C31<>"",C31,IF($J$6<>"",3.28084*'Equations - Parameters'!$P$101*((2.54*B31)^'Equations - Parameters'!$Q$101)*($Q$3^'Equations - Parameters'!$R$101)*((2.47105*$V$4)^'Equations - Parameters'!$S$101)))) -> 62 | K31: 21
A32: 29 | B32: 10 | D32: 2.302585093 | E32: 0.1 | G32: 0.5454153912 | H32: 1 | I32: =IF(B32="","",IF(C32<>"",C32,IF($J$6<>"",3.28084*'Equations - Parameters'!$P$101*((2.54*B32)^'Equations - Parameters'!$Q$101)*($Q$3^'Equations - Parameters'!$R$101)*((2.47105*$V$4)^'Equations - Parameters'!$S$101)))) -> 70.41544689 | K32: 13
A33: 30 | B33: 14 | D33: 2.63905733 | E33: 0.07142857143 | G33: 1.069014167 | H33: 1 | I33: =IF(B33="","",IF(C33<>"",C33,IF($J$6<>"",3.28084*'Equations - Parameters'!$P$101*((2.54*B33)^'Equations - Parameters'!$Q$101)*($Q$3^'Equations - Parameters'!$R$101)*((2.47105*$V$4)^'Equations - Parameters'!$S$101)))) -> 95.86983091 | K33: 5 | L33: 95.86983091
H34: 0 | I34: =IF(B34="","",IF(C34<>"",C34,IF($J$6<>"",3.28084*'Equations - Parameters'!$P$101*((2.54*B34)^'Equations - Parameters'!$Q$101)*($Q$3^'Equations - Parameters'!$R$101)*((2.47105*$V$4)^'Equations - Parameters'!$S$101)))) -> 
H35: 0 | I35: =IF(B35="","",IF(C35<>"",C35,IF($J$6<>"",3.28084*'Equations - Parameters'!$P$101*((2.54*B35)^'Equations - Parameters'!$Q$101)*($Q$3^'Equations - Parameters'!$R$101)*((2.47105*$V$4)^'Equations - Parameters'!$S$101)))) -> 
H36: 0 | I36: =IF(B36="","",IF(C36<>"",C36,IF($J$6<>"",3.28084*'Equations - Parameters'!$P$101*((2.54*B36)^'Equations - Parameters'!$Q$101)*($Q$3^'Equations - Parameters'!$R$101)*((2.47105*$V$4)^'Equations - Parameters'!$S$101)))) -> 
H37: 0 | I37: =IF(B37="","",IF(C37<>"",C37,IF($J$6<>"",3.28084*'Equations - Parameters'!$P$101*((2.54*B37)^'Equations - Parameters'!$Q$101)*($Q$3^'Equations - Parameters'!$R$101)*((2.47105*$V$4)^'Equations - Parameters'!$S$101)))) -> 
H38: 0 | I38: =IF(B38="","",IF(C38<>"",C38,IF($J$6<>"",3.28084*'Equations - Parameters'!$P$101*((2.54*B38)^'Equations - Parameters'!$Q$101)*($Q$3^'Equations - Parameters'!$R$101)*((2.47105*$V$4)^'Equations - Parameters'!$S$101)))) -> 
H39: 0 | I39: =IF(B39="","",IF(C39<>"",C39,IF($J$6<>"",3.28084*'Equations - Parameters'!$P$101*((2.54*B39)^'Equations - Parameters'!$Q$101)*($Q$3^'Equations - Parameters'!$R$101)*((2.47105*$V$4)^'Equations - Parameters'!$S$101)))) -> 
H40: 0 | I40: =IF(B40="","",IF(C40<>"",C40,IF($J$6<>"",3.28084*'Equations - Parameters'!$P$101*((2.54*B40)^'Equations - Parameters'!$Q$101)*($Q$3^'Equations - Parameters'!$R$101)*((2.47105*$V$4)^'Equations - Parameters'!$S$101)))) -> 
H41: 0 | I41: =IF(B41="","",IF(C41<>"",C41,IF($J$6<>"",3.28084*'Equations - Parameters'!$P$101*((2.54*B41)^'Equations - Parameters'!$Q$101)*($Q$3^'Equations - Parameters'!$R$101)*((2.47105*$V$4)^'Equations - Parameters'!$S$101)))) -> 
H42: 0 | I42: =IF(B42="","",IF(C42<>"",C42,IF($J$6<>"",3.28084*'Equations - Parameters'!$P$101*((2.54*B42)^'Equations - Parameters'!$Q$101)*($Q$3^'Equations - Parameters'!$R$101)*((2.47105*$V$4)^'Equations - Parameters'!$S$101)))) -> 
H43: 0 | I43: =IF(B43="","",IF(C43<>"",C43,IF($J$6<>"",3.28084*'Equations - Parameters'!$P$101*((2.54*B43)^'Equations - Parameters'!$Q$101)*($Q$3^'Equations - Parameters'!$R$101)*((2.47105*$V$4)^'Equations - Parameters'!$S$101)))) -> 
H44: 0 | I44: =IF(B44="","",IF(C44<>"",C44,IF($J$6<>"",3.28084*'Equations - Parameters'!$P$101*((2.54*B44)^'Equations - Parameters'!$Q$101)*($Q$3^'Equations - Parameters'!$R$101)*((2.47105*$V$4)^'Equations - Parameters'!$S$101)))) -> 
H45: 0 | I45: =IF(B45="","",IF(C45<>"",C45,IF($J$6<>"",3.28084*'Equations - Parameters'!$P$101*((2.54*B45)^'Equations - Parameters'!$Q$101)*($Q$3^'Equations - Parameters'!$R$101)*((2.47105*$V$4)^'Equations - Parameters'!$S$101)))) -> 
H46: 0 | I46: =IF(B46="","",IF(C46<>"",C46,IF($J$6<>"",3.28084*'Equations - Parameters'!$P$101*((2.54*B46)^'Equations - Parameters'!$Q$101)*($Q$3^'Equations - Parameters'!$R$101)*((2.47105*$V$4)^'Equations - Parameters'!$S$101)))) -> 
H47: 0 | I47: =IF(B47="","",IF(C47<>"",C47,IF($J$6<>"",3.28084*'Equations - Parameters'!$P$101*((2.54*B47)^'Equations - Parameters'!$Q$101)*($Q$3^'Equations - Parameters'!$R$101)*((2.47105*$V$4)^'Equations - Parameters'!$S$101)))) -> 
H48: 0 | I48: =IF(B48="","",IF(C48<>"",C48,IF($J$6<>"",3.28084*'Equations - Parameters'!$P$101*((2.54*B48)^'Equations - Parameters'!$Q$101)*($Q$3^'Equations - Parameters'!$R$101)*((2.47105*$V$4)^'Equations - Parameters'!$S$101)))) -> 
H49: 0 | I49: =IF(B49="","",IF(C49<>"",C49,IF($J$6<>"",3.28084*'Equations - Parameters'!$P$101*((2.54*B49)^'Equations - Parameters'!$Q$101)*($Q$3^'Equations - Parameters'!$R$101)*((2.47105*$V$4)^'Equations - Parameters'!$S$101)))) -> 
H50: 0 | I50: =IF(B50="","",IF(C50<>"",C50,IF($J$6<>"",3.28084*'Equations - Parameters'!$P$101*((2.54*B50)^'Equations - Parameters'!$Q$101)*($Q$3^'Equations - Parameters'!$R$101)*((2.47105*$V$4)^'Equations - Parameters'!$S$101)))) -> 
H51: 0 | I51: =IF(B51="","",IF(C51<>"",C51,IF($J$6<>"",3.28084*'Equations - Parameters'!$P$101*((2.54*B51)^'Equations - Parameters'!$Q$101)*($Q$3^'Equations - Parameters'!$R$101)*((2.47105*$V$4)^'Equations - Parameters'!$S$101)))) -> 
H52: 0 | I52: =IF(B52="","",IF(C52<>"",C52,IF($J$6<>"",3.28084*'Equations - Parameters'!$P$101*((2.54*B52)^'Equations - Parameters'!$Q$101)*($Q$3^'Equations - Parameters'!$R$101)*((2.47105*$V$4)^'Equations - Parameters'!$S$101)))) -> 
H53: 0 | I53: =IF(B53="","",IF(C53<>"",C53,IF($J$6<>"",3.28084*'Equations - Parameters'!$P$101*((2.54*B53)^'Equations - Parameters'!$Q$101)*($Q$3^'Equations - Parameters'!$R$101)*((2.47105*$V$4)^'Equations - Parameters'!$S$101)))) -> 
H54: 0 | I54: =IF(B54="","",IF(C54<>"",C54,IF($J$6<>"",3.28084*'Equations - Parameters'!$P$101*((2.54*B54)^'Equations - Parameters'!$Q$101)*($Q$3^'Equations - Parameters'!$R$101)*((2.47105*$V$4)^'Equations - Parameters'!$S$101)))) -> 
H55: 0 | I55: =IF(B55="","",IF(C55<>"",C55,IF($J$6<>"",3.28084*'Equations - Parameters'!$P$101*((2.54*B55)^'Equations - Parameters'!$Q$101)*($Q$3^'Equations - Parameters'!$R$101)*((2.47105*$V$4)^'Equations - Parameters'!$S$101)))) -> 
H56: 0 | I56: =IF(B56="","",IF(C56<>"",C56,IF($J$6<>"",3.28084*'Equations - Parameters'!$P$101*((2.54*B56)^'Equations - Parameters'!$Q$101)*($Q$3^'Equations - Parameters'!$R$101)*((2.47105*$V$4)^'Equations - Parameters'!$S$101)))) -> 
H57: 0 | I57: =IF(B57="","",IF(C57<>"",C57,IF($J$6<>"",3.28084*'Equations - Parameters'!$P$101*((2.54*B57)^'Equations - Parameters'!$Q$101)*($Q$3^'Equations - Parameters'!$R$101)*((2.47105*$V$4)^'Equations - Parameters'!$S$101)))) -> 
H58: 0 | I58: =IF(B58="","",IF(C58<>"",C58,IF($J$6<>"",3.28084*'Equations - Parameters'!$P$101*((2.54*B58)^'Equations - Parameters'!$Q$101)*($Q$3^'Equations - Parameters'!$R$101)*((2.47105*$V$4)^'Equations - Parameters'!$S$101)))) -> 
H59: 0 | I59: =IF(B59="","",IF(C59<>"",C59,IF($J$6<>"",3.28084*'Equations - Parameters'!$P$101*((2.54*B59)^'Equations - Parameters'!$Q$101)*($Q$3^'Equations - Parameters'!$R$101)*((2.47105*$V$4)^'Equations - Parameters'!$S$101)))) -> 
H60: 0 | I60: =IF(B60="","",IF(C60<>"",C60,IF($J$6<>"",3.28084*'Equations - Parameters'!$P$101*((2.54*B60)^'Equations - Parameters'!$Q$101)*($Q$3^'Equations - Parameters'!$R$101)*((2.47105*$V$4)^'Equations - Parameters'!$S$101)))) -> 
H61: 0 | I61: =IF(B61="","",IF(C61<>"",C61,IF($J$6<>"",3.28084*'Equations - Parameters'!$P$101*((2.54*B61)^'Equations - Parameters'!$Q$101)*($Q$3^'Equations - Parameters'!$R$101)*((2.47105*$V$4)^'Equations - Parameters'!$S$101)))) -> 
H62: 0 | I62: =IF(B62="","",IF(C62<>"",C62,IF($J$6<>"",3.28084*'Equations - Parameters'!$P$101*((2.54*B62)^'Equations - Parameters'!$Q$101)*($Q$3^'Equations - Parameters'!$R$101)*((2.47105*$V$4)^'Equations - Parameters'!$S$101)))) -> 
H63: 0 | I63: =IF(B63="","",IF(C63<>"",C63,IF($J$6<>"",3.28084*'Equations - Parameters'!$P$101*((2.54*B63)^'Equations - Parameters'!$Q$101)*($Q$3^'Equations - Parameters'!$R$101)*((2.47105*$V$4)^'Equations - Parameters'!$S$101)))) -> 
H64: 0 | I64: =IF(B64="","",IF(C64<>"",C64,IF($J$6<>"",3.28084*'Equations - Parameters'!$P$101*((2.54*B64)^'Equations - Parameters'!$Q$101)*($Q$3^'Equations - Parameters'!$R$101)*((2.47105*$V$4)^'Equations - Parameters'!$S$101)))) -> 
H65: 0 | I65: =IF(B65="","",IF(C65<>"",C65,IF($J$6<>"",3.28084*'Equations - Parameters'!$P$101*((2.54*B65)^'Equations - Parameters'!$Q$101)*($Q$3^'Equations - Parameters'!$R$101)*((2.47105*$V$4)^'Equations - Parameters'!$S$101)))) -> 
H66: 0 | I66: =IF(B66="","",IF(C66<>"",C66,IF($J$6<>"",3.28084*'Equations - Parameters'!$P$101*((2.54*B66)^'Equations - Parameters'!$Q$101)*($Q$3^'Equations - Parameters'!$R$101)*((2.47105*$V$4)^'Equations - Parameters'!$S$101)))) -> 
H67: 0 | I67: =IF(B67="","",IF(C67<>"",C67,IF($J$6<>"",3.28084*'Equations - Parameters'!$P$101*((2.54*B67)^'Equations - Parameters'!$Q$101)*($Q$3^'Equations - Parameters'!$R$101)*((2.47105*$V$4)^'Equations - Parameters'!$S$101)))) -> 
H68: 0 | I68: =IF(B68="","",IF(C68<>"",C68,IF($J$6<>"",3.28084*'Equations - Parameters'!$P$101*((2.54*B68)^'Equations - Parameters'!$Q$101)*($Q$3^'Equations - Parameters'!$R$101)*((2.47105*$V$4)^'Equations - Parameters'!$S$101)))) -> 
G69: =IF(B69="","",(PI()*(B69/12)^2)/4) ->  | H69: =+IF(B69=0,0,IF(B69="",0,1)) -> 0 | I69: =IF(B69="","",IF(C69<>"",C69,IF($J$6<>"",3.28084*'Equations - Parameters'!$P$101*((2.54*B69)^'Equations - Parameters'!$Q$101)*($Q$3^'Equations - Parameters'!$R$101)*((2.47105*$V$4)^'Equations - Parameters'!$S$101)))) ->  | K69: =IF(B69="","",RANK(I69,$I$4:$I$1003,0)) ->  | L69: =+IF(K69<=$M$10,I69,"") -> 
A70: =+IF(B70="","",A69+1) ->  | H70: 0 | I70: =IF(B70="","",IF(C70<>"",C70,IF($J$6<>"",3.28084*'Equations - Parameters'!$P$101*((2.54*B70)^'Equations - Parameters'!$Q$101)*($Q$3^'Equations - Parameters'!$R$101)*((2.47105*$V$4)^'Equations - Parameters'!$S$101)))) -> 
H71: 0 | I71: =IF(B71="","",IF(C71<>"",C71,IF($J$6<>"",3.28084*'Equations - Parameters'!$P$101*((2.54*B71)^'Equations - Parameters'!$Q$101)*($Q$3^'Equations - Parameters'!$R$101)*((2.47105*$V$4)^'Equations - Parameters'!$S$101)))) -> 
F72: =IF(C72="","",LN(C72)) ->  | H72: 0 | I72: =IF(B72="","",IF(C72<>"",C72,IF($J$6<>"",3.28084*'Equations - Parameters'!$P$101*((2.54*B72)^'Equations - Parameters'!$Q$101)*($Q$3^'Equations - Parameters'!$R$101)*((2.47105*$V$4)^'Equations - Parameters'!$S$101)))) -> 
H73: 0 | I73: =IF(B73="","",IF(C73<>"",C73,IF($J$6<>"",3.28084*'Equations - Parameters'!$P$101*((2.54*B73)^'Equations - Parameters'!$Q$101)*($Q$3^'Equations - Parameters'!$R$101)*((2.47105*$V$4)^'Equations - Parameters'!$S$101)))) -> 
H74: 0 | I74: =IF(B74="","",IF(C74<>"",C74,IF($J$6<>"",3.28084*'Equations - Parameters'!$P$101*((2.54*B74)^'Equations - Parameters'!$Q$101)*($Q$3^'Equations - Parameters'!$R$101)*((2.47105*$V$4)^'Equations - Parameters'!$S$101)))) -> 
H75: 0 | I75: =IF(B75="","",IF(C75<>"",C75,IF($J$6<>"",3.28084*'Equations - Parameters'!$P$101*((2.54*B75)^'Equations - Parameters'!$Q$101)*($Q$3^'Equations - Parameters'!$R$101)*((2.47105*$V$4)^'Equations - Parameters'!$S$101)))) -> 
H76: 0 | I76: =IF(B76="","",IF(C76<>"",C76,IF($J$6<>"",3.28084*'Equations - Parameters'!$P$101*((2.54*B76)^'Equations - Parameters'!$Q$101)*($Q$3^'Equations - Parameters'!$R$101)*((2.47105*$V$4)^'Equations - Parameters'!$S$101)))) -> 
H77: 0 | I77: =IF(B77="","",IF(C77<>"",C77,IF($J$6<>"",3.28084*'Equations - Parameters'!$P$101*((2.54*B77)^'Equations - Parameters'!$Q$101)*($Q$3^'Equations - Parameters'!$R$101)*((2.47105*$V$4)^'Equations - Parameters'!$S$101)))) -> 
H78: 0 | I78: =IF(B78="","",IF(C78<>"",C78,IF($J$6<>"",3.28084*'Equations - Parameters'!$P$101*((2.54*B78)^'Equations - Parameters'!$Q$101)*($Q$3^'Equations - Parameters'!$R$101)*((2.47105*$V$4)^'Equations - Parameters'!$S$101)))) -> 
H79: 0 | I79: =IF(B79="","",IF(C79<>"",C79,IF($J$6<>"",3.28084*'Equations - Parameters'!$P$101*((2.54*B79)^'Equations - Parameters'!$Q$101)*($Q$3^'Equations - Parameters'!$R$101)*((2.47105*$V$4)^'Equations - Parameters'!$S$101)))) -> 
H80: 0 | I80: =IF(B80="","",IF(C80<>"",C80,IF($J$6<>"",3.28084*'Equations - Parameters'!$P$101*((2.54*B80)^'Equations - Parameters'!$Q$101)*($Q$3^'Equations - Parameters'!$R$101)*((2.47105*$V$4)^'Equations - Parameters'!$S$101)))) -> 
H81: 0 | I81: =IF(B81="","",IF(C81<>"",C81,IF($J$6<>"",3.28084*'Equations - Parameters'!$P$101*((2.54*B81)^'Equations - Parameters'!$Q$101)*($Q$3^'Equations - Parameters'!$R$101)*((2.47105*$V$4)^'Equations - Parameters'!$S$101)))) -> 
H82: 0 | I82: =IF(B82="","",IF(C82<>"",C82,IF($J$6<>"",3.28084*'Equations - Parameters'!$P$101*((2.54*B82)^'Equations - Parameters'!$Q$101)*($Q$3^'Equations - Parameters'!$R$101)*((2.47105*$V$4)^'Equations - Parameters'!$S$101)))) -> 
H83: 0 | I83: =IF(B83="","",IF(C83<>"",C83,IF($J$6<>"",3.28084*'Equations - Parameters'!$P$101*((2.54*B83)^'Equations - Parameters'!$Q$101)*($Q$3^'Equations - Parameters'!$R$101)*((2.47105*$V$4)^'Equations - Parameters'!$S$101)))) -> 
H84: 0 | I84: =IF(B84="","",IF(C84<>"",C84,IF($J$6<>"",3.28084*'Equations - Parameters'!$P$101*((2.54*B84)^'Equations - Parameters'!$Q$101)*($Q$3^'Equations - Parameters'!$R$101)*((2.47105*$V$4)^'Equations - Parameters'!$S$101)))) -> 
H85: 0 | I85: =IF(B85="","",IF(C85<>"",C85,IF($J$6<>"",3.28084*'Equations - Parameters'!$P$101*((2.54*B85)^'Equations - Parameters'!$Q$101)*($Q$3^'Equations - Parameters'!$R$101)*((2.47105*$V$4)^'Equations - Parameters'!$S$101)))) -> 
H86: 0 | I86: =IF(B86="","",IF(C86<>"",C86,IF($J$6<>"",3.28084*'Equations - Parameters'!$P$101*((2.54*B86)^'Equations - Parameters'!$Q$101)*($Q$3^'Equations - Parameters'!$R$101)*((2.47105*$V$4)^'Equations - Parameters'!$S$101)))) -> 
H87: 0 | I87: =IF(B87="","",IF(C87<>"",C87,IF($J$6<>"",3.28084*'Equations - Parameters'!$P$101*((2.54*B87)^'Equations - Parameters'!$Q$101)*($Q$3^'Equations - Parameters'!$R$101)*((2.47105*$V$4)^'Equations - Parameters'!$S$101)))) -> 
H88: 0 | I88: =IF(B88="","",IF(C88<>"",C88,IF($J$6<>"",3.28084*'Equations - Parameters'!$P$101*((2.54*B88)^'Equations - Parameters'!$Q$101)*($Q$3^'Equations - Parameters'!$R$101)*((2.47105*$V$4)^'Equations - Parameters'!$S$101)))) -> 
H89: 0 | I89: =IF(B89="","",IF(C89<>"",C89,IF($J$6<>"",3.28084*'Equations - Parameters'!$P$101*((2.54*B89)^'Equations - Parameters'!$Q$101)*($Q$3^'Equations - Parameters'!$R$101)*((2.47105*$V$4)^'Equations - Parameters'!$S$101)))) -> 
D90: =IF(B90="","",LN(B90)) ->  | E90: =IF(B90="","",1/B90) ->  | H90: 0 | I90: =IF(B90="","",IF(C90<>"",C90,IF($J$6<>"",3.28084*'Equations - Parameters'!$P$101*((2.54*B90)^'Equations - Parameters'!$Q$101)*($Q$3^'Equations - Parameters'!$R$101)*((2.47105*$V$4)^'Equations - Parameters'!$S$101)))) -> 
H91: 0 | I91: =IF(B91="","",IF(C91<>"",C91,IF($J$6<>"",3.28084*'Equations - Parameters'!$P$101*((2.54*B91)^'Equations - Parameters'!$Q$101)*($Q$3^'Equations - Parameters'!$R$101)*((2.47105*$V$4)^'Equations - Parameters'!$S$101)))) -> 
H92: 0 | I92: =IF(B92="","",IF(C92<>"",C92,IF($J$6<>"",3.28084*'Equations - Parameters'!$P$101*((2.54*B92)^'Equations - Parameters'!$Q$101)*($Q$3^'Equations - Parameters'!$R$101)*((2.47105*$V$4)^'Equations - Parameters'!$S$101)))) -> 
H93: 0 | I93: =IF(B93="","",IF(C93<>"",C93,IF($J$6<>"",3.28084*'Equations - Parameters'!$P$101*((2.54*B93)^'Equations - Parameters'!$Q$101)*($Q$3^'Equations - Parameters'!$R$101)*((2.47105*$V$4)^'Equations - Parameters'!$S$101)))) -> 
H94: 0 | I94: =IF(B94="","",IF(C94<>"",C94,IF($J$6<>"",3.28084*'Equations - Parameters'!$P$101*((2.54*B94)^'Equations - Parameters'!$Q$101)*($Q$3^'Equations - Parameters'!$R$101)*((2.47105*$V$4)^'Equations - Parameters'!$S$101)))) -> 
H95: 0 | I95: =IF(B95="","",IF(C95<>"",C95,IF($J$6<>"",3.28084*'Equations - Parameters'!$P$101*((2.54*B95)^'Equations - Parameters'!$Q$101)*($Q$3^'Equations - Parameters'!$R$101)*((2.47105*$V$4)^'Equations - Parameters'!$S$101)))) -> 
H96: 0 | I96: =IF(B96="","",IF(C96<>"",C96,IF($J$6<>"",3.28084*'Equations - Parameters'!$P$101*((2.54*B96)^'Equations - Parameters'!$Q$101)*($Q$3^'Equations - Parameters'!$R$101)*((2.47105*$V$4)^'Equations - Parameters'!$S$101)))) -> 
H97: 0 | I97: =IF(B97="","",IF(C97<>"",C97,IF($J$6<>"",3.28084*'Equations - Parameters'!$P$101*((2.54*B97)^'Equations - Parameters'!$Q$101)*($Q$3^'Equations - Parameters'!$R$101)*((2.47105*$V$4)^'Equations - Parameters'!$S$101)))) -> 
H98: 0 | I98: =IF(B98="","",IF(C98<>"",C98,IF($J$6<>"",3.28084*'Equations - Parameters'!$P$101*((2.54*B98)^'Equations - Parameters'!$Q$101)*($Q$3^'Equations - Parameters'!$R$101)*((2.47105*$V$4)^'Equations - Parameters'!$S$101)))) -> 
H99: 0 | I99: =IF(B99="","",IF(C99<>"",C99,IF($J$6<>"",3.28084*'Equations - Parameters'!$P$101*((2.54*B99)^'Equations - Parameters'!$Q$101)*($Q$3^'Equations - Parameters'!$R$101)*((2.47105*$V$4)^'Equations - Parameters'!$S$101)))) -> 
H100: 0 | I100: =IF(B100="","",IF(C100<>"",C100,IF($J$6<>"",3.28084*'Equations - Parameters'!$P$101*((2.54*B100)^'Equations - Parameters'!$Q$101)*($Q$3^'Equations - Parameters'!$R$101)*((2.47105*$V$4)^'Equations - Parameters'!$S$101)))) -> 
H101: 0 | I101: =IF(B101="","",IF(C101<>"",C101,IF($J$6<>"",3.28084*'Equations - Parameters'!$P$101*((2.54*B101)^'Equations - Parameters'!$Q$101)*($Q$3^'Equations - Parameters'!$R$101)*((2.47105*$V$4)^'Equations - Parameters'!$S$101)))) -> 
H102: 0 | I102: =IF(B102="","",IF(C102<>"",C102,IF($J$6<>"",3.28084*'Equations - Parameters'!$P$101*((2.54*B102)^'Equations - Parameters'!$Q$101)*($Q$3^'Equations - Parameters'!$R$101)*((2.47105*$V$4)^'Equations - Parameters'!$S$101)))) -> 
H103: 0 | I103: =IF(B103="","",IF(C103<>"",C103,IF($J$6<>"",3.28084*'Equations - Parameters'!$P$101*((2.54*B103)^'Equations - Parameters'!$Q$101)*($Q$3^'Equations - Parameters'!$R$101)*((2.47105*$V$4)^'Equations - Parameters'!$S$101)))) -> 
H104: 0 | I104: =IF(B104="","",IF(C104<>"",C104,IF($J$6<>"",3.28084*'Equations - Parameters'!$P$101*((2.54*B104)^'Equations - Parameters'!$Q$101)*($Q$3^'Equations - Parameters'!$R$101)*((2.47105*$V$4)^'Equations - Parameters'!$S$101)))) -> 
H105: 0 | I105: =IF(B105="","",IF(C105<>"",C105,IF($J$6<>"",3.28084*'Equations - Parameters'!$P$101*((2.54*B105)^'Equations - Parameters'!$Q$101)*($Q$3^'Equations - Parameters'!$R$101)*((2.47105*$V$4)^'Equations - Parameters'!$S$101)))) -> 
H106: 0 | I106: =IF(B106="","",IF(C106<>"",C106,IF($J$6<>"",3.28084*'Equations - Parameters'!$P$101*((2.54*B106)^'Equations - Parameters'!$Q$101)*($Q$3^'Equations - Parameters'!$R$101)*((2.47105*$V$4)^'Equations - Parameters'!$S$101)))) -> 
H107: 0 | I107: =IF(B107="","",IF(C107<>"",C107,IF($J$6<>"",3.28084*'Equations - Parameters'!$P$101*((2.54*B107)^'Equations - Parameters'!$Q$101)*($Q$3^'Equations - Parameters'!$R$101)*((2.47105*$V$4)^'Equations - Parameters'!$S$101)))) -> 
H108: 0 | I108: =IF(B108="","",IF(C108<>"",C108,IF($J$6<>"",3.28084*'Equations - Parameters'!$P$101*((2.54*B108)^'Equations - Parameters'!$Q$101)*($Q$3^'Equations - Parameters'!$R$101)*((2.47105*$V$4)^'Equations - Parameters'!$S$101)))) -> 
H109: 0 | I109: =IF(B109="","",IF(C109<>"",C109,IF($J$6<>"",3.28084*'Equations - Parameters'!$P$101*((2.54*B109)^'Equations - Parameters'!$Q$101)*($Q$3^'Equations - Parameters'!$R$101)*((2.47105*$V$4)^'Equations - Parameters'!$S$101)))) -> 
H110: 0 | I110: =IF(B110="","",IF(C110<>"",C110,IF($J$6<>"",3.28084*'Equations - Parameters'!$P$101*((2.54*B110)^'Equations - Parameters'!$Q$101)*($Q$3^'Equations - Parameters'!$R$101)*((2.47105*$V$4)^'Equations - Parameters'!$S$101)))) -> 
H111: 0 | I111: =IF(B111="","",IF(C111<>"",C111,IF($J$6<>"",3.28084*'Equations - Parameters'!$P$101*((2.54*B111)^'Equations - Parameters'!$Q$101)*($Q$3^'Equations - Parameters'!$R$101)*((2.47105*$V$4)^'Equations - Parameters'!$S$101)))) -> 
H112: 0 | I112: =IF(B112="","",IF(C112<>"",C112,IF($J$6<>"",3.28084*'Equations - Parameters'!$P$101*((2.54*B112)^'Equations - Parameters'!$Q$101)*($Q$3^'Equations - Parameters'!$R$101)*((2.47105*$V$4)^'Equations - Parameters'!$S$101)))) -> 
H113: 0 | I113: =IF(B113="","",IF(C113<>"",C113,IF($J$6<>"",3.28084*'Equations - Parameters'!$P$101*((2.54*B113)^'Equations - Parameters'!$Q$101)*($Q$3^'Equations - Parameters'!$R$101)*((2.47105*$V$4)^'Equations - Parameters'!$S$101)))) -> 
H114: 0 | I114: =IF(B114="","",IF(C114<>"",C114,IF($J$6<>"",3.28084*'Equations - Parameters'!$P$101*((2.54*B114)^'Equations - Parameters'!$Q$101)*($Q$3^'Equations - Parameters'!$R$101)*((2.47105*$V$4)^'Equations - Parameters'!$S$101)))) -> 
H115: 0 | I115: =IF(B115="","",IF(C115<>"",C115,IF($J$6<>"",3.28084*'Equations - Parameters'!$P$101*((2.54*B115)^'Equations - Parameters'!$Q$101)*($Q$3^'Equations - Parameters'!$R$101)*((2.47105*$V$4)^'Equations - Parameters'!$S$101)))) -> 
H116: 0 | I116: =IF(B116="","",IF(C116<>"",C116,IF($J$6<>"",3.28084*'Equations - Parameters'!$P$101*((2.54*B116)^'Equations - Parameters'!$Q$101)*($Q$3^'Equations - Parameters'!$R$101)*((2.47105*$V$4)^'Equations - Parameters'!$S$101)))) -> 
H117: 0 | I117: =IF(B117="","",IF(C117<>"",C117,IF($J$6<>"",3.28084*'Equations - Parameters'!$P$101*((2.54*B117)^'Equations - Parameters'!$Q$101)*($Q$3^'Equations - Parameters'!$R$101)*((2.47105*$V$4)^'Equations - Parameters'!$S$101)))) -> 
H118: 0 | I118: =IF(B118="","",IF(C118<>"",C118,IF($J$6<>"",3.28084*'Equations - Parameters'!$P$101*((2.54*B118)^'Equations - Parameters'!$Q$101)*($Q$3^'Equations - Parameters'!$R$101)*((2.47105*$V$4)^'Equations - Parameters'!$S$101)))) -> 
H119: 0 | I119: =IF(B119="","",IF(C119<>"",C119,IF($J$6<>"",3.28084*'Equations - Parameters'!$P$101*((2.54*B119)^'Equations - Parameters'!$Q$101)*($Q$3^'Equations - Parameters'!$R$101)*((2.47105*$V$4)^'Equations - Parameters'!$S$101)))) -> 
H120: 0 | I120: =IF(B120="","",IF(C120<>"",C120,IF($J$6<>"",3.28084*'Equations - Parameters'!$P$101*((2.54*B120)^'Equations - Parameters'!$Q$101)*($Q$3^'Equations - Parameters'!$R$101)*((2.47105*$V$4)^'Equations - Parameters'!$S$101)))) -> 
H121: 0 | I121: =IF(B121="","",IF(C121<>"",C121,IF($J$6<>"",3.28084*'Equations - Parameters'!$P$101*((2.54*B121)^'Equations - Parameters'!$Q$101)*($Q$3^'Equations - Parameters'!$R$101)*((2.47105*$V$4)^'Equations - Parameters'!$S$101)))) -> 
H122: 0 | I122: =IF(B122="","",IF(C122<>"",C122,IF($J$6<>"",3.28084*'Equations - Parameters'!$P$101*((2.54*B122)^'Equations - Parameters'!$Q$101)*($Q$3^'Equations - Parameters'!$R$101)*((2.47105*$V$4)^'Equations - Parameters'!$S$101)))) -> 
H123: 0 | I123: =IF(B123="","",IF(C123<>"",C123,IF($J$6<>"",3.28084*'Equations - Parameters'!$P$101*((2.54*B123)^'Equations - Parameters'!$Q$101)*($Q$3^'Equations - Parameters'!$R$101)*((2.47105*$V$4)^'Equations - Parameters'!$S$101)))) -> 
H124: 0 | I124: =IF(B124="","",IF(C124<>"",C124,IF($J$6<>"",3.28084*'Equations - Parameters'!$P$101*((2.54*B124)^'Equations - Parameters'!$Q$101)*($Q$3^'Equations - Parameters'!$R$101)*((2.47105*$V$4)^'Equations - Parameters'!$S$101)))) -> 
H125: 0 | I125: =IF(B125="","",IF(C125<>"",C125,IF($J$6<>"",3.28084*'Equations - Parameters'!$P$101*((2.54*B125)^'Equations - Parameters'!$Q$101)*($Q$3^'Equations - Parameters'!$R$101)*((2.47105*$V$4)^'Equations - Parameters'!$S$101)))) -> 
... 156 more rows

Sheet Site Index Response (hidden)
B1: Site Index------> | C1: =+Inputs!N3 -> 94.48323247 | D1: Cur Age------> | E1: 1
B2: a | C2: b | D2: c | E2: d | F2: e | G2: f | H2: g | I2: h | J2: I | K2: j | L2: k | M2: l | N2: m | O2: n
D3: HD Tillage Response | F3: BA Tillage Response | H3: HD HWC Response | J3: BA HWC Response | L3: HD Release Response | N3: BA Release Response | T3: Fert 1 | X3: Fert 2 | AB3: Fert 3 | AF3: Fert 4
D4: Yrs to Max --> | E4: =21.333-0.0667*$C$1 -> 15.03096839 | F4: Yrs to Max --> | G4: =21.333-0.0667*$C$1 -> 15.03096839 | H4: c ----------> | I4: =IF(RParms!$D$6=13,0,(1/(RParms!L25-RParms!M25*$C$1))) -> 0.1421575011 | J4: c ----------> | K4: =IF(RParms!$D$6=13,0,(1/(RParms!V25-RParms!W25*$C$1))) -> 0.1324209222 | L4: Yrs Max---> | M4: 12 | N4: Yrs Max---> | O4: 12 | T4: On ?------> | U4: =+Inputs!K34 -> TRUE | X4: On ?------> | Y4: =+Inputs!K35 -> TRUE | AB4: On ?------> | AC4: =+Inputs!K36 -> FALSE | AF4: On ?------> | AG4: =+Inputs!K37 -> FALSE
D5: Max Resp ---> | E5: =12.6667-0.1333*$C$1 -> 0.07208511221 | F5: Max Resp ---> | G5: =11-0.1*$C$1 -> 1.551676753 | H5: b ----------> | I5: =IF(RParms!$D$6=13,0,((RParms!J25-RParms!K25*$C$1)*$I$4*EXP(1))) -> 0.7861610679 | J5: b ----------> | K5: =IF(RParms!$D$6=13,0,((RParms!T25-RParms!U25*$C$1)*$K$4*EXP(1))) -> 1.650810621 | L5: Max Rs----> | M5: =3.33-0.0267*($C$1) -> 0.8072976931 | N5: Max Rs----> | O5: =36.667-0.3333*($C$1) -> 5.175738619 | T5: Age-------> | U5: =+Inputs!F32 -> 5 | X5: Age-------> | Y5: =+Inputs!F33 -> 10 | AB5: Age-------> | AC5: =+Inputs!F34 -> 15 | AF5: Age-------> | AG5: =+Inputs!F35 -> 0
D6: c ---------------> | E6: =1/$E$4 -> 0.06652931293 | F6: c ---------------> | G6: =1/$G$4 -> 0.06652931293 | H6: Year-----------> | I6: =RParms!N25 -> 1 | L6: b -------------> | M6: =$M$5*$M$7*EXP(1) -> 0.1828718875 | N6: b -------------> | O6: =$O$5*$O$7*EXP(1) -> 1.172426353 | T6: N-----------> | U6: =+Inputs!L34 -> 135 | X6: N-----------> | Y6: =+Inputs!L35 -> 225 | AB6: N-----------> | AC6: =+Inputs!L36 -> 225 | AF6: N-----------> | AG6: =+Inputs!L37 -> 0
D7: b ---------------> | E7: =$E$5*$E$6*EXP(1) -> 0.01303626257 | F7: b ---------------> | G7: =$G$5*$G$6*EXP(1) -> 0.2806136379 | L7: c -------------> | M7: =1/$M$4 -> 0.08333333333 | N7: c -------------> | O7: =1/$O$4 -> 0.08333333333 | T7: P-----------> | U7: =IF($U$4=TRUE,Inputs!M34,0) -> 25 | X7: P-----------> | Y7: =IF($Y$4=TRUE,Inputs!M35,0) -> 25 | AB7: P-----------> | AC7: =IF($AC$4=TRUE,Inputs!M36,0) -> 0 | AF7: P-----------> | AG7: =IF($AG$4=TRUE,Inputs!M37,0) -> 0
T8: PDef ?---> | U8: =+Inputs!$K$9 -> 1 | X8: PDef ?---> | Y8: =+Inputs!$K$9 -> 1 | AB8: PDef ?---> | AC8: =+Inputs!$K$9 -> 1 | AF8: PDef ?---> | AG8: =+Inputs!$K$9 -> 1
Q9: Hdwd Damp | S9: Yrs to Max --> | T9: =GetFertilizerYrsToMax($U$5,$C$1,$U$8,$U$6,$U$7,"HD",$B13,"AGE") -> 18 | U9: =GetFertilizerYrsToMax($U$5,$C$1,$U$8,$U$6,$U$7,"BA",$B13,"AGE") -> 5.35 | X9: =GetFertilizerYrsToMax($Y$5,$C$1,$Y$8,$Y$6,$Y$7,"HD",$B13,"AGE") -> 7 | Y9: =GetFertilizerYrsToMax($Y$5,$C$1,$Y$8,$Y$6,$Y$7,"BA",$B13,"AGE") -> 6.25 | AB9: =GetFertilizerYrsToMax($AC$5,$C$1,$AC$8,$AC$6,$AC$7,"HD",$B13,"AGE") -> 7 | AC9: =GetFertilizerYrsToMax($AC$5,$C$1,$AC$8,$AC$6,$AC$7,"BA",$B13,"AGE") -> 6.25 | AF9: =GetFertilizerYrsToMax($AG$5,$C$1,$AG$8,$AG$6,$AG$7,"HD",$B13,"AGE") -> 18 | AG9: =GetFertilizerYrsToMax($AG$5,$C$1,$AG$8,$AG$6,$AG$7,"BA",$B13,"AGE") -> 0
E10: HD Tillage | G10: BA Tillage | I10: HD HWC | J10: BA HWC | M10: HD Release | O10: BA Release | Q10: Function | T10: HD Fert 1 | U10: BA Fert 1 | X10: HD Fert 2 | Y10: BA Fert 2 | AB10: HD Fert 3 | AC10: BA Fert 3 | AF10: HD Fert 4 | AG10: BA Fert 4 | AL10: HD Resp | AM10: HD Fert | AN10: HD Total | AT10: BA Resp | AU10: BA Fert | AV10: BA total
A11: Year | B11: Age | C11: RS | D11: xxxxxx | E11: Response | F11: xxxxxx | G11: Response | I11: Response | J11: Response | L11: xxxxxx | M11: Response | N11: xxxxxx | O11: Response | Q11: for Fert | S11: xxxxxx | T11: Response | U11: Response | W11: xxxxxx | X11: Response | Y11: Response | AA11: xxxxxx | AB11: Response | AC11: Response | AE11: xxxxxx | AF11: Response | AG11: Response | AL11: w/o Fert | AM11: Response | AN11: Response | AT11: w/o Fert | AU11: Response | AV11: Response | AW11: SI60 | AX11: SI65 | AY11: SI70 | AZ11: SI75
A12: 0 | B12: =+IF('Growth&Yield'!B4=1,'Growth&Yield'!E4,"") -> 25 | C12: =IF(B12=0,0,IF(B12="","",SQRT(43560/'Growth&Yield'!$K4)/'Growth&Yield'!$Y4)) -> 0.1275347367 | D12: =IF(B12=0,0,IF(B12="","",(EXP(-0.25*('Growth&Yield'!$Y4^(1.8333-1/60*$C$1))))*$E$7*$B12*EXP(-$E$6*$B12))) -> 0.02746542593 | E12: =IF(Inputs!$K$8=TRUE,$D12,0) -> 0.02746542593 | F12: =IF(B12=0,0,IF(B12="","",(EXP(-0.25*('Growth&Yield'!H4^(1.8333-1/60*$C$1))))*$G$7*$B12*EXP(-$G$6*$B12))) -> 1.198539946 | G12: =IF(Inputs!$K$8=TRUE,$F12,0) -> 1.198539946 | I12: =IF(B12=0,0,IF(B12="","",(EXP(-0.25*('Growth&Yield'!H4^(1.8333-1/60*$C$1))))*$I$5*($B12-$I$6)*EXP(-$I$4*($B12-$I$6)))) -> 0.5609731864 | J12: =IF(B12=0,0,IF(B12="","",(EXP(-0.25*('Growth&Yield'!H4^(1.8333-1/60*$C$1))))*$K$5*($B12-$I$6)*EXP(-$K$4*($B12-$I$6)))) -> 1.488033966 | L12: =IF('Growth&Yield'!E4=0,0,IF(B12="","",IF(OR(Inputs!$K$14=FALSE,'Growth&Yield'!E4<Inputs!$F$25),0,(EXP(-0.25*('Growth&Yield'!H4^(1.8333-1/60*$C$1))))*$M$6*('Growth&Yield'!E4-Inputs!$F$25)*EXP(-($M$7*('Growth&Yield'!E4-Inputs!$F$25)))))) -> 0 | M12: =IF(B12="","",IF(B12<(RParms!$A$31+$M$4),$L12,$L$39)) -> 0 | N12: =IF(B12="","",IF(OR(RParms!$A$30=FALSE,$B12<RParms!$A$31),0,(EXP(-0.25*('Growth&Yield'!H4^(1.8333-1/60*$C$1))))*$O$6*($B12-RParms!$A$31)*EXP(-($O$7*($B12-RParms!$A$31))))) -> 0 | O12: =IF(B12="","",IF($B12<(RParms!$A$31+$O$4),$N12,$N$39)) -> 0 | Q12: =IF(B12="","",(EXP(-0.25*('Growth&Yield'!H4^(1.8333-1/60*$C$1))))) -> 0.9014394653 | S12: =+IF(B12="","",IF($U$4=TRUE,GetFertilizerResponseAtAge($U$5,$C$1,$U$8,$U$6,$U$7,"HD",$B12,"RESP")*$Q12,0)) -> 4.033217377 | T12: =IF(B12="","",IF($B12<($U$5+$T$9),$S12,$S$39)) -> 4.006475596 | U12: =IF(B12="","",IF($U$4=TRUE,GetFertilizerResponseAtAge($U$5,$C$1,$U$8,$U$6,$U$7,"BA",$B12,"RESP")*$Q12,0)) -> 0.09584500662 | W12: =IF(B12="","",IF($Y$4=TRUE,GetFertilizerResponseAtAge($Y$5,$C$1,$Y$8,$Y$6,$Y$7,"HD",$B12,"RESP")*$Q12,0)) -> 0.616017764 | X12: =IF(B12="","",IF($B12<($Y$5+$X$9),$W12,$W$39)) -> 0.569677327 | Y12: =IF(B12="","",IF($Y$4=TRUE,GetFertilizerResponseAtAge($Y$5,$C$1,$Y$8,$Y$6,$Y$7,"BA",$B12,"RESP")*$Q12,0)) -> 3.748906726 | AA12: =IF(B12="","",IF($AC$4=TRUE,GetFertilizerResponseAtAge($AC$5,$C$1,$AC$8,$AC$6,$AC$7,"HD",$B12,"RESP")*$Q12,0)) -> 0 | AB12: =IF(B12="","",IF($B12<($AC$5+$AB$9),$AA12,$AA$39)) -> 0 | AC12: =IF(B12="","",IF($AC$4=TRUE,GetFertilizerResponseAtAge($AC$5,$C$1,$AC$8,$AC$6,$AC$7,"BA",$B12,"RESP")*$Q12,0)) -> 0 | AE12: =IF(B12="","",IF($AG$4=TRUE,GetFertilizerResponseAtAge($AG$5,$C$1,$AG$8,$AG$6,$AG$7,"HD",$B12,"RESP")*$Q12,0)) -> 0 | AF12: =IF(B12="","",IF($B12<($AG$5+$AF$9),$AE12,$AE$39)) -> 0 | AG12: =IF(B12="","",IF($AG$4=TRUE,GetFertilizerResponseAtAge($AG$5,$C$1,$AG$8,$AG$6,$AG$7,"BA",$B12,"RESP")*$Q12,0)) -> 0 | AH12: =IF(B12="","",IF($I12>0,1,0)) -> 1 | AI12: =IF(B12="","",IF($M12>0,1,0)) -> 0 | AJ12: =IF(B12="","",SUM(AH12:AI12)) -> 1 | AK12: =IF(B12="","",IF($AJ12>1,1,$AJ12)) -> 1 | AL12: =IF(B12=0,0,IF(B12="","",$AK12*($E12+$I12+$M12))) -> 0.5884386123 | AM12: =IF(B12="","",$T12+0.9*$X12+0.8*$AB12+0.7*$AF12) -> 4.51918519 | AN12: =IF(B12="","",SUM(AL12:AM12)) -> 5.107623803 | AP12: =IF(B12="","",IF($J12>0,1,0)) -> 1 | AQ12: =IF(B12="","",IF($O12>0,1,0)) -> 0 | AR12: =IF(B12="","",SUM(AP12:AQ12)) -> 1 | AS12: =IF(B12="","",IF($AR12>1,1,$AR12)) -> 1 | AT12: =IF(B12=0,0,IF(B12="","",$AS12*($G12+$J12+$O12))) -> 2.686573912 | AU12: =IF(B12="","",$U12+0.9*$Y12+0.8*$AC12+0.7*$AG12) -> 3.46986106 | AV12: =IF(B12="","",SUM(AT12:AU12)) -> 6.156434972
A13: 1 | B13: =+IF('Growth&Yield'!B5=1,'Growth&Yield'!E5,"") -> 26 | C13: =IF(B13=0,0,IF(B13="","",SQRT(43560/'Growth&Yield'!$K5)/'Growth&Yield'!$Y5)) -> 0.1256430171 | D13: =IF(B13=0,0,IF(B13="","",(EXP(-0.25*('Growth&Yield'!$Y5^(1.8333-1/60*$C$1))))*$E$7*$B13*EXP(-$E$6*$B13))) -> 0.0265761718 | E13: =IF(Inputs!$K$8=TRUE,$D13,0) -> 0.0265761718 | F13: =IF(B13=0,0,IF(B13="","",(EXP(-0.25*('Growth&Yield'!H5^(1.8333-1/60*$C$1))))*$G$7*$B13*EXP(-$G$6*$B13))) -> 1.16638408 | G13: =IF(Inputs!$K$8=TRUE,$F13,0) -> 1.16638408 | I13: =IF(B13=0,0,IF(B13="","",(EXP(-0.25*('Growth&Yield'!H5^(1.8333-1/60*$C$1))))*$I$5*($B13-$I$6)*EXP(-$I$4*($B13-$I$6)))) -> 0.5069693409 | J13: =IF(B13=0,0,IF(B13="","",(EXP(-0.25*('Growth&Yield'!H5^(1.8333-1/60*$C$1))))*$K$5*($B13-$I$6)*EXP(-$K$4*($B13-$I$6)))) -> 1.357941247 | L13: =IF('Growth&Yield'!E5=0,0,IF(B13="","",IF(OR(Inputs!$K$14=FALSE,'Growth&Yield'!E5<Inputs!$F$25),0,(EXP(-0.25*('Growth&Yield'!H5^(1.8333-1/60*$C$1))))*$M$6*('Growth&Yield'!E5-Inputs!$F$25)*EXP(-($M$7*('Growth&Yield'!E5-Inputs!$F$25)))))) -> 0 | M13: =IF(B13="","",IF(B13<(RParms!$A$31+$M$4),$L13,$L$39)) -> 0 | N13: =IF(B13="","",IF(OR(RParms!$A$30=FALSE,$B13<RParms!$A$31),0,(EXP(-0.25*('Growth&Yield'!H5^(1.8333-1/60*$C$1))))*$O$6*($B13-RParms!$A$31)*EXP(-($O$7*($B13-RParms!$A$31))))) -> 0 | O13: =IF(B13="","",IF($B13<(RParms!$A$31+$O$4),$N13,$N$39)) -> 0 | Q13: =IF(B13="","",(EXP(-0.25*('Growth&Yield'!H5^(1.8333-1/60*$C$1))))) -> 0.9015412694 | S13: =+IF(B13="","",IF($U$4=TRUE,GetFertilizerResponseAtAge($U$5,$C$1,$U$8,$U$6,$U$7,"HD",$B13,"RESP")*$Q13,0)) -> 4.006475596 | T13: =IF(B13="","",IF($B13<($U$5+$T$9),$S13,$S$39)) -> 4.006475596 | U13: =IF(B13="","",IF($U$4=TRUE,GetFertilizerResponseAtAge($U$5,$C$1,$U$8,$U$6,$U$7,"BA",$B13,"RESP")*$Q13,0)) -> 0.08348939161 | W13: =IF(B13="","",IF($Y$4=TRUE,GetFertilizerResponseAtAge($Y$5,$C$1,$Y$8,$Y$6,$Y$7,"HD",$B13,"RESP")*$Q13,0)) -> 0.569677327 | X13: =IF(B13="","",IF($B13<($Y$5+$X$9),$W13,$W$39)) -> 0.569677327 | Y13: =IF(B13="","",IF($Y$4=TRUE,GetFertilizerResponseAtAge($Y$5,$C$1,$Y$8,$Y$6,$Y$7,"BA",$B13,"RESP")*$Q13,0)) -> 3.407966256 | AA13: =IF(B13="","",IF($AC$4=TRUE,GetFertilizerResponseAtAge($AC$5,$C$1,$AC$8,$AC$6,$AC$7,"HD",$B13,"RESP")*$Q13,0)) -> 0 | AB13: =IF(B13="","",IF($B13<($AC$5+$AB$9),$AA13,$AA$39)) -> 0 | AC13: =IF(B13="","",IF($AC$4=TRUE,GetFertilizerResponseAtAge($AC$5,$C$1,$AC$8,$AC$6,$AC$7,"BA",$B13,"RESP")*$Q13,0)) -> 0 | AE13: =IF(B13="","",IF($AG$4=TRUE,GetFertilizerResponseAtAge($AG$5,$C$1,$AG$8,$AG$6,$AG$7,"HD",$B13,"RESP")*$Q13,0)) -> 0 | AF13: =IF(B13="","",IF($B13<($AG$5+$AF$9),$AE13,$AE$39)) -> 0 | AG13: =IF(B13="","",IF($AG$4=TRUE,GetFertilizerResponseAtAge($AG$5,$C$1,$AG$8,$AG$6,$AG$7,"BA",$B13,"RESP")*$Q13,0)) -> 0 | AH13: =IF(B13="","",IF($I13>0,1,0)) -> 1 | AI13: =IF(B13="","",IF($M13>0,1,0)) -> 0 | AJ13: =IF(B13="","",SUM(AH13:AI13)) -> 1 | AK13: =IF(B13="","",IF($AJ13>1,1,$AJ13)) -> 1 | AL13: =IF(B13=0,0,IF(B13="","",$AK13*($E13+$I13+$M13))) -> 0.5335455127 | AM13: =IF(B13="","",$T13+0.9*$X13+0.8*$AB13+0.7*$AF13) -> 4.51918519 | AN13: =IF(B13="","",SUM(AL13:AM13)) -> 5.052730703 | AP13: =IF(B13="","",IF($J13>0,1,0)) -> 1 | AQ13: =IF(B13="","",IF($O13>0,1,0)) -> 0 | AR13: =IF(B13="","",SUM(AP13:AQ13)) -> 1 | AS13: =IF(B13="","",IF($AR13>1,1,$AR13)) -> 1 | AT13: =IF(B13=0,0,IF(B13="","",$AS13*($G13+$J13+$O13))) -> 2.524325326 | AU13: =IF(B13="","",$U13+0.9*$Y13+0.8*$AC13+0.7*$AG13) -> 3.150659022 | AV13: =IF(B13="","",SUM(AT13:AU13)) -> 5.674984348 | AW13: 0.681390725 | AX13: 0.6185628052 | AY13: 0.5541575756 | AZ13: 0.4882570385
A14: 2 | B14: =+IF('Growth&Yield'!B6=1,'Growth&Yield'!E6,"") -> 27 | C14: =IF(B14=0,0,IF(B14="","",SQRT(43560/'Growth&Yield'!$K6)/'Growth&Yield'!$Y6)) -> 0.1239266347 | D14: =IF(B14=0,0,IF(B14="","",(EXP(-0.25*('Growth&Yield'!$Y6^(1.8333-1/60*$C$1))))*$E$7*$B14*EXP(-$E$6*$B14))) -> 0.02568323109 | E14: =IF(Inputs!$K$8=TRUE,$D14,0) -> 0.02568323109 | F14: =IF(B14=0,0,IF(B14="","",(EXP(-0.25*('Growth&Yield'!H6^(1.8333-1/60*$C$1))))*$G$7*$B14*EXP(-$G$6*$B14))) -> 1.13338422 | G14: =IF(Inputs!$K$8=TRUE,$F14,0) -> 1.13338422 | I14: =IF(B14=0,0,IF(B14="","",(EXP(-0.25*('Growth&Yield'!H6^(1.8333-1/60*$C$1))))*$I$5*($B14-$I$6)*EXP(-$I$4*($B14-$I$6)))) -> 0.457420151 | J14: =IF(B14=0,0,IF(B14="","",(EXP(-0.25*('Growth&Yield'!H6^(1.8333-1/60*$C$1))))*$K$5*($B14-$I$6)*EXP(-$K$4*($B14-$I$6)))) -> 1.237209139 | L14: =IF('Growth&Yield'!E6=0,0,IF(B14="","",IF(OR(Inputs!$K$14=FALSE,'Growth&Yield'!E6<Inputs!$F$25),0,(EXP(-0.25*('Growth&Yield'!H6^(1.8333-1/60*$C$1))))*$M$6*('Growth&Yield'!E6-Inputs!$F$25)*EXP(-($M$7*('Growth&Yield'!E6-Inputs!$F$25)))))) -> 0 | M14: =IF(B14="","",IF(B14<(RParms!$A$31+$M$4),$L14,$L$39)) -> 0 | N14: =IF(B14="","",IF(OR(RParms!$A$30=FALSE,$B14<RParms!$A$31),0,(EXP(-0.25*('Growth&Yield'!H6^(1.8333-1/60*$C$1))))*$O$6*($B14-RParms!$A$31)*EXP(-($O$7*($B14-RParms!$A$31))))) -> 0 | O14: =IF(B14="","",IF($B14<(RParms!$A$31+$O$4),$N14,$N$39)) -> 0 | Q14: =IF(B14="","",(EXP(-0.25*('Growth&Yield'!H6^(1.8333-1/60*$C$1))))) -> 0.9016211439 | S14: =+IF(B14="","",IF($U$4=TRUE,GetFertilizerResponseAtAge($U$5,$C$1,$U$8,$U$6,$U$7,"HD",$B14,"RESP")*$Q14,0)) -> 3.970789753 | T14: 4.006475596 | U14: =IF(B14="","",IF($U$4=TRUE,GetFertilizerResponseAtAge($U$5,$C$1,$U$8,$U$6,$U$7,"BA",$B14,"RESP")*$Q14,0)) -> 0.07255989066 | W14: =IF(B14="","",IF($Y$4=TRUE,GetFertilizerResponseAtAge($Y$5,$C$1,$Y$8,$Y$6,$Y$7,"HD",$B14,"RESP")*$Q14,0)) -> 0.5247522154 | X14: 0.569677327 | Y14: =IF(B14="","",IF($Y$4=TRUE,GetFertilizerResponseAtAge($Y$5,$C$1,$Y$8,$Y$6,$Y$7,"BA",$B14,"RESP")*$Q14,0)) -> 3.085855484 | AA14: =IF(B14="","",IF($AC$4=TRUE,GetFertilizerResponseAtAge($AC$5,$C$1,$AC$8,$AC$6,$AC$7,"HD",$B14,"RESP")*$Q14,0)) -> 0 | AB14: 0 | AC14: =IF(B14="","",IF($AC$4=TRUE,GetFertilizerResponseAtAge($AC$5,$C$1,$AC$8,$AC$6,$AC$7,"BA",$B14,"RESP")*$Q14,0)) -> 0 | AE14: =IF(B14="","",IF($AG$4=TRUE,GetFertilizerResponseAtAge($AG$5,$C$1,$AG$8,$AG$6,$AG$7,"HD",$B14,"RESP")*$Q14,0)) -> 0 | AF14: 0 | AG14: =IF(B14="","",IF($AG$4=TRUE,GetFertilizerResponseAtAge($AG$5,$C$1,$AG$8,$AG$6,$AG$7,"BA",$B14,"RESP")*$Q14,0)) -> 0 | AH14: 1 | AI14: 0 | AJ14: 1 | AK14: 1 | AL14: 0.4831033821 | AM14: 4.51918519 | AN14: 5.002288572 | AP14: 1 | AQ14: 0 | AR14: 1 | AS14: 1 | AT14: 2.370593359 | AU14: 2.849829826 | AV14: 5.220423185 | AW14: 4.461274598 | AX14: 4.118650842 | AY14: 3.756275564 | AZ14: 3.372936107
A15: 3 | B15: =+IF('Growth&Yield'!B7=1,'Growth&Yield'!E7,"") -> 28 | C15: =IF(B15=0,0,IF(B15="","",SQRT(43560/'Growth&Yield'!$K7)/'Growth&Yield'!$Y7)) -> 0.1223653513 | D15: =IF(B15=0,0,IF(B15="","",(EXP(-0.25*('Growth&Yield'!$Y7^(1.8333-1/60*$C$1))))*$E$7*$B15*EXP(-$E$6*$B15))) -> 0.02479126513 | E15: =IF(Inputs!$K$8=TRUE,$D15,0) -> 0.02479126513 | F15: =IF(B15=0,0,IF(B15="","",(EXP(-0.25*('Growth&Yield'!H7^(1.8333-1/60*$C$1))))*$G$7*$B15*EXP(-$G$6*$B15))) -> 1.099786241 | G15: =IF(Inputs!$K$8=TRUE,$F15,0) -> 1.099786241 | I15: =IF(B15=0,0,IF(B15="","",(EXP(-0.25*('Growth&Yield'!H7^(1.8333-1/60*$C$1))))*$I$5*($B15-$I$6)*EXP(-$I$4*($B15-$I$6)))) -> 0.4120952963 | J15: =IF(B15=0,0,IF(B15="","",(EXP(-0.25*('Growth&Yield'!H7^(1.8333-1/60*$C$1))))*$K$5*($B15-$I$6)*EXP(-$K$4*($B15-$I$6)))) -> 1.125522098 | L15: =IF('Growth&Yield'!E7=0,0,IF(B15="","",IF(OR(Inputs!$K$14=FALSE,'Growth&Yield'!E7<Inputs!$F$25),0,(EXP(-0.25*('Growth&Yield'!H7^(1.8333-1/60*$C$1))))*$M$6*('Growth&Yield'!E7-Inputs!$F$25)*EXP(-($M$7*('Growth&Yield'!E7-Inputs!$F$25)))))) -> 0 | M15: =IF(B15="","",IF(B15<(RParms!$A$31+$M$4),$L15,$L$39)) -> 0 | N15: =IF(B15="","",IF(OR(RParms!$A$30=FALSE,$B15<RParms!$A$31),0,(EXP(-0.25*('Growth&Yield'!H7^(1.8333-1/60*$C$1))))*$O$6*($B15-RParms!$A$31)*EXP(-($O$7*($B15-RParms!$A$31))))) -> 0 | O15: =IF(B15="","",IF($B15<(RParms!$A$31+$O$4),$N15,$N$39)) -> 0 | Q15: =IF(B15="","",(EXP(-0.25*('Growth&Yield'!H7^(1.8333-1/60*$C$1))))) -> 0.901683774 | S15: =+IF(B15="","",IF($U$4=TRUE,GetFertilizerResponseAtAge($U$5,$C$1,$U$8,$U$6,$U$7,"HD",$B15,"RESP")*$Q15,0)) -> 3.92721559 | T15: 4.006475596 | U15: =IF(B15="","",IF($U$4=TRUE,GetFertilizerResponseAtAge($U$5,$C$1,$U$8,$U$6,$U$7,"BA",$B15,"RESP")*$Q15,0)) -> 0.06292966253 | W15: =IF(B15="","",IF($Y$4=TRUE,GetFertilizerResponseAtAge($Y$5,$C$1,$Y$8,$Y$6,$Y$7,"HD",$B15,"RESP")*$Q15,0)) -> 0.4816881499 | X15: 0.569677327 | Y15: =IF(B15="","",IF($Y$4=TRUE,GetFertilizerResponseAtAge($Y$5,$C$1,$Y$8,$Y$6,$Y$7,"BA",$B15,"RESP")*$Q15,0)) -> 2.784467907 | AA15: =IF(B15="","",IF($AC$4=TRUE,GetFertilizerResponseAtAge($AC$5,$C$1,$AC$8,$AC$6,$AC$7,"HD",$B15,"RESP")*$Q15,0)) -> 0 | AB15: 0 | AC15: =IF(B15="","",IF($AC$4=TRUE,GetFertilizerResponseAtAge($AC$5,$C$1,$AC$8,$AC$6,$AC$7,"BA",$B15,"RESP")*$Q15,0)) -> 0 | AE15: =IF(B15="","",IF($AG$4=TRUE,GetFertilizerResponseAtAge($AG$5,$C$1,$AG$8,$AG$6,$AG$7,"HD",$B15,"RESP")*$Q15,0)) -> 0 | AF15: 0 | AG15: =IF(B15="","",IF($AG$4=TRUE,GetFertilizerResponseAtAge($AG$5,$C$1,$AG$8,$AG$6,$AG$7,"BA",$B15,"RESP")*$Q15,0)) -> 0 | AH15: 1 | AI15: 0 | AJ15: 1 | AK15: 1 | AL15: 0.4368865615 | AM15: 4.51918519 | AN15: 4.956071752 | AP15: 1 | AQ15: 0 | AR15: 1 | AS15: 1 | AT15: 2.225308339 | AU15: 2.568950779 | AV15: 4.794259118 | AW15: 7.69537294 | AX15: 7.090260735 | AY15: 6.450734208 | AZ15: 5.775211473
A16: 4 | B16: =+IF('Growth&Yield'!B8=1,'Growth&Yield'!E8,"") -> 29 | C16: =IF(B16=0,0,IF(B16="","",SQRT(43560/'Growth&Yield'!$K8)/'Growth&Yield'!$Y8)) -> 0.1209416056 | D16: =IF(B16=0,0,IF(B16="","",(EXP(-0.25*('Growth&Yield'!$Y8^(1.8333-1/60*$C$1))))*$E$7*$B16*EXP(-$E$6*$B16))) -> 0.02390428871 | E16: =IF(Inputs!$K$8=TRUE,$D16,0) -> 0.02390428871 | F16: =IF(B16=0,0,IF(B16="","",(EXP(-0.25*('Growth&Yield'!H8^(1.8333-1/60*$C$1))))*$G$7*$B16*EXP(-$G$6*$B16))) -> 1.065807019 | G16: =IF(Inputs!$K$8=TRUE,$F16,0) -> 1.065807019 | I16: =IF(B16=0,0,IF(B16="","",(EXP(-0.25*('Growth&Yield'!H8^(1.8333-1/60*$C$1))))*$I$5*($B16-$I$6)*EXP(-$I$4*($B16-$I$6)))) -> 0.3707467453 | J16: =IF(B16=0,0,IF(B16="","",(EXP(-0.25*('Growth&Yield'!H8^(1.8333-1/60*$C$1))))*$K$5*($B16-$I$6)*EXP(-$K$4*($B16-$I$6)))) -> 1.022497509 | L16: =IF('Growth&Yield'!E8=0,0,IF(B16="","",IF(OR(Inputs!$K$14=FALSE,'Growth&Yield'!E8<Inputs!$F$25),0,(EXP(-0.25*('Growth&Yield'!H8^(1.8333-1/60*$C$1))))*$M$6*('Growth&Yield'!E8-Inputs!$F$25)*EXP(-($M$7*('Growth&Yield'!E8-Inputs!$F$25)))))) -> 0 | M16: =IF(B16="","",IF(B16<(RParms!$A$31+$M$4),$L16,$L$39)) -> 0 | N16: =IF(B16="","",IF(OR(RParms!$A$30=FALSE,$B16<RParms!$A$31),0,(EXP(-0.25*('Growth&Yield'!H8^(1.8333-1/60*$C$1))))*$O$6*($B16-RParms!$A$31)*EXP(-($O$7*($B16-RParms!$A$31))))) -> 0 | O16: =IF(B16="","",IF($B16<(RParms!$A$31+$O$4),$N16,$N$39)) -> 0 | Q16: =IF(B16="","",(EXP(-0.25*('Growth&Yield'!H8^(1.8333-1/60*$C$1))))) -> 0.9017328584 | S16: =+IF(B16="","",IF($U$4=TRUE,GetFertilizerResponseAtAge($U$5,$C$1,$U$8,$U$6,$U$7,"HD",$B16,"RESP")*$Q16,0)) -> 3.876718961 | T16: 4.006475596 | U16: =IF(B16="","",IF($U$4=TRUE,GetFertilizerResponseAtAge($U$5,$C$1,$U$8,$U$6,$U$7,"BA",$B16,"RESP")*$Q16,0)) -> 0.05447357908 | W16: =IF(B16="","",IF($Y$4=TRUE,GetFertilizerResponseAtAge($Y$5,$C$1,$Y$8,$Y$6,$Y$7,"HD",$B16,"RESP")*$Q16,0)) -> 0.4407868504 | X16: 0.569677327 | Y16: =IF(B16="","",IF($Y$4=TRUE,GetFertilizerResponseAtAge($Y$5,$C$1,$Y$8,$Y$6,$Y$7,"BA",$B16,"RESP")*$Q16,0)) -> 2.504723764 | AA16: =IF(B16="","",IF($AC$4=TRUE,GetFertilizerResponseAtAge($AC$5,$C$1,$AC$8,$AC$6,$AC$7,"HD",$B16,"RESP")*$Q16,0)) -> 0 | AB16: 0 | AC16: =IF(B16="","",IF($AC$4=TRUE,GetFertilizerResponseAtAge($AC$5,$C$1,$AC$8,$AC$6,$AC$7,"BA",$B16,"RESP")*$Q16,0)) -> 0 | AE16: =IF(B16="","",IF($AG$4=TRUE,GetFertilizerResponseAtAge($AG$5,$C$1,$AG$8,$AG$6,$AG$7,"HD",$B16,"RESP")*$Q16,0)) -> 0 | AF16: 0 | AG16: =IF(B16="","",IF($AG$4=TRUE,GetFertilizerResponseAtAge($AG$5,$C$1,$AG$8,$AG$6,$AG$7,"BA",$B16,"RESP")*$Q16,0)) -> 0 | AH16: 1 | AI16: 0 | AJ16: 1 | AK16: 1 | AL16: 0.394651034 | AM16: 4.51918519 | AN16: 4.913836224 | AP16: 1 | AQ16: 0 | AR16: 1 | AS16: 1 | AT16: 2.088304528 | AU16: 2.308724967 | AV16: 4.397029494 | AW16: 10.42385128 | AX16: 9.576805546 | AY16: 8.684194924 | AZ16: 7.744749578
A17: 5 | B17: =+IF('Growth&Yield'!B9=1,'Growth&Yield'!E9,"") -> 30 | C17: =IF(B17=0,0,IF(B17="","",SQRT(43560/'Growth&Yield'!$K9)/'Growth&Yield'!$Y9)) -> 0.1196400924 | D17: =IF(B17=0,0,IF(B17="","",(EXP(-0.25*('Growth&Yield'!$Y9^(1.8333-1/60*$C$1))))*$E$7*$B17*EXP(-$E$6*$B17))) -> 0.0230257423 | E17: =IF(Inputs!$K$8=TRUE,$D17,0) -> 0.0230257423 | F17: =IF(B17=0,0,IF(B17="","",(EXP(-0.25*('Growth&Yield'!H9^(1.8333-1/60*$C$1))))*$G$7*$B17*EXP(-$G$6*$B17))) -> 1.031637307 | G17: =IF(Inputs!$K$8=TRUE,$F17,0) -> 1.031637307 | I17: =IF(B17=0,0,IF(B17="","",(EXP(-0.25*('Growth&Yield'!H9^(1.8333-1/60*$C$1))))*$I$5*($B17-$I$6)*EXP(-$I$4*($B17-$I$6)))) -> 0.3331176279 | J17: =IF(B17=0,0,IF(B17="","",(EXP(-0.25*('Growth&Yield'!H9^(1.8333-1/60*$C$1))))*$K$5*($B17-$I$6)*EXP(-$K$4*($B17-$I$6)))) -> 0.927707503 | L17: =IF('Growth&Yield'!E9=0,0,IF(B17="","",IF(OR(Inputs!$K$14=FALSE,'Growth&Yield'!E9<Inputs!$F$25),0,(EXP(-0.25*('Growth&Yield'!H9^(1.8333-1/60*$C$1))))*$M$6*('Growth&Yield'!E9-Inputs!$F$25)*EXP(-($M$7*('Growth&Yield'!E9-Inputs!$F$25)))))) -> 0 | M17: =IF(B17="","",IF(B17<(RParms!$A$31+$M$4),$L17,$L$39)) -> 0 | N17: =IF(B17="","",IF(OR(RParms!$A$30=FALSE,$B17<RParms!$A$31),0,(EXP(-0.25*('Growth&Yield'!H9^(1.8333-1/60*$C$1))))*$O$6*($B17-RParms!$A$31)*EXP(-($O$7*($B17-RParms!$A$31))))) -> 0 | O17: =IF(B17="","",IF($B17<(RParms!$A$31+$O$4),$N17,$N$39)) -> 0 | Q17: =IF(B17="","",(EXP(-0.25*('Growth&Yield'!H9^(1.8333-1/60*$C$1))))) -> 0.9017713122 | S17: =+IF(B17="","",IF($U$4=TRUE,GetFertilizerResponseAtAge($U$5,$C$1,$U$8,$U$6,$U$7,"HD",$B17,"RESP")*$Q17,0)) -> 3.820182704 | T17: 4.006475596 | U17: =IF(B17="","",IF($U$4=TRUE,GetFertilizerResponseAtAge($U$5,$C$1,$U$8,$U$6,$U$7,"BA",$B17,"RESP")*$Q17,0)) -> 0.04707135051 | W17: =IF(B17="","",IF($Y$4=TRUE,GetFertilizerResponseAtAge($Y$5,$C$1,$Y$8,$Y$6,$Y$7,"HD",$B17,"RESP")*$Q17,0)) -> 0.4022364988 | X17: 0.569677327 | Y17: =IF(B17="","",IF($Y$4=TRUE,GetFertilizerResponseAtAge($Y$5,$C$1,$Y$8,$Y$6,$Y$7,"BA",$B17,"RESP")*$Q17,0)) -> 2.246816651 | AA17: =IF(B17="","",IF($AC$4=TRUE,GetFertilizerResponseAtAge($AC$5,$C$1,$AC$8,$AC$6,$AC$7,"HD",$B17,"RESP")*$Q17,0)) -> 0 | AB17: 0 | AC17: =IF(B17="","",IF($AC$4=TRUE,GetFertilizerResponseAtAge($AC$5,$C$1,$AC$8,$AC$6,$AC$7,"BA",$B17,"RESP")*$Q17,0)) -> 0 | AE17: =IF(B17="","",IF($AG$4=TRUE,GetFertilizerResponseAtAge($AG$5,$C$1,$AG$8,$AG$6,$AG$7,"HD",$B17,"RESP")*$Q17,0)) -> 0 | AF17: 0 | AG17: =IF(B17="","",IF($AG$4=TRUE,GetFertilizerResponseAtAge($AG$5,$C$1,$AG$8,$AG$6,$AG$7,"BA",$B17,"RESP")*$Q17,0)) -> 0 | AH17: 1 | AI17: 0 | AJ17: 1 | AK17: 1 | AL17: 0.3561433702 | AM17: 4.51918519 | AN17: 4.87532856 | AP17: 1 | AQ17: 0 | AR17: 1 | AS17: 1 | AT17: 1.95934481 | AU17: 2.069206336 | AV17: 4.028551146 | AW17: 12.6914201 | AX17: 11.62444622 | AY17: 10.50418152 | AZ17: 9.330163819
A18: 6 | B18: =+IF('Growth&Yield'!B10=1,'Growth&Yield'!E10,"") ->  | C18: =IF(B18=0,0,IF(B18="","",SQRT(43560/'Growth&Yield'!$K10)/'Growth&Yield'!$Y10)) ->  | D18: =IF(B18=0,0,IF(B18="","",(EXP(-0.25*('Growth&Yield'!$Y10^(1.8333-1/60*$C$1))))*$E$7*$B18*EXP(-$E$6*$B18))) ->  | E18: =IF(Inputs!$K$8=TRUE,$D18,0) ->  | F18: =IF(B18=0,0,IF(B18="","",(EXP(-0.25*('Growth&Yield'!H10^(1.8333-1/60*$C$1))))*$G$7*$B18*EXP(-$G$6*$B18))) ->  | G18: =IF(Inputs!$K$8=TRUE,$F18,0) ->  | I18: =IF(B18=0,0,IF(B18="","",(EXP(-0.25*('Growth&Yield'!H10^(1.8333-1/60*$C$1))))*$I$5*($B18-$I$6)*EXP(-$I$4*($B18-$I$6)))) ->  | J18: =IF(B18=0,0,IF(B18="","",(EXP(-0.25*('Growth&Yield'!H10^(1.8333-1/60*$C$1))))*$K$5*($B18-$I$6)*EXP(-$K$4*($B18-$I$6)))) ->  | L18: =IF('Growth&Yield'!E10=0,0,IF(B18="","",IF(OR(Inputs!$K$14=FALSE,'Growth&Yield'!E10<Inputs!$F$25),0,(EXP(-0.25*('Growth&Yield'!H10^(1.8333-1/60*$C$1))))*$M$6*('Growth&Yield'!E10-Inputs!$F$25)*EXP(-($M$7*('Growth&Yield'!E10-Inputs!$F$25)))))) ->  | M18: =IF(B18="","",IF(B18<(RParms!$A$31+$M$4),$L18,$L$39)) ->  | N18: =IF(B18="","",IF(OR(RParms!$A$30=FALSE,$B18<RParms!$A$31),0,(EXP(-0.25*('Growth&Yield'!H10^(1.8333-1/60*$C$1))))*$O$6*($B18-RParms!$A$31)*EXP(-($O$7*($B18-RParms!$A$31))))) ->  | O18: =IF(B18="","",IF($B18<(RParms!$A$31+$O$4),$N18,$N$39)) ->  | Q18: =IF(B18="","",(EXP(-0.25*('Growth&Yield'!H10^(1.8333-1/60*$C$1))))) ->  | S18: =+IF(B18="","",IF($U$4=TRUE,GetFertilizerResponseAtAge($U$5,$C$1,$U$8,$U$6,$U$7,"HD",$B18,"RESP")*$Q18,0)) ->  | U18: =IF(B18="","",IF($U$4=TRUE,GetFertilizerResponseAtAge($U$5,$C$1,$U$8,$U$6,$U$7,"BA",$B18,"RESP")*$Q18,0)) ->  | W18: =IF(B18="","",IF($Y$4=TRUE,GetFertilizerResponseAtAge($Y$5,$C$1,$Y$8,$Y$6,$Y$7,"HD",$B18,"RESP")*$Q18,0)) ->  | Y18: =IF(B18="","",IF($Y$4=TRUE,GetFertilizerResponseAtAge($Y$5,$C$1,$Y$8,$Y$6,$Y$7,"BA",$B18,"RESP")*$Q18,0)) ->  | AA18: =IF(B18="","",IF($AC$4=TRUE,GetFertilizerResponseAtAge($AC$5,$C$1,$AC$8,$AC$6,$AC$7,"HD",$B18,"RESP")*$Q18,0)) ->  | AC18: =IF(B18="","",IF($AC$4=TRUE,GetFertilizerResponseAtAge($AC$5,$C$1,$AC$8,$AC$6,$AC$7,"BA",$B18,"RESP")*$Q18,0)) ->  | AE18: =IF(B18="","",IF($AG$4=TRUE,GetFertilizerResponseAtAge($AG$5,$C$1,$AG$8,$AG$6,$AG$7,"HD",$B18,"RESP")*$Q18,0)) ->  | AG18: =IF(B18="","",IF($AG$4=TRUE,GetFertilizerResponseAtAge($AG$5,$C$1,$AG$8,$AG$6,$AG$7,"BA",$B18,"RESP")*$Q18,0)) ->  | AW18: 14.544209 | AX18: 13.2796326 | AY18: 11.95728084 | AZ18: 10.57785384
A19: 7 | B19: =+IF('Growth&Yield'!B11=1,'Growth&Yield'!E11,"") ->  | C19: =IF(B19=0,0,IF(B19="","",SQRT(43560/'Growth&Yield'!$K11)/'Growth&Yield'!$Y11)) ->  | D19: =IF(B19=0,0,IF(B19="","",(EXP(-0.25*('Growth&Yield'!$Y11^(1.8333-1/60*$C$1))))*$E$7*$B19*EXP(-$E$6*$B19))) ->  | E19: =IF(Inputs!$K$8=TRUE,$D19,0) ->  | F19: =IF(B19=0,0,IF(B19="","",(EXP(-0.25*('Growth&Yield'!H11^(1.8333-1/60*$C$1))))*$G$7*$B19*EXP(-$G$6*$B19))) ->  | G19: =IF(Inputs!$K$8=TRUE,$F19,0) ->  | I19: =IF(B19=0,0,IF(B19="","",(EXP(-0.25*('Growth&Yield'!H11^(1.8333-1/60*$C$1))))*$I$5*($B19-$I$6)*EXP(-$I$4*($B19-$I$6)))) ->  | J19: =IF(B19=0,0,IF(B19="","",(EXP(-0.25*('Growth&Yield'!H11^(1.8333-1/60*$C$1))))*$K$5*($B19-$I$6)*EXP(-$K$4*($B19-$I$6)))) ->  | L19: =IF('Growth&Yield'!E11=0,0,IF(B19="","",IF(OR(Inputs!$K$14=FALSE,'Growth&Yield'!E11<Inputs!$F$25),0,(EXP(-0.25*('Growth&Yield'!H11^(1.8333-1/60*$C$1))))*$M$6*('Growth&Yield'!E11-Inputs!$F$25)*EXP(-($M$7*('Growth&Yield'!E11-Inputs!$F$25)))))) ->  | M19: =IF(B19="","",IF(B19<(RParms!$A$31+$M$4),$L19,$L$39)) ->  | N19: =IF(B19="","",IF(OR(RParms!$A$30=FALSE,$B19<RParms!$A$31),0,(EXP(-0.25*('Growth&Yield'!H11^(1.8333-1/60*$C$1))))*$O$6*($B19-RParms!$A$31)*EXP(-($O$7*($B19-RParms!$A$31))))) ->  | O19: =IF(B19="","",IF($B19<(RParms!$A$31+$O$4),$N19,$N$39)) ->  | Q19: =IF(B19="","",(EXP(-0.25*('Growth&Yield'!H11^(1.8333-1/60*$C$1))))) ->  | S19: =+IF(B19="","",IF($U$4=TRUE,GetFertilizerResponseAtAge($U$5,$C$1,$U$8,$U$6,$U$7,"HD",$B19,"RESP")*$Q19,0)) ->  | U19: =IF(B19="","",IF($U$4=TRUE,GetFertilizerResponseAtAge($U$5,$C$1,$U$8,$U$6,$U$7,"BA",$B19,"RESP")*$Q19,0)) ->  | W19: =IF(B19="","",IF($Y$4=TRUE,GetFertilizerResponseAtAge($Y$5,$C$1,$Y$8,$Y$6,$Y$7,"HD",$B19,"RESP")*$Q19,0)) ->  | Y19: =IF(B19="","",IF($Y$4=TRUE,GetFertilizerResponseAtAge($Y$5,$C$1,$Y$8,$Y$6,$Y$7,"BA",$B19,"RESP")*$Q19,0)) ->  | AA19: =IF(B19="","",IF($AC$4=TRUE,GetFertilizerResponseAtAge($AC$5,$C$1,$AC$8,$AC$6,$AC$7,"HD",$B19,"RESP")*$Q19,0)) ->  | AC19: =IF(B19="","",IF($AC$4=TRUE,GetFertilizerResponseAtAge($AC$5,$C$1,$AC$8,$AC$6,$AC$7,"BA",$B19,"RESP")*$Q19,0)) ->  | AE19: =IF(B19="","",IF($AG$4=TRUE,GetFertilizerResponseAtAge($AG$5,$C$1,$AG$8,$AG$6,$AG$7,"HD",$B19,"RESP")*$Q19,0)) ->  | AG19: =IF(B19="","",IF($AG$4=TRUE,GetFertilizerResponseAtAge($AG$5,$C$1,$AG$8,$AG$6,$AG$7,"BA",$B19,"RESP")*$Q19,0)) ->  | AW19: 22.47433684 | AX19: 17.58938102 | AY19: 15.86691603 | AZ19: 14.08581119
A20: 8 | B20: =+IF('Growth&Yield'!B12=1,'Growth&Yield'!E12,"") ->  | C20: =IF(B20=0,0,IF(B20="","",SQRT(43560/'Growth&Yield'!$K12)/'Growth&Yield'!$Y12)) ->  | D20: =IF(B20=0,0,IF(B20="","",(EXP(-0.25*('Growth&Yield'!$Y12^(1.8333-1/60*$C$1))))*$E$7*$B20*EXP(-$E$6*$B20))) ->  | E20: =IF(Inputs!$K$8=TRUE,$D20,0) ->  | F20: =IF(B20=0,0,IF(B20="","",(EXP(-0.25*('Growth&Yield'!H12^(1.8333-1/60*$C$1))))*$G$7*$B20*EXP(-$G$6*$B20))) ->  | G20: =IF(Inputs!$K$8=TRUE,$F20,0) ->  | I20: =IF(B20=0,0,IF(B20="","",(EXP(-0.25*('Growth&Yield'!H12^(1.8333-1/60*$C$1))))*$I$5*($B20-$I$6)*EXP(-$I$4*($B20-$I$6)))) ->  | J20: =IF(B20=0,0,IF(B20="","",(EXP(-0.25*('Growth&Yield'!H12^(1.8333-1/60*$C$1))))*$K$5*($B20-$I$6)*EXP(-$K$4*($B20-$I$6)))) ->  | L20: =IF('Growth&Yield'!E12=0,0,IF(B20="","",IF(OR(Inputs!$K$14=FALSE,'Growth&Yield'!E12<Inputs!$F$25),0,(EXP(-0.25*('Growth&Yield'!H12^(1.8333-1/60*$C$1))))*$M$6*('Growth&Yield'!E12-Inputs!$F$25)*EXP(-($M$7*('Growth&Yield'!E12-Inputs!$F$25)))))) ->  | M20: =IF(B20="","",IF(B20<(RParms!$A$31+$M$4),$L20,$L$39)) ->  | N20: =IF(B20="","",IF(OR(RParms!$A$30=FALSE,$B20<RParms!$A$31),0,(EXP(-0.25*('Growth&Yield'!H12^(1.8333-1/60*$C$1))))*$O$6*($B20-RParms!$A$31)*EXP(-($O$7*($B20-RParms!$A$31))))) ->  | O20: =IF(B20="","",IF($B20<(RParms!$A$31+$O$4),$N20,$N$39)) ->  | Q20: =IF(B20="","",(EXP(-0.25*('Growth&Yield'!H12^(1.8333-1/60*$C$1))))) ->  | S20: =+IF(B20="","",IF($U$4=TRUE,GetFertilizerResponseAtAge($U$5,$C$1,$U$8,$U$6,$U$7,"HD",$B20,"RESP")*$Q20,0)) ->  | U20: =IF(B20="","",IF($U$4=TRUE,GetFertilizerResponseAtAge($U$5,$C$1,$U$8,$U$6,$U$7,"BA",$B20,"RESP")*$Q20,0)) ->  | W20: =IF(B20="","",IF($Y$4=TRUE,GetFertilizerResponseAtAge($Y$5,$C$1,$Y$8,$Y$6,$Y$7,"HD",$B20,"RESP")*$Q20,0)) ->  | Y20: =IF(B20="","",IF($Y$4=TRUE,GetFertilizerResponseAtAge($Y$5,$C$1,$Y$8,$Y$6,$Y$7,"BA",$B20,"RESP")*$Q20,0)) ->  | AA20: =IF(B20="","",IF($AC$4=TRUE,GetFertilizerResponseAtAge($AC$5,$C$1,$AC$8,$AC$6,$AC$7,"HD",$B20,"RESP")*$Q20,0)) ->  | AC20: =IF(B20="","",IF($AC$4=TRUE,GetFertilizerResponseAtAge($AC$5,$C$1,$AC$8,$AC$6,$AC$7,"BA",$B20,"RESP")*$Q20,0)) ->  | AE20: =IF(B20="","",IF($AG$4=TRUE,GetFertilizerResponseAtAge($AG$5,$C$1,$AG$8,$AG$6,$AG$7,"HD",$B20,"RESP")*$Q20,0)) ->  | AG20: =IF(B20="","",IF($AG$4=TRUE,GetFertilizerResponseAtAge($AG$5,$C$1,$AG$8,$AG$6,$AG$7,"BA",$B20,"RESP")*$Q20,0)) ->  | AW20: 27.97479372 | AX20: 20.61682273 | AY20: 18.5925456 | AZ20: 16.51089251
A21: 9 | B21: =+IF('Growth&Yield'!B13=1,'Growth&Yield'!E13,"") ->  | C21: =IF(B21=0,0,IF(B21="","",SQRT(43560/'Growth&Yield'!$K13)/'Growth&Yield'!$Y13)) ->  | D21: =IF(B21=0,0,IF(B21="","",(EXP(-0.25*('Growth&Yield'!$Y13^(1.8333-1/60*$C$1))))*$E$7*$B21*EXP(-$E$6*$B21))) ->  | E21: =IF(Inputs!$K$8=TRUE,$D21,0) ->  | F21: =IF(B21=0,0,IF(B21="","",(EXP(-0.25*('Growth&Yield'!H13^(1.8333-1/60*$C$1))))*$G$7*$B21*EXP(-$G$6*$B21))) ->  | G21: =IF(Inputs!$K$8=TRUE,$F21,0) ->  | I21: =IF(B21=0,0,IF(B21="","",(EXP(-0.25*('Growth&Yield'!H13^(1.8333-1/60*$C$1))))*$I$5*($B21-$I$6)*EXP(-$I$4*($B21-$I$6)))) ->  | J21: =IF(B21=0,0,IF(B21="","",(EXP(-0.25*('Growth&Yield'!H13^(1.8333-1/60*$C$1))))*$K$5*($B21-$I$6)*EXP(-$K$4*($B21-$I$6)))) ->  | L21: =IF('Growth&Yield'!E13=0,0,IF(B21="","",IF(OR(Inputs!$K$14=FALSE,'Growth&Yield'!E13<Inputs!$F$25),0,(EXP(-0.25*('Growth&Yield'!H13^(1.8333-1/60*$C$1))))*$M$6*('Growth&Yield'!E13-Inputs!$F$25)*EXP(-($M$7*('Growth&Yield'!E13-Inputs!$F$25)))))) ->  | M21: =IF(B21="","",IF(B21<(RParms!$A$31+$M$4),$L21,$L$39)) ->  | N21: =IF(B21="","",IF(OR(RParms!$A$30=FALSE,$B21<RParms!$A$31),0,(EXP(-0.25*('Growth&Yield'!H13^(1.8333-1/60*$C$1))))*$O$6*($B21-RParms!$A$31)*EXP(-($O$7*($B21-RParms!$A$31))))) ->  | O21: =IF(B21="","",IF($B21<(RParms!$A$31+$O$4),$N21,$N$39)) ->  | Q21: =IF(B21="","",(EXP(-0.25*('Growth&Yield'!H13^(1.8333-1/60*$C$1))))) ->  | S21: =+IF(B21="","",IF($U$4=TRUE,GetFertilizerResponseAtAge($U$5,$C$1,$U$8,$U$6,$U$7,"HD",$B21,"RESP")*$Q21,0)) ->  | U21: =IF(B21="","",IF($U$4=TRUE,GetFertilizerResponseAtAge($U$5,$C$1,$U$8,$U$6,$U$7,"BA",$B21,"RESP")*$Q21,0)) ->  | W21: =IF(B21="","",IF($Y$4=TRUE,GetFertilizerResponseAtAge($Y$5,$C$1,$Y$8,$Y$6,$Y$7,"HD",$B21,"RESP")*$Q21,0)) ->  | Y21: =IF(B21="","",IF($Y$4=TRUE,GetFertilizerResponseAtAge($Y$5,$C$1,$Y$8,$Y$6,$Y$7,"BA",$B21,"RESP")*$Q21,0)) ->  | AA21: =IF(B21="","",IF($AC$4=TRUE,GetFertilizerResponseAtAge($AC$5,$C$1,$AC$8,$AC$6,$AC$7,"HD",$B21,"RESP")*$Q21,0)) ->  | AC21: =IF(B21="","",IF($AC$4=TRUE,GetFertilizerResponseAtAge($AC$5,$C$1,$AC$8,$AC$6,$AC$7,"BA",$B21,"RESP")*$Q21,0)) ->  | AE21: =IF(B21="","",IF($AG$4=TRUE,GetFertilizerResponseAtAge($AG$5,$C$1,$AG$8,$AG$6,$AG$7,"HD",$B21,"RESP")*$Q21,0)) ->  | AG21: =IF(B21="","",IF($AG$4=TRUE,GetFertilizerResponseAtAge($AG$5,$C$1,$AG$8,$AG$6,$AG$7,"BA",$B21,"RESP")*$Q21,0)) ->  | AW21: 31.59108025 | AX21: 22.63538425 | AY21: 20.38778328 | AZ21: 18.08669628
A22: 10 | B22: =+IF('Growth&Yield'!B14=1,'Growth&Yield'!E14,"") ->  | C22: =IF(B22=0,0,IF(B22="","",SQRT(43560/'Growth&Yield'!$K14)/'Growth&Yield'!$Y14)) ->  | D22: =IF(B22=0,0,IF(B22="","",(EXP(-0.25*('Growth&Yield'!$Y14^(1.8333-1/60*$C$1))))*$E$7*$B22*EXP(-$E$6*$B22))) ->  | E22: =IF(Inputs!$K$8=TRUE,$D22,0) ->  | F22: =IF(B22=0,0,IF(B22="","",(EXP(-0.25*('Growth&Yield'!H14^(1.8333-1/60*$C$1))))*$G$7*$B22*EXP(-$G$6*$B22))) ->  | G22: =IF(Inputs!$K$8=TRUE,$F22,0) ->  | I22: =IF(B22=0,0,IF(B22="","",(EXP(-0.25*('Growth&Yield'!H14^(1.8333-1/60*$C$1))))*$I$5*($B22-$I$6)*EXP(-$I$4*($B22-$I$6)))) ->  | J22: =IF(B22=0,0,IF(B22="","",(EXP(-0.25*('Growth&Yield'!H14^(1.8333-1/60*$C$1))))*$K$5*($B22-$I$6)*EXP(-$K$4*($B22-$I$6)))) ->  | L22: =IF('Growth&Yield'!E14=0,0,IF(B22="","",IF(OR(Inputs!$K$14=FALSE,'Growth&Yield'!E14<Inputs!$F$25),0,(EXP(-0.25*('Growth&Yield'!H14^(1.8333-1/60*$C$1))))*$M$6*('Growth&Yield'!E14-Inputs!$F$25)*EXP(-($M$7*('Growth&Yield'!E14-Inputs!$F$25)))))) ->  | M22: =IF(B22="","",IF(B22<(RParms!$A$31+$M$4),$L22,$L$39)) ->  | N22: =IF(B22="","",IF(OR(RParms!$A$30=FALSE,$B22<RParms!$A$31),0,(EXP(-0.25*('Growth&Yield'!H14^(1.8333-1/60*$C$1))))*$O$6*($B22-RParms!$A$31)*EXP(-($O$7*($B22-RParms!$A$31))))) ->  | O22: =IF(B22="","",IF($B22<(RParms!$A$31+$O$4),$N22,$N$39)) ->  | Q22: =IF(B22="","",(EXP(-0.25*('Growth&Yield'!H14^(1.8333-1/60*$C$1))))) ->  | S22: =+IF(B22="","",IF($U$4=TRUE,GetFertilizerResponseAtAge($U$5,$C$1,$U$8,$U$6,$U$7,"HD",$B22,"RESP")*$Q22,0)) ->  | U22: =IF(B22="","",IF($U$4=TRUE,GetFertilizerResponseAtAge($U$5,$C$1,$U$8,$U$6,$U$7,"BA",$B22,"RESP")*$Q22,0)) ->  | W22: =IF(B22="","",IF($Y$4=TRUE,GetFertilizerResponseAtAge($Y$5,$C$1,$Y$8,$Y$6,$Y$7,"HD",$B22,"RESP")*$Q22,0)) ->  | Y22: =IF(B22="","",IF($Y$4=TRUE,GetFertilizerResponseAtAge($Y$5,$C$1,$Y$8,$Y$6,$Y$7,"BA",$B22,"RESP")*$Q22,0)) ->  | AA22: =IF(B22="","",IF($AC$4=TRUE,GetFertilizerResponseAtAge($AC$5,$C$1,$AC$8,$AC$6,$AC$7,"HD",$B22,"RESP")*$Q22,0)) ->  | AC22: =IF(B22="","",IF($AC$4=TRUE,GetFertilizerResponseAtAge($AC$5,$C$1,$AC$8,$AC$6,$AC$7,"BA",$B22,"RESP")*$Q22,0)) ->  | AE22: =IF(B22="","",IF($AG$4=TRUE,GetFertilizerResponseAtAge($AG$5,$C$1,$AG$8,$AG$6,$AG$7,"HD",$B22,"RESP")*$Q22,0)) ->  | AG22: =IF(B22="","",IF($AG$4=TRUE,GetFertilizerResponseAtAge($AG$5,$C$1,$AG$8,$AG$6,$AG$7,"BA",$B22,"RESP")*$Q22,0)) ->  | AW22: 33.76207595 | AX22: 23.86747337 | AY22: 21.45901634 | AZ22: 19.00324767
A23: 11 | B23: =+IF('Growth&Yield'!B15=1,'Growth&Yield'!E15,"") ->  | C23: =IF(B23=0,0,IF(B23="","",SQRT(43560/'Growth&Yield'!$K15)/'Growth&Yield'!$Y15)) ->  | D23: =IF(B23=0,0,IF(B23="","",(EXP(-0.25*('Growth&Yield'!$Y15^(1.8333-1/60*$C$1))))*$E$7*$B23*EXP(-$E$6*$B23))) ->  | E23: =IF(Inputs!$K$8=TRUE,$D23,0) ->  | F23: =IF(B23=0,0,IF(B23="","",(EXP(-0.25*('Growth&Yield'!H15^(1.8333-1/60*$C$1))))*$G$7*$B23*EXP(-$G$6*$B23))) ->  | G23: =IF(Inputs!$K$8=TRUE,$F23,0) ->  | I23: =IF(B23=0,0,IF(B23="","",(EXP(-0.25*('Growth&Yield'!H15^(1.8333-1/60*$C$1))))*$I$5*($B23-$I$6)*EXP(-$I$4*($B23-$I$6)))) ->  | J23: =IF(B23=0,0,IF(B23="","",(EXP(-0.25*('Growth&Yield'!H15^(1.8333-1/60*$C$1))))*$K$5*($B23-$I$6)*EXP(-$K$4*($B23-$I$6)))) ->  | L23: =IF('Growth&Yield'!E15=0,0,IF(B23="","",IF(OR(Inputs!$K$14=FALSE,'Growth&Yield'!E15<Inputs!$F$25),0,(EXP(-0.25*('Growth&Yield'!H15^(1.8333-1/60*$C$1))))*$M$6*('Growth&Yield'!E15-Inputs!$F$25)*EXP(-($M$7*('Growth&Yield'!E15-Inputs!$F$25)))))) ->  | M23: =IF(B23="","",IF(B23<(RParms!$A$31+$M$4),$L23,$L$39)) ->  | N23: =IF(B23="","",IF(OR(RParms!$A$30=FALSE,$B23<RParms!$A$31),0,(EXP(-0.25*('Growth&Yield'!H15^(1.8333-1/60*$C$1))))*$O$6*($B23-RParms!$A$31)*EXP(-($O$7*($B23-RParms!$A$31))))) ->  | O23: =IF(B23="","",IF($B23<(RParms!$A$31+$O$4),$N23,$N$39)) ->  | Q23: =IF(B23="","",(EXP(-0.25*('Growth&Yield'!H15^(1.8333-1/60*$C$1))))) ->  | S23: =+IF(B23="","",IF($U$4=TRUE,GetFertilizerResponseAtAge($U$5,$C$1,$U$8,$U$6,$U$7,"HD",$B23,"RESP")*$Q23,0)) ->  | U23: =IF(B23="","",IF($U$4=TRUE,GetFertilizerResponseAtAge($U$5,$C$1,$U$8,$U$6,$U$7,"BA",$B23,"RESP")*$Q23,0)) ->  | W23: =IF(B23="","",IF($Y$4=TRUE,GetFertilizerResponseAtAge($Y$5,$C$1,$Y$8,$Y$6,$Y$7,"HD",$B23,"RESP")*$Q23,0)) ->  | Y23: =IF(B23="","",IF($Y$4=TRUE,GetFertilizerResponseAtAge($Y$5,$C$1,$Y$8,$Y$6,$Y$7,"BA",$B23,"RESP")*$Q23,0)) ->  | AA23: =IF(B23="","",IF($AC$4=TRUE,GetFertilizerResponseAtAge($AC$5,$C$1,$AC$8,$AC$6,$AC$7,"HD",$B23,"RESP")*$Q23,0)) ->  | AC23: =IF(B23="","",IF($AC$4=TRUE,GetFertilizerResponseAtAge($AC$5,$C$1,$AC$8,$AC$6,$AC$7,"BA",$B23,"RESP")*$Q23,0)) ->  | AE23: =IF(B23="","",IF($AG$4=TRUE,GetFertilizerResponseAtAge($AG$5,$C$1,$AG$8,$AG$6,$AG$7,"HD",$B23,"RESP")*$Q23,0)) ->  | AG23: =IF(B23="","",IF($AG$4=TRUE,GetFertilizerResponseAtAge($AG$5,$C$1,$AG$8,$AG$6,$AG$7,"BA",$B23,"RESP")*$Q23,0)) -> 
A24: 12 | B24: =+IF('Growth&Yield'!B16=1,'Growth&Yield'!E16,"") ->  | C24: =IF(B24=0,0,IF(B24="","",SQRT(43560/'Growth&Yield'!$K16)/'Growth&Yield'!$Y16)) ->  | D24: =IF(B24=0,0,IF(B24="","",(EXP(-0.25*('Growth&Yield'!$Y16^(1.8333-1/60*$C$1))))*$E$7*$B24*EXP(-$E$6*$B24))) ->  | E24: =IF(Inputs!$K$8=TRUE,$D24,0) ->  | F24: =IF(B24=0,0,IF(B24="","",(EXP(-0.25*('Growth&Yield'!H16^(1.8333-1/60*$C$1))))*$G$7*$B24*EXP(-$G$6*$B24))) ->  | G24: =IF(Inputs!$K$8=TRUE,$F24,0) ->  | I24: =IF(B24=0,0,IF(B24="","",(EXP(-0.25*('Growth&Yield'!H16^(1.8333-1/60*$C$1))))*$I$5*($B24-$I$6)*EXP(-$I$4*($B24-$I$6)))) ->  | J24: =IF(B24=0,0,IF(B24="","",(EXP(-0.25*('Growth&Yield'!H16^(1.8333-1/60*$C$1))))*$K$5*($B24-$I$6)*EXP(-$K$4*($B24-$I$6)))) ->  | L24: =IF('Growth&Yield'!E16=0,0,IF(B24="","",IF(OR(Inputs!$K$14=FALSE,'Growth&Yield'!E16<Inputs!$F$25),0,(EXP(-0.25*('Growth&Yield'!H16^(1.8333-1/60*$C$1))))*$M$6*('Growth&Yield'!E16-Inputs!$F$25)*EXP(-($M$7*('Growth&Yield'!E16-Inputs!$F$25)))))) ->  | M24: =IF(B24="","",IF(B24<(RParms!$A$31+$M$4),$L24,$L$39)) ->  | N24: =IF(B24="","",IF(OR(RParms!$A$30=FALSE,$B24<RParms!$A$31),0,(EXP(-0.25*('Growth&Yield'!H16^(1.8333-1/60*$C$1))))*$O$6*($B24-RParms!$A$31)*EXP(-($O$7*($B24-RParms!$A$31))))) ->  | O24: =IF(B24="","",IF($B24<(RParms!$A$31+$O$4),$N24,$N$39)) ->  | Q24: =IF(B24="","",(EXP(-0.25*('Growth&Yield'!H16^(1.8333-1/60*$C$1))))) ->  | S24: =+IF(B24="","",IF($U$4=TRUE,GetFertilizerResponseAtAge($U$5,$C$1,$U$8,$U$6,$U$7,"HD",$B24,"RESP")*$Q24,0)) ->  | U24: =IF(B24="","",IF($U$4=TRUE,GetFertilizerResponseAtAge($U$5,$C$1,$U$8,$U$6,$U$7,"BA",$B24,"RESP")*$Q24,0)) ->  | W24: =IF(B24="","",IF($Y$4=TRUE,GetFertilizerResponseAtAge($Y$5,$C$1,$Y$8,$Y$6,$Y$7,"HD",$B24,"RESP")*$Q24,0)) ->  | Y24: =IF(B24="","",IF($Y$4=TRUE,GetFertilizerResponseAtAge($Y$5,$C$1,$Y$8,$Y$6,$Y$7,"BA",$B24,"RESP")*$Q24,0)) ->  | AA24: =IF(B24="","",IF($AC$4=TRUE,GetFertilizerResponseAtAge($AC$5,$C$1,$AC$8,$AC$6,$AC$7,"HD",$B24,"RESP")*$Q24,0)) ->  | AC24: =IF(B24="","",IF($AC$4=TRUE,GetFertilizerResponseAtAge($AC$5,$C$1,$AC$8,$AC$6,$AC$7,"BA",$B24,"RESP")*$Q24,0)) ->  | AE24: =IF(B24="","",IF($AG$4=TRUE,GetFertilizerResponseAtAge($AG$5,$C$1,$AG$8,$AG$6,$AG$7,"HD",$B24,"RESP")*$Q24,0)) ->  | AG24: =IF(B24="","",IF($AG$4=TRUE,GetFertilizerResponseAtAge($AG$5,$C$1,$AG$8,$AG$6,$AG$7,"BA",$B24,"RESP")*$Q24,0)) -> 
A25: 13 | B25: =+IF('Growth&Yield'!B17=1,'Growth&Yield'!E17,"") ->  | C25: =IF(B25=0,0,IF(B25="","",SQRT(43560/'Growth&Yield'!$K17)/'Growth&Yield'!$Y17)) ->  | D25: =IF(B25=0,0,IF(B25="","",(EXP(-0.25*('Growth&Yield'!$Y17^(1.8333-1/60*$C$1))))*$E$7*$B25*EXP(-$E$6*$B25))) ->  | E25: =IF(Inputs!$K$8=TRUE,$D25,0) ->  | F25: =IF(B25=0,0,IF(B25="","",(EXP(-0.25*('Growth&Yield'!H17^(1.8333-1/60*$C$1))))*$G$7*$B25*EXP(-$G$6*$B25))) ->  | G25: =IF(Inputs!$K$8=TRUE,$F25,0) ->  | I25: =IF(B25=0,0,IF(B25="","",(EXP(-0.25*('Growth&Yield'!H17^(1.8333-1/60*$C$1))))*$I$5*($B25-$I$6)*EXP(-$I$4*($B25-$I$6)))) ->  | J25: =IF(B25=0,0,IF(B25="","",(EXP(-0.25*('Growth&Yield'!H17^(1.8333-1/60*$C$1))))*$K$5*($B25-$I$6)*EXP(-$K$4*($B25-$I$6)))) ->  | L25: =IF('Growth&Yield'!E17=0,0,IF(B25="","",IF(OR(Inputs!$K$14=FALSE,'Growth&Yield'!E17<Inputs!$F$25),0,(EXP(-0.25*('Growth&Yield'!H17^(1.8333-1/60*$C$1))))*$M$6*('Growth&Yield'!E17-Inputs!$F$25)*EXP(-($M$7*('Growth&Yield'!E17-Inputs!$F$25)))))) ->  | M25: =IF(B25="","",IF(B25<(RParms!$A$31+$M$4),$L25,$L$39)) ->  | N25: =IF(B25="","",IF(OR(RParms!$A$30=FALSE,$B25<RParms!$A$31),0,(EXP(-0.25*('Growth&Yield'!H17^(1.8333-1/60*$C$1))))*$O$6*($B25-RParms!$A$31)*EXP(-($O$7*($B25-RParms!$A$31))))) ->  | O25: =IF(B25="","",IF($B25<(RParms!$A$31+$O$4),$N25,$N$39)) ->  | Q25: =IF(B25="","",(EXP(-0.25*('Growth&Yield'!H17^(1.8333-1/60*$C$1))))) ->  | S25: =+IF(B25="","",IF($U$4=TRUE,GetFertilizerResponseAtAge($U$5,$C$1,$U$8,$U$6,$U$7,"HD",$B25,"RESP")*$Q25,0)) ->  | U25: =IF(B25="","",IF($U$4=TRUE,GetFertilizerResponseAtAge($U$5,$C$1,$U$8,$U$6,$U$7,"BA",$B25,"RESP")*$Q25,0)) ->  | W25: =IF(B25="","",IF($Y$4=TRUE,GetFertilizerResponseAtAge($Y$5,$C$1,$Y$8,$Y$6,$Y$7,"HD",$B25,"RESP")*$Q25,0)) ->  | Y25: =IF(B25="","",IF($Y$4=TRUE,GetFertilizerResponseAtAge($Y$5,$C$1,$Y$8,$Y$6,$Y$7,"BA",$B25,"RESP")*$Q25,0)) ->  | AA25: =IF(B25="","",IF($AC$4=TRUE,GetFertilizerResponseAtAge($AC$5,$C$1,$AC$8,$AC$6,$AC$7,"HD",$B25,"RESP")*$Q25,0)) ->  | AC25: =IF(B25="","",IF($AC$4=TRUE,GetFertilizerResponseAtAge($AC$5,$C$1,$AC$8,$AC$6,$AC$7,"BA",$B25,"RESP")*$Q25,0)) ->  | AE25: =IF(B25="","",IF($AG$4=TRUE,GetFertilizerResponseAtAge($AG$5,$C$1,$AG$8,$AG$6,$AG$7,"HD",$B25,"RESP")*$Q25,0)) ->  | AG25: =IF(B25="","",IF($AG$4=TRUE,GetFertilizerResponseAtAge($AG$5,$C$1,$AG$8,$AG$6,$AG$7,"BA",$B25,"RESP")*$Q25,0)) -> 
A26: 14 | B26: =+IF('Growth&Yield'!B18=1,'Growth&Yield'!E18,"") ->  | C26: =IF(B26=0,0,IF(B26="","",SQRT(43560/'Growth&Yield'!$K18)/'Growth&Yield'!$Y18)) ->  | D26: =IF(B26=0,0,IF(B26="","",(EXP(-0.25*('Growth&Yield'!$Y18^(1.8333-1/60*$C$1))))*$E$7*$B26*EXP(-$E$6*$B26))) ->  | E26: =IF(Inputs!$K$8=TRUE,$D26,0) ->  | F26: =IF(B26=0,0,IF(B26="","",(EXP(-0.25*('Growth&Yield'!H18^(1.8333-1/60*$C$1))))*$G$7*$B26*EXP(-$G$6*$B26))) ->  | G26: =IF(Inputs!$K$8=TRUE,$F26,0) ->  | I26: =IF(B26=0,0,IF(B26="","",(EXP(-0.25*('Growth&Yield'!H18^(1.8333-1/60*$C$1))))*$I$5*($B26-$I$6)*EXP(-$I$4*($B26-$I$6)))) ->  | J26: =IF(B26=0,0,IF(B26="","",(EXP(-0.25*('Growth&Yield'!H18^(1.8333-1/60*$C$1))))*$K$5*($B26-$I$6)*EXP(-$K$4*($B26-$I$6)))) ->  | L26: =IF('Growth&Yield'!E18=0,0,IF(B26="","",IF(OR(Inputs!$K$14=FALSE,'Growth&Yield'!E18<Inputs!$F$25),0,(EXP(-0.25*('Growth&Yield'!H18^(1.8333-1/60*$C$1))))*$M$6*('Growth&Yield'!E18-Inputs!$F$25)*EXP(-($M$7*('Growth&Yield'!E18-Inputs!$F$25)))))) ->  | M26: =IF(B26="","",IF(B26<(RParms!$A$31+$M$4),$L26,$L$39)) ->  | N26: =IF(B26="","",IF(OR(RParms!$A$30=FALSE,$B26<RParms!$A$31),0,(EXP(-0.25*('Growth&Yield'!H18^(1.8333-1/60*$C$1))))*$O$6*($B26-RParms!$A$31)*EXP(-($O$7*($B26-RParms!$A$31))))) ->  | O26: =IF(B26="","",IF($B26<(RParms!$A$31+$O$4),$N26,$N$39)) ->  | Q26: =IF(B26="","",(EXP(-0.25*('Growth&Yield'!H18^(1.8333-1/60*$C$1))))) ->  | S26: =+IF(B26="","",IF($U$4=TRUE,GetFertilizerResponseAtAge($U$5,$C$1,$U$8,$U$6,$U$7,"HD",$B26,"RESP")*$Q26,0)) ->  | U26: =IF(B26="","",IF($U$4=TRUE,GetFertilizerResponseAtAge($U$5,$C$1,$U$8,$U$6,$U$7,"BA",$B26,"RESP")*$Q26,0)) ->  | W26: =IF(B26="","",IF($Y$4=TRUE,GetFertilizerResponseAtAge($Y$5,$C$1,$Y$8,$Y$6,$Y$7,"HD",$B26,"RESP")*$Q26,0)) ->  | Y26: =IF(B26="","",IF($Y$4=TRUE,GetFertilizerResponseAtAge($Y$5,$C$1,$Y$8,$Y$6,$Y$7,"BA",$B26,"RESP")*$Q26,0)) ->  | AA26: =IF(B26="","",IF($AC$4=TRUE,GetFertilizerResponseAtAge($AC$5,$C$1,$AC$8,$AC$6,$AC$7,"HD",$B26,"RESP")*$Q26,0)) ->  | AC26: =IF(B26="","",IF($AC$4=TRUE,GetFertilizerResponseAtAge($AC$5,$C$1,$AC$8,$AC$6,$AC$7,"BA",$B26,"RESP")*$Q26,0)) ->  | AE26: =IF(B26="","",IF($AG$4=TRUE,GetFertilizerResponseAtAge($AG$5,$C$1,$AG$8,$AG$6,$AG$7,"HD",$B26,"RESP")*$Q26,0)) ->  | AG26: =IF(B26="","",IF($AG$4=TRUE,GetFertilizerResponseAtAge($AG$5,$C$1,$AG$8,$AG$6,$AG$7,"BA",$B26,"RESP")*$Q26,0)) -> 
A27: 15 | B27: =+IF('Growth&Yield'!B19=1,'Growth&Yield'!E19,"") ->  | C27: =IF(B27=0,0,IF(B27="","",SQRT(43560/'Growth&Yield'!$K19)/'Growth&Yield'!$Y19)) ->  | D27: =IF(B27=0,0,IF(B27="","",(EXP(-0.25*('Growth&Yield'!$Y19^(1.8333-1/60*$C$1))))*$E$7*$B27*EXP(-$E$6*$B27))) ->  | E27: =IF(Inputs!$K$8=TRUE,$D27,0) ->  | F27: =IF(B27=0,0,IF(B27="","",(EXP(-0.25*('Growth&Yield'!H19^(1.8333-1/60*$C$1))))*$G$7*$B27*EXP(-$G$6*$B27))) ->  | G27: =IF(Inputs!$K$8=TRUE,$F27,0) ->  | I27: =IF(B27=0,0,IF(B27="","",(EXP(-0.25*('Growth&Yield'!H19^(1.8333-1/60*$C$1))))*$I$5*($B27-$I$6)*EXP(-$I$4*($B27-$I$6)))) ->  | J27: =IF(B27=0,0,IF(B27="","",(EXP(-0.25*('Growth&Yield'!H19^(1.8333-1/60*$C$1))))*$K$5*($B27-$I$6)*EXP(-$K$4*($B27-$I$6)))) ->  | L27: =IF('Growth&Yield'!E19=0,0,IF(B27="","",IF(OR(Inputs!$K$14=FALSE,'Growth&Yield'!E19<Inputs!$F$25),0,(EXP(-0.25*('Growth&Yield'!H19^(1.8333-1/60*$C$1))))*$M$6*('Growth&Yield'!E19-Inputs!$F$25)*EXP(-($M$7*('Growth&Yield'!E19-Inputs!$F$25)))))) ->  | M27: =IF(B27="","",IF(B27<(RParms!$A$31+$M$4),$L27,$L$39)) ->  | N27: =IF(B27="","",IF(OR(RParms!$A$30=FALSE,$B27<RParms!$A$31),0,(EXP(-0.25*('Growth&Yield'!H19^(1.8333-1/60*$C$1))))*$O$6*($B27-RParms!$A$31)*EXP(-($O$7*($B27-RParms!$A$31))))) ->  | O27: =IF(B27="","",IF($B27<(RParms!$A$31+$O$4),$N27,$N$39)) ->  | Q27: =IF(B27="","",(EXP(-0.25*('Growth&Yield'!H19^(1.8333-1/60*$C$1))))) ->  | S27: =+IF(B27="","",IF($U$4=TRUE,GetFertilizerResponseAtAge($U$5,$C$1,$U$8,$U$6,$U$7,"HD",$B27,"RESP")*$Q27,0)) ->  | U27: =IF(B27="","",IF($U$4=TRUE,GetFertilizerResponseAtAge($U$5,$C$1,$U$8,$U$6,$U$7,"BA",$B27,"RESP")*$Q27,0)) ->  | W27: =IF(B27="","",IF($Y$4=TRUE,GetFertilizerResponseAtAge($Y$5,$C$1,$Y$8,$Y$6,$Y$7,"HD",$B27,"RESP")*$Q27,0)) ->  | Y27: =IF(B27="","",IF($Y$4=TRUE,GetFertilizerResponseAtAge($Y$5,$C$1,$Y$8,$Y$6,$Y$7,"BA",$B27,"RESP")*$Q27,0)) ->  | AA27: =IF(B27="","",IF($AC$4=TRUE,GetFertilizerResponseAtAge($AC$5,$C$1,$AC$8,$AC$6,$AC$7,"HD",$B27,"RESP")*$Q27,0)) ->  | AC27: =IF(B27="","",IF($AC$4=TRUE,GetFertilizerResponseAtAge($AC$5,$C$1,$AC$8,$AC$6,$AC$7,"BA",$B27,"RESP")*$Q27,0)) ->  | AE27: =IF(B27="","",IF($AG$4=TRUE,GetFertilizerResponseAtAge($AG$5,$C$1,$AG$8,$AG$6,$AG$7,"HD",$B27,"RESP")*$Q27,0)) ->  | AG27: =IF(B27="","",IF($AG$4=TRUE,GetFertilizerResponseAtAge($AG$5,$C$1,$AG$8,$AG$6,$AG$7,"BA",$B27,"RESP")*$Q27,0)) -> 
A28: 16 | B28: =+IF('Growth&Yield'!B20=1,'Growth&Yield'!E20,"") ->  | C28: =IF(B28=0,0,IF(B28="","",SQRT(43560/'Growth&Yield'!$K20)/'Growth&Yield'!$Y20)) ->  | D28: =IF(B28=0,0,IF(B28="","",(EXP(-0.25*('Growth&Yield'!$Y20^(1.8333-1/60*$C$1))))*$E$7*$B28*EXP(-$E$6*$B28))) ->  | E28: =IF(Inputs!$K$8=TRUE,$D28,0) ->  | F28: =IF(B28=0,0,IF(B28="","",(EXP(-0.25*('Growth&Yield'!H20^(1.8333-1/60*$C$1))))*$G$7*$B28*EXP(-$G$6*$B28))) ->  | G28: =IF(Inputs!$K$8=TRUE,$F28,0) ->  | I28: =IF(B28=0,0,IF(B28="","",(EXP(-0.25*('Growth&Yield'!H20^(1.8333-1/60*$C$1))))*$I$5*($B28-$I$6)*EXP(-$I$4*($B28-$I$6)))) ->  | J28: =IF(B28=0,0,IF(B28="","",(EXP(-0.25*('Growth&Yield'!H20^(1.8333-1/60*$C$1))))*$K$5*($B28-$I$6)*EXP(-$K$4*($B28-$I$6)))) ->  | L28: =IF('Growth&Yield'!E20=0,0,IF(B28="","",IF(OR(Inputs!$K$14=FALSE,'Growth&Yield'!E20<Inputs!$F$25),0,(EXP(-0.25*('Growth&Yield'!H20^(1.8333-1/60*$C$1))))*$M$6*('Growth&Yield'!E20-Inputs!$F$25)*EXP(-($M$7*('Growth&Yield'!E20-Inputs!$F$25)))))) ->  | M28: =IF(B28="","",IF(B28<(RParms!$A$31+$M$4),$L28,$L$39)) ->  | N28: =IF(B28="","",IF(OR(RParms!$A$30=FALSE,$B28<RParms!$A$31),0,(EXP(-0.25*('Growth&Yield'!H20^(1.8333-1/60*$C$1))))*$O$6*($B28-RParms!$A$31)*EXP(-($O$7*($B28-RParms!$A$31))))) ->  | O28: =IF(B28="","",IF($B28<(RParms!$A$31+$O$4),$N28,$N$39)) ->  | Q28: =IF(B28="","",(EXP(-0.25*('Growth&Yield'!H20^(1.8333-1/60*$C$1))))) ->  | S28: =+IF(B28="","",IF($U$4=TRUE,GetFertilizerResponseAtAge($U$5,$C$1,$U$8,$U$6,$U$7,"HD",$B28,"RESP")*$Q28,0)) ->  | U28: =IF(B28="","",IF($U$4=TRUE,GetFertilizerResponseAtAge($U$5,$C$1,$U$8,$U$6,$U$7,"BA",$B28,"RESP")*$Q28,0)) ->  | W28: =IF(B28="","",IF($Y$4=TRUE,GetFertilizerResponseAtAge($Y$5,$C$1,$Y$8,$Y$6,$Y$7,"HD",$B28,"RESP")*$Q28,0)) ->  | Y28: =IF(B28="","",IF($Y$4=TRUE,GetFertilizerResponseAtAge($Y$5,$C$1,$Y$8,$Y$6,$Y$7,"BA",$B28,"RESP")*$Q28,0)) ->  | AA28: =IF(B28="","",IF($AC$4=TRUE,GetFertilizerResponseAtAge($AC$5,$C$1,$AC$8,$AC$6,$AC$7,"HD",$B28,"RESP")*$Q28,0)) ->  | AC28: =IF(B28="","",IF($AC$4=TRUE,GetFertilizerResponseAtAge($AC$5,$C$1,$AC$8,$AC$6,$AC$7,"BA",$B28,"RESP")*$Q28,0)) ->  | AE28: =IF(B28="","",IF($AG$4=TRUE,GetFertilizerResponseAtAge($AG$5,$C$1,$AG$8,$AG$6,$AG$7,"HD",$B28,"RESP")*$Q28,0)) ->  | AG28: =IF(B28="","",IF($AG$4=TRUE,GetFertilizerResponseAtAge($AG$5,$C$1,$AG$8,$AG$6,$AG$7,"BA",$B28,"RESP")*$Q28,0)) -> 
A29: 17 | B29: =+IF('Growth&Yield'!B21=1,'Growth&Yield'!E21,"") ->  | C29: =IF(B29=0,0,IF(B29="","",SQRT(43560/'Growth&Yield'!$K21)/'Growth&Yield'!$Y21)) ->  | D29: =IF(B29=0,0,IF(B29="","",(EXP(-0.25*('Growth&Yield'!$Y21^(1.8333-1/60*$C$1))))*$E$7*$B29*EXP(-$E$6*$B29))) ->  | E29: =IF(Inputs!$K$8=TRUE,$D29,0) ->  | F29: =IF(B29=0,0,IF(B29="","",(EXP(-0.25*('Growth&Yield'!H21^(1.8333-1/60*$C$1))))*$G$7*$B29*EXP(-$G$6*$B29))) ->  | G29: =IF(Inputs!$K$8=TRUE,$F29,0) ->  | I29: =IF(B29=0,0,IF(B29="","",(EXP(-0.25*('Growth&Yield'!H21^(1.8333-1/60*$C$1))))*$I$5*($B29-$I$6)*EXP(-$I$4*($B29-$I$6)))) ->  | J29: =IF(B29=0,0,IF(B29="","",(EXP(-0.25*('Growth&Yield'!H21^(1.8333-1/60*$C$1))))*$K$5*($B29-$I$6)*EXP(-$K$4*($B29-$I$6)))) ->  | L29: =IF('Growth&Yield'!E21=0,0,IF(B29="","",IF(OR(Inputs!$K$14=FALSE,'Growth&Yield'!E21<Inputs!$F$25),0,(EXP(-0.25*('Growth&Yield'!H21^(1.8333-1/60*$C$1))))*$M$6*('Growth&Yield'!E21-Inputs!$F$25)*EXP(-($M$7*('Growth&Yield'!E21-Inputs!$F$25)))))) ->  | M29: =IF(B29="","",IF(B29<(RParms!$A$31+$M$4),$L29,$L$39)) ->  | N29: =IF(B29="","",IF(OR(RParms!$A$30=FALSE,$B29<RParms!$A$31),0,(EXP(-0.25*('Growth&Yield'!H21^(1.8333-1/60*$C$1))))*$O$6*($B29-RParms!$A$31)*EXP(-($O$7*($B29-RParms!$A$31))))) ->  | O29: =IF(B29="","",IF($B29<(RParms!$A$31+$O$4),$N29,$N$39)) ->  | Q29: =IF(B29="","",(EXP(-0.25*('Growth&Yield'!H21^(1.8333-1/60*$C$1))))) ->  | S29: =+IF(B29="","",IF($U$4=TRUE,GetFertilizerResponseAtAge($U$5,$C$1,$U$8,$U$6,$U$7,"HD",$B29,"RESP")*$Q29,0)) ->  | U29: =IF(B29="","",IF($U$4=TRUE,GetFertilizerResponseAtAge($U$5,$C$1,$U$8,$U$6,$U$7,"BA",$B29,"RESP")*$Q29,0)) ->  | W29: =IF(B29="","",IF($Y$4=TRUE,GetFertilizerResponseAtAge($Y$5,$C$1,$Y$8,$Y$6,$Y$7,"HD",$B29,"RESP")*$Q29,0)) ->  | Y29: =IF(B29="","",IF($Y$4=TRUE,GetFertilizerResponseAtAge($Y$5,$C$1,$Y$8,$Y$6,$Y$7,"BA",$B29,"RESP")*$Q29,0)) ->  | AA29: =IF(B29="","",IF($AC$4=TRUE,GetFertilizerResponseAtAge($AC$5,$C$1,$AC$8,$AC$6,$AC$7,"HD",$B29,"RESP")*$Q29,0)) ->  | AC29: =IF(B29="","",IF($AC$4=TRUE,GetFertilizerResponseAtAge($AC$5,$C$1,$AC$8,$AC$6,$AC$7,"BA",$B29,"RESP")*$Q29,0)) ->  | AE29: =IF(B29="","",IF($AG$4=TRUE,GetFertilizerResponseAtAge($AG$5,$C$1,$AG$8,$AG$6,$AG$7,"HD",$B29,"RESP")*$Q29,0)) ->  | AG29: =IF(B29="","",IF($AG$4=TRUE,GetFertilizerResponseAtAge($AG$5,$C$1,$AG$8,$AG$6,$AG$7,"BA",$B29,"RESP")*$Q29,0)) -> 
A30: 18 | B30: =+IF('Growth&Yield'!B22=1,'Growth&Yield'!E22,"") ->  | C30: =IF(B30=0,0,IF(B30="","",SQRT(43560/'Growth&Yield'!$K22)/'Growth&Yield'!$Y22)) ->  | D30: =IF(B30=0,0,IF(B30="","",(EXP(-0.25*('Growth&Yield'!$Y22^(1.8333-1/60*$C$1))))*$E$7*$B30*EXP(-$E$6*$B30))) ->  | E30: =IF(Inputs!$K$8=TRUE,$D30,0) ->  | F30: =IF(B30=0,0,IF(B30="","",(EXP(-0.25*('Growth&Yield'!H22^(1.8333-1/60*$C$1))))*$G$7*$B30*EXP(-$G$6*$B30))) ->  | G30: =IF(Inputs!$K$8=TRUE,$F30,0) ->  | I30: =IF(B30=0,0,IF(B30="","",(EXP(-0.25*('Growth&Yield'!H22^(1.8333-1/60*$C$1))))*$I$5*($B30-$I$6)*EXP(-$I$4*($B30-$I$6)))) ->  | J30: =IF(B30=0,0,IF(B30="","",(EXP(-0.25*('Growth&Yield'!H22^(1.8333-1/60*$C$1))))*$K$5*($B30-$I$6)*EXP(-$K$4*($B30-$I$6)))) ->  | L30: =IF('Growth&Yield'!E22=0,0,IF(B30="","",IF(OR(Inputs!$K$14=FALSE,'Growth&Yield'!E22<Inputs!$F$25),0,(EXP(-0.25*('Growth&Yield'!H22^(1.8333-1/60*$C$1))))*$M$6*('Growth&Yield'!E22-Inputs!$F$25)*EXP(-($M$7*('Growth&Yield'!E22-Inputs!$F$25)))))) ->  | M30: =IF(B30="","",IF(B30<(RParms!$A$31+$M$4),$L30,$L$39)) ->  | N30: =IF(B30="","",IF(OR(RParms!$A$30=FALSE,$B30<RParms!$A$31),0,(EXP(-0.25*('Growth&Yield'!H22^(1.8333-1/60*$C$1))))*$O$6*($B30-RParms!$A$31)*EXP(-($O$7*($B30-RParms!$A$31))))) ->  | O30: =IF(B30="","",IF($B30<(RParms!$A$31+$O$4),$N30,$N$39)) ->  | Q30: =IF(B30="","",(EXP(-0.25*('Growth&Yield'!H22^(1.8333-1/60*$C$1))))) ->  | S30: =+IF(B30="","",IF($U$4=TRUE,GetFertilizerResponseAtAge($U$5,$C$1,$U$8,$U$6,$U$7,"HD",$B30,"RESP")*$Q30,0)) ->  | U30: =IF(B30="","",IF($U$4=TRUE,GetFertilizerResponseAtAge($U$5,$C$1,$U$8,$U$6,$U$7,"BA",$B30,"RESP")*$Q30,0)) ->  | W30: =IF(B30="","",IF($Y$4=TRUE,GetFertilizerResponseAtAge($Y$5,$C$1,$Y$8,$Y$6,$Y$7,"HD",$B30,"RESP")*$Q30,0)) ->  | Y30: =IF(B30="","",IF($Y$4=TRUE,GetFertilizerResponseAtAge($Y$5,$C$1,$Y$8,$Y$6,$Y$7,"BA",$B30,"RESP")*$Q30,0)) ->  | AA30: =IF(B30="","",IF($AC$4=TRUE,GetFertilizerResponseAtAge($AC$5,$C$1,$AC$8,$AC$6,$AC$7,"HD",$B30,"RESP")*$Q30,0)) ->  | AC30: =IF(B30="","",IF($AC$4=TRUE,GetFertilizerResponseAtAge($AC$5,$C$1,$AC$8,$AC$6,$AC$7,"BA",$B30,"RESP")*$Q30,0)) ->  | AE30: =IF(B30="","",IF($AG$4=TRUE,GetFertilizerResponseAtAge($AG$5,$C$1,$AG$8,$AG$6,$AG$7,"HD",$B30,"RESP")*$Q30,0)) ->  | AG30: =IF(B30="","",IF($AG$4=TRUE,GetFertilizerResponseAtAge($AG$5,$C$1,$AG$8,$AG$6,$AG$7,"BA",$B30,"RESP")*$Q30,0)) -> 
A31: 19 | B31: =+IF('Growth&Yield'!B23=1,'Growth&Yield'!E23,"") ->  | C31: =IF(B31=0,0,IF(B31="","",SQRT(43560/'Growth&Yield'!$K23)/'Growth&Yield'!$Y23)) ->  | D31: =IF(B31=0,0,IF(B31="","",(EXP(-0.25*('Growth&Yield'!$Y23^(1.8333-1/60*$C$1))))*$E$7*$B31*EXP(-$E$6*$B31))) ->  | E31: =IF(Inputs!$K$8=TRUE,$D31,0) ->  | F31: =IF(B31=0,0,IF(B31="","",(EXP(-0.25*('Growth&Yield'!H23^(1.8333-1/60*$C$1))))*$G$7*$B31*EXP(-$G$6*$B31))) ->  | G31: =IF(Inputs!$K$8=TRUE,$F31,0) ->  | I31: =IF(B31=0,0,IF(B31="","",(EXP(-0.25*('Growth&Yield'!H23^(1.8333-1/60*$C$1))))*$I$5*($B31-$I$6)*EXP(-$I$4*($B31-$I$6)))) ->  | J31: =IF(B31=0,0,IF(B31="","",(EXP(-0.25*('Growth&Yield'!H23^(1.8333-1/60*$C$1))))*$K$5*($B31-$I$6)*EXP(-$K$4*($B31-$I$6)))) ->  | L31: =IF('Growth&Yield'!E23=0,0,IF(B31="","",IF(OR(Inputs!$K$14=FALSE,'Growth&Yield'!E23<Inputs!$F$25),0,(EXP(-0.25*('Growth&Yield'!H23^(1.8333-1/60*$C$1))))*$M$6*('Growth&Yield'!E23-Inputs!$F$25)*EXP(-($M$7*('Growth&Yield'!E23-Inputs!$F$25)))))) ->  | M31: =IF(B31="","",IF(B31<(RParms!$A$31+$M$4),$L31,$L$39)) ->  | N31: =IF(B31="","",IF(OR(RParms!$A$30=FALSE,$B31<RParms!$A$31),0,(EXP(-0.25*('Growth&Yield'!H23^(1.8333-1/60*$C$1))))*$O$6*($B31-RParms!$A$31)*EXP(-($O$7*($B31-RParms!$A$31))))) ->  | O31: =IF(B31="","",IF($B31<(RParms!$A$31+$O$4),$N31,$N$39)) ->  | Q31: =IF(B31="","",(EXP(-0.25*('Growth&Yield'!H23^(1.8333-1/60*$C$1))))) ->  | S31: =+IF(B31="","",IF($U$4=TRUE,GetFertilizerResponseAtAge($U$5,$C$1,$U$8,$U$6,$U$7,"HD",$B31,"RESP")*$Q31,0)) ->  | U31: =IF(B31="","",IF($U$4=TRUE,GetFertilizerResponseAtAge($U$5,$C$1,$U$8,$U$6,$U$7,"BA",$B31,"RESP")*$Q31,0)) ->  | W31: =IF(B31="","",IF($Y$4=TRUE,GetFertilizerResponseAtAge($Y$5,$C$1,$Y$8,$Y$6,$Y$7,"HD",$B31,"RESP")*$Q31,0)) ->  | Y31: =IF(B31="","",IF($Y$4=TRUE,GetFertilizerResponseAtAge($Y$5,$C$1,$Y$8,$Y$6,$Y$7,"BA",$B31,"RESP")*$Q31,0)) ->  | AA31: =IF(B31="","",IF($AC$4=TRUE,GetFertilizerResponseAtAge($AC$5,$C$1,$AC$8,$AC$6,$AC$7,"HD",$B31,"RESP")*$Q31,0)) ->  | AC31: =IF(B31="","",IF($AC$4=TRUE,GetFertilizerResponseAtAge($AC$5,$C$1,$AC$8,$AC$6,$AC$7,"BA",$B31,"RESP")*$Q31,0)) ->  | AE31: =IF(B31="","",IF($AG$4=TRUE,GetFertilizerResponseAtAge($AG$5,$C$1,$AG$8,$AG$6,$AG$7,"HD",$B31,"RESP")*$Q31,0)) ->  | AG31: =IF(B31="","",IF($AG$4=TRUE,GetFertilizerResponseAtAge($AG$5,$C$1,$AG$8,$AG$6,$AG$7,"BA",$B31,"RESP")*$Q31,0)) -> 
A32: 20 | B32: =+IF('Growth&Yield'!B24=1,'Growth&Yield'!E24,"") ->  | C32: =IF(B32=0,0,IF(B32="","",SQRT(43560/'Growth&Yield'!$K24)/'Growth&Yield'!$Y24)) ->  | D32: =IF(B32=0,0,IF(B32="","",(EXP(-0.25*('Growth&Yield'!$Y24^(1.8333-1/60*$C$1))))*$E$7*$B32*EXP(-$E$6*$B32))) ->  | E32: =IF(Inputs!$K$8=TRUE,$D32,0) ->  | F32: =IF(B32=0,0,IF(B32="","",(EXP(-0.25*('Growth&Yield'!H24^(1.8333-1/60*$C$1))))*$G$7*$B32*EXP(-$G$6*$B32))) ->  | G32: =IF(Inputs!$K$8=TRUE,$F32,0) ->  | I32: =IF(B32=0,0,IF(B32="","",(EXP(-0.25*('Growth&Yield'!H24^(1.8333-1/60*$C$1))))*$I$5*($B32-$I$6)*EXP(-$I$4*($B32-$I$6)))) ->  | J32: =IF(B32=0,0,IF(B32="","",(EXP(-0.25*('Growth&Yield'!H24^(1.8333-1/60*$C$1))))*$K$5*($B32-$I$6)*EXP(-$K$4*($B32-$I$6)))) ->  | L32: =IF('Growth&Yield'!E24=0,0,IF(B32="","",IF(OR(Inputs!$K$14=FALSE,'Growth&Yield'!E24<Inputs!$F$25),0,(EXP(-0.25*('Growth&Yield'!H24^(1.8333-1/60*$C$1))))*$M$6*('Growth&Yield'!E24-Inputs!$F$25)*EXP(-($M$7*('Growth&Yield'!E24-Inputs!$F$25)))))) ->  | M32: =IF(B32="","",IF(B32<(RParms!$A$31+$M$4),$L32,$L$39)) ->  | N32: =IF(B32="","",IF(OR(RParms!$A$30=FALSE,$B32<RParms!$A$31),0,(EXP(-0.25*('Growth&Yield'!H24^(1.8333-1/60*$C$1))))*$O$6*($B32-RParms!$A$31)*EXP(-($O$7*($B32-RParms!$A$31))))) ->  | O32: =IF(B32="","",IF($B32<(RParms!$A$31+$O$4),$N32,$N$39)) ->  | Q32: =IF(B32="","",(EXP(-0.25*('Growth&Yield'!H24^(1.8333-1/60*$C$1))))) ->  | S32: =+IF(B32="","",IF($U$4=TRUE,GetFertilizerResponseAtAge($U$5,$C$1,$U$8,$U$6,$U$7,"HD",$B32,"RESP")*$Q32,0)) ->  | U32: =IF(B32="","",IF($U$4=TRUE,GetFertilizerResponseAtAge($U$5,$C$1,$U$8,$U$6,$U$7,"BA",$B32,"RESP")*$Q32,0)) ->  | W32: =IF(B32="","",IF($Y$4=TRUE,GetFertilizerResponseAtAge($Y$5,$C$1,$Y$8,$Y$6,$Y$7,"HD",$B32,"RESP")*$Q32,0)) ->  | Y32: =IF(B32="","",IF($Y$4=TRUE,GetFertilizerResponseAtAge($Y$5,$C$1,$Y$8,$Y$6,$Y$7,"BA",$B32,"RESP")*$Q32,0)) ->  | AA32: =IF(B32="","",IF($AC$4=TRUE,GetFertilizerResponseAtAge($AC$5,$C$1,$AC$8,$AC$6,$AC$7,"HD",$B32,"RESP")*$Q32,0)) ->  | AC32: =IF(B32="","",IF($AC$4=TRUE,GetFertilizerResponseAtAge($AC$5,$C$1,$AC$8,$AC$6,$AC$7,"BA",$B32,"RESP")*$Q32,0)) ->  | AE32: =IF(B32="","",IF($AG$4=TRUE,GetFertilizerResponseAtAge($AG$5,$C$1,$AG$8,$AG$6,$AG$7,"HD",$B32,"RESP")*$Q32,0)) ->  | AG32: =IF(B32="","",IF($AG$4=TRUE,GetFertilizerResponseAtAge($AG$5,$C$1,$AG$8,$AG$6,$AG$7,"BA",$B32,"RESP")*$Q32,0)) -> 
A33: 21 | B33: =+IF('Growth&Yield'!B25=1,'Growth&Yield'!E25,"") ->  | C33: =IF(B33=0,0,IF(B33="","",SQRT(43560/'Growth&Yield'!$K25)/'Growth&Yield'!$Y25)) ->  | D33: =IF(B33=0,0,IF(B33="","",(EXP(-0.25*('Growth&Yield'!$Y25^(1.8333-1/60*$C$1))))*$E$7*$B33*EXP(-$E$6*$B33))) ->  | E33: =IF(Inputs!$K$8=TRUE,$D33,0) ->  | F33: =IF(B33=0,0,IF(B33="","",(EXP(-0.25*('Growth&Yield'!H25^(1.8333-1/60*$C$1))))*$G$7*$B33*EXP(-$G$6*$B33))) ->  | G33: =IF(Inputs!$K$8=TRUE,$F33,0) ->  | I33: =IF(B33=0,0,IF(B33="","",(EXP(-0.25*('Growth&Yield'!H25^(1.8333-1/60*$C$1))))*$I$5*($B33-$I$6)*EXP(-$I$4*($B33-$I$6)))) ->  | J33: =IF(B33=0,0,IF(B33="","",(EXP(-0.25*('Growth&Yield'!H25^(1.8333-1/60*$C$1))))*$K$5*($B33-$I$6)*EXP(-$K$4*($B33-$I$6)))) ->  | L33: =IF('Growth&Yield'!E25=0,0,IF(B33="","",IF(OR(Inputs!$K$14=FALSE,'Growth&Yield'!E25<Inputs!$F$25),0,(EXP(-0.25*('Growth&Yield'!H25^(1.8333-1/60*$C$1))))*$M$6*('Growth&Yield'!E25-Inputs!$F$25)*EXP(-($M$7*('Growth&Yield'!E25-Inputs!$F$25)))))) ->  | M33: =IF(B33="","",IF(B33<(RParms!$A$31+$M$4),$L33,$L$39)) ->  | N33: =IF(B33="","",IF(OR(RParms!$A$30=FALSE,$B33<RParms!$A$31),0,(EXP(-0.25*('Growth&Yield'!H25^(1.8333-1/60*$C$1))))*$O$6*($B33-RParms!$A$31)*EXP(-($O$7*($B33-RParms!$A$31))))) ->  | O33: =IF(B33="","",IF($B33<(RParms!$A$31+$O$4),$N33,$N$39)) ->  | Q33: =IF(B33="","",(EXP(-0.25*('Growth&Yield'!H25^(1.8333-1/60*$C$1))))) ->  | S33: =+IF(B33="","",IF($U$4=TRUE,GetFertilizerResponseAtAge($U$5,$C$1,$U$8,$U$6,$U$7,"HD",$B33,"RESP")*$Q33,0)) ->  | U33: =IF(B33="","",IF($U$4=TRUE,GetFertilizerResponseAtAge($U$5,$C$1,$U$8,$U$6,$U$7,"BA",$B33,"RESP")*$Q33,0)) ->  | W33: =IF(B33="","",IF($Y$4=TRUE,GetFertilizerResponseAtAge($Y$5,$C$1,$Y$8,$Y$6,$Y$7,"HD",$B33,"RESP")*$Q33,0)) ->  | Y33: =IF(B33="","",IF($Y$4=TRUE,GetFertilizerResponseAtAge($Y$5,$C$1,$Y$8,$Y$6,$Y$7,"BA",$B33,"RESP")*$Q33,0)) ->  | AA33: =IF(B33="","",IF($AC$4=TRUE,GetFertilizerResponseAtAge($AC$5,$C$1,$AC$8,$AC$6,$AC$7,"HD",$B33,"RESP")*$Q33,0)) ->  | AC33: =IF(B33="","",IF($AC$4=TRUE,GetFertilizerResponseAtAge($AC$5,$C$1,$AC$8,$AC$6,$AC$7,"BA",$B33,"RESP")*$Q33,0)) ->  | AE33: =IF(B33="","",IF($AG$4=TRUE,GetFertilizerResponseAtAge($AG$5,$C$1,$AG$8,$AG$6,$AG$7,"HD",$B33,"RESP")*$Q33,0)) ->  | AG33: =IF(B33="","",IF($AG$4=TRUE,GetFertilizerResponseAtAge($AG$5,$C$1,$AG$8,$AG$6,$AG$7,"BA",$B33,"RESP")*$Q33,0)) -> 
A34: 22 | B34: =+IF('Growth&Yield'!B26=1,'Growth&Yield'!E26,"") ->  | C34: =IF(B34=0,0,IF(B34="","",SQRT(43560/'Growth&Yield'!$K26)/'Growth&Yield'!$Y26)) ->  | D34: =IF(B34=0,0,IF(B34="","",(EXP(-0.25*('Growth&Yield'!$Y26^(1.8333-1/60*$C$1))))*$E$7*$B34*EXP(-$E$6*$B34))) ->  | E34: =IF(Inputs!$K$8=TRUE,$D34,0) ->  | F34: =IF(B34=0,0,IF(B34="","",(EXP(-0.25*('Growth&Yield'!H26^(1.8333-1/60*$C$1))))*$G$7*$B34*EXP(-$G$6*$B34))) ->  | G34: =IF(Inputs!$K$8=TRUE,$F34,0) ->  | I34: =IF(B34=0,0,IF(B34="","",(EXP(-0.25*('Growth&Yield'!H26^(1.8333-1/60*$C$1))))*$I$5*($B34-$I$6)*EXP(-$I$4*($B34-$I$6)))) ->  | J34: =IF(B34=0,0,IF(B34="","",(EXP(-0.25*('Growth&Yield'!H26^(1.8333-1/60*$C$1))))*$K$5*($B34-$I$6)*EXP(-$K$4*($B34-$I$6)))) ->  | L34: =IF('Growth&Yield'!E26=0,0,IF(B34="","",IF(OR(Inputs!$K$14=FALSE,'Growth&Yield'!E26<Inputs!$F$25),0,(EXP(-0.25*('Growth&Yield'!H26^(1.8333-1/60*$C$1))))*$M$6*('Growth&Yield'!E26-Inputs!$F$25)*EXP(-($M$7*('Growth&Yield'!E26-Inputs!$F$25)))))) ->  | M34: =IF(B34="","",IF(B34<(RParms!$A$31+$M$4),$L34,$L$39)) ->  | N34: =IF(B34="","",IF(OR(RParms!$A$30=FALSE,$B34<RParms!$A$31),0,(EXP(-0.25*('Growth&Yield'!H26^(1.8333-1/60*$C$1))))*$O$6*($B34-RParms!$A$31)*EXP(-($O$7*($B34-RParms!$A$31))))) ->  | O34: =IF(B34="","",IF($B34<(RParms!$A$31+$O$4),$N34,$N$39)) ->  | Q34: =IF(B34="","",(EXP(-0.25*('Growth&Yield'!H26^(1.8333-1/60*$C$1))))) ->  | S34: =+IF(B34="","",IF($U$4=TRUE,GetFertilizerResponseAtAge($U$5,$C$1,$U$8,$U$6,$U$7,"HD",$B34,"RESP")*$Q34,0)) ->  | U34: =IF(B34="","",IF($U$4=TRUE,GetFertilizerResponseAtAge($U$5,$C$1,$U$8,$U$6,$U$7,"BA",$B34,"RESP")*$Q34,0)) ->  | W34: =IF(B34="","",IF($Y$4=TRUE,GetFertilizerResponseAtAge($Y$5,$C$1,$Y$8,$Y$6,$Y$7,"HD",$B34,"RESP")*$Q34,0)) ->  | Y34: =IF(B34="","",IF($Y$4=TRUE,GetFertilizerResponseAtAge($Y$5,$C$1,$Y$8,$Y$6,$Y$7,"BA",$B34,"RESP")*$Q34,0)) ->  | AA34: =IF(B34="","",IF($AC$4=TRUE,GetFertilizerResponseAtAge($AC$5,$C$1,$AC$8,$AC$6,$AC$7,"HD",$B34,"RESP")*$Q34,0)) ->  | AC34: =IF(B34="","",IF($AC$4=TRUE,GetFertilizerResponseAtAge($AC$5,$C$1,$AC$8,$AC$6,$AC$7,"BA",$B34,"RESP")*$Q34,0)) ->  | AE34: =IF(B34="","",IF($AG$4=TRUE,GetFertilizerResponseAtAge($AG$5,$C$1,$AG$8,$AG$6,$AG$7,"HD",$B34,"RESP")*$Q34,0)) ->  | AG34: =IF(B34="","",IF($AG$4=TRUE,GetFertilizerResponseAtAge($AG$5,$C$1,$AG$8,$AG$6,$AG$7,"BA",$B34,"RESP")*$Q34,0)) -> 
A35: 23 | B35: =+IF('Growth&Yield'!B27=1,'Growth&Yield'!E27,"") ->  | C35: =IF(B35=0,0,IF(B35="","",SQRT(43560/'Growth&Yield'!$K27)/'Growth&Yield'!$Y27)) ->  | D35: =IF(B35=0,0,IF(B35="","",(EXP(-0.25*('Growth&Yield'!$Y27^(1.8333-1/60*$C$1))))*$E$7*$B35*EXP(-$E$6*$B35))) ->  | E35: =IF(Inputs!$K$8=TRUE,$D35,0) ->  | F35: =IF(B35=0,0,IF(B35="","",(EXP(-0.25*('Growth&Yield'!H27^(1.8333-1/60*$C$1))))*$G$7*$B35*EXP(-$G$6*$B35))) ->  | G35: =IF(Inputs!$K$8=TRUE,$F35,0) ->  | I35: =IF(B35=0,0,IF(B35="","",(EXP(-0.25*('Growth&Yield'!H27^(1.8333-1/60*$C$1))))*$I$5*($B35-$I$6)*EXP(-$I$4*($B35-$I$6)))) ->  | J35: =IF(B35=0,0,IF(B35="","",(EXP(-0.25*('Growth&Yield'!H27^(1.8333-1/60*$C$1))))*$K$5*($B35-$I$6)*EXP(-$K$4*($B35-$I$6)))) ->  | L35: =IF('Growth&Yield'!E27=0,0,IF(B35="","",IF(OR(Inputs!$K$14=FALSE,'Growth&Yield'!E27<Inputs!$F$25),0,(EXP(-0.25*('Growth&Yield'!H27^(1.8333-1/60*$C$1))))*$M$6*('Growth&Yield'!E27-Inputs!$F$25)*EXP(-($M$7*('Growth&Yield'!E27-Inputs!$F$25)))))) ->  | M35: =IF(B35="","",IF(B35<(RParms!$A$31+$M$4),$L35,$L$39)) ->  | N35: =IF(B35="","",IF(OR(RParms!$A$30=FALSE,$B35<RParms!$A$31),0,(EXP(-0.25*('Growth&Yield'!H27^(1.8333-1/60*$C$1))))*$O$6*($B35-RParms!$A$31)*EXP(-($O$7*($B35-RParms!$A$31))))) ->  | O35: =IF(B35="","",IF($B35<(RParms!$A$31+$O$4),$N35,$N$39)) ->  | Q35: =IF(B35="","",(EXP(-0.25*('Growth&Yield'!H27^(1.8333-1/60*$C$1))))) ->  | S35: =+IF(B35="","",IF($U$4=TRUE,GetFertilizerResponseAtAge($U$5,$C$1,$U$8,$U$6,$U$7,"HD",$B35,"RESP")*$Q35,0)) ->  | U35: =IF(B35="","",IF($U$4=TRUE,GetFertilizerResponseAtAge($U$5,$C$1,$U$8,$U$6,$U$7,"BA",$B35,"RESP")*$Q35,0)) ->  | W35: =IF(B35="","",IF($Y$4=TRUE,GetFertilizerResponseAtAge($Y$5,$C$1,$Y$8,$Y$6,$Y$7,"HD",$B35,"RESP")*$Q35,0)) ->  | Y35: =IF(B35="","",IF($Y$4=TRUE,GetFertilizerResponseAtAge($Y$5,$C$1,$Y$8,$Y$6,$Y$7,"BA",$B35,"RESP")*$Q35,0)) ->  | AA35: =IF(B35="","",IF($AC$4=TRUE,GetFertilizerResponseAtAge($AC$5,$C$1,$AC$8,$AC$6,$AC$7,"HD",$B35,"RESP")*$Q35,0)) ->  | AC35: =IF(B35="","",IF($AC$4=TRUE,GetFertilizerResponseAtAge($AC$5,$C$1,$AC$8,$AC$6,$AC$7,"BA",$B35,"RESP")*$Q35,0)) ->  | AE35: =IF(B35="","",IF($AG$4=TRUE,GetFertilizerResponseAtAge($AG$5,$C$1,$AG$8,$AG$6,$AG$7,"HD",$B35,"RESP")*$Q35,0)) ->  | AG35: =IF(B35="","",IF($AG$4=TRUE,GetFertilizerResponseAtAge($AG$5,$C$1,$AG$8,$AG$6,$AG$7,"BA",$B35,"RESP")*$Q35,0)) -> 
A36: 24 | B36: =+IF('Growth&Yield'!B28=1,'Growth&Yield'!E28,"") ->  | C36: =IF(B36=0,0,IF(B36="","",SQRT(43560/'Growth&Yield'!$K28)/'Growth&Yield'!$Y28)) ->  | D36: =IF(B36=0,0,IF(B36="","",(EXP(-0.25*('Growth&Yield'!$Y28^(1.8333-1/60*$C$1))))*$E$7*$B36*EXP(-$E$6*$B36))) ->  | E36: =IF(Inputs!$K$8=TRUE,$D36,0) ->  | F36: =IF(B36=0,0,IF(B36="","",(EXP(-0.25*('Growth&Yield'!H28^(1.8333-1/60*$C$1))))*$G$7*$B36*EXP(-$G$6*$B36))) ->  | G36: =IF(Inputs!$K$8=TRUE,$F36,0) ->  | I36: =IF(B36=0,0,IF(B36="","",(EXP(-0.25*('Growth&Yield'!H28^(1.8333-1/60*$C$1))))*$I$5*($B36-$I$6)*EXP(-$I$4*($B36-$I$6)))) ->  | J36: =IF(B36=0,0,IF(B36="","",(EXP(-0.25*('Growth&Yield'!H28^(1.8333-1/60*$C$1))))*$K$5*($B36-$I$6)*EXP(-$K$4*($B36-$I$6)))) ->  | L36: =IF('Growth&Yield'!E28=0,0,IF(B36="","",IF(OR(Inputs!$K$14=FALSE,'Growth&Yield'!E28<Inputs!$F$25),0,(EXP(-0.25*('Growth&Yield'!H28^(1.8333-1/60*$C$1))))*$M$6*('Growth&Yield'!E28-Inputs!$F$25)*EXP(-($M$7*('Growth&Yield'!E28-Inputs!$F$25)))))) ->  | M36: =IF(B36="","",IF(B36<(RParms!$A$31+$M$4),$L36,$L$39)) ->  | N36: =IF(B36="","",IF(OR(RParms!$A$30=FALSE,$B36<RParms!$A$31),0,(EXP(-0.25*('Growth&Yield'!H28^(1.8333-1/60*$C$1))))*$O$6*($B36-RParms!$A$31)*EXP(-($O$7*($B36-RParms!$A$31))))) ->  | O36: =IF(B36="","",IF($B36<(RParms!$A$31+$O$4),$N36,$N$39)) ->  | Q36: =IF(B36="","",(EXP(-0.25*('Growth&Yield'!H28^(1.8333-1/60*$C$1))))) ->  | S36: =+IF(B36="","",IF($U$4=TRUE,GetFertilizerResponseAtAge($U$5,$C$1,$U$8,$U$6,$U$7,"HD",$B36,"RESP")*$Q36,0)) ->  | U36: =IF(B36="","",IF($U$4=TRUE,GetFertilizerResponseAtAge($U$5,$C$1,$U$8,$U$6,$U$7,"BA",$B36,"RESP")*$Q36,0)) ->  | W36: =IF(B36="","",IF($Y$4=TRUE,GetFertilizerResponseAtAge($Y$5,$C$1,$Y$8,$Y$6,$Y$7,"HD",$B36,"RESP")*$Q36,0)) ->  | Y36: =IF(B36="","",IF($Y$4=TRUE,GetFertilizerResponseAtAge($Y$5,$C$1,$Y$8,$Y$6,$Y$7,"BA",$B36,"RESP")*$Q36,0)) ->  | AA36: =IF(B36="","",IF($AC$4=TRUE,GetFertilizerResponseAtAge($AC$5,$C$1,$AC$8,$AC$6,$AC$7,"HD",$B36,"RESP")*$Q36,0)) ->  | AC36: =IF(B36="","",IF($AC$4=TRUE,GetFertilizerResponseAtAge($AC$5,$C$1,$AC$8,$AC$6,$AC$7,"BA",$B36,"RESP")*$Q36,0)) ->  | AE36: =IF(B36="","",IF($AG$4=TRUE,GetFertilizerResponseAtAge($AG$5,$C$1,$AG$8,$AG$6,$AG$7,"HD",$B36,"RESP")*$Q36,0)) ->  | AG36: =IF(B36="","",IF($AG$4=TRUE,GetFertilizerResponseAtAge($AG$5,$C$1,$AG$8,$AG$6,$AG$7,"BA",$B36,"RESP")*$Q36,0)) -> 
A37: 25 | B37: =+IF('Growth&Yield'!B29=1,'Growth&Yield'!E29,"") ->  | C37: =IF(B37=0,0,IF(B37="","",SQRT(43560/'Growth&Yield'!$K29)/'Growth&Yield'!$Y29)) ->  | D37: =IF(B37=0,0,IF(B37="","",(EXP(-0.25*('Growth&Yield'!$Y29^(1.8333-1/60*$C$1))))*$E$7*$B37*EXP(-$E$6*$B37))) ->  | E37: =IF(Inputs!$K$8=TRUE,$D37,0) ->  | F37: =IF(B37=0,0,IF(B37="","",(EXP(-0.25*('Growth&Yield'!H29^(1.8333-1/60*$C$1))))*$G$7*$B37*EXP(-$G$6*$B37))) ->  | G37: =IF(Inputs!$K$8=TRUE,$F37,0) ->  | I37: =IF(B37=0,0,IF(B37="","",(EXP(-0.25*('Growth&Yield'!H29^(1.8333-1/60*$C$1))))*$I$5*($B37-$I$6)*EXP(-$I$4*($B37-$I$6)))) ->  | J37: =IF(B37=0,0,IF(B37="","",(EXP(-0.25*('Growth&Yield'!H29^(1.8333-1/60*$C$1))))*$K$5*($B37-$I$6)*EXP(-$K$4*($B37-$I$6)))) ->  | L37: =IF('Growth&Yield'!E29=0,0,IF(B37="","",IF(OR(Inputs!$K$14=FALSE,'Growth&Yield'!E29<Inputs!$F$25),0,(EXP(-0.25*('Growth&Yield'!H29^(1.8333-1/60*$C$1))))*$M$6*('Growth&Yield'!E29-Inputs!$F$25)*EXP(-($M$7*('Growth&Yield'!E29-Inputs!$F$25)))))) ->  | M37: =IF(B37="","",IF(B37<(RParms!$A$31+$M$4),$L37,$L$39)) ->  | N37: =IF(B37="","",IF(OR(RParms!$A$30=FALSE,$B37<RParms!$A$31),0,(EXP(-0.25*('Growth&Yield'!H29^(1.8333-1/60*$C$1))))*$O$6*($B37-RParms!$A$31)*EXP(-($O$7*($B37-RParms!$A$31))))) ->  | O37: =IF(B37="","",IF($B37<(RParms!$A$31+$O$4),$N37,$N$39)) ->  | Q37: =IF(B37="","",(EXP(-0.25*('Growth&Yield'!H29^(1.8333-1/60*$C$1))))) ->  | S37: =+IF(B37="","",IF($U$4=TRUE,GetFertilizerResponseAtAge($U$5,$C$1,$U$8,$U$6,$U$7,"HD",$B37,"RESP")*$Q37,0)) ->  | U37: =IF(B37="","",IF($U$4=TRUE,GetFertilizerResponseAtAge($U$5,$C$1,$U$8,$U$6,$U$7,"BA",$B37,"RESP")*$Q37,0)) ->  | W37: =IF(B37="","",IF($Y$4=TRUE,GetFertilizerResponseAtAge($Y$5,$C$1,$Y$8,$Y$6,$Y$7,"HD",$B37,"RESP")*$Q37,0)) ->  | Y37: =IF(B37="","",IF($Y$4=TRUE,GetFertilizerResponseAtAge($Y$5,$C$1,$Y$8,$Y$6,$Y$7,"BA",$B37,"RESP")*$Q37,0)) ->  | AA37: =IF(B37="","",IF($AC$4=TRUE,GetFertilizerResponseAtAge($AC$5,$C$1,$AC$8,$AC$6,$AC$7,"HD",$B37,"RESP")*$Q37,0)) ->  | AC37: =IF(B37="","",IF($AC$4=TRUE,GetFertilizerResponseAtAge($AC$5,$C$1,$AC$8,$AC$6,$AC$7,"BA",$B37,"RESP")*$Q37,0)) ->  | AE37: =IF(B37="","",IF($AG$4=TRUE,GetFertilizerResponseAtAge($AG$5,$C$1,$AG$8,$AG$6,$AG$7,"HD",$B37,"RESP")*$Q37,0)) ->  | AG37: =IF(B37="","",IF($AG$4=TRUE,GetFertilizerResponseAtAge($AG$5,$C$1,$AG$8,$AG$6,$AG$7,"BA",$B37,"RESP")*$Q37,0)) -> 
K39: MAX------> | L39: =MAX(L13:L37) -> 0 | M39: MAX------> | N39: =MAX(N13:N37) -> 0 | R39: MAX------> | S39: =MAX(S13:S37) -> 4.006475596 | V39: MAX------> | W39: =MAX(W13:W37) -> 0.569677327 | Z39: MAX------> | AA39: =MAX(AA13:AA37) -> 0 | AD39: MAX------> | AE39: =MAX(AE13:AE37) -> 0
AN40: =+LOOKUP(25,B12:B37,AN12:AN37) -> 5.107623803
B41: At Base Age | E41: =GetResponseAtBaseAge(E12,"e") ->  | G41: =GetResponseAtBaseAge(G13,"g") ->  | I41: =GetResponseAtBaseAge(I13,"i") ->  | J41: =GetResponseAtBaseAge(J13,"j") ->  | M41: =GetResponseAtBaseAge(M13,"m") ->  | O41: =GetResponseAtBaseAge(N13,"n") ->  | AN41: =GetResponseAtBaseAge(AN13,"AM") -> 
AM43: SI = | AN43: =+AN40+Inputs!N3 -> 99.59085627 | AO43: ft
AN44: =+AN43*0.3048 -> 30.35529299 | AO44: m

Sheet Equations - Parameters (hidden)
A1: Yield prediction & Growth projection. Loblolly pine plantation
A2: PMRC technical reports (1996 & 2001)
A4: Survival Prediction Function
A5: PMRC Model | C5: TPA2 = | D5: 100 + ((TPA1 - 100)^-0.745339 + (0.0003425)^2 * SI25*(A2^1.97472 - A1^1.97472))^(-1/0.745339)
E6: b1 | F6: b2 | G6: b3
E7: -0.745339 | F7: 0.0003425 | G7: 1.97472
A9: Height Prediction
A10: Chapman & Richards | C10: Hd1 = | D10: SI25*((0.30323)/(1-EXP(-0.014452*A1)))^(-0.8216)
E11: b1 | F11: b2 | G11: b3
E12: 0.30323 | F12: -0.014452 | G12: -0.8216
A13: F-test revealed no significant differences in survival and height equations for the three physiographic regions
A15: Basal Area Prediction Model
A16: PMRC Model | C16: Ln (BA1) = | D16: b0 + (b1/A1) + b2*(Ln(TPA1) + b3*(Ln(Hd1) + b4*(LnTPA1)/A1 + b5*(Ln(Hd1)/A1
D17: b0 | E17: b1 | F17: b2 | G17: b3 | H17: b4 | I17: b5
A18: Lower Coastal Plain | D18: 0 | E18: -42.689283 | F18: 0.367244 | G18: 0.659985 | H18: 2.012724 | I18: 7.703502
A19: Piedmont & Upper Coastal Plain | D19: -0.855557 | E19: -36.050347 | F19: 0.299071 | G19: 0.980246 | H19: 3.309212 | I19: 3.787258
A22: Per acre Yield Prediction
A23: PMRC Model | C23: Ln (Y) = | D23: b0 + b1*Ln(TPA) + b2*Ln(Hd) + b3*Ln(BA) + b4*Ln(TPA)/A + b5*Ln(BA)/A
D24: b0 | E24: b1 | F24: b2 | G24: b3 | H24: b4 | I24: b5
A25: Lower Coastal Plain | B25: GWOB (tons/ac) | D25: -5.175922 | E25: 0.198424 | F25: 1.232028 | G25: 0.705769 | H25: -5.129853 | I25: 6.731477
B26: DWIB(tons/ac) | D26: -6.332502 | E26: 0.145815 | F26: 1.296629 | G26: 0.814967 | H26: -4.660198 | I26: 5.383589
B27: TVOB (ft3/ac)) | D27: -1.520877 | E27: 0.20068 | F27: 1.207586 | G27: 0.703405 | H27: -5.139064 | I27: 6.744164
B28: TVIB (ft3/ac)) | D28: -2.088857 | E28: 0.177587 | F28: 1.30377 | G28: 0.72695 | H28: -5.091474 | I28: 6.676532
C30: Ln (Y) = | D30: b0 + b1*Ln(Hd) + b2*Ln(BA) + b3*Ln(TPA)/A + b4*Ln(Hd)/A + b5*Ln(BA)/A
A31: Piedmont & Upper Coastal Plain | B31: GWOB (tons/ac) | D31: -3.818016 | E31: 0.430179 | F31: 1.276768 | G31: -8.088792 | H31: 7.428472 | I31: 5.554509
B32: DWIB(tons/ac) | D32: -4.98756 | E32: 0.446433 | F32: 1.348843 | G32: -7.757842 | H32: 7.857337 | I32: 4.222016
B33: TVOB (ft3/ac)) | D33: 0 | E33: 0.268552 | F33: 1.368844 | G33: -7.466863 | H33: 8.934524 | I33: 3.553411
B34: TVIB (ft3/ac)) | D34: 0 | E34: 0.350394 | F34: 1.263708 | G34: -8.608165 | H34: 7.193937 | I34: 6.309586
A36: RS= Relative spacing: | C36: (43560/N)^1/2)/HD
A37: Survival: first year & from year 2 to the onset of Inter-tree Competition
A40: Merchantable Volume for Whole Stand Volume Equations
A41: Harrison & Borders (1996) in Loblolly pine developed the following equations
A45: Yield Breakdown Function:
A46: PMRC Model | D46: Ym = | E46: Y*EXP(b1*(t/Dq)^b2 + b3*N^b4*(d/Dq)^b5)
D47: b0 | E47: b1 | F47: b2 | G47: b3 | H47: b4 | I47: b5
A48: Lower Coastal Plain | B48: GWOB (tons/ac) | E48: -1.064132 | F48: 3.818683 | G48: -5.048319 | H48: -0.422117 | I48: 5.991728
B49: DWIB(tons/ac) | E49: -0.963185 | F49: 4.054202 | G49: -4.540672 | H49: -0.406561 | I49: 5.962867
B50: TVOB (ft3/ac)) | E50: -1.034486 | F50: 3.940848 | G50: -5.062955 | H50: -0.422892 | I50: 6.004646
B51: TVIB (ft3/ac)) | E51: -1.105225 | F51: 3.878664 | G51: -4.459271 | H51: -0.404057 | I51: 5.984225
A53: Piedmont & Upper Coastal Plain | B53: GWOB (tons/ac) | E53: -1.007482 | F53: 3.931373 | G53: -0.518057 | H53: -0.048385 | I53: 5.660573
B54: DWIB(tons/ac) | E54: -0.934936 | F54: 4.111618 | G54: -0.590269 | H54: -0.065355 | I54: 5.596179
B55: TVOB (ft3/ac)) | E55: -0.982648 | F55: 3.99114 | G55: -0.748261 | H55: -0.111206 | I55: 5.78478
B56: TVIB (ft3/ac)) | E56: -1.036792 | F56: 3.900677 | G56: -0.511939 | H56: -0.046007 | I56: 5.64061
A58: Where:
A59: Ym = Mechantable yield per acre for trees d inches DBH and above to a top diameter of t inches outside bark,
A60: Y = Total yield per acre (GWOB: green weight per acre outside bark (tons) at time i)
A61: Dq = Quadratic mean diameter dbh (BA/.005454N)1/2
A62: N = Number of trees per acre
A63: t = Top diameter (merchantability limit)
A64: d = Threshol dbh limit (minimum DBH to be included in this category)
A67: Implicit yield prediction models
A68: Percentil prediction & parameter recovery using a Weibull PDF
A70: Diameter Distribution Yield Model (Weibull), Bailey et al (1989) Loblolly Pine
A72: f(x) = | B72: (c/b)*(x-a/b)^c-1*EXP((-x-a/b)^c)
A73: Where: | B73: x = dbh
B74: a, b, c are parameters unique to each stand
A75: F(x) = | B75: 1 - EXP(-((x-a)/b)^c
A77: Where: | B77: F(x) = gives the proportion of the total trees/acre that have dbh less than x.
A79: D0 = | B79: a + (b/n^1/3)*(0.9) | F79: D0 = Predicted minimum dbh
A80: D50 = | B80: a + b * (0.9) | F80: D50 = Predicted 50th percentile
F81: D95 & D25 = Predicted 95th and 25th percentiles
A82: a = | B82: (n^1/3*D0 - D50)/(n^1/3 - 1), always positive | F82: n = number of trees per plot (1/10 acre)
A83: c = | B83: 2.343088/(Ln(D95 -a) - Ln(D25 - a)
A84: b = | B84: -(a*G1/G2) + ((a2/G2^2) * (G1^2 - G2) + (Dq^2/G2))^1/2
A85: Where: | B85: G1 = G(1+(1/c)) | D85: G is the gamma function
B86: G2 = G(1+(2/c)) | D86: Dq = Quadratic mean dbh
A88: The dbh percentile prediction equations are: | E88: Ln Px = | F88: a0+ a1 * Ln (BAPA/TPA)
A90: Diameter distribution percentil (x = 0, 25, 50, 95)
A91: PMRC Model | D91: Percentiles | E91: Ln P0 = | F91: Ln P25 = | G91: Ln P50 = | H91: Ln P95 =
D92: a0 | E92: 2.374894 | F92: 2.586318 | G92: 2.714412 | H92: 2.869722
A93: Piedmont & Upper Coastal Plain | D93: a1 | E93: 0.976577 | F93: 0.50391 | G93: 0.485314 | H93: 0.469809
A95: Lower Coastal Plain | D95: a0 | E95: 2.168021 | F95: 2.547423 | G95: 2.653169 | H95: 2.861802
D96: a1 | E96: 0.773026 | F96: 0.57437 | G96: 0.513997 | H96: 0.463918
A98: Average hight by DBH class | L98: Height
A99: PMRC Model | D99: Hi = | E99: HD * (a1)* (1 - a2*EXP(-a3*D/Dq) | L99: Gonzalez-Benecke et al. 2015
E100: a1 | F100: a2 | G100: a3 | P100: a | Q100: b | R100: c | S100: d
A101: Piedmont & Upper Coastal Plain | E101: 1.17924 | F101: 0.878092 | G101: 1.618723 | P101: 0.2304 | Q101: 0.9171 | R101: 0.2616 | S101: 0.1098
A102: Lower Coastal Plain | E102: 1.185552 | F102: 0.949316 | G102: 1.710774 | P102: int | Q102: dq | R102: age | S102: Nha
A103: i = ith class | B103: D = Midpoint of dbh
A105: The green weight outside bark equation is:
A106: Green weight with bark | D106: Total Weight | E106: Top GWOB
A107: PMRC Model | C107: GWOB = | D107: b0*D^b1*H^b2 - b3*(d^b4/D^b5)*(H - 4.5) in lbs
A108: (per tree) | D108: b0 | E108: b1 | F108: b2 | G108: b3 | H108: b4 | I108: b5
A109: Piedmont & Upper Coastal Plain | D109: 0.110069 | E109: 1.935455 | F109: 1.080621 | G109: 0.0775771 | H109: 3.439954 | I109: 1.178473
A110: Lower Coastal Plain | D110: 0.0740959 | E110: 1.829983 | F110: 1.247669 | G110: 0.123329 | H110: 3.523107 | I110: 1.449947
A111: d = Top diameter | C111: H = Height | E111: D = Midpoint of dbh | G111: 1 ton = 2000 lbs.
A114: Growth Response to Mid Rotation HWC and Fertilization
A116: Herbaceous weed control response: Dominant height
A118: R = | B118: bYstexp(-cYst)
A119: R = | B119: Growth response associated with the cultural treatment
A120: Yst = | B120: Years since cultural treatment was applied
A121: c = | B121: 1/(years to expected maximum response)
A122: b = | B122: (Maximum response)*c*exp(1)
A124: Individual tree volume, weight and taper functions (lower coastal plain)
... 113 more rows

Sheet RParms (hidden)
A1: P Def. 1=yes 2=no--------> | B1: =+IF(Inputs!K9="TRUE",1,2) -> 2 | E1: Dom Height Response | J1: Max Gain | L1: Time to Max | O1: BA Response | T1: Max Gain | V1: Time to Max
E2: SI=50 gain | F2: SI=80 gain | G2: SI=50 yrs | H2: SI=80 yrs | O2: SI=50 gain | P2: SI=80 gain | Q2: SI=50 yrs | R2: SI=80 yrs
E3: Max gain | F3: Max gain | G3: to max gain | H3: to max gain | J3: delta 0 | K3: delta 1 | L3: gamma 0 | M3: gamma 1 | O3: Max gain | P3: Max gain | Q3: to max gain | R3: to max gain | T3: delta 0 | U3: delta 1 | V3: gamma 0 | W3: gamma 1
A6: HWC Band NonGrass 1 | C6: HWC-----> | D6: =+IF(Inputs!$K$18=TRUE,1,IF(Inputs!$K$19=TRUE,2,IF(Inputs!$K$20=TRUE,3,IF(Inputs!$K$21=TRUE,4,IF(Inputs!$K$22=TRUE,5,IF(Inputs!$K$23=TRUE,6,IF(Inputs!$K$24=TRUE,7,IF(Inputs!$K$25=TRUE,8,IF(Inputs!$K$26=TRUE,9,IF(Inputs!$K$27=TRUE,10,IF(Inputs!$K$28=TRUE,11,IF(Inputs!$K$29=TRUE,12,13)))))))))))) -> 1 | E6: 5 | F6: 3 | G6: 10 | H6: 8 | J6: =$F6+$K6*$B$20 -> 8.333333333 | K6: =($F6-$E6)/($B$19-$B$20) -> 0.06666666667 | L6: =$G6+$M6*$B$19 -> 13.33333333 | M6: =($H6-$G6)/($B$19-$B$20) -> 0.06666666667 | O6: 12 | P6: 7 | Q6: 15 | R6: 12 | T6: =$P6+$U6*$B$20 -> 20.33333333 | U6: =($P6-$O6)/($B$19-$B$20) -> 0.1666666667 | V6: =$R6+$W6*$B$19 -> 17 | W6: =($R6-$Q6)/($B$19-$B$20) -> 0.1
A7: HWC Band Grass 1 | E7: 3 | F7: 2 | G7: 10 | H7: 8 | J7: =$F7+$K7*$B$20 -> 4.666666667 | K7: =($F7-$E7)/($B$19-$B$20) -> 0.03333333333 | L7: =$G7+$M7*$B$19 -> 13.33333333 | M7: =($H7-$G7)/($B$19-$B$20) -> 0.06666666667 | O7: 12 | P7: 7 | Q7: 15 | R7: 12 | T7: =$P7+$U7*$B$20 -> 20.33333333 | U7: =($P7-$O7)/($B$19-$B$20) -> 0.1666666667 | V7: =$R7+$W7*$B$19 -> 17 | W7: =($R7-$Q7)/($B$19-$B$20) -> 0.1
A8: HWC Brdcst NonGrass 1 | E8: 6 | F8: 4 | G8: 10 | H8: 8 | J8: 9.333333333 | K8: 0.06666666667 | L8: 13.33333333 | M8: 0.06666666667 | O8: 15 | P8: 9 | Q8: 15 | R8: 12 | T8: 25 | U8: 0.2 | V8: 17 | W8: 0.1
A9: HWC Brdcst Grass 1 | E9: 5 | F9: 3 | G9: 10 | H9: 8 | J9: 8.333333333 | K9: 0.06666666667 | L9: 13.33333333 | M9: 0.06666666667 | O9: 15 | P9: 9 | Q9: 15 | R9: 12 | T9: 25 | U9: 0.2 | V9: 17 | W9: 0.1
A10: HWC Band NonGrass 2 | E10: 2 | F10: 1 | G10: 10 | H10: 8 | J10: 3.666666667 | K10: 0.03333333333 | L10: 13.33333333 | M10: 0.06666666667 | O10: 6 | P10: 4 | Q10: 15 | R10: 12 | T10: 9.333333333 | U10: 0.06666666667 | V10: 17 | W10: 0.1
A11: HWC Band Grass 2 | E11: 1 | F11: 1 | G11: 10 | H11: 8 | J11: 1 | K11: 0 | L11: 13.33333333 | M11: 0.06666666667 | O11: 5 | P11: 2 | Q11: 15 | R11: 12 | T11: 10 | U11: 0.1 | V11: 17 | W11: 0.1
A12: HWC Brdcst NonGrass 2 | E12: 2.5 | F12: 2.5 | G12: 10 | H12: 8 | J12: 2.5 | K12: 0 | L12: 13.33333333 | M12: 0.06666666667 | O12: 8 | P12: 5 | Q12: 15 | R12: 12 | T12: 13 | U12: 0.1 | V12: 17 | W12: 0.1
A13: HWC Brdcst Grass 2 | E13: 1.5 | F13: 1 | G13: 10 | H13: 8 | J13: 2.333333333 | K13: 0.01666666667 | L13: 13.33333333 | M13: 0.06666666667 | O13: 6 | P13: 3 | Q13: 15 | R13: 12 | T13: 11 | U13: 0.1 | V13: 17 | W13: 0.1
A14: HWC Band NonGrass 1 | B14: HWC Band NonGrass 2 | E14: 7 | F14: 4 | G14: 10 | H14: 8 | J14: 12 | K14: 0.1 | L14: 13.33333333 | M14: 0.06666666667 | O14: 18 | P14: 9 | Q14: 15 | R14: 12 | T14: 33 | U14: 0.3 | V14: 17 | W14: 0.1
A15: HWC Brdcst NonGrass 1 | B15: HWC Band Grass 2 | E15: 8 | F15: 5 | G15: 10 | H15: 8 | J15: 13 | K15: 0.1 | L15: 13.33333333 | M15: 0.06666666667 | O15: 20 | P15: 10.5 | Q15: 15 | R15: 12 | T15: 35.83333333 | U15: 0.3166666667 | V15: 17 | W15: 0.1
A16: HWC Brdcst NonGrass 1 | B16: HWC Brdcst NonGrass 2 | E16: 9 | F16: 6 | G16: 10 | H16: 8 | J16: 14 | K16: 0.1 | L16: 13.33333333 | M16: 0.06666666667 | O16: 22 | P16: 12 | Q16: 15 | R16: 12 | T16: 38.66666667 | U16: 0.3333333333 | V16: 17 | W16: 0.1
A17: HWC Brdcst Grass 1 | B17: HWC Brdcst Grass 2 | E17: 11 | F17: 7 | G17: 10 | H17: 8 | J17: 17.66666667 | K17: 0.1333333333 | L17: 13.33333333 | M17: 0.06666666667 | O17: 25 | P17: 15 | Q17: 15 | R17: 12 | T17: 41.66666667 | U17: 0.3333333333 | V17: 17 | W17: 0.1
A19: Min SI -------------------------> | B19: 50
A20: Max SI ------------------------> | B20: 80 | J20: =IF($D$6=1,J6,IF($D$6=2,J7,IF($D$6=3,J8,IF($D$6=4,J9,IF($D$6=5,J10,IF($D$6=6,J11,"")))))) -> 8.333333333 | K20: =IF($D$6=1,K6,IF($D$6=2,K7,IF($D$6=3,K8,IF($D$6=4,K9,IF($D$6=5,K10,IF($D$6=6,K11,"")))))) -> 0.06666666667 | L20: =IF($D$6=1,L6,IF($D$6=2,L7,IF($D$6=3,L8,IF($D$6=4,L9,IF($D$6=5,L10,IF($D$6=6,L11,"")))))) -> 13.33333333 | M20: =IF($D$6=1,M6,IF($D$6=2,M7,IF($D$6=3,M8,IF($D$6=4,M9,IF($D$6=5,M10,IF($D$6=6,M11,"")))))) -> 0.06666666667 | N20: =IF($D$6=1,$A6,IF($D$6=2,$A7,IF($D$6=3,$A8,IF($D$6=4,$A9,IF($D$6=5,$A10,IF($D$6=6,$A11,"")))))) -> HWC Band NonGrass 1 | O20: =IF($D$6=1,$B6,IF($D$6=2,$B7,IF($D$6=3,$B8,IF($D$6=4,$B9,IF($D$6=5,$B10,IF($D$6=6,$B11,"")))))) -> 0 | T20: =IF($D$6=1,T6,IF($D$6=2,T7,IF($D$6=3,T8,IF($D$6=4,T9,IF($D$6=5,T10,IF($D$6=6,T11,"")))))) -> 20.33333333 | U20: =IF($D$6=1,U6,IF($D$6=2,U7,IF($D$6=3,U8,IF($D$6=4,U9,IF($D$6=5,U10,IF($D$6=6,U11,"")))))) -> 0.1666666667 | V20: =IF($D$6=1,V6,IF($D$6=2,V7,IF($D$6=3,V8,IF($D$6=4,V9,IF($D$6=5,V10,IF($D$6=6,V11,"")))))) -> 17 | W20: =IF($D$6=1,W6,IF($D$6=2,W7,IF($D$6=3,W8,IF($D$6=4,W9,IF($D$6=5,W10,IF($D$6=6,W11,"")))))) -> 0.1 | X20: =IF($D$6=1,$A6,IF($D$6=2,$A7,IF($D$6=3,$A8,IF($D$6=4,$A9,IF($D$6=5,$A10,IF($D$6=6,$A11,"")))))) -> HWC Band NonGrass 1 | Y20: =IF($D$6=1,$B6,IF($D$6=2,$B7,IF($D$6=3,$B8,IF($D$6=4,$B9,IF($D$6=5,$B10,IF($D$6=6,$B11,"")))))) -> 0
J21: =IF($D$6=7,J12,IF($D$6=8,J13,IF($D$6=9,J14,IF($D$6=10,J15,IF($D$6=11,J16,IF($D$6=12,J17,"")))))) ->  | K21: =IF($D$6=7,K12,IF($D$6=8,K13,IF($D$6=9,K14,IF($D$6=10,K15,IF($D$6=11,K16,IF($D$6=12,K17,"")))))) ->  | L21: =IF($D$6=7,L12,IF($D$6=8,L13,IF($D$6=9,L14,IF($D$6=10,L15,IF($D$6=11,L16,IF($D$6=12,L17,"")))))) ->  | M21: =IF($D$6=7,M12,IF($D$6=8,M13,IF($D$6=9,M14,IF($D$6=10,M15,IF($D$6=11,M16,IF($D$6=12,M17,"")))))) ->  | N21: =IF($D$6=7,$A12,IF($D$6=8,$A13,IF($D$6=9,$A14,IF($D$6=10,$A15,IF($D$6=11,$A16,IF($D$6=12,$A17,"")))))) ->  | O21: =IF($D$6=7,$B12,IF($D$6=8,$B13,IF($D$6=9,$B14,IF($D$6=10,$B15,IF($D$6=11,$B16,IF($D$6=12,$B17,"")))))) ->  | T21: =IF($D$6=7,T12,IF($D$6=8,T13,IF($D$6=9,T14,IF($D$6=10,T15,IF($D$6=11,T16,IF($D$6=12,T17,"")))))) ->  | U21: =IF($D$6=7,U12,IF($D$6=8,U13,IF($D$6=9,U14,IF($D$6=10,U15,IF($D$6=11,U16,IF($D$6=12,U17,"")))))) ->  | V21: =IF($D$6=7,V12,IF($D$6=8,V13,IF($D$6=9,V14,IF($D$6=10,V15,IF($D$6=11,V16,IF($D$6=12,V17,"")))))) ->  | W21: =IF($D$6=7,W12,IF($D$6=8,W13,IF($D$6=9,W14,IF($D$6=10,W15,IF($D$6=11,W16,IF($D$6=12,W17,"")))))) ->  | X21: =IF($D$6=7,$A12,IF($D$6=8,$A13,IF($D$6=9,$A14,IF($D$6=10,$A15,IF($D$6=11,$A16,IF($D$6=12,$A17,"")))))) ->  | Y21: =IF($D$6=7,$B12,IF($D$6=8,$B13,IF($D$6=9,$B14,IF($D$6=10,$B15,IF($D$6=11,$B16,IF($D$6=12,$B17,"")))))) -> 
A22: =+Inputs!N3 -> 94.48323247 | B22: <----Site Index
A23: =+Inputs!K8 -> TRUE | B23: <----Tillage
J24: delta 0 | K24: delta 1 | L24: gamma 0 | M24: gamma 1 | N24: Year | T24: delta 0 | U24: delta 1 | V24: gamma 0 | W24: gamma 1 | X24: Year
A25: =+Inputs!K34 -> TRUE | B25: <----Fert 1 | J25: =IF(J20="",J21,J20) -> 8.333333333 | K25: =IF(K20="",K21,K20) -> 0.06666666667 | L25: =IF(L20="",L21,L20) -> 13.33333333 | M25: =IF(M20="",M21,M20) -> 0.06666666667 | N25: =IF(AND($D$6>=5, $D$6 <=8),2,1) -> 1 | O25: =IF(N20="",N21,N20) -> HWC Band NonGrass 1 | P25: =IF(OR(O20="",O20=0),O21,O20) ->  | T25: =IF(T20="",T21,T20) -> 20.33333333 | U25: =IF(U20="",U21,U20) -> 0.1666666667 | V25: =IF(V20="",V21,V20) -> 17 | W25: =IF(W20="",W21,W20) -> 0.1 | X25: =IF(AND($D$6>=5, $D$6 <=8),2,1) -> 1 | Y25: =IF(X20="",X21,X20) -> HWC Band NonGrass 1
A26: =+Inputs!K35 -> TRUE | B26: <----Fert 2
A27: =+Inputs!K36 -> FALSE | B27: <----Fert 3
A28: =+Inputs!K37 -> FALSE | B28: <----Fert 4
A30: =+Inputs!K14 -> FALSE | B30: <----Release
A31: =+Inputs!F25 -> 14 | B31: <----Release Age
B34: Adjusted HD1 | D34: 1.727282039
B35: HD Parameter | D35: 0.04780128551
B36: Predicted BA | D36: 2.474812835e-07

Sheet Treatment Responses (hidden)
B1: Site Index------> | C1: =+Inputs!N3 -> 94.48323247 | D1: Cur Age------> | E1: 1
B2: a | C2: b | D2: c | E2: d | F2: e | G2: f | H2: g | I2: h | J2: I | K2: j | L2: k | M2: l | N2: m | O2: n
D3: HD Tillage Response | F3: BA Tillage Response | H3: HD HWC Response | J3: BA HWC Response | L3: HD Release Response | N3: BA Release Response | T3: Fert 1 | X3: Fert 2 | AB3: Fert 3 | AF3: Fert 4
D4: Yrs to Max --> | E4: =21.333-0.0667*$C$1 -> 15.03096839 | F4: Yrs to Max --> | G4: =21.333-0.0667*$C$1 -> 15.03096839 | H4: c ----------> | I4: =IF(RParms!$D$6=13,0,(1/(RParms!L25-RParms!M25*$C$1))) -> 0.1421575011 | J4: c ----------> | K4: =IF(RParms!$D$6=13,0,(1/(RParms!V25-RParms!W25*$C$1))) -> 0.1324209222 | L4: Yrs Max---> | M4: 12 | N4: Yrs Max---> | O4: 12 | T4: On ?------> | U4: =+Inputs!K34 -> TRUE | X4: On ?------> | Y4: =+Inputs!K35 -> TRUE | AB4: On ?------> | AC4: =+Inputs!K36 -> FALSE | AF4: On ?------> | AG4: =+Inputs!K37 -> FALSE
D5: Max Resp ---> | E5: =12.6667-0.1333*$C$1 -> 0.07208511221 | F5: Max Resp ---> | G5: =11-0.1*$C$1 -> 1.551676753 | H5: b ----------> | I5: =IF(RParms!$D$6=13,0,((RParms!J25-RParms!K25*$C$1)*$I$4*EXP(1))) -> 0.7861610679 | J5: b ----------> | K5: =IF(RParms!$D$6=13,0,((RParms!T25-RParms!U25*$C$1)*$K$4*EXP(1))) -> 1.650810621 | L5: Max Rs----> | M5: =3.33-0.0267*($C$1) -> 0.8072976931 | N5: Max Rs----> | O5: =36.667-0.3333*($C$1) -> 5.175738619 | T5: Age-------> | U5: =+Inputs!F32 -> 5 | X5: Age-------> | Y5: =+Inputs!F33 -> 10 | AB5: Age-------> | AC5: =+Inputs!F34 -> 15 | AF5: Age-------> | AG5: =+Inputs!F35 -> 0
D6: c ---------------> | E6: =1/$E$4 -> 0.06652931293 | F6: c ---------------> | G6: =1/$G$4 -> 0.06652931293 | H6: Year-----------> | I6: =RParms!N25 -> 1 | L6: b -------------> | M6: =$M$5*$M$7*EXP(1) -> 0.1828718875 | N6: b -------------> | O6: =$O$5*$O$7*EXP(1) -> 1.172426353 | T6: N-----------> | U6: =+Inputs!L34 -> 135 | X6: N-----------> | Y6: =+Inputs!L35 -> 225 | AB6: N-----------> | AC6: =+Inputs!L36 -> 225 | AF6: N-----------> | AG6: =+Inputs!L37 -> 0 | BC6: =+BC46-C46 ->  | BH6: 0 | BK6: 0 | BP6: 0 | BR6: 0 | BV6: 0 | BZ6: 0 | CD6: 0 | CO6: 0 | DC6: =+DC46-BC46 ->  | DH6: 0 | DK6: 0 | DP6: 0 | DR6: 0 | DV6: 0 | DZ6: 0 | EB6: =+EB46-CB46 ->  | ED6: 0 | EO6: 0 | ET6: =+ET46-CT46 ->  | EU6: =+EU46-CU46 ->  | EV6: =+EV46-CV46 -> 
D7: b ---------------> | E7: =$E$5*$E$6*EXP(1) -> 0.01303626257 | F7: b ---------------> | G7: =$G$5*$G$6*EXP(1) -> 0.2806136379 | L7: c -------------> | M7: =1/$M$4 -> 0.08333333333 | N7: c -------------> | O7: =1/$O$4 -> 0.08333333333 | T7: P-----------> | U7: =IF($U$4=TRUE,Inputs!M34,0) -> 25 | X7: P-----------> | Y7: =IF($Y$4=TRUE,Inputs!M35,0) -> 25 | AB7: P-----------> | AC7: =IF($AC$4=TRUE,Inputs!M36,0) -> 0 | AF7: P-----------> | AG7: =IF($AG$4=TRUE,Inputs!M37,0) -> 0
T8: PDef ?---> | U8: =+Inputs!$K$9 -> 1 | X8: PDef ?---> | Y8: =+Inputs!$K$9 -> 1 | AB8: PDef ?---> | AC8: =+Inputs!$K$9 -> 1 | AF8: PDef ?---> | AG8: =+Inputs!$K$9 -> 1 | BB8: 1 thinning | DB8: 2 thinning
Q9: Hdwd Damp | S9: Yrs to Max --> | T9: =GetFertilizerYrsToMax($U$5,$C$1,$U$8,$U$6,$U$7,"HD",$B13,"AGE") -> 18 | U9: =GetFertilizerYrsToMax($U$5,$C$1,$U$8,$U$6,$U$7,"BA",$B13,"AGE") -> 5.35 | X9: =GetFertilizerYrsToMax($Y$5,$C$1,$Y$8,$Y$6,$Y$7,"HD",$B13,"AGE") -> 7 | Y9: =GetFertilizerYrsToMax($Y$5,$C$1,$Y$8,$Y$6,$Y$7,"BA",$B13,"AGE") -> 6.25 | AB9: =GetFertilizerYrsToMax($AC$5,$C$1,$AC$8,$AC$6,$AC$7,"HD",$B13,"AGE") -> 7 | AC9: =GetFertilizerYrsToMax($AC$5,$C$1,$AC$8,$AC$6,$AC$7,"BA",$B13,"AGE") -> 6.25 | AF9: =GetFertilizerYrsToMax($AG$5,$C$1,$AG$8,$AG$6,$AG$7,"HD",$B13,"AGE") -> 18 | AG9: =GetFertilizerYrsToMax($AG$5,$C$1,$AG$8,$AG$6,$AG$7,"BA",$B13,"AGE") -> 0 | BQ9: Hdwd Damp | DQ9: Hdwd Damp
E10: HD Tillage | G10: BA Tillage | I10: HD HWC | J10: BA HWC | M10: HD Release | O10: BA Release | Q10: Function | T10: HD Fert 1 | U10: BA Fert 1 | X10: HD Fert 2 | Y10: BA Fert 2 | AB10: HD Fert 3 | AC10: BA Fert 3 | AF10: HD Fert 4 | AG10: BA Fert 4 | AL10: HD Resp | AM10: HD Fert | AN10: HD Total | AT10: BA Resp | AU10: BA Fert | AV10: BA total | BE10: HD Tillage | BG10: BA Tillage | BI10: HD HWC | BJ10: BA HWC | BM10: HD Release | BO10: BA Release | BQ10: Function | BT10: HD Fert 1 | BU10: BA Fert 1 | BX10: HD Fert 2 | BY10: BA Fert 2 | CB10: HD Fert 3 | CC10: BA Fert 3 | CF10: HD Fert 4 | CG10: BA Fert 4 | CL10: HD Resp | CM10: HD Fert | CN10: HD Total | CT10: BA Resp | CU10: BA Fert | CV10: BA total | DE10: HD Tillage | DG10: BA Tillage | DI10: HD HWC | DJ10: BA HWC | DM10: HD Release | DO10: BA Release | DQ10: Function | DT10: HD Fert 1 | DU10: BA Fert 1 | DX10: HD Fert 2 | DY10: BA Fert 2 | EB10: HD Fert 3 | EC10: BA Fert 3 | EF10: HD Fert 4 | EG10: BA Fert 4 | EL10: HD Resp | EM10: HD Fert | EN10: HD Total | ET10: BA Resp | EU10: BA Fert | EV10: BA total
A11: Year | B11: Age | C11: RS | D11: xxxxxx | E11: Response | F11: xxxxxx | G11: Response | I11: Response | J11: Response | L11: xxxxxx | M11: Response | N11: xxxxxx | O11: Response | Q11: for Fert | S11: xxxxxx | T11: Response | U11: Response | W11: xxxxxx | X11: Response | Y11: Response | AA11: xxxxxx | AB11: Response | AC11: Response | AE11: xxxxxx | AF11: Response | AG11: Response | AL11: w/o Fert | AM11: Response | AN11: Response | AT11: w/o Fert | AU11: Response | AV11: Response | AW11: SI60 | AX11: SI65 | AY11: SI70 | AZ11: SI75 | BB11: Age | BC11: RS | BD11: xxxxxx | BE11: Response | BF11: xxxxxx | BG11: Response | BI11: Response | BJ11: Response | BL11: xxxxxx | BM11: Response | BN11: xxxxxx | BO11: Response | BQ11: for Fert | BS11: xxxxxx | BT11: Response | BU11: Response | BW11: xxxxxx | BX11: Response | BY11: Response | CA11: xxxxxx | CB11: Response | CC11: Response | CE11: xxxxxx | CF11: Response | CG11: Response | CL11: w/o Fert | CM11: Response | CN11: Response | CT11: w/o Fert | CU11: Response | CV11: Response | DB11: Age | DC11: RS | DD11: xxxxxx | DE11: Response | DF11: xxxxxx | DG11: Response | DI11: Response | DJ11: Response | DL11: xxxxxx | DM11: Response | DN11: xxxxxx | DO11: Response | DQ11: for Fert | DS11: xxxxxx | DT11: Response | DU11: Response | DW11: xxxxxx | DX11: Response | DY11: Response | EA11: xxxxxx | EB11: Response | EC11: Response | EE11: xxxxxx | EF11: Response | EG11: Response | EL11: w/o Fert | EM11: Response | EN11: Response | ET11: w/o Fert | EU11: Response | EV11: Response
A12: =+'Growth&Yield'!A4 -> 0 | B12: =+'Growth&Yield'!E4 -> 25 | C12: =IF(B12="","",IF(B12=0,0,SQRT(43560/'Growth&Yield'!$K4)/'Growth&Yield'!$Y4)) -> 0.1275347367 | D12: =IF(B12="","",IF(B12=0,0,(EXP(-0.25*('Growth&Yield'!$Y4^(1.8333-1/60*$C$1))))*$E$7*$B12*EXP(-$E$6*$B12))) -> 0.02746542593 | E12: =IF(B12="","",IF(Inputs!$K$8=TRUE,$D12,0)) -> 0.02746542593 | F12: =IF(B12="","",(EXP(-0.25*('Growth&Yield'!H4^(1.8333-1/60*$C$1))))*$G$7*$B12*EXP(-$G$6*$B12)) -> 1.198539946 | G12: =IF(B12="","",IF(Inputs!$K$8=TRUE,$F12,0)) -> 1.198539946 | I12: =IF(B12="","",IF('Growth&Yield'!E4=0,0,(EXP(-0.25*('Growth&Yield'!H4^(1.8333-1/60*$C$1))))*$I$5*($B12-$I$6)*EXP(-$I$4*($B12-$I$6)))) -> 0.5609731864 | J12: =IF(B12="","",IF(B12=0,0,(EXP(-0.25*('Growth&Yield'!H4^(1.8333-1/60*$C$1))))*$K$5*($B12-$I$6)*EXP(-$K$4*($B12-$I$6)))) -> 1.488033966 | L12: =IF(B12="","",IF(B12=0,0,IF(OR(Inputs!$K$14=FALSE,B12<Inputs!$F$25),0,(EXP(-0.25*('Growth&Yield'!H4^(1.8333-1/60*$C$1))))*$M$6*(B12-Inputs!$F$25)*EXP(-($M$7*(B12-Inputs!$F$25)))))) -> 0 | M12: =IF(B12="","",IF(B12<(RParms!$A$31+$M$4),$L12,$L$514)) -> 0 | N12: =IF(B12="","",IF(OR(RParms!$A$30=FALSE,$B12<RParms!$A$31),0,(EXP(-0.25*('Growth&Yield'!H4^(1.8333-1/60*$C$1))))*$O$6*($B12-RParms!$A$31)*EXP(-($O$7*($B12-RParms!$A$31))))) -> 0 | O12: =IF(B12="","",IF($B12<(RParms!$A$31+$O$4),$N12,$N$514)) -> 0 | Q12: =IF(B12="","",(EXP(-0.25*('Growth&Yield'!H4^(1.8333-1/60*$C$1))))) -> 0.9014394653 | S12: =IF(B12="","",IF($U$4=TRUE,GetFertilizerResponseAtAge($U$5,$C$1,$U$8,$U$6,$U$7,"HD",$B12,"RESP")*$Q12,0)) -> 4.033217377 | T12: =IF(B12="","",IF($B12<($U$5+$T$9),$S12,$S$514)) -> 4.006475596 | U12: =IF(B12="","",IF($U$4=TRUE,GetFertilizerResponseAtAge($U$5,$C$1,$U$8,$U$6,$U$7,"BA",$B12,"RESP")*$Q12,0)) -> 0.09584500662 | W12: =IF(B12="","",IF($Y$4=TRUE,GetFertilizerResponseAtAge($Y$5,$C$1,$Y$8,$Y$6,$Y$7,"HD",$B12,"RESP")*$Q12,0)) -> 0.616017764 | X12: =IF(B12="","",IF($B12<($Y$5+$X$9),$W12,$W$514)) -> 0.569677327 | Y12: =IF(B12="","",IF($Y$4=TRUE,GetFertilizerResponseAtAge($Y$5,$C$1,$Y$8,$Y$6,$Y$7,"BA",$B12,"RESP")*$Q12,0)) -> 3.748906726 | AA12: =IF(B12="","",IF($AC$4=TRUE,GetFertilizerResponseAtAge($AC$5,$C$1,$AC$8,$AC$6,$AC$7,"HD",$B12,"RESP")*$Q12,0)) -> 0 | AB12: =IF(B12="","",IF($B12<($AC$5+$AB$9),$AA12,$AA$514)) -> 0 | AC12: =IF(B12="","",IF($AC$4=TRUE,GetFertilizerResponseAtAge($AC$5,$C$1,$AC$8,$AC$6,$AC$7,"BA",$B12,"RESP")*$Q12,0)) -> 0 | AE12: =IF(B12="","",IF($AG$4=TRUE,GetFertilizerResponseAtAge($AG$5,$C$1,$AG$8,$AG$6,$AG$7,"HD",$B12,"RESP")*$Q12,0)) -> 0 | AF12: =IF(B12="","",IF($B12<($AG$5+$AF$9),$AE12,$AE$514)) -> 0 | AG12: =IF(B12="","",IF($AG$4=TRUE,GetFertilizerResponseAtAge($AG$5,$C$1,$AG$8,$AG$6,$AG$7,"BA",$B12,"RESP")*$Q12,0)) -> 0 | AH12: =IF(B12="","",IF($I12>0,1,0)) -> 1 | AI12: =IF(B12="","",IF($M12>0,1,0)) -> 0 | AJ12: =IF(B12="","",SUM(AH12:AI12)) -> 1 | AK12: =IF(B12="","",IF($AJ12>1,1,$AJ12)) -> 1 | AL12: =IF(B12="","",$AK12*($E12+$I12+$M12)) -> 0.5884386123 | AM12: =IF(B12="","",$T12+0.9*$X12+0.8*$AB12+0.7*$AF12) -> 4.51918519 | AN12: =IF(B12="","",SUM(AL12:AM12)) -> 5.107623803 | AP12: =IF(B12="","",IF($J12>0,1,0)) -> 1 | AQ12: =IF(B12="","",IF($O12>0,1,0)) -> 0 | AR12: =IF(B12="","",SUM(AP12:AQ12)) -> 1 | AS12: =IF(B12="","",IF($AR12>1,1,$AR12)) -> 1 | AT12: =IF(B12="","",$AS12*($G12+$J12+$O12)) -> 2.686573912 | AU12: =IF(B12="","",$U12+0.9*$Y12+0.8*$AC12+0.7*$AG12) -> 3.46986106 | AV12: =IF(B12="","",SUM(AT12:AU12)) -> 6.156434972 | BB12: =+'Growth&Yield'!F4 -> 25 | BC12: =IF(B12="","",IF(BB12=0,0,SQRT(43560/'Growth&Yield'!$N4)/'Growth&Yield'!$Z4)) ->  | BD12: =IF(B12="","",IF(BB12=0,0,(EXP(-0.25*('Growth&Yield'!$Z4^(1.8333-1/60*$C$1))))*$E$7*$BB12*EXP(-$E$6*$BB12))) -> 0.02746542593 | BE12: =IF(B12="","",IF(Inputs!$K$8=TRUE,$BD12,0)) -> 0.02746542593 | BF12: =IF(B12="","",(EXP(-0.25*('Growth&Yield'!I4^(1.8333-1/60*$C$1))))*$G$7*$BB12*EXP(-$G$6*$BB12)) -> 1.198539946 | BG12: =IF(B12="","",IF(Inputs!$K$8=TRUE,$BF12,0)) -> 1.198539946 | BI12: =IF(B12="","",IF(BB12=0,0,(EXP(-0.25*('Growth&Yield'!I4^(1.8333-1/60*$C$1))))*$I$5*($BB12-$I$6)*EXP(-$I$4*($BB12-$I$6)))) -> 0.5609731864 | BJ12: =IF(B12="","",IF(BB12=0,0,(EXP(-0.25*('Growth&Yield'!I4^(1.8333-1/60*$C$1))))*$K$5*($BB12-$I$6)*EXP(-$K$4*($BB12-$I$6)))) -> 1.488033966 | BL12: =IF(B12="","",IF(BB12=0,0,IF(OR(Inputs!$K$14=FALSE,BB12<Inputs!$F$25),0,(EXP(-0.25*('Growth&Yield'!I4^(1.8333-1/60*$C$1))))*$M$6*(BB12-Inputs!$F$25)*EXP(-($M$7*(BB12-Inputs!$F$25)))))) -> 0 | BM12: =IF(B12="","",IF(BB12<(RParms!$A$31+$M$4),$BL12,$BL$514)) -> 0 | BN12: =IF(B12="","",IF(OR(RParms!$A$30=FALSE,$BB12<RParms!$A$31),0,(EXP(-0.25*('Growth&Yield'!I4^(1.8333-1/60*$C$1))))*$O$6*($BB12-RParms!$A$31)*EXP(-($O$7*($BB12-RParms!$A$31))))) -> 0 | BO12: =IF(B12="","",IF($BB12<(RParms!$A$31+$O$4),$BN12,$BN$514)) -> 0 | BQ12: =IF(B12="","",(EXP(-0.25*('Growth&Yield'!I4^(1.8333-1/60*$C$1))))) -> 0.9014394653 | BS12: =IF(B12="","",IF($U$4=TRUE,GetFertilizerResponseAtAge($U$5,$C$1,$U$8,$U$6,$U$7,"HD",$BB12,"RESP")*$BQ12,0)) -> 4.033217377 | BT12: =IF(B12="","",IF($BB12<($U$5+$T$9),$BS12,$BS$514)) -> 4.006475596 | BU12: =IF(B12="","",IF($U$4=TRUE,GetFertilizerResponseAtAge($U$5,$C$1,$U$8,$U$6,$U$7,"BA",$BB12,"RESP")*$BQ12,0)) -> 0.09584500662 | BW12: =IF(B12="","",IF($Y$4=TRUE,GetFertilizerResponseAtAge($Y$5,$C$1,$Y$8,$Y$6,$Y$7,"HD",$BB12,"RESP")*$BQ12,0)) -> 0.616017764 | BX12: =IF(B12="","",IF($BB12<($Y$5+$X$9),$BW12,$BW$514)) -> 0.569677327 | BY12: =IF(B12="","",IF($Y$4=TRUE,GetFertilizerResponseAtAge($Y$5,$C$1,$Y$8,$Y$6,$Y$7,"BA",$BB12,"RESP")*$BQ12,0)) -> 3.748906726 | CA12: =IF($AC$4=TRUE,GetFertilizerResponseAtAge($AC$5,$C$1,$AC$8,$AC$6,$AC$7,"HD",$BB12,"RESP")*$BQ12,0) -> 0 | CB12: =IF($BB12<($AC$5+$AB$9),$CA12,$CA$514) -> 0 | CC12: =IF($AC$4=TRUE,GetFertilizerResponseAtAge($AC$5,$C$1,$AC$8,$AC$6,$AC$7,"BA",$BB12,"RESP")*$BQ12,0) -> 0 | CE12: =IF($AG$4=TRUE,GetFertilizerResponseAtAge($AG$5,$C$1,$AG$8,$AG$6,$AG$7,"HD",$BB12,"RESP")*$BQ12,0) -> 0 | CF12: =IF($BB12<($AG$5+$AF$9),$CE12,$CE$514) -> 0 | CG12: =IF($AG$4=TRUE,GetFertilizerResponseAtAge($AG$5,$C$1,$AG$8,$AG$6,$AG$7,"BA",$BB12,"RESP")*$BQ12,0) -> 0 | CH12: =IF($BI12>0,1,0) -> 1 | CI12: =IF($BM12>0,1,0) -> 0 | CJ12: =SUM(CH12:CI12) -> 1 | CK12: =IF($CJ12>1,1,$CJ12) -> 1 | CL12: =$CK12*($BE12+$BI12+$BM12) -> 0.5884386123 | CM12: =$BT12+0.9*$BX12+0.8*$CB12+0.7*$CF12 -> 4.51918519 | CN12: =SUM(CL12:CM12) -> 5.107623803 | CP12: =IF($BJ12>0,1,0) -> 1 | CQ12: =IF($BO12>0,1,0) -> 0 | CR12: =SUM(CP12:CQ12) -> 1 | CS12: =IF($CR12>1,1,$CR12) -> 1 | CT12: =$CS12*($BG12+$BJ12+$BO12) -> 2.686573912 | CU12: =$BU12+0.9*$BY12+0.8*$CC12+0.7*$CG12 -> 3.46986106 | CV12: =SUM(CT12:CU12) -> 6.156434972 | DB12: =+'Growth&Yield'!G4 -> 25 | DC12: =IF(DB12="","",IF(DB12=0,0,SQRT(43560/'Growth&Yield'!$R4)/'Growth&Yield'!$AA4)) ->  | DD12: =IF(DB12="","",IF(DB12=0,0,(EXP(-0.25*('Growth&Yield'!$AA4^(1.8333-1/60*$C$1))))*$E$7*$BB12*EXP(-$E$6*$BB12))) -> 0.02746542593 | DE12: =IF(DB12="","",IF(Inputs!$K$8=TRUE,$DD12,0)) -> 0.02746542593 | DF12: =IF(DB12="","",(EXP(-0.25*('Growth&Yield'!J4^(1.8333-1/60*$C$1))))*$G$7*$DB12*EXP(-$G$6*$DB12)) -> 1.198539946 | DG12: =IF(DB12="","",IF(Inputs!$K$8=TRUE,$DF12,0)) -> 1.198539946 | DI12: =IF(DB12="","",IF(DB12=0,0,(EXP(-0.25*('Growth&Yield'!J4^(1.8333-1/60*$C$1))))*$I$5*($DB12-$I$6)*EXP(-$I$4*($DB12-$I$6)))) -> 0.5609731864 | DJ12: =IF(DB12="","",IF(DB12=0,0,(EXP(-0.25*('Growth&Yield'!J4^(1.8333-1/60*$C$1))))*$K$5*($DB12-$I$6)*EXP(-$K$4*($DB12-$I$6)))) -> 1.488033966 | DL12: =IF(DB12="","",IF(DB12=0,0,IF(OR(Inputs!$K$14=FALSE,DB12<Inputs!$F$25),0,(EXP(-0.25*('Growth&Yield'!J4^(1.8333-1/60*$C$1))))*$M$6*(DB12-Inputs!$F$25)*EXP(-($M$7*(DB12-Inputs!$F$25)))))) -> 0 | DM12: =IF(DB12="","",IF(DB12<(RParms!$A$31+$M$4),$DL12,$DL$514)) -> 0 | DN12: =IF(DB12="","",IF(OR(RParms!$A$30=FALSE,$DB12<RParms!$A$31),0,(EXP(-0.25*('Growth&Yield'!J4^(1.8333-1/60*$C$1))))*$O$6*($DB12-RParms!$A$31)*EXP(-($O$7*($DB12-RParms!$A$31))))) -> 0 | DO12: =IF(DB12="","",IF($DB12<(RParms!$A$31+$O$4),$DN12,$DN$514)) -> 0 | DQ12: =IF(DB12="","",(EXP(-0.25*('Growth&Yield'!J4^(1.8333-1/60*$C$1))))) -> 0.9014394653 | DS12: =IF(DB12="","",IF($U$4=TRUE,GetFertilizerResponseAtAge($U$5,$C$1,$U$8,$U$6,$U$7,"HD",$DB12,"RESP")*$DQ12,0)) -> 4.033217377 | DT12: =IF(DB12="","",IF($DB12<($U$5+$T$9),$DS12,$DS$514)) -> 4.006475596 | DU12: =IF(DB12="","",IF($U$4=TRUE,GetFertilizerResponseAtAge($U$5,$C$1,$U$8,$U$6,$U$7,"BA",$DB12,"RESP")*$DQ12,0)) -> 0.09584500662 | DW12: =IF(DB12="","",IF($Y$4=TRUE,GetFertilizerResponseAtAge($Y$5,$C$1,$Y$8,$Y$6,$Y$7,"HD",$DB12,"RESP")*$DQ12,0)) -> 0.616017764 | DX12: =IF(DB12="","",IF($DB12<($Y$5+$X$9),$DW12,$DW$514)) -> 0.569677327 | DY12: =IF(DB12="","",IF($Y$4=TRUE,GetFertilizerResponseAtAge($Y$5,$C$1,$Y$8,$Y$6,$Y$7,"BA",$DB12,"RESP")*$DQ12,0)) -> 3.748906726 | EA12: =IF(DB12="","",IF($AC$4=TRUE,GetFertilizerResponseAtAge($AC$5,$C$1,$AC$8,$AC$6,$AC$7,"HD",$DB12,"RESP")*$DQ12,0)) -> 0 | EB12: =IF(DB12="","",IF($DB12<($AC$5+$AB$9),$EA12,$EA$514)) -> 0 | EC12: =IF(DB12="","",IF($AC$4=TRUE,GetFertilizerResponseAtAge($AC$5,$C$1,$AC$8,$AC$6,$AC$7,"BA",$DB12,"RESP")*$DQ12,0)) -> 0 | EE12: =IF(DB12="","",IF($AG$4=TRUE,GetFertilizerResponseAtAge($AG$5,$C$1,$AG$8,$AG$6,$AG$7,"HD",$DB12,"RESP")*$DQ12,0)) -> 0 | EF12: =IF(DB12="","",IF($DB12<($AG$5+$AF$9),$EE12,$EE$514)) -> 0 | EG12: =IF(DB12="","",IF($AG$4=TRUE,GetFertilizerResponseAtAge($AG$5,$C$1,$AG$8,$AG$6,$AG$7,"BA",$DB12,"RESP")*$DQ12,0)) -> 0 | EH12: =IF(DB12="","",IF($DI12>0,1,0)) -> 1 | EI12: =IF(DB12="","",IF($DM12>0,1,0)) -> 0 | EJ12: =IF(DB12="","",SUM(EH12:EI12)) -> 1 | EK12: =IF(DB12="","",IF($EJ12>1,1,$EJ12)) -> 1 | EL12: =IF(DB12="","",$EK12*($DE12+$DI12+$DM12)) -> 0.5884386123 | EM12: =IF(DB12="","",$DT12+0.9*$DX12+0.8*$EB12+0.7*$EF12) -> 4.51918519 | EN12: =IF(DB12="","",SUM(EL12:EM12)) -> 5.107623803 | EP12: =IF(DB12="","",IF($DJ12>0,1,0)) -> 1 | EQ12: =IF(DB12="","",IF($DO12>0,1,0)) -> 0 | ER12: =IF(DB12="","",SUM(EP12:EQ12)) -> 1 | ES12: =IF(DB12="","",IF($ER12>1,1,$ER12)) -> 1 | ET12: =IF(DB12="","",$ES12*($DG12+$DJ12+$DO12)) -> 2.686573912 | EU12: =IF(DB12="","",$DU12+0.9*$DY12+0.8*$EC12+0.7*$EG12) -> 3.46986106 | EV12: =IF(DB12="","",SUM(ET12:EU12)) -> 6.156434972
A13: =+'Growth&Yield'!A5 -> 1 | B13: =+'Growth&Yield'!E5 -> 26 | C13: =IF(B13="","",IF(B13=0,0,SQRT(43560/'Growth&Yield'!$K5)/'Growth&Yield'!$Y5)) -> 0.1256430171 | D13: =IF(B13="","",IF(B13=0,0,(EXP(-0.25*('Growth&Yield'!$Y5^(1.8333-1/60*$C$1))))*$E$7*$B13*EXP(-$E$6*$B13))) -> 0.0265761718 | E13: =IF(B13="","",IF(Inputs!$K$8=TRUE,$D13,0)) -> 0.0265761718 | F13: =IF(B13="","",(EXP(-0.25*('Growth&Yield'!H5^(1.8333-1/60*$C$1))))*$G$7*$B13*EXP(-$G$6*$B13)) -> 1.16638408 | G13: =IF(B13="","",IF(Inputs!$K$8=TRUE,$F13,0)) -> 1.16638408 | I13: =IF(B13="","",IF('Growth&Yield'!E5=0,0,(EXP(-0.25*('Growth&Yield'!H5^(1.8333-1/60*$C$1))))*$I$5*($B13-$I$6)*EXP(-$I$4*($B13-$I$6)))) -> 0.5069693409 | J13: =IF(B13="","",IF(B13=0,0,(EXP(-0.25*('Growth&Yield'!H5^(1.8333-1/60*$C$1))))*$K$5*($B13-$I$6)*EXP(-$K$4*($B13-$I$6)))) -> 1.357941247 | L13: =IF(B13="","",IF(B13=0,0,IF(OR(Inputs!$K$14=FALSE,B13<Inputs!$F$25),0,(EXP(-0.25*('Growth&Yield'!H5^(1.8333-1/60*$C$1))))*$M$6*(B13-Inputs!$F$25)*EXP(-($M$7*(B13-Inputs!$F$25)))))) -> 0 | M13: =IF(B13="","",IF(B13<(RParms!$A$31+$M$4),$L13,$L$514)) -> 0 | N13: =IF(B13="","",IF(OR(RParms!$A$30=FALSE,$B13<RParms!$A$31),0,(EXP(-0.25*('Growth&Yield'!H5^(1.8333-1/60*$C$1))))*$O$6*($B13-RParms!$A$31)*EXP(-($O$7*($B13-RParms!$A$31))))) -> 0 | O13: =IF(B13="","",IF($B13<(RParms!$A$31+$O$4),$N13,$N$514)) -> 0 | Q13: =IF(B13="","",(EXP(-0.25*('Growth&Yield'!H5^(1.8333-1/60*$C$1))))) -> 0.9015412694 | S13: =IF(B13="","",IF($U$4=TRUE,GetFertilizerResponseAtAge($U$5,$C$1,$U$8,$U$6,$U$7,"HD",$B13,"RESP")*$Q13,0)) -> 4.006475596 | T13: 4.006475596 | U13: =IF(B13="","",IF($U$4=TRUE,GetFertilizerResponseAtAge($U$5,$C$1,$U$8,$U$6,$U$7,"BA",$B13,"RESP")*$Q13,0)) -> 0.08348939161 | W13: =IF(B13="","",IF($Y$4=TRUE,GetFertilizerResponseAtAge($Y$5,$C$1,$Y$8,$Y$6,$Y$7,"HD",$B13,"RESP")*$Q13,0)) -> 0.569677327 | X13: 0.569677327 | Y13: =IF(B13="","",IF($Y$4=TRUE,GetFertilizerResponseAtAge($Y$5,$C$1,$Y$8,$Y$6,$Y$7,"BA",$B13,"RESP")*$Q13,0)) -> 3.407966256 | AA13: =IF(B13="","",IF($AC$4=TRUE,GetFertilizerResponseAtAge($AC$5,$C$1,$AC$8,$AC$6,$AC$7,"HD",$B13,"RESP")*$Q13,0)) -> 0 | AB13: 0 | AC13: =IF(B13="","",IF($AC$4=TRUE,GetFertilizerResponseAtAge($AC$5,$C$1,$AC$8,$AC$6,$AC$7,"BA",$B13,"RESP")*$Q13,0)) -> 0 | AE13: =IF(B13="","",IF($AG$4=TRUE,GetFertilizerResponseAtAge($AG$5,$C$1,$AG$8,$AG$6,$AG$7,"HD",$B13,"RESP")*$Q13,0)) -> 0 | AF13: 0 | AG13: =IF(B13="","",IF($AG$4=TRUE,GetFertilizerResponseAtAge($AG$5,$C$1,$AG$8,$AG$6,$AG$7,"BA",$B13,"RESP")*$Q13,0)) -> 0 | AH13: 1 | AI13: 0 | AJ13: 1 | AK13: 1 | AL13: 0.5335455127 | AM13: 4.51918519 | AN13: 5.052730703 | AP13: 1 | AQ13: 0 | AR13: 1 | AS13: 1 | AT13: 2.524325326 | AU13: 3.150659022 | AV13: 5.674984348 | AW13: 0.681390725 | AX13: 0.6185628052 | AY13: 0.5541575756 | AZ13: 0.4882570385 | BB13: =+'Growth&Yield'!F5 -> 26 | BC13: =IF(B13="","",IF(BB13=0,0,SQRT(43560/'Growth&Yield'!$N5)/'Growth&Yield'!$Z5)) ->  | BD13: =IF(B13="","",IF(BB13=0,0,(EXP(-0.25*('Growth&Yield'!$Z5^(1.8333-1/60*$C$1))))*$E$7*$BB13*EXP(-$E$6*$BB13))) -> 0.0265761718 | BE13: =IF(B13="","",IF(Inputs!$K$8=TRUE,$BD13,0)) -> 0.0265761718 | BF13: =IF(B13="","",(EXP(-0.25*('Growth&Yield'!I5^(1.8333-1/60*$C$1))))*$G$7*$BB13*EXP(-$G$6*$BB13)) -> 1.16638408 | BG13: =IF(B13="","",IF(Inputs!$K$8=TRUE,$BF13,0)) -> 1.16638408 | BI13: =IF(B13="","",IF(BB13=0,0,(EXP(-0.25*('Growth&Yield'!I5^(1.8333-1/60*$C$1))))*$I$5*($BB13-$I$6)*EXP(-$I$4*($BB13-$I$6)))) -> 0.5069693409 | BJ13: =IF(B13="","",IF(BB13=0,0,(EXP(-0.25*('Growth&Yield'!I5^(1.8333-1/60*$C$1))))*$K$5*($BB13-$I$6)*EXP(-$K$4*($BB13-$I$6)))) -> 1.357941247 | BL13: =IF(B13="","",IF(BB13=0,0,IF(OR(Inputs!$K$14=FALSE,BB13<Inputs!$F$25),0,(EXP(-0.25*('Growth&Yield'!I5^(1.8333-1/60*$C$1))))*$M$6*(BB13-Inputs!$F$25)*EXP(-($M$7*(BB13-Inputs!$F$25)))))) -> 0 | BM13: =IF(B13="","",IF(BB13<(RParms!$A$31+$M$4),$BL13,$BL$514)) -> 0 | BN13: =IF(B13="","",IF(OR(RParms!$A$30=FALSE,$BB13<RParms!$A$31),0,(EXP(-0.25*('Growth&Yield'!I5^(1.8333-1/60*$C$1))))*$O$6*($BB13-RParms!$A$31)*EXP(-($O$7*($BB13-RParms!$A$31))))) -> 0 | BO13: =IF(B13="","",IF($BB13<(RParms!$A$31+$O$4),$BN13,$BN$514)) -> 0 | BQ13: =IF(B13="","",(EXP(-0.25*('Growth&Yield'!I5^(1.8333-1/60*$C$1))))) -> 0.9015412694 | BS13: =IF(B13="","",IF($U$4=TRUE,GetFertilizerResponseAtAge($U$5,$C$1,$U$8,$U$6,$U$7,"HD",$BB13,"RESP")*$BQ13,0)) -> 4.006475596 | BT13: 4.006475596 | BU13: =IF(B13="","",IF($U$4=TRUE,GetFertilizerResponseAtAge($U$5,$C$1,$U$8,$U$6,$U$7,"BA",$BB13,"RESP")*$BQ13,0)) -> 0.08348939161 | BW13: =IF(B13="","",IF($Y$4=TRUE,GetFertilizerResponseAtAge($Y$5,$C$1,$Y$8,$Y$6,$Y$7,"HD",$BB13,"RESP")*$BQ13,0)) -> 0.569677327 | BX13: 0.569677327 | BY13: =IF(B13="","",IF($Y$4=TRUE,GetFertilizerResponseAtAge($Y$5,$C$1,$Y$8,$Y$6,$Y$7,"BA",$BB13,"RESP")*$BQ13,0)) -> 3.407966256 | CA13: =IF($AC$4=TRUE,GetFertilizerResponseAtAge($AC$5,$C$1,$AC$8,$AC$6,$AC$7,"HD",$BB13,"RESP")*$BQ13,0) -> 0 | CB13: 0 | CC13: =IF($AC$4=TRUE,GetFertilizerResponseAtAge($AC$5,$C$1,$AC$8,$AC$6,$AC$7,"BA",$BB13,"RESP")*$BQ13,0) -> 0 | CE13: =IF($AG$4=TRUE,GetFertilizerResponseAtAge($AG$5,$C$1,$AG$8,$AG$6,$AG$7,"HD",$BB13,"RESP")*$BQ13,0) -> 0 | CF13: 0 | CG13: =IF($AG$4=TRUE,GetFertilizerResponseAtAge($AG$5,$C$1,$AG$8,$AG$6,$AG$7,"BA",$BB13,"RESP")*$BQ13,0) -> 0 | CH13: 1 | CI13: 0 | CJ13: 1 | CK13: 1 | CL13: 0.5335455127 | CM13: 4.51918519 | CN13: 5.052730703 | CP13: 1 | CQ13: 0 | CR13: 1 | CS13: 1 | CT13: 2.524325326 | CU13: 3.150659022 | CV13: 5.674984348 | DB13: =+'Growth&Yield'!G5 -> 26 | DC13: =IF(DB13="","",IF(DB13=0,0,SQRT(43560/'Growth&Yield'!$R5)/'Growth&Yield'!$AA5)) ->  | DD13: =IF(DB13="","",IF(DB13=0,0,(EXP(-0.25*('Growth&Yield'!$AA5^(1.8333-1/60*$C$1))))*$E$7*$BB13*EXP(-$E$6*$BB13))) -> 0.0265761718 | DE13: =IF(DB13="","",IF(Inputs!$K$8=TRUE,$DD13,0)) -> 0.0265761718 | DF13: =IF(DB13="","",(EXP(-0.25*('Growth&Yield'!J5^(1.8333-1/60*$C$1))))*$G$7*$DB13*EXP(-$G$6*$DB13)) -> 1.16638408 | DG13: =IF(DB13="","",IF(Inputs!$K$8=TRUE,$DF13,0)) -> 1.16638408 | DI13: =IF(DB13="","",IF(DB13=0,0,(EXP(-0.25*('Growth&Yield'!J5^(1.8333-1/60*$C$1))))*$I$5*($DB13-$I$6)*EXP(-$I$4*($DB13-$I$6)))) -> 0.5069693409 | DJ13: =IF(DB13="","",IF(DB13=0,0,(EXP(-0.25*('Growth&Yield'!J5^(1.8333-1/60*$C$1))))*$K$5*($DB13-$I$6)*EXP(-$K$4*($DB13-$I$6)))) -> 1.357941247 | DL13: =IF(DB13="","",IF(DB13=0,0,IF(OR(Inputs!$K$14=FALSE,DB13<Inputs!$F$25),0,(EXP(-0.25*('Growth&Yield'!J5^(1.8333-1/60*$C$1))))*$M$6*(DB13-Inputs!$F$25)*EXP(-($M$7*(DB13-Inputs!$F$25)))))) -> 0 | DM13: =IF(DB13="","",IF(DB13<(RParms!$A$31+$M$4),$DL13,$DL$514)) -> 0 | DN13: =IF(DB13="","",IF(OR(RParms!$A$30=FALSE,$DB13<RParms!$A$31),0,(EXP(-0.25*('Growth&Yield'!J5^(1.8333-1/60*$C$1))))*$O$6*($DB13-RParms!$A$31)*EXP(-($O$7*($DB13-RParms!$A$31))))) -> 0 | DO13: =IF(DB13="","",IF($DB13<(RParms!$A$31+$O$4),$DN13,$DN$514)) -> 0 | DQ13: =IF(DB13="","",(EXP(-0.25*('Growth&Yield'!J5^(1.8333-1/60*$C$1))))) -> 0.9015412694 | DS13: =IF(DB13="","",IF($U$4=TRUE,GetFertilizerResponseAtAge($U$5,$C$1,$U$8,$U$6,$U$7,"HD",$DB13,"RESP")*$DQ13,0)) -> 4.006475596 | DT13: 4.006475596 | DU13: =IF(DB13="","",IF($U$4=TRUE,GetFertilizerResponseAtAge($U$5,$C$1,$U$8,$U$6,$U$7,"BA",$DB13,"RESP")*$DQ13,0)) -> 0.08348939161 | DW13: =IF(DB13="","",IF($Y$4=TRUE,GetFertilizerResponseAtAge($Y$5,$C$1,$Y$8,$Y$6,$Y$7,"HD",$DB13,"RESP")*$DQ13,0)) -> 0.569677327 | DX13: 0.569677327 | DY13: =IF(DB13="","",IF($Y$4=TRUE,GetFertilizerResponseAtAge($Y$5,$C$1,$Y$8,$Y$6,$Y$7,"BA",$DB13,"RESP")*$DQ13,0)) -> 3.407966256 | EA13: =IF(DB13="","",IF($AC$4=TRUE,GetFertilizerResponseAtAge($AC$5,$C$1,$AC$8,$AC$6,$AC$7,"HD",$DB13,"RESP")*$DQ13,0)) -> 0 | EB13: 0 | EC13: =IF(DB13="","",IF($AC$4=TRUE,GetFertilizerResponseAtAge($AC$5,$C$1,$AC$8,$AC$6,$AC$7,"BA",$DB13,"RESP")*$DQ13,0)) -> 0 | EE13: =IF(DB13="","",IF($AG$4=TRUE,GetFertilizerResponseAtAge($AG$5,$C$1,$AG$8,$AG$6,$AG$7,"HD",$DB13,"RESP")*$DQ13,0)) -> 0 | EF13: 0 | EG13: =IF(DB13="","",IF($AG$4=TRUE,GetFertilizerResponseAtAge($AG$5,$C$1,$AG$8,$AG$6,$AG$7,"BA",$DB13,"RESP")*$DQ13,0)) -> 0 | EH13: 1 | EI13: 0 | EJ13: 1 | EK13: 1 | EL13: 0.5335455127 | EM13: 4.51918519 | EN13: 5.052730703 | EP13: 1 | EQ13: 0 | ER13: 1 | ES13: 1 | ET13: 2.524325326 | EU13: 3.150659022 | EV13: 5.674984348
A14: =+'Growth&Yield'!A6 -> 2 | B14: =+'Growth&Yield'!E6 -> 27 | C14: =IF(B14="","",IF(B14=0,0,SQRT(43560/'Growth&Yield'!$K6)/'Growth&Yield'!$Y6)) -> 0.1239266347 | D14: =IF(B14="","",IF(B14=0,0,(EXP(-0.25*('Growth&Yield'!$Y6^(1.8333-1/60*$C$1))))*$E$7*$B14*EXP(-$E$6*$B14))) -> 0.02568323109 | E14: =IF(B14="","",IF(Inputs!$K$8=TRUE,$D14,0)) -> 0.02568323109 | F14: =IF(B14="","",(EXP(-0.25*('Growth&Yield'!H6^(1.8333-1/60*$C$1))))*$G$7*$B14*EXP(-$G$6*$B14)) -> 1.13338422 | G14: =IF(B14="","",IF(Inputs!$K$8=TRUE,$F14,0)) -> 1.13338422 | I14: =IF(B14="","",IF('Growth&Yield'!E6=0,0,(EXP(-0.25*('Growth&Yield'!H6^(1.8333-1/60*$C$1))))*$I$5*($B14-$I$6)*EXP(-$I$4*($B14-$I$6)))) -> 0.457420151 | J14: =IF(B14="","",IF(B14=0,0,(EXP(-0.25*('Growth&Yield'!H6^(1.8333-1/60*$C$1))))*$K$5*($B14-$I$6)*EXP(-$K$4*($B14-$I$6)))) -> 1.237209139 | L14: =IF(B14="","",IF(B14=0,0,IF(OR(Inputs!$K$14=FALSE,B14<Inputs!$F$25),0,(EXP(-0.25*('Growth&Yield'!H6^(1.8333-1/60*$C$1))))*$M$6*(B14-Inputs!$F$25)*EXP(-($M$7*(B14-Inputs!$F$25)))))) -> 0 | M14: =IF(B14="","",IF(B14<(RParms!$A$31+$M$4),$L14,$L$514)) -> 0 | N14: =IF(B14="","",IF(OR(RParms!$A$30=FALSE,$B14<RParms!$A$31),0,(EXP(-0.25*('Growth&Yield'!H6^(1.8333-1/60*$C$1))))*$O$6*($B14-RParms!$A$31)*EXP(-($O$7*($B14-RParms!$A$31))))) -> 0 | O14: =IF(B14="","",IF($B14<(RParms!$A$31+$O$4),$N14,$N$514)) -> 0 | Q14: =IF(B14="","",(EXP(-0.25*('Growth&Yield'!H6^(1.8333-1/60*$C$1))))) -> 0.9016211439 | S14: =IF(B14="","",IF($U$4=TRUE,GetFertilizerResponseAtAge($U$5,$C$1,$U$8,$U$6,$U$7,"HD",$B14,"RESP")*$Q14,0)) -> 3.970789753 | T14: 4.006475596 | U14: =IF(B14="","",IF($U$4=TRUE,GetFertilizerResponseAtAge($U$5,$C$1,$U$8,$U$6,$U$7,"BA",$B14,"RESP")*$Q14,0)) -> 0.07255989066 | W14: =IF(B14="","",IF($Y$4=TRUE,GetFertilizerResponseAtAge($Y$5,$C$1,$Y$8,$Y$6,$Y$7,"HD",$B14,"RESP")*$Q14,0)) -> 0.5247522154 | X14: 0.569677327 | Y14: =IF(B14="","",IF($Y$4=TRUE,GetFertilizerResponseAtAge($Y$5,$C$1,$Y$8,$Y$6,$Y$7,"BA",$B14,"RESP")*$Q14,0)) -> 3.085855484 | AA14: =IF(B14="","",IF($AC$4=TRUE,GetFertilizerResponseAtAge($AC$5,$C$1,$AC$8,$AC$6,$AC$7,"HD",$B14,"RESP")*$Q14,0)) -> 0 | AB14: 0 | AC14: =IF(B14="","",IF($AC$4=TRUE,GetFertilizerResponseAtAge($AC$5,$C$1,$AC$8,$AC$6,$AC$7,"BA",$B14,"RESP")*$Q14,0)) -> 0 | AE14: =IF(B14="","",IF($AG$4=TRUE,GetFertilizerResponseAtAge($AG$5,$C$1,$AG$8,$AG$6,$AG$7,"HD",$B14,"RESP")*$Q14,0)) -> 0 | AF14: 0 | AG14: =IF(B14="","",IF($AG$4=TRUE,GetFertilizerResponseAtAge($AG$5,$C$1,$AG$8,$AG$6,$AG$7,"BA",$B14,"RESP")*$Q14,0)) -> 0 | AH14: 1 | AI14: 0 | AJ14: 1 | AK14: 1 | AL14: 0.4831033821 | AM14: 4.51918519 | AN14: 5.002288572 | AP14: 1 | AQ14: 0 | AR14: 1 | AS14: 1 | AT14: 2.370593359 | AU14: 2.849829826 | AV14: 5.220423185 | AW14: 4.461274598 | AX14: 4.118650842 | AY14: 3.756275564 | AZ14: 3.372936107 | BB14: =+'Growth&Yield'!F6 -> 27 | BC14: =IF(B14="","",IF(BB14=0,0,SQRT(43560/'Growth&Yield'!$N6)/'Growth&Yield'!$Z6)) ->  | BD14: =IF(B14="","",IF(BB14=0,0,(EXP(-0.25*('Growth&Yield'!$Z6^(1.8333-1/60*$C$1))))*$E$7*$BB14*EXP(-$E$6*$BB14))) -> 0.02568323109 | BE14: =IF(B14="","",IF(Inputs!$K$8=TRUE,$BD14,0)) -> 0.02568323109 | BF14: =IF(B14="","",(EXP(-0.25*('Growth&Yield'!I6^(1.8333-1/60*$C$1))))*$G$7*$BB14*EXP(-$G$6*$BB14)) -> 1.13338422 | BG14: =IF(B14="","",IF(Inputs!$K$8=TRUE,$BF14,0)) -> 1.13338422 | BI14: =IF(B14="","",IF(BB14=0,0,(EXP(-0.25*('Growth&Yield'!I6^(1.8333-1/60*$C$1))))*$I$5*($BB14-$I$6)*EXP(-$I$4*($BB14-$I$6)))) -> 0.457420151 | BJ14: =IF(B14="","",IF(BB14=0,0,(EXP(-0.25*('Growth&Yield'!I6^(1.8333-1/60*$C$1))))*$K$5*($BB14-$I$6)*EXP(-$K$4*($BB14-$I$6)))) -> 1.237209139 | BL14: =IF(B14="","",IF(BB14=0,0,IF(OR(Inputs!$K$14=FALSE,BB14<Inputs!$F$25),0,(EXP(-0.25*('Growth&Yield'!I6^(1.8333-1/60*$C$1))))*$M$6*(BB14-Inputs!$F$25)*EXP(-($M$7*(BB14-Inputs!$F$25)))))) -> 0 | BM14: =IF(B14="","",IF(BB14<(RParms!$A$31+$M$4),$BL14,$BL$514)) -> 0 | BN14: =IF(B14="","",IF(OR(RParms!$A$30=FALSE,$BB14<RParms!$A$31),0,(EXP(-0.25*('Growth&Yield'!I6^(1.8333-1/60*$C$1))))*$O$6*($BB14-RParms!$A$31)*EXP(-($O$7*($BB14-RParms!$A$31))))) -> 0 | BO14: =IF(B14="","",IF($BB14<(RParms!$A$31+$O$4),$BN14,$BN$514)) -> 0 | BQ14: =IF(B14="","",(EXP(-0.25*('Growth&Yield'!I6^(1.8333-1/60*$C$1))))) -> 0.9016211439 | BS14: =IF(B14="","",IF($U$4=TRUE,GetFertilizerResponseAtAge($U$5,$C$1,$U$8,$U$6,$U$7,"HD",$BB14,"RESP")*$BQ14,0)) -> 3.970789753 | BT14: 4.006475596 | BU14: =IF(B14="","",IF($U$4=TRUE,GetFertilizerResponseAtAge($U$5,$C$1,$U$8,$U$6,$U$7,"BA",$BB14,"RESP")*$BQ14,0)) -> 0.07255989066 | BW14: =IF(B14="","",IF($Y$4=TRUE,GetFertilizerResponseAtAge($Y$5,$C$1,$Y$8,$Y$6,$Y$7,"HD",$BB14,"RESP")*$BQ14,0)) -> 0.5247522154 | BX14: 0.569677327 | BY14: =IF(B14="","",IF($Y$4=TRUE,GetFertilizerResponseAtAge($Y$5,$C$1,$Y$8,$Y$6,$Y$7,"BA",$BB14,"RESP")*$BQ14,0)) -> 3.085855484 | CA14: =IF($AC$4=TRUE,GetFertilizerResponseAtAge($AC$5,$C$1,$AC$8,$AC$6,$AC$7,"HD",$BB14,"RESP")*$BQ14,0) -> 0 | CB14: 0 | CC14: =IF($AC$4=TRUE,GetFertilizerResponseAtAge($AC$5,$C$1,$AC$8,$AC$6,$AC$7,"BA",$BB14,"RESP")*$BQ14,0) -> 0 | CE14: =IF($AG$4=TRUE,GetFertilizerResponseAtAge($AG$5,$C$1,$AG$8,$AG$6,$AG$7,"HD",$BB14,"RESP")*$BQ14,0) -> 0 | CF14: 0 | CG14: =IF($AG$4=TRUE,GetFertilizerResponseAtAge($AG$5,$C$1,$AG$8,$AG$6,$AG$7,"BA",$BB14,"RESP")*$BQ14,0) -> 0 | CH14: 1 | CI14: 0 | CJ14: 1 | CK14: 1 | CL14: 0.4831033821 | CM14: 4.51918519 | CN14: 5.002288572 | CP14: 1 | CQ14: 0 | CR14: 1 | CS14: 1 | CT14: 2.370593359 | CU14: 2.849829826 | CV14: 5.220423185 | DB14: =+'Growth&Yield'!G6 -> 27 | DC14: =IF(DB14="","",IF(DB14=0,0,SQRT(43560/'Growth&Yield'!$R6)/'Growth&Yield'!$AA6)) ->  | DD14: =IF(DB14="","",IF(DB14=0,0,(EXP(-0.25*('Growth&Yield'!$AA6^(1.8333-1/60*$C$1))))*$E$7*$BB14*EXP(-$E$6*$BB14))) -> 0.02568323109 | DE14: =IF(DB14="","",IF(Inputs!$K$8=TRUE,$DD14,0)) -> 0.02568323109 | DF14: =IF(DB14="","",(EXP(-0.25*('Growth&Yield'!J6^(1.8333-1/60*$C$1))))*$G$7*$DB14*EXP(-$G$6*$DB14)) -> 1.13338422 | DG14: =IF(DB14="","",IF(Inputs!$K$8=TRUE,$DF14,0)) -> 1.13338422 | DI14: =IF(DB14="","",IF(DB14=0,0,(EXP(-0.25*('Growth&Yield'!J6^(1.8333-1/60*$C$1))))*$I$5*($DB14-$I$6)*EXP(-$I$4*($DB14-$I$6)))) -> 0.457420151 | DJ14: =IF(DB14="","",IF(DB14=0,0,(EXP(-0.25*('Growth&Yield'!J6^(1.8333-1/60*$C$1))))*$K$5*($DB14-$I$6)*EXP(-$K$4*($DB14-$I$6)))) -> 1.237209139 | DL14: =IF(DB14="","",IF(DB14=0,0,IF(OR(Inputs!$K$14=FALSE,DB14<Inputs!$F$25),0,(EXP(-0.25*('Growth&Yield'!J6^(1.8333-1/60*$C$1))))*$M$6*(DB14-Inputs!$F$25)*EXP(-($M$7*(DB14-Inputs!$F$25)))))) -> 0 | DM14: =IF(DB14="","",IF(DB14<(RParms!$A$31+$M$4),$DL14,$DL$514)) -> 0 | DN14: =IF(DB14="","",IF(OR(RParms!$A$30=FALSE,$DB14<RParms!$A$31),0,(EXP(-0.25*('Growth&Yield'!J6^(1.8333-1/60*$C$1))))*$O$6*($DB14-RParms!$A$31)*EXP(-($O$7*($DB14-RParms!$A$31))))) -> 0 | DO14: =IF(DB14="","",IF($DB14<(RParms!$A$31+$O$4),$DN14,$DN$514)) -> 0 | DQ14: =IF(DB14="","",(EXP(-0.25*('Growth&Yield'!J6^(1.8333-1/60*$C$1))))) -> 0.9016211439 | DS14: =IF(DB14="","",IF($U$4=TRUE,GetFertilizerResponseAtAge($U$5,$C$1,$U$8,$U$6,$U$7,"HD",$DB14,"RESP")*$DQ14,0)) -> 3.970789753 | DT14: 4.006475596 | DU14: =IF(DB14="","",IF($U$4=TRUE,GetFertilizerResponseAtAge($U$5,$C$1,$U$8,$U$6,$U$7,"BA",$DB14,"RESP")*$DQ14,0)) -> 0.07255989066 | DW14: =IF(DB14="","",IF($Y$4=TRUE,GetFertilizerResponseAtAge($Y$5,$C$1,$Y$8,$Y$6,$Y$7,"HD",$DB14,"RESP")*$DQ14,0)) -> 0.5247522154 | DX14: 0.569677327 | DY14: =IF(DB14="","",IF($Y$4=TRUE,GetFertilizerResponseAtAge($Y$5,$C$1,$Y$8,$Y$6,$Y$7,"BA",$DB14,"RESP")*$DQ14,0)) -> 3.085855484 | EA14: =IF(DB14="","",IF($AC$4=TRUE,GetFertilizerResponseAtAge($AC$5,$C$1,$AC$8,$AC$6,$AC$7,"HD",$DB14,"RESP")*$DQ14,0)) -> 0 | EB14: 0 | EC14: =IF(DB14="","",IF($AC$4=TRUE,GetFertilizerResponseAtAge($AC$5,$C$1,$AC$8,$AC$6,$AC$7,"BA",$DB14,"RESP")*$DQ14,0)) -> 0 | EE14: =IF(DB14="","",IF($AG$4=TRUE,GetFertilizerResponseAtAge($AG$5,$C$1,$AG$8,$AG$6,$AG$7,"HD",$DB14,"RESP")*$DQ14,0)) -> 0 | EF14: 0 | EG14: =IF(DB14="","",IF($AG$4=TRUE,GetFertilizerResponseAtAge($AG$5,$C$1,$AG$8,$AG$6,$AG$7,"BA",$DB14,"RESP")*$DQ14,0)) -> 0 | EH14: 1 | EI14: 0 | EJ14: 1 | EK14: 1 | EL14: 0.4831033821 | EM14: 4.51918519 | EN14: 5.002288572 | EP14: 1 | EQ14: 0 | ER14: 1 | ES14: 1 | ET14: 2.370593359 | EU14: 2.849829826 | EV14: 5.220423185
A15: =+'Growth&Yield'!A7 -> 3 | B15: =+'Growth&Yield'!E7 -> 28 | C15: =IF(B15="","",IF(B15=0,0,SQRT(43560/'Growth&Yield'!$K7)/'Growth&Yield'!$Y7)) -> 0.1223653513 | D15: =IF(B15="","",IF(B15=0,0,(EXP(-0.25*('Growth&Yield'!$Y7^(1.8333-1/60*$C$1))))*$E$7*$B15*EXP(-$E$6*$B15))) -> 0.02479126513 | E15: =IF(B15="","",IF(Inputs!$K$8=TRUE,$D15,0)) -> 0.02479126513 | F15: =IF(B15="","",(EXP(-0.25*('Growth&Yield'!H7^(1.8333-1/60*$C$1))))*$G$7*$B15*EXP(-$G$6*$B15)) -> 1.099786241 | G15: =IF(B15="","",IF(Inputs!$K$8=TRUE,$F15,0)) -> 1.099786241 | I15: =IF(B15="","",IF('Growth&Yield'!E7=0,0,(EXP(-0.25*('Growth&Yield'!H7^(1.8333-1/60*$C$1))))*$I$5*($B15-$I$6)*EXP(-$I$4*($B15-$I$6)))) -> 0.4120952963 | J15: =IF(B15="","",IF(B15=0,0,(EXP(-0.25*('Growth&Yield'!H7^(1.8333-1/60*$C$1))))*$K$5*($B15-$I$6)*EXP(-$K$4*($B15-$I$6)))) -> 1.125522098 | L15: =IF(B15="","",IF(B15=0,0,IF(OR(Inputs!$K$14=FALSE,B15<Inputs!$F$25),0,(EXP(-0.25*('Growth&Yield'!H7^(1.8333-1/60*$C$1))))*$M$6*(B15-Inputs!$F$25)*EXP(-($M$7*(B15-Inputs!$F$25)))))) -> 0 | M15: =IF(B15="","",IF(B15<(RParms!$A$31+$M$4),$L15,$L$514)) -> 0 | N15: =IF(B15="","",IF(OR(RParms!$A$30=FALSE,$B15<RParms!$A$31),0,(EXP(-0.25*('Growth&Yield'!H7^(1.8333-1/60*$C$1))))*$O$6*($B15-RParms!$A$31)*EXP(-($O$7*($B15-RParms!$A$31))))) -> 0 | O15: =IF(B15="","",IF($B15<(RParms!$A$31+$O$4),$N15,$N$514)) -> 0 | Q15: =IF(B15="","",(EXP(-0.25*('Growth&Yield'!H7^(1.8333-1/60*$C$1))))) -> 0.901683774 | S15: =IF(B15="","",IF($U$4=TRUE,GetFertilizerResponseAtAge($U$5,$C$1,$U$8,$U$6,$U$7,"HD",$B15,"RESP")*$Q15,0)) -> 3.92721559 | T15: 4.006475596 | U15: =IF(B15="","",IF($U$4=TRUE,GetFertilizerResponseAtAge($U$5,$C$1,$U$8,$U$6,$U$7,"BA",$B15,"RESP")*$Q15,0)) -> 0.06292966253 | W15: =IF(B15="","",IF($Y$4=TRUE,GetFertilizerResponseAtAge($Y$5,$C$1,$Y$8,$Y$6,$Y$7,"HD",$B15,"RESP")*$Q15,0)) -> 0.4816881499 | X15: 0.569677327 | Y15: =IF(B15="","",IF($Y$4=TRUE,GetFertilizerResponseAtAge($Y$5,$C$1,$Y$8,$Y$6,$Y$7,"BA",$B15,"RESP")*$Q15,0)) -> 2.784467907 | AA15: =IF(B15="","",IF($AC$4=TRUE,GetFertilizerResponseAtAge($AC$5,$C$1,$AC$8,$AC$6,$AC$7,"HD",$B15,"RESP")*$Q15,0)) -> 0 | AB15: 0 | AC15: =IF(B15="","",IF($AC$4=TRUE,GetFertilizerResponseAtAge($AC$5,$C$1,$AC$8,$AC$6,$AC$7,"BA",$B15,"RESP")*$Q15,0)) -> 0 | AE15: =IF(B15="","",IF($AG$4=TRUE,GetFertilizerResponseAtAge($AG$5,$C$1,$AG$8,$AG$6,$AG$7,"HD",$B15,"RESP")*$Q15,0)) -> 0 | AF15: 0 | AG15: =IF(B15="","",IF($AG$4=TRUE,GetFertilizerResponseAtAge($AG$5,$C$1,$AG$8,$AG$6,$AG$7,"BA",$B15,"RESP")*$Q15,0)) -> 0 | AH15: 1 | AI15: 0 | AJ15: 1 | AK15: 1 | AL15: 0.4368865615 | AM15: 4.51918519 | AN15: 4.956071752 | AP15: 1 | AQ15: 0 | AR15: 1 | AS15: 1 | AT15: 2.225308339 | AU15: 2.568950779 | AV15: 4.794259118 | AW15: 7.69537294 | AX15: 7.090260735 | AY15: 6.450734208 | AZ15: 5.775211473 | BB15: =+'Growth&Yield'!F7 -> 28 | BC15: =IF(B15="","",IF(BB15=0,0,SQRT(43560/'Growth&Yield'!$N7)/'Growth&Yield'!$Z7)) ->  | BD15: =IF(B15="","",IF(BB15=0,0,(EXP(-0.25*('Growth&Yield'!$Z7^(1.8333-1/60*$C$1))))*$E$7*$BB15*EXP(-$E$6*$BB15))) -> 0.02479126513 | BE15: =IF(B15="","",IF(Inputs!$K$8=TRUE,$BD15,0)) -> 0.02479126513 | BF15: =IF(B15="","",(EXP(-0.25*('Growth&Yield'!I7^(1.8333-1/60*$C$1))))*$G$7*$BB15*EXP(-$G$6*$BB15)) -> 1.099786241 | BG15: =IF(B15="","",IF(Inputs!$K$8=TRUE,$BF15,0)) -> 1.099786241 | BI15: =IF(B15="","",IF(BB15=0,0,(EXP(-0.25*('Growth&Yield'!I7^(1.8333-1/60*$C$1))))*$I$5*($BB15-$I$6)*EXP(-$I$4*($BB15-$I$6)))) -> 0.4120952963 | BJ15: =IF(B15="","",IF(BB15=0,0,(EXP(-0.25*('Growth&Yield'!I7^(1.8333-1/60*$C$1))))*$K$5*($BB15-$I$6)*EXP(-$K$4*($BB15-$I$6)))) -> 1.125522098 | BL15: =IF(B15="","",IF(BB15=0,0,IF(OR(Inputs!$K$14=FALSE,BB15<Inputs!$F$25),0,(EXP(-0.25*('Growth&Yield'!I7^(1.8333-1/60*$C$1))))*$M$6*(BB15-Inputs!$F$25)*EXP(-($M$7*(BB15-Inputs!$F$25)))))) -> 0 | BM15: =IF(B15="","",IF(BB15<(RParms!$A$31+$M$4),$BL15,$BL$514)) -> 0 | BN15: =IF(B15="","",IF(OR(RParms!$A$30=FALSE,$BB15<RParms!$A$31),0,(EXP(-0.25*('Growth&Yield'!I7^(1.8333-1/60*$C$1))))*$O$6*($BB15-RParms!$A$31)*EXP(-($O$7*($BB15-RParms!$A$31))))) -> 0 | BO15: =IF(B15="","",IF($BB15<(RParms!$A$31+$O$4),$BN15,$BN$514)) -> 0 | BQ15: =IF(B15="","",(EXP(-0.25*('Growth&Yield'!I7^(1.8333-1/60*$C$1))))) -> 0.901683774 | BS15: =IF(B15="","",IF($U$4=TRUE,GetFertilizerResponseAtAge($U$5,$C$1,$U$8,$U$6,$U$7,"HD",$BB15,"RESP")*$BQ15,0)) -> 3.92721559 | BT15: 4.006475596 | BU15: =IF(B15="","",IF($U$4=TRUE,GetFertilizerResponseAtAge($U$5,$C$1,$U$8,$U$6,$U$7,"BA",$BB15,"RESP")*$BQ15,0)) -> 0.06292966253 | BW15: =IF(B15="","",IF($Y$4=TRUE,GetFertilizerResponseAtAge($Y$5,$C$1,$Y$8,$Y$6,$Y$7,"HD",$BB15,"RESP")*$BQ15,0)) -> 0.4816881499 | BX15: 0.569677327 | BY15: =IF(B15="","",IF($Y$4=TRUE,GetFertilizerResponseAtAge($Y$5,$C$1,$Y$8,$Y$6,$Y$7,"BA",$BB15,"RESP")*$BQ15,0)) -> 2.784467907 | CA15: =IF($AC$4=TRUE,GetFertilizerResponseAtAge($AC$5,$C$1,$AC$8,$AC$6,$AC$7,"HD",$BB15,"RESP")*$BQ15,0) -> 0 | CB15: 0 | CC15: =IF($AC$4=TRUE,GetFertilizerResponseAtAge($AC$5,$C$1,$AC$8,$AC$6,$AC$7,"BA",$BB15,"RESP")*$BQ15,0) -> 0 | CE15: =IF($AG$4=TRUE,GetFertilizerResponseAtAge($AG$5,$C$1,$AG$8,$AG$6,$AG$7,"HD",$BB15,"RESP")*$BQ15,0) -> 0 | CF15: 0 | CG15: =IF($AG$4=TRUE,GetFertilizerResponseAtAge($AG$5,$C$1,$AG$8,$AG$6,$AG$7,"BA",$BB15,"RESP")*$BQ15,0) -> 0 | CH15: 1 | CI15: 0 | CJ15: 1 | CK15: 1 | CL15: 0.4368865615 | CM15: 4.51918519 | CN15: 4.956071752 | CP15: 1 | CQ15: 0 | CR15: 1 | CS15: 1 | CT15: 2.225308339 | CU15: 2.568950779 | CV15: 4.794259118 | DB15: =+'Growth&Yield'!G7 -> 28 | DC15: =IF(DB15="","",IF(DB15=0,0,SQRT(43560/'Growth&Yield'!$R7)/'Growth&Yield'!$AA7)) ->  | DD15: =IF(DB15="","",IF(DB15=0,0,(EXP(-0.25*('Growth&Yield'!$AA7^(1.8333-1/60*$C$1))))*$E$7*$BB15*EXP(-$E$6*$BB15))) -> 0.02479126513 | DE15: =IF(DB15="","",IF(Inputs!$K$8=TRUE,$DD15,0)) -> 0.02479126513 | DF15: =IF(DB15="","",(EXP(-0.25*('Growth&Yield'!J7^(1.8333-1/60*$C$1))))*$G$7*$DB15*EXP(-$G$6*$DB15)) -> 1.099786241 | DG15: =IF(DB15="","",IF(Inputs!$K$8=TRUE,$DF15,0)) -> 1.099786241 | DI15: =IF(DB15="","",IF(DB15=0,0,(EXP(-0.25*('Growth&Yield'!J7^(1.8333-1/60*$C$1))))*$I$5*($DB15-$I$6)*EXP(-$I$4*($DB15-$I$6)))) -> 0.4120952963 | DJ15: =IF(DB15="","",IF(DB15=0,0,(EXP(-0.25*('Growth&Yield'!J7^(1.8333-1/60*$C$1))))*$K$5*($DB15-$I$6)*EXP(-$K$4*($DB15-$I$6)))) -> 1.125522098 | DL15: =IF(DB15="","",IF(DB15=0,0,IF(OR(Inputs!$K$14=FALSE,DB15<Inputs!$F$25),0,(EXP(-0.25*('Growth&Yield'!J7^(1.8333-1/60*$C$1))))*$M$6*(DB15-Inputs!$F$25)*EXP(-($M$7*(DB15-Inputs!$F$25)))))) -> 0 | DM15: =IF(DB15="","",IF(DB15<(RParms!$A$31+$M$4),$DL15,$DL$514)) -> 0 | DN15: =IF(DB15="","",IF(OR(RParms!$A$30=FALSE,$DB15<RParms!$A$31),0,(EXP(-0.25*('Growth&Yield'!J7^(1.8333-1/60*$C$1))))*$O$6*($DB15-RParms!$A$31)*EXP(-($O$7*($DB15-RParms!$A$31))))) -> 0 | DO15: =IF(DB15="","",IF($DB15<(RParms!$A$31+$O$4),$DN15,$DN$514)) -> 0 | DQ15: =IF(DB15="","",(EXP(-0.25*('Growth&Yield'!J7^(1.8333-1/60*$C$1))))) -> 0.901683774 | DS15: =IF(DB15="","",IF($U$4=TRUE,GetFertilizerResponseAtAge($U$5,$C$1,$U$8,$U$6,$U$7,"HD",$DB15,"RESP")*$DQ15,0)) -> 3.92721559 | DT15: 4.006475596 | DU15: =IF(DB15="","",IF($U$4=TRUE,GetFertilizerResponseAtAge($U$5,$C$1,$U$8,$U$6,$U$7,"BA",$DB15,"RESP")*$DQ15,0)) -> 0.06292966253 | DW15: =IF(DB15="","",IF($Y$4=TRUE,GetFertilizerResponseAtAge($Y$5,$C$1,$Y$8,$Y$6,$Y$7,"HD",$DB15,"RESP")*$DQ15,0)) -> 0.4816881499 | DX15: 0.569677327 | DY15: =IF(DB15="","",IF($Y$4=TRUE,GetFertilizerResponseAtAge($Y$5,$C$1,$Y$8,$Y$6,$Y$7,"BA",$DB15,"RESP")*$DQ15,0)) -> 2.784467907 | EA15: =IF(DB15="","",IF($AC$4=TRUE,GetFertilizerResponseAtAge($AC$5,$C$1,$AC$8,$AC$6,$AC$7,"HD",$DB15,"RESP")*$DQ15,0)) -> 0 | EB15: 0 | EC15: =IF(DB15="","",IF($AC$4=TRUE,GetFertilizerResponseAtAge($AC$5,$C$1,$AC$8,$AC$6,$AC$7,"BA",$DB15,"RESP")*$DQ15,0)) -> 0 | EE15: =IF(DB15="","",IF($AG$4=TRUE,GetFertilizerResponseAtAge($AG$5,$C$1,$AG$8,$AG$6,$AG$7,"HD",$DB15,"RESP")*$DQ15,0)) -> 0 | EF15: 0 | EG15: =IF(DB15="","",IF($AG$4=TRUE,GetFertilizerResponseAtAge($AG$5,$C$1,$AG$8,$AG$6,$AG$7,"BA",$DB15,"RESP")*$DQ15,0)) -> 0 | EH15: 1 | EI15: 0 | EJ15: 1 | EK15: 1 | EL15: 0.4368865615 | EM15: 4.51918519 | EN15: 4.956071752 | EP15: 1 | EQ15: 0 | ER15: 1 | ES15: 1 | ET15: 2.225308339 | EU15: 2.568950779 | EV15: 4.794259118
A16: =+'Growth&Yield'!A8 -> 4 | B16: =+'Growth&Yield'!E8 -> 29 | C16: =IF(B16="","",IF(B16=0,0,SQRT(43560/'Growth&Yield'!$K8)/'Growth&Yield'!$Y8)) -> 0.1209416056 | D16: =IF(B16="","",IF(B16=0,0,(EXP(-0.25*('Growth&Yield'!$Y8^(1.8333-1/60*$C$1))))*$E$7*$B16*EXP(-$E$6*$B16))) -> 0.02390428871 | E16: =IF(B16="","",IF(Inputs!$K$8=TRUE,$D16,0)) -> 0.02390428871 | F16: =IF(B16="","",(EXP(-0.25*('Growth&Yield'!H8^(1.8333-1/60*$C$1))))*$G$7*$B16*EXP(-$G$6*$B16)) -> 1.065807019 | G16: =IF(B16="","",IF(Inputs!$K$8=TRUE,$F16,0)) -> 1.065807019 | I16: =IF(B16="","",IF('Growth&Yield'!E8=0,0,(EXP(-0.25*('Growth&Yield'!H8^(1.8333-1/60*$C$1))))*$I$5*($B16-$I$6)*EXP(-$I$4*($B16-$I$6)))) -> 0.3707467453 | J16: =IF(B16="","",IF(B16=0,0,(EXP(-0.25*('Growth&Yield'!H8^(1.8333-1/60*$C$1))))*$K$5*($B16-$I$6)*EXP(-$K$4*($B16-$I$6)))) -> 1.022497509 | L16: =IF(B16="","",IF(B16=0,0,IF(OR(Inputs!$K$14=FALSE,B16<Inputs!$F$25),0,(EXP(-0.25*('Growth&Yield'!H8^(1.8333-1/60*$C$1))))*$M$6*(B16-Inputs!$F$25)*EXP(-($M$7*(B16-Inputs!$F$25)))))) -> 0 | M16: =IF(B16="","",IF(B16<(RParms!$A$31+$M$4),$L16,$L$514)) -> 0 | N16: =IF(B16="","",IF(OR(RParms!$A$30=FALSE,$B16<RParms!$A$31),0,(EXP(-0.25*('Growth&Yield'!H8^(1.8333-1/60*$C$1))))*$O$6*($B16-RParms!$A$31)*EXP(-($O$7*($B16-RParms!$A$31))))) -> 0 | O16: =IF(B16="","",IF($B16<(RParms!$A$31+$O$4),$N16,$N$514)) -> 0 | Q16: =IF(B16="","",(EXP(-0.25*('Growth&Yield'!H8^(1.8333-1/60*$C$1))))) -> 0.9017328584 | S16: =IF(B16="","",IF($U$4=TRUE,GetFertilizerResponseAtAge($U$5,$C$1,$U$8,$U$6,$U$7,"HD",$B16,"RESP")*$Q16,0)) -> 3.876718961 | T16: 4.006475596 | U16: =IF(B16="","",IF($U$4=TRUE,GetFertilizerResponseAtAge($U$5,$C$1,$U$8,$U$6,$U$7,"BA",$B16,"RESP")*$Q16,0)) -> 0.05447357908 | W16: =IF(B16="","",IF($Y$4=TRUE,GetFertilizerResponseAtAge($Y$5,$C$1,$Y$8,$Y$6,$Y$7,"HD",$B16,"RESP")*$Q16,0)) -> 0.4407868504 | X16: 0.569677327 | Y16: =IF(B16="","",IF($Y$4=TRUE,GetFertilizerResponseAtAge($Y$5,$C$1,$Y$8,$Y$6,$Y$7,"BA",$B16,"RESP")*$Q16,0)) -> 2.504723764 | AA16: =IF(B16="","",IF($AC$4=TRUE,GetFertilizerResponseAtAge($AC$5,$C$1,$AC$8,$AC$6,$AC$7,"HD",$B16,"RESP")*$Q16,0)) -> 0 | AB16: 0 | AC16: =IF(B16="","",IF($AC$4=TRUE,GetFertilizerResponseAtAge($AC$5,$C$1,$AC$8,$AC$6,$AC$7,"BA",$B16,"RESP")*$Q16,0)) -> 0 | AE16: =IF(B16="","",IF($AG$4=TRUE,GetFertilizerResponseAtAge($AG$5,$C$1,$AG$8,$AG$6,$AG$7,"HD",$B16,"RESP")*$Q16,0)) -> 0 | AF16: 0 | AG16: =IF(B16="","",IF($AG$4=TRUE,GetFertilizerResponseAtAge($AG$5,$C$1,$AG$8,$AG$6,$AG$7,"BA",$B16,"RESP")*$Q16,0)) -> 0 | AH16: 1 | AI16: 0 | AJ16: 1 | AK16: 1 | AL16: 0.394651034 | AM16: 4.51918519 | AN16: 4.913836224 | AP16: 1 | AQ16: 0 | AR16: 1 | AS16: 1 | AT16: 2.088304528 | AU16: 2.308724967 | AV16: 4.397029494 | AW16: 10.42385128 | AX16: 9.576805546 | AY16: 8.684194924 | AZ16: 7.744749578 | BB16: =+'Growth&Yield'!F8 -> 29 | BC16: =IF(B16="","",IF(BB16=0,0,SQRT(43560/'Growth&Yield'!$N8)/'Growth&Yield'!$Z8)) ->  | BD16: =IF(B16="","",IF(BB16=0,0,(EXP(-0.25*('Growth&Yield'!$Z8^(1.8333-1/60*$C$1))))*$E$7*$BB16*EXP(-$E$6*$BB16))) -> 0.02390428871 | BE16: =IF(B16="","",IF(Inputs!$K$8=TRUE,$BD16,0)) -> 0.02390428871 | BF16: =IF(B16="","",(EXP(-0.25*('Growth&Yield'!I8^(1.8333-1/60*$C$1))))*$G$7*$BB16*EXP(-$G$6*$BB16)) -> 1.065807019 | BG16: =IF(B16="","",IF(Inputs!$K$8=TRUE,$BF16,0)) -> 1.065807019 | BI16: =IF(B16="","",IF(BB16=0,0,(EXP(-0.25*('Growth&Yield'!I8^(1.8333-1/60*$C$1))))*$I$5*($BB16-$I$6)*EXP(-$I$4*($BB16-$I$6)))) -> 0.3707467453 | BJ16: =IF(B16="","",IF(BB16=0,0,(EXP(-0.25*('Growth&Yield'!I8^(1.8333-1/60*$C$1))))*$K$5*($BB16-$I$6)*EXP(-$K$4*($BB16-$I$6)))) -> 1.022497509 | BL16: =IF(B16="","",IF(BB16=0,0,IF(OR(Inputs!$K$14=FALSE,BB16<Inputs!$F$25),0,(EXP(-0.25*('Growth&Yield'!I8^(1.8333-1/60*$C$1))))*$M$6*(BB16-Inputs!$F$25)*EXP(-($M$7*(BB16-Inputs!$F$25)))))) -> 0 | BM16: =IF(B16="","",IF(BB16<(RParms!$A$31+$M$4),$BL16,$BL$514)) -> 0 | BN16: =IF(B16="","",IF(OR(RParms!$A$30=FALSE,$BB16<RParms!$A$31),0,(EXP(-0.25*('Growth&Yield'!I8^(1.8333-1/60*$C$1))))*$O$6*($BB16-RParms!$A$31)*EXP(-($O$7*($BB16-RParms!$A$31))))) -> 0 | BO16: =IF(B16="","",IF($BB16<(RParms!$A$31+$O$4),$BN16,$BN$514)) -> 0 | BQ16: =IF(B16="","",(EXP(-0.25*('Growth&Yield'!I8^(1.8333-1/60*$C$1))))) -> 0.9017328584 | BS16: =IF(B16="","",IF($U$4=TRUE,GetFertilizerResponseAtAge($U$5,$C$1,$U$8,$U$6,$U$7,"HD",$BB16,"RESP")*$BQ16,0)) -> 3.876718961 | BT16: 4.006475596 | BU16: =IF(B16="","",IF($U$4=TRUE,GetFertilizerResponseAtAge($U$5,$C$1,$U$8,$U$6,$U$7,"BA",$BB16,"RESP")*$BQ16,0)) -> 0.05447357908 | BW16: =IF(B16="","",IF($Y$4=TRUE,GetFertilizerResponseAtAge($Y$5,$C$1,$Y$8,$Y$6,$Y$7,"HD",$BB16,"RESP")*$BQ16,0)) -> 0.4407868504 | BX16: 0.569677327 | BY16: =IF(B16="","",IF($Y$4=TRUE,GetFertilizerResponseAtAge($Y$5,$C$1,$Y$8,$Y$6,$Y$7,"BA",$BB16,"RESP")*$BQ16,0)) -> 2.504723764 | CA16: =IF($AC$4=TRUE,GetFertilizerResponseAtAge($AC$5,$C$1,$AC$8,$AC$6,$AC$7,"HD",$BB16,"RESP")*$BQ16,0) -> 0 | CB16: 0 | CC16: =IF($AC$4=TRUE,GetFertilizerResponseAtAge($AC$5,$C$1,$AC$8,$AC$6,$AC$7,"BA",$BB16,"RESP")*$BQ16,0) -> 0 | CE16: =IF($AG$4=TRUE,GetFertilizerResponseAtAge($AG$5,$C$1,$AG$8,$AG$6,$AG$7,"HD",$BB16,"RESP")*$BQ16,0) -> 0 | CF16: 0 | CG16: =IF($AG$4=TRUE,GetFertilizerResponseAtAge($AG$5,$C$1,$AG$8,$AG$6,$AG$7,"BA",$BB16,"RESP")*$BQ16,0) -> 0 | CH16: 1 | CI16: 0 | CJ16: 1 | CK16: 1 | CL16: 0.394651034 | CM16: 4.51918519 | CN16: 4.913836224 | CP16: 1 | CQ16: 0 | CR16: 1 | CS16: 1 | CT16: 2.088304528 | CU16: 2.308724967 | CV16: 4.397029494 | DB16: =+'Growth&Yield'!G8 -> 29 | DC16: =IF(DB16="","",IF(DB16=0,0,SQRT(43560/'Growth&Yield'!$R8)/'Growth&Yield'!$AA8)) ->  | DD16: =IF(DB16="","",IF(DB16=0,0,(EXP(-0.25*('Growth&Yield'!$AA8^(1.8333-1/60*$C$1))))*$E$7*$BB16*EXP(-$E$6*$BB16))) -> 0.02390428871 | DE16: =IF(DB16="","",IF(Inputs!$K$8=TRUE,$DD16,0)) -> 0.02390428871 | DF16: =IF(DB16="","",(EXP(-0.25*('Growth&Yield'!J8^(1.8333-1/60*$C$1))))*$G$7*$DB16*EXP(-$G$6*$DB16)) -> 1.065807019 | DG16: =IF(DB16="","",IF(Inputs!$K$8=TRUE,$DF16,0)) -> 1.065807019 | DI16: =IF(DB16="","",IF(DB16=0,0,(EXP(-0.25*('Growth&Yield'!J8^(1.8333-1/60*$C$1))))*$I$5*($DB16-$I$6)*EXP(-$I$4*($DB16-$I$6)))) -> 0.3707467453 | DJ16: =IF(DB16="","",IF(DB16=0,0,(EXP(-0.25*('Growth&Yield'!J8^(1.8333-1/60*$C$1))))*$K$5*($DB16-$I$6)*EXP(-$K$4*($DB16-$I$6)))) -> 1.022497509 | DL16: =IF(DB16="","",IF(DB16=0,0,IF(OR(Inputs!$K$14=FALSE,DB16<Inputs!$F$25),0,(EXP(-0.25*('Growth&Yield'!J8^(1.8333-1/60*$C$1))))*$M$6*(DB16-Inputs!$F$25)*EXP(-($M$7*(DB16-Inputs!$F$25)))))) -> 0 | DM16: =IF(DB16="","",IF(DB16<(RParms!$A$31+$M$4),$DL16,$DL$514)) -> 0 | DN16: =IF(DB16="","",IF(OR(RParms!$A$30=FALSE,$DB16<RParms!$A$31),0,(EXP(-0.25*('Growth&Yield'!J8^(1.8333-1/60*$C$1))))*$O$6*($DB16-RParms!$A$31)*EXP(-($O$7*($DB16-RParms!$A$31))))) -> 0 | DO16: =IF(DB16="","",IF($DB16<(RParms!$A$31+$O$4),$DN16,$DN$514)) -> 0 | DQ16: =IF(DB16="","",(EXP(-0.25*('Growth&Yield'!J8^(1.8333-1/60*$C$1))))) -> 0.9017328584 | DS16: =IF(DB16="","",IF($U$4=TRUE,GetFertilizerResponseAtAge($U$5,$C$1,$U$8,$U$6,$U$7,"HD",$DB16,"RESP")*$DQ16,0)) -> 3.876718961 | DT16: 4.006475596 | DU16: =IF(DB16="","",IF($U$4=TRUE,GetFertilizerResponseAtAge($U$5,$C$1,$U$8,$U$6,$U$7,"BA",$DB16,"RESP")*$DQ16,0)) -> 0.05447357908 | DW16: =IF(DB16="","",IF($Y$4=TRUE,GetFertilizerResponseAtAge($Y$5,$C$1,$Y$8,$Y$6,$Y$7,"HD",$DB16,"RESP")*$DQ16,0)) -> 0.4407868504 | DX16: 0.569677327 | DY16: =IF(DB16="","",IF($Y$4=TRUE,GetFertilizerResponseAtAge($Y$5,$C$1,$Y$8,$Y$6,$Y$7,"BA",$DB16,"RESP")*$DQ16,0)) -> 2.504723764 | EA16: =IF(DB16="","",IF($AC$4=TRUE,GetFertilizerResponseAtAge($AC$5,$C$1,$AC$8,$AC$6,$AC$7,"HD",$DB16,"RESP")*$DQ16,0)) -> 0 | EB16: 0 | EC16: =IF(DB16="","",IF($AC$4=TRUE,GetFertilizerResponseAtAge($AC$5,$C$1,$AC$8,$AC$6,$AC$7,"BA",$DB16,"RESP")*$DQ16,0)) -> 0 | EE16: =IF(DB16="","",IF($AG$4=TRUE,GetFertilizerResponseAtAge($AG$5,$C$1,$AG$8,$AG$6,$AG$7,"HD",$DB16,"RESP")*$DQ16,0)) -> 0 | EF16: 0 | EG16: =IF(DB16="","",IF($AG$4=TRUE,GetFertilizerResponseAtAge($AG$5,$C$1,$AG$8,$AG$6,$AG$7,"BA",$DB16,"RESP")*$DQ16,0)) -> 0 | EH16: 1 | EI16: 0 | EJ16: 1 | EK16: 1 | EL16: 0.394651034 | EM16: 4.51918519 | EN16: 4.913836224 | EP16: 1 | EQ16: 0 | ER16: 1 | ES16: 1 | ET16: 2.088304528 | EU16: 2.308724967 | EV16: 4.397029494
A17: =+'Growth&Yield'!A9 -> 5 | B17: =+'Growth&Yield'!E9 -> 30 | C17: =IF(B17="","",IF(B17=0,0,SQRT(43560/'Growth&Yield'!$K9)/'Growth&Yield'!$Y9)) -> 0.1196400924 | D17: =IF(B17="","",IF(B17=0,0,(EXP(-0.25*('Growth&Yield'!$Y9^(1.8333-1/60*$C$1))))*$E$7*$B17*EXP(-$E$6*$B17))) -> 0.0230257423 | E17: =IF(B17="","",IF(Inputs!$K$8=TRUE,$D17,0)) -> 0.0230257423 | F17: =IF(B17="","",(EXP(-0.25*('Growth&Yield'!H9^(1.8333-1/60*$C$1))))*$G$7*$B17*EXP(-$G$6*$B17)) -> 1.031637307 | G17: =IF(B17="","",IF(Inputs!$K$8=TRUE,$F17,0)) -> 1.031637307 | I17: =IF(B17="","",IF('Growth&Yield'!E9=0,0,(EXP(-0.25*('Growth&Yield'!H9^(1.8333-1/60*$C$1))))*$I$5*($B17-$I$6)*EXP(-$I$4*($B17-$I$6)))) -> 0.3331176279 | J17: =IF(B17="","",IF(B17=0,0,(EXP(-0.25*('Growth&Yield'!H9^(1.8333-1/60*$C$1))))*$K$5*($B17-$I$6)*EXP(-$K$4*($B17-$I$6)))) -> 0.927707503 | L17: =IF(B17="","",IF(B17=0,0,IF(OR(Inputs!$K$14=FALSE,B17<Inputs!$F$25),0,(EXP(-0.25*('Growth&Yield'!H9^(1.8333-1/60*$C$1))))*$M$6*(B17-Inputs!$F$25)*EXP(-($M$7*(B17-Inputs!$F$25)))))) -> 0 | M17: =IF(B17="","",IF(B17<(RParms!$A$31+$M$4),$L17,$L$514)) -> 0 | N17: =IF(B17="","",IF(OR(RParms!$A$30=FALSE,$B17<RParms!$A$31),0,(EXP(-0.25*('Growth&Yield'!H9^(1.8333-1/60*$C$1))))*$O$6*($B17-RParms!$A$31)*EXP(-($O$7*($B17-RParms!$A$31))))) -> 0 | O17: =IF(B17="","",IF($B17<(RParms!$A$31+$O$4),$N17,$N$514)) -> 0 | Q17: =IF(B17="","",(EXP(-0.25*('Growth&Yield'!H9^(1.8333-1/60*$C$1))))) -> 0.9017713122 | S17: =IF(B17="","",IF($U$4=TRUE,GetFertilizerResponseAtAge($U$5,$C$1,$U$8,$U$6,$U$7,"HD",$B17,"RESP")*$Q17,0)) -> 3.820182704 | T17: 4.006475596 | U17: =IF(B17="","",IF($U$4=TRUE,GetFertilizerResponseAtAge($U$5,$C$1,$U$8,$U$6,$U$7,"BA",$B17,"RESP")*$Q17,0)) -> 0.04707135051 | W17: =IF(B17="","",IF($Y$4=TRUE,GetFertilizerResponseAtAge($Y$5,$C$1,$Y$8,$Y$6,$Y$7,"HD",$B17,"RESP")*$Q17,0)) -> 0.4022364988 | X17: 0.569677327 | Y17: =IF(B17="","",IF($Y$4=TRUE,GetFertilizerResponseAtAge($Y$5,$C$1,$Y$8,$Y$6,$Y$7,"BA",$B17,"RESP")*$Q17,0)) -> 2.246816651 | AA17: =IF(B17="","",IF($AC$4=TRUE,GetFertilizerResponseAtAge($AC$5,$C$1,$AC$8,$AC$6,$AC$7,"HD",$B17,"RESP")*$Q17,0)) -> 0 | AB17: 0 | AC17: =IF(B17="","",IF($AC$4=TRUE,GetFertilizerResponseAtAge($AC$5,$C$1,$AC$8,$AC$6,$AC$7,"BA",$B17,"RESP")*$Q17,0)) -> 0 | AE17: =IF(B17="","",IF($AG$4=TRUE,GetFertilizerResponseAtAge($AG$5,$C$1,$AG$8,$AG$6,$AG$7,"HD",$B17,"RESP")*$Q17,0)) -> 0 | AF17: 0 | AG17: =IF(B17="","",IF($AG$4=TRUE,GetFertilizerResponseAtAge($AG$5,$C$1,$AG$8,$AG$6,$AG$7,"BA",$B17,"RESP")*$Q17,0)) -> 0 | AH17: 1 | AI17: 0 | AJ17: 1 | AK17: 1 | AL17: 0.3561433702 | AM17: 4.51918519 | AN17: 4.87532856 | AP17: 1 | AQ17: 0 | AR17: 1 | AS17: 1 | AT17: 1.95934481 | AU17: 2.069206336 | AV17: 4.028551146 | AW17: 12.6914201 | AX17: 11.62444622 | AY17: 10.50418152 | AZ17: 9.330163819 | BB17: =+'Growth&Yield'!F9 -> 30 | BC17: =IF(B17="","",IF(BB17=0,0,SQRT(43560/'Growth&Yield'!$N9)/'Growth&Yield'!$Z9)) ->  | BD17: =IF(B17="","",IF(BB17=0,0,(EXP(-0.25*('Growth&Yield'!$Z9^(1.8333-1/60*$C$1))))*$E$7*$BB17*EXP(-$E$6*$BB17))) -> 0.0230257423 | BE17: =IF(B17="","",IF(Inputs!$K$8=TRUE,$BD17,0)) -> 0.0230257423 | BF17: =IF(B17="","",(EXP(-0.25*('Growth&Yield'!I9^(1.8333-1/60*$C$1))))*$G$7*$BB17*EXP(-$G$6*$BB17)) -> 1.031637307 | BG17: =IF(B17="","",IF(Inputs!$K$8=TRUE,$BF17,0)) -> 1.031637307 | BI17: =IF(B17="","",IF(BB17=0,0,(EXP(-0.25*('Growth&Yield'!I9^(1.8333-1/60*$C$1))))*$I$5*($BB17-$I$6)*EXP(-$I$4*($BB17-$I$6)))) -> 0.3331176279 | BJ17: =IF(B17="","",IF(BB17=0,0,(EXP(-0.25*('Growth&Yield'!I9^(1.8333-1/60*$C$1))))*$K$5*($BB17-$I$6)*EXP(-$K$4*($BB17-$I$6)))) -> 0.927707503 | BL17: =IF(B17="","",IF(BB17=0,0,IF(OR(Inputs!$K$14=FALSE,BB17<Inputs!$F$25),0,(EXP(-0.25*('Growth&Yield'!I9^(1.8333-1/60*$C$1))))*$M$6*(BB17-Inputs!$F$25)*EXP(-($M$7*(BB17-Inputs!$F$25)))))) -> 0 | BM17: =IF(B17="","",IF(BB17<(RParms!$A$31+$M$4),$BL17,$BL$514)) -> 0 | BN17: =IF(B17="","",IF(OR(RParms!$A$30=FALSE,$BB17<RParms!$A$31),0,(EXP(-0.25*('Growth&Yield'!I9^(1.8333-1/60*$C$1))))*$O$6*($BB17-RParms!$A$31)*EXP(-($O$7*($BB17-RParms!$A$31))))) -> 0 | BO17: =IF(B17="","",IF($BB17<(RParms!$A$31+$O$4),$BN17,$BN$514)) -> 0 | BQ17: =IF(B17="","",(EXP(-0.25*('Growth&Yield'!I9^(1.8333-1/60*$C$1))))) -> 0.9017713122 | BS17: =IF(B17="","",IF($U$4=TRUE,GetFertilizerResponseAtAge($U$5,$C$1,$U$8,$U$6,$U$7,"HD",$BB17,"RESP")*$BQ17,0)) -> 3.820182704 | BT17: 4.006475596 | BU17: =IF(B17="","",IF($U$4=TRUE,GetFertilizerResponseAtAge($U$5,$C$1,$U$8,$U$6,$U$7,"BA",$BB17,"RESP")*$BQ17,0)) -> 0.04707135051 | BW17: =IF(B17="","",IF($Y$4=TRUE,GetFertilizerResponseAtAge($Y$5,$C$1,$Y$8,$Y$6,$Y$7,"HD",$BB17,"RESP")*$BQ17,0)) -> 0.4022364988 | BX17: 0.569677327 | BY17: =IF(B17="","",IF($Y$4=TRUE,GetFertilizerResponseAtAge($Y$5,$C$1,$Y$8,$Y$6,$Y$7,"BA",$BB17,"RESP")*$BQ17,0)) -> 2.246816651 | CA17: =IF($AC$4=TRUE,GetFertilizerResponseAtAge($AC$5,$C$1,$AC$8,$AC$6,$AC$7,"HD",$BB17,"RESP")*$BQ17,0) -> 0 | CB17: 0 | CC17: =IF($AC$4=TRUE,GetFertilizerResponseAtAge($AC$5,$C$1,$AC$8,$AC$6,$AC$7,"BA",$BB17,"RESP")*$BQ17,0) -> 0 | CE17: =IF($AG$4=TRUE,GetFertilizerResponseAtAge($AG$5,$C$1,$AG$8,$AG$6,$AG$7,"HD",$BB17,"RESP")*$BQ17,0) -> 0 | CF17: 0 | CG17: =IF($AG$4=TRUE,GetFertilizerResponseAtAge($AG$5,$C$1,$AG$8,$AG$6,$AG$7,"BA",$BB17,"RESP")*$BQ17,0) -> 0 | CH17: 1 | CI17: 0 | CJ17: 1 | CK17: 1 | CL17: 0.3561433702 | CM17: 4.51918519 | CN17: 4.87532856 | CP17: 1 | CQ17: 0 | CR17: 1 | CS17: 1 | CT17: 1.95934481 | CU17: 2.069206336 | CV17: 4.028551146 | DB17: =+'Growth&Yield'!G9 -> 30 | DC17: =IF(DB17="","",IF(DB17=0,0,SQRT(43560/'Growth&Yield'!$R9)/'Growth&Yield'!$AA9)) ->  | DD17: =IF(DB17="","",IF(DB17=0,0,(EXP(-0.25*('Growth&Yield'!$AA9^(1.8333-1/60*$C$1))))*$E$7*$BB17*EXP(-$E$6*$BB17))) -> 0.0230257423 | DE17: =IF(DB17="","",IF(Inputs!$K$8=TRUE,$DD17,0)) -> 0.0230257423 | DF17: =IF(DB17="","",(EXP(-0.25*('Growth&Yield'!J9^(1.8333-1/60*$C$1))))*$G$7*$DB17*EXP(-$G$6*$DB17)) -> 1.031637307 | DG17: =IF(DB17="","",IF(Inputs!$K$8=TRUE,$DF17,0)) -> 1.031637307 | DI17: =IF(DB17="","",IF(DB17=0,0,(EXP(-0.25*('Growth&Yield'!J9^(1.8333-1/60*$C$1))))*$I$5*($DB17-$I$6)*EXP(-$I$4*($DB17-$I$6)))) -> 0.3331176279 | DJ17: =IF(DB17="","",IF(DB17=0,0,(EXP(-0.25*('Growth&Yield'!J9^(1.8333-1/60*$C$1))))*$K$5*($DB17-$I$6)*EXP(-$K$4*($DB17-$I$6)))) -> 0.927707503 | DL17: =IF(DB17="","",IF(DB17=0,0,IF(OR(Inputs!$K$14=FALSE,DB17<Inputs!$F$25),0,(EXP(-0.25*('Growth&Yield'!J9^(1.8333-1/60*$C$1))))*$M$6*(DB17-Inputs!$F$25)*EXP(-($M$7*(DB17-Inputs!$F$25)))))) -> 0 | DM17: =IF(DB17="","",IF(DB17<(RParms!$A$31+$M$4),$DL17,$DL$514)) -> 0 | DN17: =IF(DB17="","",IF(OR(RParms!$A$30=FALSE,$DB17<RParms!$A$31),0,(EXP(-0.25*('Growth&Yield'!J9^(1.8333-1/60*$C$1))))*$O$6*($DB17-RParms!$A$31)*EXP(-($O$7*($DB17-RParms!$A$31))))) -> 0 | DO17: =IF(DB17="","",IF($DB17<(RParms!$A$31+$O$4),$DN17,$DN$514)) -> 0 | DQ17: =IF(DB17="","",(EXP(-0.25*('Growth&Yield'!J9^(1.8333-1/60*$C$1))))) -> 0.9017713122 | DS17: =IF(DB17="","",IF($U$4=TRUE,GetFertilizerResponseAtAge($U$5,$C$1,$U$8,$U$6,$U$7,"HD",$DB17,"RESP")*$DQ17,0)) -> 3.820182704 | DT17: 4.006475596 | DU17: =IF(DB17="","",IF($U$4=TRUE,GetFertilizerResponseAtAge($U$5,$C$1,$U$8,$U$6,$U$7,"BA",$DB17,"RESP")*$DQ17,0)) -> 0.04707135051 | DW17: =IF(DB17="","",IF($Y$4=TRUE,GetFertilizerResponseAtAge($Y$5,$C$1,$Y$8,$Y$6,$Y$7,"HD",$DB17,"RESP")*$DQ17,0)) -> 0.4022364988 | DX17: 0.569677327 | DY17: =IF(DB17="","",IF($Y$4=TRUE,GetFertilizerResponseAtAge($Y$5,$C$1,$Y$8,$Y$6,$Y$7,"BA",$DB17,"RESP")*$DQ17,0)) -> 2.246816651 | EA17: =IF(DB17="","",IF($AC$4=TRUE,GetFertilizerResponseAtAge($AC$5,$C$1,$AC$8,$AC$6,$AC$7,"HD",$DB17,"RESP")*$DQ17,0)) -> 0 | EB17: 0 | EC17: =IF(DB17="","",IF($AC$4=TRUE,GetFertilizerResponseAtAge($AC$5,$C$1,$AC$8,$AC$6,$AC$7,"BA",$DB17,"RESP")*$DQ17,0)) -> 0 | EE17: =IF(DB17="","",IF($AG$4=TRUE,GetFertilizerResponseAtAge($AG$5,$C$1,$AG$8,$AG$6,$AG$7,"HD",$DB17,"RESP")*$DQ17,0)) -> 0 | EF17: 0 | EG17: =IF(DB17="","",IF($AG$4=TRUE,GetFertilizerResponseAtAge($AG$5,$C$1,$AG$8,$AG$6,$AG$7,"BA",$DB17,"RESP")*$DQ17,0)) -> 0 | EH17: 1 | EI17: 0 | EJ17: 1 | EK17: 1 | EL17: 0.3561433702 | EM17: 4.51918519 | EN17: 4.87532856 | EP17: 1 | EQ17: 0 | ER17: 1 | ES17: 1 | ET17: 1.95934481 | EU17: 2.069206336 | EV17: 4.028551146
A18: =+'Growth&Yield'!A10 -> 6 | B18: =+'Growth&Yield'!E10 ->  | C18: =IF(B18="","",IF(B18=0,0,SQRT(43560/'Growth&Yield'!$K10)/'Growth&Yield'!$Y10)) ->  | D18: =IF(B18="","",IF(B18=0,0,(EXP(-0.25*('Growth&Yield'!$Y10^(1.8333-1/60*$C$1))))*$E$7*$B18*EXP(-$E$6*$B18))) ->  | E18: =IF(B18="","",IF(Inputs!$K$8=TRUE,$D18,0)) ->  | F18: =IF(B18="","",(EXP(-0.25*('Growth&Yield'!H10^(1.8333-1/60*$C$1))))*$G$7*$B18*EXP(-$G$6*$B18)) ->  | G18: =IF(B18="","",IF(Inputs!$K$8=TRUE,$F18,0)) ->  | I18: =IF(B18="","",IF('Growth&Yield'!E10=0,0,(EXP(-0.25*('Growth&Yield'!H10^(1.8333-1/60*$C$1))))*$I$5*($B18-$I$6)*EXP(-$I$4*($B18-$I$6)))) ->  | J18: =IF(B18="","",IF(B18=0,0,(EXP(-0.25*('Growth&Yield'!H10^(1.8333-1/60*$C$1))))*$K$5*($B18-$I$6)*EXP(-$K$4*($B18-$I$6)))) ->  | L18: =IF(B18="","",IF(B18=0,0,IF(OR(Inputs!$K$14=FALSE,B18<Inputs!$F$25),0,(EXP(-0.25*('Growth&Yield'!H10^(1.8333-1/60*$C$1))))*$M$6*(B18-Inputs!$F$25)*EXP(-($M$7*(B18-Inputs!$F$25)))))) ->  | M18: =IF(B18="","",IF(B18<(RParms!$A$31+$M$4),$L18,$L$514)) ->  | N18: =IF(B18="","",IF(OR(RParms!$A$30=FALSE,$B18<RParms!$A$31),0,(EXP(-0.25*('Growth&Yield'!H10^(1.8333-1/60*$C$1))))*$O$6*($B18-RParms!$A$31)*EXP(-($O$7*($B18-RParms!$A$31))))) ->  | O18: =IF(B18="","",IF($B18<(RParms!$A$31+$O$4),$N18,$N$514)) ->  | Q18: =IF(B18="","",(EXP(-0.25*('Growth&Yield'!H10^(1.8333-1/60*$C$1))))) ->  | S18: =IF(B18="","",IF($U$4=TRUE,GetFertilizerResponseAtAge($U$5,$C$1,$U$8,$U$6,$U$7,"HD",$B18,"RESP")*$Q18,0)) ->  | U18: =IF(B18="","",IF($U$4=TRUE,GetFertilizerResponseAtAge($U$5,$C$1,$U$8,$U$6,$U$7,"BA",$B18,"RESP")*$Q18,0)) ->  | W18: =IF(B18="","",IF($Y$4=TRUE,GetFertilizerResponseAtAge($Y$5,$C$1,$Y$8,$Y$6,$Y$7,"HD",$B18,"RESP")*$Q18,0)) ->  | Y18: =IF(B18="","",IF($Y$4=TRUE,GetFertilizerResponseAtAge($Y$5,$C$1,$Y$8,$Y$6,$Y$7,"BA",$B18,"RESP")*$Q18,0)) ->  | AA18: =IF(B18="","",IF($AC$4=TRUE,GetFertilizerResponseAtAge($AC$5,$C$1,$AC$8,$AC$6,$AC$7,"HD",$B18,"RESP")*$Q18,0)) ->  | AC18: =IF(B18="","",IF($AC$4=TRUE,GetFertilizerResponseAtAge($AC$5,$C$1,$AC$8,$AC$6,$AC$7,"BA",$B18,"RESP")*$Q18,0)) ->  | AE18: =IF(B18="","",IF($AG$4=TRUE,GetFertilizerResponseAtAge($AG$5,$C$1,$AG$8,$AG$6,$AG$7,"HD",$B18,"RESP")*$Q18,0)) ->  | AG18: =IF(B18="","",IF($AG$4=TRUE,GetFertilizerResponseAtAge($AG$5,$C$1,$AG$8,$AG$6,$AG$7,"BA",$B18,"RESP")*$Q18,0)) ->  | AW18: 14.544209 | AX18: 13.2796326 | AY18: 11.95728084 | AZ18: 10.57785384 | BB18: =+'Growth&Yield'!F10 ->  | BC18: =IF(B18="","",IF(BB18=0,0,SQRT(43560/'Growth&Yield'!$N10)/'Growth&Yield'!$Z10)) ->  | BD18: =IF(B18="","",IF(BB18=0,0,(EXP(-0.25*('Growth&Yield'!$Z10^(1.8333-1/60*$C$1))))*$E$7*$BB18*EXP(-$E$6*$BB18))) ->  | BE18: =IF(B18="","",IF(Inputs!$K$8=TRUE,$BD18,0)) ->  | BF18: =IF(B18="","",(EXP(-0.25*('Growth&Yield'!I10^(1.8333-1/60*$C$1))))*$G$7*$BB18*EXP(-$G$6*$BB18)) ->  | BG18: =IF(B18="","",IF(Inputs!$K$8=TRUE,$BF18,0)) ->  | BI18: =IF(B18="","",IF(BB18=0,0,(EXP(-0.25*('Growth&Yield'!I10^(1.8333-1/60*$C$1))))*$I$5*($BB18-$I$6)*EXP(-$I$4*($BB18-$I$6)))) ->  | BJ18: =IF(B18="","",IF(BB18=0,0,(EXP(-0.25*('Growth&Yield'!I10^(1.8333-1/60*$C$1))))*$K$5*($BB18-$I$6)*EXP(-$K$4*($BB18-$I$6)))) ->  | BL18: =IF(B18="","",IF(BB18=0,0,IF(OR(Inputs!$K$14=FALSE,BB18<Inputs!$F$25),0,(EXP(-0.25*('Growth&Yield'!I10^(1.8333-1/60*$C$1))))*$M$6*(BB18-Inputs!$F$25)*EXP(-($M$7*(BB18-Inputs!$F$25)))))) ->  | BM18: =IF(B18="","",IF(BB18<(RParms!$A$31+$M$4),$BL18,$BL$514)) ->  | BN18: =IF(B18="","",IF(OR(RParms!$A$30=FALSE,$BB18<RParms!$A$31),0,(EXP(-0.25*('Growth&Yield'!I10^(1.8333-1/60*$C$1))))*$O$6*($BB18-RParms!$A$31)*EXP(-($O$7*($BB18-RParms!$A$31))))) ->  | BO18: =IF(B18="","",IF($BB18<(RParms!$A$31+$O$4),$BN18,$BN$514)) ->  | BQ18: =IF(B18="","",(EXP(-0.25*('Growth&Yield'!I10^(1.8333-1/60*$C$1))))) ->  | BS18: =IF(B18="","",IF($U$4=TRUE,GetFertilizerResponseAtAge($U$5,$C$1,$U$8,$U$6,$U$7,"HD",$BB18,"RESP")*$BQ18,0)) ->  | BU18: =IF(B18="","",IF($U$4=TRUE,GetFertilizerResponseAtAge($U$5,$C$1,$U$8,$U$6,$U$7,"BA",$BB18,"RESP")*$BQ18,0)) ->  | BW18: =IF(B18="","",IF($Y$4=TRUE,GetFertilizerResponseAtAge($Y$5,$C$1,$Y$8,$Y$6,$Y$7,"HD",$BB18,"RESP")*$BQ18,0)) ->  | BY18: =IF(B18="","",IF($Y$4=TRUE,GetFertilizerResponseAtAge($Y$5,$C$1,$Y$8,$Y$6,$Y$7,"BA",$BB18,"RESP")*$BQ18,0)) ->  | CA18: =IF($AC$4=TRUE,GetFertilizerResponseAtAge($AC$5,$C$1,$AC$8,$AC$6,$AC$7,"HD",$BB18,"RESP")*$BQ18,0) -> 0 | CB18: 0 | CC18: =IF($AC$4=TRUE,GetFertilizerResponseAtAge($AC$5,$C$1,$AC$8,$AC$6,$AC$7,"BA",$BB18,"RESP")*$BQ18,0) -> 0 | CE18: =IF($AG$4=TRUE,GetFertilizerResponseAtAge($AG$5,$C$1,$AG$8,$AG$6,$AG$7,"HD",$BB18,"RESP")*$BQ18,0) -> 0 | CF18: 0 | CG18: =IF($AG$4=TRUE,GetFertilizerResponseAtAge($AG$5,$C$1,$AG$8,$AG$6,$AG$7,"BA",$BB18,"RESP")*$BQ18,0) -> 0 | CH18: 1 | CI18: 1 | CJ18: 2 | CK18: 1 | CP18: 1 | CQ18: 1 | CR18: 2 | CS18: 1 | DB18: =+'Growth&Yield'!G10 ->  | DC18: =IF(DB18="","",IF(DB18=0,0,SQRT(43560/'Growth&Yield'!$R10)/'Growth&Yield'!$AA10)) ->  | DD18: =IF(DB18="","",IF(DB18=0,0,(EXP(-0.25*('Growth&Yield'!$AA10^(1.8333-1/60*$C$1))))*$E$7*$BB18*EXP(-$E$6*$BB18))) ->  | DE18: =IF(DB18="","",IF(Inputs!$K$8=TRUE,$DD18,0)) ->  | DF18: =IF(DB18="","",(EXP(-0.25*('Growth&Yield'!J10^(1.8333-1/60*$C$1))))*$G$7*$DB18*EXP(-$G$6*$DB18)) ->  | DG18: =IF(DB18="","",IF(Inputs!$K$8=TRUE,$DF18,0)) ->  | DI18: =IF(DB18="","",IF(DB18=0,0,(EXP(-0.25*('Growth&Yield'!J10^(1.8333-1/60*$C$1))))*$I$5*($DB18-$I$6)*EXP(-$I$4*($DB18-$I$6)))) ->  | DJ18: =IF(DB18="","",IF(DB18=0,0,(EXP(-0.25*('Growth&Yield'!J10^(1.8333-1/60*$C$1))))*$K$5*($DB18-$I$6)*EXP(-$K$4*($DB18-$I$6)))) ->  | DL18: =IF(DB18="","",IF(DB18=0,0,IF(OR(Inputs!$K$14=FALSE,DB18<Inputs!$F$25),0,(EXP(-0.25*('Growth&Yield'!J10^(1.8333-1/60*$C$1))))*$M$6*(DB18-Inputs!$F$25)*EXP(-($M$7*(DB18-Inputs!$F$25)))))) ->  | DM18: =IF(DB18="","",IF(DB18<(RParms!$A$31+$M$4),$DL18,$DL$514)) ->  | DN18: =IF(DB18="","",IF(OR(RParms!$A$30=FALSE,$DB18<RParms!$A$31),0,(EXP(-0.25*('Growth&Yield'!J10^(1.8333-1/60*$C$1))))*$O$6*($DB18-RParms!$A$31)*EXP(-($O$7*($DB18-RParms!$A$31))))) ->  | DO18: =IF(DB18="","",IF($DB18<(RParms!$A$31+$O$4),$DN18,$DN$514)) ->  | DQ18: =IF(DB18="","",(EXP(-0.25*('Growth&Yield'!J10^(1.8333-1/60*$C$1))))) ->  | DS18: =IF(DB18="","",IF($U$4=TRUE,GetFertilizerResponseAtAge($U$5,$C$1,$U$8,$U$6,$U$7,"HD",$DB18,"RESP")*$DQ18,0)) ->  | DU18: =IF(DB18="","",IF($U$4=TRUE,GetFertilizerResponseAtAge($U$5,$C$1,$U$8,$U$6,$U$7,"BA",$DB18,"RESP")*$DQ18,0)) ->  | DW18: =IF(DB18="","",IF($Y$4=TRUE,GetFertilizerResponseAtAge($Y$5,$C$1,$Y$8,$Y$6,$Y$7,"HD",$DB18,"RESP")*$DQ18,0)) ->  | DY18: =IF(DB18="","",IF($Y$4=TRUE,GetFertilizerResponseAtAge($Y$5,$C$1,$Y$8,$Y$6,$Y$7,"BA",$DB18,"RESP")*$DQ18,0)) ->  | EA18: =IF(DB18="","",IF($AC$4=TRUE,GetFertilizerResponseAtAge($AC$5,$C$1,$AC$8,$AC$6,$AC$7,"HD",$DB18,"RESP")*$DQ18,0)) ->  | EC18: =IF(DB18="","",IF($AC$4=TRUE,GetFertilizerResponseAtAge($AC$5,$C$1,$AC$8,$AC$6,$AC$7,"BA",$DB18,"RESP")*$DQ18,0)) ->  | EE18: =IF(DB18="","",IF($AG$4=TRUE,GetFertilizerResponseAtAge($AG$5,$C$1,$AG$8,$AG$6,$AG$7,"HD",$DB18,"RESP")*$DQ18,0)) ->  | EG18: =IF(DB18="","",IF($AG$4=TRUE,GetFertilizerResponseAtAge($AG$5,$C$1,$AG$8,$AG$6,$AG$7,"BA",$DB18,"RESP")*$DQ18,0)) -> 
A19: =+'Growth&Yield'!A11 -> 7 | B19: =+'Growth&Yield'!E11 ->  | C19: =IF(B19="","",IF(B19=0,0,SQRT(43560/'Growth&Yield'!$K11)/'Growth&Yield'!$Y11)) ->  | D19: =IF(B19="","",IF(B19=0,0,(EXP(-0.25*('Growth&Yield'!$Y11^(1.8333-1/60*$C$1))))*$E$7*$B19*EXP(-$E$6*$B19))) ->  | E19: =IF(B19="","",IF(Inputs!$K$8=TRUE,$D19,0)) ->  | F19: =IF(B19="","",(EXP(-0.25*('Growth&Yield'!H11^(1.8333-1/60*$C$1))))*$G$7*$B19*EXP(-$G$6*$B19)) ->  | G19: =IF(B19="","",IF(Inputs!$K$8=TRUE,$F19,0)) ->  | I19: =IF(B19="","",IF('Growth&Yield'!E11=0,0,(EXP(-0.25*('Growth&Yield'!H11^(1.8333-1/60*$C$1))))*$I$5*($B19-$I$6)*EXP(-$I$4*($B19-$I$6)))) ->  | J19: =IF(B19="","",IF(B19=0,0,(EXP(-0.25*('Growth&Yield'!H11^(1.8333-1/60*$C$1))))*$K$5*($B19-$I$6)*EXP(-$K$4*($B19-$I$6)))) ->  | L19: =IF(B19="","",IF(B19=0,0,IF(OR(Inputs!$K$14=FALSE,B19<Inputs!$F$25),0,(EXP(-0.25*('Growth&Yield'!H11^(1.8333-1/60*$C$1))))*$M$6*(B19-Inputs!$F$25)*EXP(-($M$7*(B19-Inputs!$F$25)))))) ->  | M19: =IF(B19="","",IF(B19<(RParms!$A$31+$M$4),$L19,$L$514)) ->  | N19: =IF(B19="","",IF(OR(RParms!$A$30=FALSE,$B19<RParms!$A$31),0,(EXP(-0.25*('Growth&Yield'!H11^(1.8333-1/60*$C$1))))*$O$6*($B19-RParms!$A$31)*EXP(-($O$7*($B19-RParms!$A$31))))) ->  | O19: =IF(B19="","",IF($B19<(RParms!$A$31+$O$4),$N19,$N$514)) ->  | Q19: =IF(B19="","",(EXP(-0.25*('Growth&Yield'!H11^(1.8333-1/60*$C$1))))) ->  | S19: =IF(B19="","",IF($U$4=TRUE,GetFertilizerResponseAtAge($U$5,$C$1,$U$8,$U$6,$U$7,"HD",$B19,"RESP")*$Q19,0)) ->  | U19: =IF(B19="","",IF($U$4=TRUE,GetFertilizerResponseAtAge($U$5,$C$1,$U$8,$U$6,$U$7,"BA",$B19,"RESP")*$Q19,0)) ->  | W19: =IF(B19="","",IF($Y$4=TRUE,GetFertilizerResponseAtAge($Y$5,$C$1,$Y$8,$Y$6,$Y$7,"HD",$B19,"RESP")*$Q19,0)) ->  | Y19: =IF(B19="","",IF($Y$4=TRUE,GetFertilizerResponseAtAge($Y$5,$C$1,$Y$8,$Y$6,$Y$7,"BA",$B19,"RESP")*$Q19,0)) ->  | AA19: =IF(B19="","",IF($AC$4=TRUE,GetFertilizerResponseAtAge($AC$5,$C$1,$AC$8,$AC$6,$AC$7,"HD",$B19,"RESP")*$Q19,0)) ->  | AC19: =IF(B19="","",IF($AC$4=TRUE,GetFertilizerResponseAtAge($AC$5,$C$1,$AC$8,$AC$6,$AC$7,"BA",$B19,"RESP")*$Q19,0)) ->  | AE19: =IF(B19="","",IF($AG$4=TRUE,GetFertilizerResponseAtAge($AG$5,$C$1,$AG$8,$AG$6,$AG$7,"HD",$B19,"RESP")*$Q19,0)) ->  | AG19: =IF(B19="","",IF($AG$4=TRUE,GetFertilizerResponseAtAge($AG$5,$C$1,$AG$8,$AG$6,$AG$7,"BA",$B19,"RESP")*$Q19,0)) ->  | AW19: 22.47433684 | AX19: 17.58938102 | AY19: 15.86691603 | AZ19: 14.08581119 | BB19: =+'Growth&Yield'!F11 ->  | BC19: =IF(B19="","",IF(BB19=0,0,SQRT(43560/'Growth&Yield'!$N11)/'Growth&Yield'!$Z11)) ->  | BD19: =IF(B19="","",IF(BB19=0,0,(EXP(-0.25*('Growth&Yield'!$Z11^(1.8333-1/60*$C$1))))*$E$7*$BB19*EXP(-$E$6*$BB19))) ->  | BE19: =IF(B19="","",IF(Inputs!$K$8=TRUE,$BD19,0)) ->  | BF19: =IF(B19="","",(EXP(-0.25*('Growth&Yield'!I11^(1.8333-1/60*$C$1))))*$G$7*$BB19*EXP(-$G$6*$BB19)) ->  | BG19: =IF(B19="","",IF(Inputs!$K$8=TRUE,$BF19,0)) ->  | BI19: =IF(B19="","",IF(BB19=0,0,(EXP(-0.25*('Growth&Yield'!I11^(1.8333-1/60*$C$1))))*$I$5*($BB19-$I$6)*EXP(-$I$4*($BB19-$I$6)))) ->  | BJ19: =IF(B19="","",IF(BB19=0,0,(EXP(-0.25*('Growth&Yield'!I11^(1.8333-1/60*$C$1))))*$K$5*($BB19-$I$6)*EXP(-$K$4*($BB19-$I$6)))) ->  | BL19: =IF(B19="","",IF(BB19=0,0,IF(OR(Inputs!$K$14=FALSE,BB19<Inputs!$F$25),0,(EXP(-0.25*('Growth&Yield'!I11^(1.8333-1/60*$C$1))))*$M$6*(BB19-Inputs!$F$25)*EXP(-($M$7*(BB19-Inputs!$F$25)))))) ->  | BM19: =IF(B19="","",IF(BB19<(RParms!$A$31+$M$4),$BL19,$BL$514)) ->  | BN19: =IF(B19="","",IF(OR(RParms!$A$30=FALSE,$BB19<RParms!$A$31),0,(EXP(-0.25*('Growth&Yield'!I11^(1.8333-1/60*$C$1))))*$O$6*($BB19-RParms!$A$31)*EXP(-($O$7*($BB19-RParms!$A$31))))) ->  | BO19: =IF(B19="","",IF($BB19<(RParms!$A$31+$O$4),$BN19,$BN$514)) ->  | BQ19: =IF(B19="","",(EXP(-0.25*('Growth&Yield'!I11^(1.8333-1/60*$C$1))))) ->  | BS19: =IF(B19="","",IF($U$4=TRUE,GetFertilizerResponseAtAge($U$5,$C$1,$U$8,$U$6,$U$7,"HD",$BB19,"RESP")*$BQ19,0)) ->  | BU19: =IF(B19="","",IF($U$4=TRUE,GetFertilizerResponseAtAge($U$5,$C$1,$U$8,$U$6,$U$7,"BA",$BB19,"RESP")*$BQ19,0)) ->  | BW19: =IF(B19="","",IF($Y$4=TRUE,GetFertilizerResponseAtAge($Y$5,$C$1,$Y$8,$Y$6,$Y$7,"HD",$BB19,"RESP")*$BQ19,0)) ->  | BY19: =IF(B19="","",IF($Y$4=TRUE,GetFertilizerResponseAtAge($Y$5,$C$1,$Y$8,$Y$6,$Y$7,"BA",$BB19,"RESP")*$BQ19,0)) ->  | CA19: =IF($AC$4=TRUE,GetFertilizerResponseAtAge($AC$5,$C$1,$AC$8,$AC$6,$AC$7,"HD",$BB19,"RESP")*$BQ19,0) -> 0 | CB19: 0 | CC19: =IF($AC$4=TRUE,GetFertilizerResponseAtAge($AC$5,$C$1,$AC$8,$AC$6,$AC$7,"BA",$BB19,"RESP")*$BQ19,0) -> 0 | CE19: =IF($AG$4=TRUE,GetFertilizerResponseAtAge($AG$5,$C$1,$AG$8,$AG$6,$AG$7,"HD",$BB19,"RESP")*$BQ19,0) -> 0 | CF19: 0 | CG19: =IF($AG$4=TRUE,GetFertilizerResponseAtAge($AG$5,$C$1,$AG$8,$AG$6,$AG$7,"BA",$BB19,"RESP")*$BQ19,0) -> 0 | CH19: 1 | CI19: 1 | CJ19: 2 | CK19: 1 | CP19: 1 | CQ19: 1 | CR19: 2 | CS19: 1 | DB19: =+'Growth&Yield'!G11 ->  | DC19: =IF(DB19="","",IF(DB19=0,0,SQRT(43560/'Growth&Yield'!$R11)/'Growth&Yield'!$AA11)) ->  | DD19: =IF(DB19="","",IF(DB19=0,0,(EXP(-0.25*('Growth&Yield'!$AA11^(1.8333-1/60*$C$1))))*$E$7*$BB19*EXP(-$E$6*$BB19))) ->  | DE19: =IF(DB19="","",IF(Inputs!$K$8=TRUE,$DD19,0)) ->  | DF19: =IF(DB19="","",(EXP(-0.25*('Growth&Yield'!J11^(1.8333-1/60*$C$1))))*$G$7*$DB19*EXP(-$G$6*$DB19)) ->  | DG19: =IF(DB19="","",IF(Inputs!$K$8=TRUE,$DF19,0)) ->  | DI19: =IF(DB19="","",IF(DB19=0,0,(EXP(-0.25*('Growth&Yield'!J11^(1.8333-1/60*$C$1))))*$I$5*($DB19-$I$6)*EXP(-$I$4*($DB19-$I$6)))) ->  | DJ19: =IF(DB19="","",IF(DB19=0,0,(EXP(-0.25*('Growth&Yield'!J11^(1.8333-1/60*$C$1))))*$K$5*($DB19-$I$6)*EXP(-$K$4*($DB19-$I$6)))) ->  | DL19: =IF(DB19="","",IF(DB19=0,0,IF(OR(Inputs!$K$14=FALSE,DB19<Inputs!$F$25),0,(EXP(-0.25*('Growth&Yield'!J11^(1.8333-1/60*$C$1))))*$M$6*(DB19-Inputs!$F$25)*EXP(-($M$7*(DB19-Inputs!$F$25)))))) ->  | DM19: =IF(DB19="","",IF(DB19<(RParms!$A$31+$M$4),$DL19,$DL$514)) ->  | DN19: =IF(DB19="","",IF(OR(RParms!$A$30=FALSE,$DB19<RParms!$A$31),0,(EXP(-0.25*('Growth&Yield'!J11^(1.8333-1/60*$C$1))))*$O$6*($DB19-RParms!$A$31)*EXP(-($O$7*($DB19-RParms!$A$31))))) ->  | DO19: =IF(DB19="","",IF($DB19<(RParms!$A$31+$O$4),$DN19,$DN$514)) ->  | DQ19: =IF(DB19="","",(EXP(-0.25*('Growth&Yield'!J11^(1.8333-1/60*$C$1))))) ->  | DS19: =IF(DB19="","",IF($U$4=TRUE,GetFertilizerResponseAtAge($U$5,$C$1,$U$8,$U$6,$U$7,"HD",$DB19,"RESP")*$DQ19,0)) ->  | DU19: =IF(DB19="","",IF($U$4=TRUE,GetFertilizerResponseAtAge($U$5,$C$1,$U$8,$U$6,$U$7,"BA",$DB19,"RESP")*$DQ19,0)) ->  | DW19: =IF(DB19="","",IF($Y$4=TRUE,GetFertilizerResponseAtAge($Y$5,$C$1,$Y$8,$Y$6,$Y$7,"HD",$DB19,"RESP")*$DQ19,0)) ->  | DY19: =IF(DB19="","",IF($Y$4=TRUE,GetFertilizerResponseAtAge($Y$5,$C$1,$Y$8,$Y$6,$Y$7,"BA",$DB19,"RESP")*$DQ19,0)) ->  | EA19: =IF(DB19="","",IF($AC$4=TRUE,GetFertilizerResponseAtAge($AC$5,$C$1,$AC$8,$AC$6,$AC$7,"HD",$DB19,"RESP")*$DQ19,0)) ->  | EC19: =IF(DB19="","",IF($AC$4=TRUE,GetFertilizerResponseAtAge($AC$5,$C$1,$AC$8,$AC$6,$AC$7,"BA",$DB19,"RESP")*$DQ19,0)) ->  | EE19: =IF(DB19="","",IF($AG$4=TRUE,GetFertilizerResponseAtAge($AG$5,$C$1,$AG$8,$AG$6,$AG$7,"HD",$DB19,"RESP")*$DQ19,0)) ->  | EG19: =IF(DB19="","",IF($AG$4=TRUE,GetFertilizerResponseAtAge($AG$5,$C$1,$AG$8,$AG$6,$AG$7,"BA",$DB19,"RESP")*$DQ19,0)) -> 
A20: =+'Growth&Yield'!A12 -> 8 | B20: =+'Growth&Yield'!E12 ->  | C20: =IF(B20="","",IF(B20=0,0,SQRT(43560/'Growth&Yield'!$K12)/'Growth&Yield'!$Y12)) ->  | D20: =IF(B20="","",IF(B20=0,0,(EXP(-0.25*('Growth&Yield'!$Y12^(1.8333-1/60*$C$1))))*$E$7*$B20*EXP(-$E$6*$B20))) ->  | E20: =IF(B20="","",IF(Inputs!$K$8=TRUE,$D20,0)) ->  | F20: =IF(B20="","",(EXP(-0.25*('Growth&Yield'!H12^(1.8333-1/60*$C$1))))*$G$7*$B20*EXP(-$G$6*$B20)) ->  | G20: =IF(B20="","",IF(Inputs!$K$8=TRUE,$F20,0)) ->  | I20: =IF(B20="","",IF('Growth&Yield'!E12=0,0,(EXP(-0.25*('Growth&Yield'!H12^(1.8333-1/60*$C$1))))*$I$5*($B20-$I$6)*EXP(-$I$4*($B20-$I$6)))) ->  | J20: =IF(B20="","",IF(B20=0,0,(EXP(-0.25*('Growth&Yield'!H12^(1.8333-1/60*$C$1))))*$K$5*($B20-$I$6)*EXP(-$K$4*($B20-$I$6)))) ->  | L20: =IF(B20="","",IF(B20=0,0,IF(OR(Inputs!$K$14=FALSE,B20<Inputs!$F$25),0,(EXP(-0.25*('Growth&Yield'!H12^(1.8333-1/60*$C$1))))*$M$6*(B20-Inputs!$F$25)*EXP(-($M$7*(B20-Inputs!$F$25)))))) ->  | M20: =IF(B20="","",IF(B20<(RParms!$A$31+$M$4),$L20,$L$514)) ->  | N20: =IF(B20="","",IF(OR(RParms!$A$30=FALSE,$B20<RParms!$A$31),0,(EXP(-0.25*('Growth&Yield'!H12^(1.8333-1/60*$C$1))))*$O$6*($B20-RParms!$A$31)*EXP(-($O$7*($B20-RParms!$A$31))))) ->  | O20: =IF(B20="","",IF($B20<(RParms!$A$31+$O$4),$N20,$N$514)) ->  | Q20: =IF(B20="","",(EXP(-0.25*('Growth&Yield'!H12^(1.8333-1/60*$C$1))))) ->  | S20: =IF(B20="","",IF($U$4=TRUE,GetFertilizerResponseAtAge($U$5,$C$1,$U$8,$U$6,$U$7,"HD",$B20,"RESP")*$Q20,0)) ->  | U20: =IF(B20="","",IF($U$4=TRUE,GetFertilizerResponseAtAge($U$5,$C$1,$U$8,$U$6,$U$7,"BA",$B20,"RESP")*$Q20,0)) ->  | W20: =IF(B20="","",IF($Y$4=TRUE,GetFertilizerResponseAtAge($Y$5,$C$1,$Y$8,$Y$6,$Y$7,"HD",$B20,"RESP")*$Q20,0)) ->  | Y20: =IF(B20="","",IF($Y$4=TRUE,GetFertilizerResponseAtAge($Y$5,$C$1,$Y$8,$Y$6,$Y$7,"BA",$B20,"RESP")*$Q20,0)) ->  | AA20: =IF(B20="","",IF($AC$4=TRUE,GetFertilizerResponseAtAge($AC$5,$C$1,$AC$8,$AC$6,$AC$7,"HD",$B20,"RESP")*$Q20,0)) ->  | AC20: =IF(B20="","",IF($AC$4=TRUE,GetFertilizerResponseAtAge($AC$5,$C$1,$AC$8,$AC$6,$AC$7,"BA",$B20,"RESP")*$Q20,0)) ->  | AE20: =IF(B20="","",IF($AG$4=TRUE,GetFertilizerResponseAtAge($AG$5,$C$1,$AG$8,$AG$6,$AG$7,"HD",$B20,"RESP")*$Q20,0)) ->  | AG20: =IF(B20="","",IF($AG$4=TRUE,GetFertilizerResponseAtAge($AG$5,$C$1,$AG$8,$AG$6,$AG$7,"BA",$B20,"RESP")*$Q20,0)) ->  | AW20: 27.97479372 | AX20: 20.61682273 | AY20: 18.5925456 | AZ20: 16.51089251 | BB20: =+'Growth&Yield'!F12 ->  | BC20: =IF(B20="","",IF(BB20=0,0,SQRT(43560/'Growth&Yield'!$N12)/'Growth&Yield'!$Z12)) ->  | BD20: =IF(B20="","",IF(BB20=0,0,(EXP(-0.25*('Growth&Yield'!$Z12^(1.8333-1/60*$C$1))))*$E$7*$BB20*EXP(-$E$6*$BB20))) ->  | BE20: =IF(B20="","",IF(Inputs!$K$8=TRUE,$BD20,0)) ->  | BF20: =IF(B20="","",(EXP(-0.25*('Growth&Yield'!I12^(1.8333-1/60*$C$1))))*$G$7*$BB20*EXP(-$G$6*$BB20)) ->  | BG20: =IF(B20="","",IF(Inputs!$K$8=TRUE,$BF20,0)) ->  | BI20: =IF(B20="","",IF(BB20=0,0,(EXP(-0.25*('Growth&Yield'!I12^(1.8333-1/60*$C$1))))*$I$5*($BB20-$I$6)*EXP(-$I$4*($BB20-$I$6)))) ->  | BJ20: =IF(B20="","",IF(BB20=0,0,(EXP(-0.25*('Growth&Yield'!I12^(1.8333-1/60*$C$1))))*$K$5*($BB20-$I$6)*EXP(-$K$4*($BB20-$I$6)))) ->  | BL20: =IF(B20="","",IF(BB20=0,0,IF(OR(Inputs!$K$14=FALSE,BB20<Inputs!$F$25),0,(EXP(-0.25*('Growth&Yield'!I12^(1.8333-1/60*$C$1))))*$M$6*(BB20-Inputs!$F$25)*EXP(-($M$7*(BB20-Inputs!$F$25)))))) ->  | BM20: =IF(B20="","",IF(BB20<(RParms!$A$31+$M$4),$BL20,$BL$514)) ->  | BN20: =IF(B20="","",IF(OR(RParms!$A$30=FALSE,$BB20<RParms!$A$31),0,(EXP(-0.25*('Growth&Yield'!I12^(1.8333-1/60*$C$1))))*$O$6*($BB20-RParms!$A$31)*EXP(-($O$7*($BB20-RParms!$A$31))))) ->  | BO20: =IF(B20="","",IF($BB20<(RParms!$A$31+$O$4),$BN20,$BN$514)) ->  | BQ20: =IF(B20="","",(EXP(-0.25*('Growth&Yield'!I12^(1.8333-1/60*$C$1))))) ->  | BS20: =IF(B20="","",IF($U$4=TRUE,GetFertilizerResponseAtAge($U$5,$C$1,$U$8,$U$6,$U$7,"HD",$BB20,"RESP")*$BQ20,0)) ->  | BU20: =IF(B20="","",IF($U$4=TRUE,GetFertilizerResponseAtAge($U$5,$C$1,$U$8,$U$6,$U$7,"BA",$BB20,"RESP")*$BQ20,0)) ->  | BW20: =IF(B20="","",IF($Y$4=TRUE,GetFertilizerResponseAtAge($Y$5,$C$1,$Y$8,$Y$6,$Y$7,"HD",$BB20,"RESP")*$BQ20,0)) ->  | BY20: =IF(B20="","",IF($Y$4=TRUE,GetFertilizerResponseAtAge($Y$5,$C$1,$Y$8,$Y$6,$Y$7,"BA",$BB20,"RESP")*$BQ20,0)) ->  | CA20: =IF($AC$4=TRUE,GetFertilizerResponseAtAge($AC$5,$C$1,$AC$8,$AC$6,$AC$7,"HD",$BB20,"RESP")*$BQ20,0) -> 0 | CB20: 0 | CC20: =IF($AC$4=TRUE,GetFertilizerResponseAtAge($AC$5,$C$1,$AC$8,$AC$6,$AC$7,"BA",$BB20,"RESP")*$BQ20,0) -> 0 | CE20: =IF($AG$4=TRUE,GetFertilizerResponseAtAge($AG$5,$C$1,$AG$8,$AG$6,$AG$7,"HD",$BB20,"RESP")*$BQ20,0) -> 0 | CF20: 0 | CG20: =IF($AG$4=TRUE,GetFertilizerResponseAtAge($AG$5,$C$1,$AG$8,$AG$6,$AG$7,"BA",$BB20,"RESP")*$BQ20,0) -> 0 | CH20: 1 | CI20: 1 | CJ20: 2 | CK20: 1 | CP20: 1 | CQ20: 1 | CR20: 2 | CS20: 1 | DB20: =+'Growth&Yield'!G12 ->  | DC20: =IF(DB20="","",IF(DB20=0,0,SQRT(43560/'Growth&Yield'!$R12)/'Growth&Yield'!$AA12)) ->  | DD20: =IF(DB20="","",IF(DB20=0,0,(EXP(-0.25*('Growth&Yield'!$AA12^(1.8333-1/60*$C$1))))*$E$7*$BB20*EXP(-$E$6*$BB20))) ->  | DE20: =IF(DB20="","",IF(Inputs!$K$8=TRUE,$DD20,0)) ->  | DF20: =IF(DB20="","",(EXP(-0.25*('Growth&Yield'!J12^(1.8333-1/60*$C$1))))*$G$7*$DB20*EXP(-$G$6*$DB20)) ->  | DG20: =IF(DB20="","",IF(Inputs!$K$8=TRUE,$DF20,0)) ->  | DI20: =IF(DB20="","",IF(DB20=0,0,(EXP(-0.25*('Growth&Yield'!J12^(1.8333-1/60*$C$1))))*$I$5*($DB20-$I$6)*EXP(-$I$4*($DB20-$I$6)))) ->  | DJ20: =IF(DB20="","",IF(DB20=0,0,(EXP(-0.25*('Growth&Yield'!J12^(1.8333-1/60*$C$1))))*$K$5*($DB20-$I$6)*EXP(-$K$4*($DB20-$I$6)))) ->  | DL20: =IF(DB20="","",IF(DB20=0,0,IF(OR(Inputs!$K$14=FALSE,DB20<Inputs!$F$25),0,(EXP(-0.25*('Growth&Yield'!J12^(1.8333-1/60*$C$1))))*$M$6*(DB20-Inputs!$F$25)*EXP(-($M$7*(DB20-Inputs!$F$25)))))) ->  | DM20: =IF(DB20="","",IF(DB20<(RParms!$A$31+$M$4),$DL20,$DL$514)) ->  | DN20: =IF(DB20="","",IF(OR(RParms!$A$30=FALSE,$DB20<RParms!$A$31),0,(EXP(-0.25*('Growth&Yield'!J12^(1.8333-1/60*$C$1))))*$O$6*($DB20-RParms!$A$31)*EXP(-($O$7*($DB20-RParms!$A$31))))) ->  | DO20: =IF(DB20="","",IF($DB20<(RParms!$A$31+$O$4),$DN20,$DN$514)) ->  | DQ20: =IF(DB20="","",(EXP(-0.25*('Growth&Yield'!J12^(1.8333-1/60*$C$1))))) ->  | DS20: =IF(DB20="","",IF($U$4=TRUE,GetFertilizerResponseAtAge($U$5,$C$1,$U$8,$U$6,$U$7,"HD",$DB20,"RESP")*$DQ20,0)) ->  | DU20: =IF(DB20="","",IF($U$4=TRUE,GetFertilizerResponseAtAge($U$5,$C$1,$U$8,$U$6,$U$7,"BA",$DB20,"RESP")*$DQ20,0)) ->  | DW20: =IF(DB20="","",IF($Y$4=TRUE,GetFertilizerResponseAtAge($Y$5,$C$1,$Y$8,$Y$6,$Y$7,"HD",$DB20,"RESP")*$DQ20,0)) ->  | DY20: =IF(DB20="","",IF($Y$4=TRUE,GetFertilizerResponseAtAge($Y$5,$C$1,$Y$8,$Y$6,$Y$7,"BA",$DB20,"RESP")*$DQ20,0)) ->  | EA20: =IF(DB20="","",IF($AC$4=TRUE,GetFertilizerResponseAtAge($AC$5,$C$1,$AC$8,$AC$6,$AC$7,"HD",$DB20,"RESP")*$DQ20,0)) ->  | EC20: =IF(DB20="","",IF($AC$4=TRUE,GetFertilizerResponseAtAge($AC$5,$C$1,$AC$8,$AC$6,$AC$7,"BA",$DB20,"RESP")*$DQ20,0)) ->  | EE20: =IF(DB20="","",IF($AG$4=TRUE,GetFertilizerResponseAtAge($AG$5,$C$1,$AG$8,$AG$6,$AG$7,"HD",$DB20,"RESP")*$DQ20,0)) ->  | EG20: =IF(DB20="","",IF($AG$4=TRUE,GetFertilizerResponseAtAge($AG$5,$C$1,$AG$8,$AG$6,$AG$7,"BA",$DB20,"RESP")*$DQ20,0)) -> 
A21: =+'Growth&Yield'!A13 -> 9 | B21: =+'Growth&Yield'!E13 ->  | C21: =IF(B21="","",IF(B21=0,0,SQRT(43560/'Growth&Yield'!$K13)/'Growth&Yield'!$Y13)) ->  | D21: =IF(B21="","",IF(B21=0,0,(EXP(-0.25*('Growth&Yield'!$Y13^(1.8333-1/60*$C$1))))*$E$7*$B21*EXP(-$E$6*$B21))) ->  | E21: =IF(B21="","",IF(Inputs!$K$8=TRUE,$D21,0)) ->  | F21: =IF(B21="","",(EXP(-0.25*('Growth&Yield'!H13^(1.8333-1/60*$C$1))))*$G$7*$B21*EXP(-$G$6*$B21)) ->  | G21: =IF(B21="","",IF(Inputs!$K$8=TRUE,$F21,0)) ->  | I21: =IF(B21="","",IF('Growth&Yield'!E13=0,0,(EXP(-0.25*('Growth&Yield'!H13^(1.8333-1/60*$C$1))))*$I$5*($B21-$I$6)*EXP(-$I$4*($B21-$I$6)))) ->  | J21: =IF(B21="","",IF(B21=0,0,(EXP(-0.25*('Growth&Yield'!H13^(1.8333-1/60*$C$1))))*$K$5*($B21-$I$6)*EXP(-$K$4*($B21-$I$6)))) ->  | L21: =IF(B21="","",IF(B21=0,0,IF(OR(Inputs!$K$14=FALSE,B21<Inputs!$F$25),0,(EXP(-0.25*('Growth&Yield'!H13^(1.8333-1/60*$C$1))))*$M$6*(B21-Inputs!$F$25)*EXP(-($M$7*(B21-Inputs!$F$25)))))) ->  | M21: =IF(B21="","",IF(B21<(RParms!$A$31+$M$4),$L21,$L$514)) ->  | N21: =IF(B21="","",IF(OR(RParms!$A$30=FALSE,$B21<RParms!$A$31),0,(EXP(-0.25*('Growth&Yield'!H13^(1.8333-1/60*$C$1))))*$O$6*($B21-RParms!$A$31)*EXP(-($O$7*($B21-RParms!$A$31))))) ->  | O21: =IF(B21="","",IF($B21<(RParms!$A$31+$O$4),$N21,$N$514)) ->  | Q21: =IF(B21="","",(EXP(-0.25*('Growth&Yield'!H13^(1.8333-1/60*$C$1))))) ->  | S21: =IF(B21="","",IF($U$4=TRUE,GetFertilizerResponseAtAge($U$5,$C$1,$U$8,$U$6,$U$7,"HD",$B21,"RESP")*$Q21,0)) ->  | U21: =IF(B21="","",IF($U$4=TRUE,GetFertilizerResponseAtAge($U$5,$C$1,$U$8,$U$6,$U$7,"BA",$B21,"RESP")*$Q21,0)) ->  | W21: =IF(B21="","",IF($Y$4=TRUE,GetFertilizerResponseAtAge($Y$5,$C$1,$Y$8,$Y$6,$Y$7,"HD",$B21,"RESP")*$Q21,0)) ->  | Y21: =IF(B21="","",IF($Y$4=TRUE,GetFertilizerResponseAtAge($Y$5,$C$1,$Y$8,$Y$6,$Y$7,"BA",$B21,"RESP")*$Q21,0)) ->  | AA21: =IF(B21="","",IF($AC$4=TRUE,GetFertilizerResponseAtAge($AC$5,$C$1,$AC$8,$AC$6,$AC$7,"HD",$B21,"RESP")*$Q21,0)) ->  | AC21: =IF(B21="","",IF($AC$4=TRUE,GetFertilizerResponseAtAge($AC$5,$C$1,$AC$8,$AC$6,$AC$7,"BA",$B21,"RESP")*$Q21,0)) ->  | AE21: =IF(B21="","",IF($AG$4=TRUE,GetFertilizerResponseAtAge($AG$5,$C$1,$AG$8,$AG$6,$AG$7,"HD",$B21,"RESP")*$Q21,0)) ->  | AG21: =IF(B21="","",IF($AG$4=TRUE,GetFertilizerResponseAtAge($AG$5,$C$1,$AG$8,$AG$6,$AG$7,"BA",$B21,"RESP")*$Q21,0)) ->  | AW21: 31.59108025 | AX21: 22.63538425 | AY21: 20.38778328 | AZ21: 18.08669628 | BB21: =+'Growth&Yield'!F13 ->  | BC21: =IF(B21="","",IF(BB21=0,0,SQRT(43560/'Growth&Yield'!$N13)/'Growth&Yield'!$Z13)) ->  | BD21: =IF(B21="","",IF(BB21=0,0,(EXP(-0.25*('Growth&Yield'!$Z13^(1.8333-1/60*$C$1))))*$E$7*$BB21*EXP(-$E$6*$BB21))) ->  | BE21: =IF(B21="","",IF(Inputs!$K$8=TRUE,$BD21,0)) ->  | BF21: =IF(B21="","",(EXP(-0.25*('Growth&Yield'!I13^(1.8333-1/60*$C$1))))*$G$7*$BB21*EXP(-$G$6*$BB21)) ->  | BG21: =IF(B21="","",IF(Inputs!$K$8=TRUE,$BF21,0)) ->  | BI21: =IF(B21="","",IF(BB21=0,0,(EXP(-0.25*('Growth&Yield'!I13^(1.8333-1/60*$C$1))))*$I$5*($BB21-$I$6)*EXP(-$I$4*($BB21-$I$6)))) ->  | BJ21: =IF(B21="","",IF(BB21=0,0,(EXP(-0.25*('Growth&Yield'!I13^(1.8333-1/60*$C$1))))*$K$5*($BB21-$I$6)*EXP(-$K$4*($BB21-$I$6)))) ->  | BL21: =IF(B21="","",IF(BB21=0,0,IF(OR(Inputs!$K$14=FALSE,BB21<Inputs!$F$25),0,(EXP(-0.25*('Growth&Yield'!I13^(1.8333-1/60*$C$1))))*$M$6*(BB21-Inputs!$F$25)*EXP(-($M$7*(BB21-Inputs!$F$25)))))) ->  | BM21: =IF(B21="","",IF(BB21<(RParms!$A$31+$M$4),$BL21,$BL$514)) ->  | BN21: =IF(B21="","",IF(OR(RParms!$A$30=FALSE,$BB21<RParms!$A$31),0,(EXP(-0.25*('Growth&Yield'!I13^(1.8333-1/60*$C$1))))*$O$6*($BB21-RParms!$A$31)*EXP(-($O$7*($BB21-RParms!$A$31))))) ->  | BO21: =IF(B21="","",IF($BB21<(RParms!$A$31+$O$4),$BN21,$BN$514)) ->  | BQ21: =IF(B21="","",(EXP(-0.25*('Growth&Yield'!I13^(1.8333-1/60*$C$1))))) ->  | BS21: =IF(B21="","",IF($U$4=TRUE,GetFertilizerResponseAtAge($U$5,$C$1,$U$8,$U$6,$U$7,"HD",$BB21,"RESP")*$BQ21,0)) ->  | BU21: =IF(B21="","",IF($U$4=TRUE,GetFertilizerResponseAtAge($U$5,$C$1,$U$8,$U$6,$U$7,"BA",$BB21,"RESP")*$BQ21,0)) ->  | BW21: =IF(B21="","",IF($Y$4=TRUE,GetFertilizerResponseAtAge($Y$5,$C$1,$Y$8,$Y$6,$Y$7,"HD",$BB21,"RESP")*$BQ21,0)) ->  | BY21: =IF(B21="","",IF($Y$4=TRUE,GetFertilizerResponseAtAge($Y$5,$C$1,$Y$8,$Y$6,$Y$7,"BA",$BB21,"RESP")*$BQ21,0)) ->  | CA21: =IF($AC$4=TRUE,GetFertilizerResponseAtAge($AC$5,$C$1,$AC$8,$AC$6,$AC$7,"HD",$BB21,"RESP")*$BQ21,0) -> 0 | CB21: 0 | CC21: =IF($AC$4=TRUE,GetFertilizerResponseAtAge($AC$5,$C$1,$AC$8,$AC$6,$AC$7,"BA",$BB21,"RESP")*$BQ21,0) -> 0 | CE21: =IF($AG$4=TRUE,GetFertilizerResponseAtAge($AG$5,$C$1,$AG$8,$AG$6,$AG$7,"HD",$BB21,"RESP")*$BQ21,0) -> 0 | CF21: 0 | CG21: =IF($AG$4=TRUE,GetFertilizerResponseAtAge($AG$5,$C$1,$AG$8,$AG$6,$AG$7,"BA",$BB21,"RESP")*$BQ21,0) -> 0 | CH21: 1 | CI21: 1 | CJ21: 2 | CK21: 1 | CP21: 1 | CQ21: 1 | CR21: 2 | CS21: 1 | DB21: =+'Growth&Yield'!G13 ->  | DC21: =IF(DB21="","",IF(DB21=0,0,SQRT(43560/'Growth&Yield'!$R13)/'Growth&Yield'!$AA13)) ->  | DD21: =IF(DB21="","",IF(DB21=0,0,(EXP(-0.25*('Growth&Yield'!$AA13^(1.8333-1/60*$C$1))))*$E$7*$BB21*EXP(-$E$6*$BB21))) ->  | DE21: =IF(DB21="","",IF(Inputs!$K$8=TRUE,$DD21,0)) ->  | DF21: =IF(DB21="","",(EXP(-0.25*('Growth&Yield'!J13^(1.8333-1/60*$C$1))))*$G$7*$DB21*EXP(-$G$6*$DB21)) ->  | DG21: =IF(DB21="","",IF(Inputs!$K$8=TRUE,$DF21,0)) ->  | DI21: =IF(DB21="","",IF(DB21=0,0,(EXP(-0.25*('Growth&Yield'!J13^(1.8333-1/60*$C$1))))*$I$5*($DB21-$I$6)*EXP(-$I$4*($DB21-$I$6)))) ->  | DJ21: =IF(DB21="","",IF(DB21=0,0,(EXP(-0.25*('Growth&Yield'!J13^(1.8333-1/60*$C$1))))*$K$5*($DB21-$I$6)*EXP(-$K$4*($DB21-$I$6)))) ->  | DL21: =IF(DB21="","",IF(DB21=0,0,IF(OR(Inputs!$K$14=FALSE,DB21<Inputs!$F$25),0,(EXP(-0.25*('Growth&Yield'!J13^(1.8333-1/60*$C$1))))*$M$6*(DB21-Inputs!$F$25)*EXP(-($M$7*(DB21-Inputs!$F$25)))))) ->  | DM21: =IF(DB21="","",IF(DB21<(RParms!$A$31+$M$4),$DL21,$DL$514)) ->  | DN21: =IF(DB21="","",IF(OR(RParms!$A$30=FALSE,$DB21<RParms!$A$31),0,(EXP(-0.25*('Growth&Yield'!J13^(1.8333-1/60*$C$1))))*$O$6*($DB21-RParms!$A$31)*EXP(-($O$7*($DB21-RParms!$A$31))))) ->  | DO21: =IF(DB21="","",IF($DB21<(RParms!$A$31+$O$4),$DN21,$DN$514)) ->  | DQ21: =IF(DB21="","",(EXP(-0.25*('Growth&Yield'!J13^(1.8333-1/60*$C$1))))) ->  | DS21: =IF(DB21="","",IF($U$4=TRUE,GetFertilizerResponseAtAge($U$5,$C$1,$U$8,$U$6,$U$7,"HD",$DB21,"RESP")*$DQ21,0)) ->  | DU21: =IF(DB21="","",IF($U$4=TRUE,GetFertilizerResponseAtAge($U$5,$C$1,$U$8,$U$6,$U$7,"BA",$DB21,"RESP")*$DQ21,0)) ->  | DW21: =IF(DB21="","",IF($Y$4=TRUE,GetFertilizerResponseAtAge($Y$5,$C$1,$Y$8,$Y$6,$Y$7,"HD",$DB21,"RESP")*$DQ21,0)) ->  | DY21: =IF(DB21="","",IF($Y$4=TRUE,GetFertilizerResponseAtAge($Y$5,$C$1,$Y$8,$Y$6,$Y$7,"BA",$DB21,"RESP")*$DQ21,0)) ->  | EA21: =IF(DB21="","",IF($AC$4=TRUE,GetFertilizerResponseAtAge($AC$5,$C$1,$AC$8,$AC$6,$AC$7,"HD",$DB21,"RESP")*$DQ21,0)) ->  | EC21: =IF(DB21="","",IF($AC$4=TRUE,GetFertilizerResponseAtAge($AC$5,$C$1,$AC$8,$AC$6,$AC$7,"BA",$DB21,"RESP")*$DQ21,0)) ->  | EE21: =IF(DB21="","",IF($AG$4=TRUE,GetFertilizerResponseAtAge($AG$5,$C$1,$AG$8,$AG$6,$AG$7,"HD",$DB21,"RESP")*$DQ21,0)) ->  | EG21: =IF(DB21="","",IF($AG$4=TRUE,GetFertilizerResponseAtAge($AG$5,$C$1,$AG$8,$AG$6,$AG$7,"BA",$DB21,"RESP")*$DQ21,0)) -> 
A22: =+'Growth&Yield'!A14 -> 10 | B22: =+'Growth&Yield'!E14 ->  | C22: =IF(B22="","",IF(B22=0,0,SQRT(43560/'Growth&Yield'!$K14)/'Growth&Yield'!$Y14)) ->  | D22: =IF(B22="","",IF(B22=0,0,(EXP(-0.25*('Growth&Yield'!$Y14^(1.8333-1/60*$C$1))))*$E$7*$B22*EXP(-$E$6*$B22))) ->  | E22: =IF(B22="","",IF(Inputs!$K$8=TRUE,$D22,0)) ->  | F22: =IF(B22="","",(EXP(-0.25*('Growth&Yield'!H14^(1.8333-1/60*$C$1))))*$G$7*$B22*EXP(-$G$6*$B22)) ->  | G22: =IF(B22="","",IF(Inputs!$K$8=TRUE,$F22,0)) ->  | I22: =IF(B22="","",IF('Growth&Yield'!E14=0,0,(EXP(-0.25*('Growth&Yield'!H14^(1.8333-1/60*$C$1))))*$I$5*($B22-$I$6)*EXP(-$I$4*($B22-$I$6)))) ->  | J22: =IF(B22="","",IF(B22=0,0,(EXP(-0.25*('Growth&Yield'!H14^(1.8333-1/60*$C$1))))*$K$5*($B22-$I$6)*EXP(-$K$4*($B22-$I$6)))) ->  | L22: =IF(B22="","",IF(B22=0,0,IF(OR(Inputs!$K$14=FALSE,B22<Inputs!$F$25),0,(EXP(-0.25*('Growth&Yield'!H14^(1.8333-1/60*$C$1))))*$M$6*(B22-Inputs!$F$25)*EXP(-($M$7*(B22-Inputs!$F$25)))))) ->  | M22: =IF(B22="","",IF(B22<(RParms!$A$31+$M$4),$L22,$L$514)) ->  | N22: =IF(B22="","",IF(OR(RParms!$A$30=FALSE,$B22<RParms!$A$31),0,(EXP(-0.25*('Growth&Yield'!H14^(1.8333-1/60*$C$1))))*$O$6*($B22-RParms!$A$31)*EXP(-($O$7*($B22-RParms!$A$31))))) ->  | O22: =IF(B22="","",IF($B22<(RParms!$A$31+$O$4),$N22,$N$514)) ->  | Q22: =IF(B22="","",(EXP(-0.25*('Growth&Yield'!H14^(1.8333-1/60*$C$1))))) ->  | S22: =IF(B22="","",IF($U$4=TRUE,GetFertilizerResponseAtAge($U$5,$C$1,$U$8,$U$6,$U$7,"HD",$B22,"RESP")*$Q22,0)) ->  | U22: =IF(B22="","",IF($U$4=TRUE,GetFertilizerResponseAtAge($U$5,$C$1,$U$8,$U$6,$U$7,"BA",$B22,"RESP")*$Q22,0)) ->  | W22: =IF(B22="","",IF($Y$4=TRUE,GetFertilizerResponseAtAge($Y$5,$C$1,$Y$8,$Y$6,$Y$7,"HD",$B22,"RESP")*$Q22,0)) ->  | Y22: =IF(B22="","",IF($Y$4=TRUE,GetFertilizerResponseAtAge($Y$5,$C$1,$Y$8,$Y$6,$Y$7,"BA",$B22,"RESP")*$Q22,0)) ->  | AA22: =IF(B22="","",IF($AC$4=TRUE,GetFertilizerResponseAtAge($AC$5,$C$1,$AC$8,$AC$6,$AC$7,"HD",$B22,"RESP")*$Q22,0)) ->  | AC22: =IF(B22="","",IF($AC$4=TRUE,GetFertilizerResponseAtAge($AC$5,$C$1,$AC$8,$AC$6,$AC$7,"BA",$B22,"RESP")*$Q22,0)) ->  | AE22: =IF(B22="","",IF($AG$4=TRUE,GetFertilizerResponseAtAge($AG$5,$C$1,$AG$8,$AG$6,$AG$7,"HD",$B22,"RESP")*$Q22,0)) ->  | AG22: =IF(B22="","",IF($AG$4=TRUE,GetFertilizerResponseAtAge($AG$5,$C$1,$AG$8,$AG$6,$AG$7,"BA",$B22,"RESP")*$Q22,0)) ->  | AW22: 33.76207595 | AX22: 23.86747337 | AY22: 21.45901634 | AZ22: 19.00324767 | BB22: =+'Growth&Yield'!F14 ->  | BC22: =IF(B22="","",IF(BB22=0,0,SQRT(43560/'Growth&Yield'!$N14)/'Growth&Yield'!$Z14)) ->  | BD22: =IF(B22="","",IF(BB22=0,0,(EXP(-0.25*('Growth&Yield'!$Z14^(1.8333-1/60*$C$1))))*$E$7*$BB22*EXP(-$E$6*$BB22))) ->  | BE22: =IF(B22="","",IF(Inputs!$K$8=TRUE,$BD22,0)) ->  | BF22: =IF(B22="","",(EXP(-0.25*('Growth&Yield'!I14^(1.8333-1/60*$C$1))))*$G$7*$BB22*EXP(-$G$6*$BB22)) ->  | BG22: =IF(B22="","",IF(Inputs!$K$8=TRUE,$BF22,0)) ->  | BI22: =IF(B22="","",IF(BB22=0,0,(EXP(-0.25*('Growth&Yield'!I14^(1.8333-1/60*$C$1))))*$I$5*($BB22-$I$6)*EXP(-$I$4*($BB22-$I$6)))) ->  | BJ22: =IF(B22="","",IF(BB22=0,0,(EXP(-0.25*('Growth&Yield'!I14^(1.8333-1/60*$C$1))))*$K$5*($BB22-$I$6)*EXP(-$K$4*($BB22-$I$6)))) ->  | BL22: =IF(B22="","",IF(BB22=0,0,IF(OR(Inputs!$K$14=FALSE,BB22<Inputs!$F$25),0,(EXP(-0.25*('Growth&Yield'!I14^(1.8333-1/60*$C$1))))*$M$6*(BB22-Inputs!$F$25)*EXP(-($M$7*(BB22-Inputs!$F$25)))))) ->  | BM22: =IF(B22="","",IF(BB22<(RParms!$A$31+$M$4),$BL22,$BL$514)) ->  | BN22: =IF(B22="","",IF(OR(RParms!$A$30=FALSE,$BB22<RParms!$A$31),0,(EXP(-0.25*('Growth&Yield'!I14^(1.8333-1/60*$C$1))))*$O$6*($BB22-RParms!$A$31)*EXP(-($O$7*($BB22-RParms!$A$31))))) ->  | BO22: =IF(B22="","",IF($BB22<(RParms!$A$31+$O$4),$BN22,$BN$514)) ->  | BQ22: =IF(B22="","",(EXP(-0.25*('Growth&Yield'!I14^(1.8333-1/60*$C$1))))) ->  | BS22: =IF(B22="","",IF($U$4=TRUE,GetFertilizerResponseAtAge($U$5,$C$1,$U$8,$U$6,$U$7,"HD",$BB22,"RESP")*$BQ22,0)) ->  | BU22: =IF(B22="","",IF($U$4=TRUE,GetFertilizerResponseAtAge($U$5,$C$1,$U$8,$U$6,$U$7,"BA",$BB22,"RESP")*$BQ22,0)) ->  | BW22: =IF(B22="","",IF($Y$4=TRUE,GetFertilizerResponseAtAge($Y$5,$C$1,$Y$8,$Y$6,$Y$7,"HD",$BB22,"RESP")*$BQ22,0)) ->  | BY22: =IF(B22="","",IF($Y$4=TRUE,GetFertilizerResponseAtAge($Y$5,$C$1,$Y$8,$Y$6,$Y$7,"BA",$BB22,"RESP")*$BQ22,0)) ->  | CA22: =IF($AC$4=TRUE,GetFertilizerResponseAtAge($AC$5,$C$1,$AC$8,$AC$6,$AC$7,"HD",$BB22,"RESP")*$BQ22,0) -> 0 | CB22: 0 | CC22: =IF($AC$4=TRUE,GetFertilizerResponseAtAge($AC$5,$C$1,$AC$8,$AC$6,$AC$7,"BA",$BB22,"RESP")*$BQ22,0) -> 0 | CE22: =IF($AG$4=TRUE,GetFertilizerResponseAtAge($AG$5,$C$1,$AG$8,$AG$6,$AG$7,"HD",$BB22,"RESP")*$BQ22,0) -> 0 | CF22: 0 | CG22: =IF($AG$4=TRUE,GetFertilizerResponseAtAge($AG$5,$C$1,$AG$8,$AG$6,$AG$7,"BA",$BB22,"RESP")*$BQ22,0) -> 0 | CH22: 1 | CI22: 1 | CJ22: 2 | CK22: 1 | CP22: 1 | CQ22: 1 | CR22: 2 | CS22: 1 | DB22: =+'Growth&Yield'!G14 ->  | DC22: =IF(DB22="","",IF(DB22=0,0,SQRT(43560/'Growth&Yield'!$R14)/'Growth&Yield'!$AA14)) ->  | DD22: =IF(DB22="","",IF(DB22=0,0,(EXP(-0.25*('Growth&Yield'!$AA14^(1.8333-1/60*$C$1))))*$E$7*$BB22*EXP(-$E$6*$BB22))) ->  | DE22: =IF(DB22="","",IF(Inputs!$K$8=TRUE,$DD22,0)) ->  | DF22: =IF(DB22="","",(EXP(-0.25*('Growth&Yield'!J14^(1.8333-1/60*$C$1))))*$G$7*$DB22*EXP(-$G$6*$DB22)) ->  | DG22: =IF(DB22="","",IF(Inputs!$K$8=TRUE,$DF22,0)) ->  | DI22: =IF(DB22="","",IF(DB22=0,0,(EXP(-0.25*('Growth&Yield'!J14^(1.8333-1/60*$C$1))))*$I$5*($DB22-$I$6)*EXP(-$I$4*($DB22-$I$6)))) ->  | DJ22: =IF(DB22="","",IF(DB22=0,0,(EXP(-0.25*('Growth&Yield'!J14^(1.8333-1/60*$C$1))))*$K$5*($DB22-$I$6)*EXP(-$K$4*($DB22-$I$6)))) ->  | DL22: =IF(DB22="","",IF(DB22=0,0,IF(OR(Inputs!$K$14=FALSE,DB22<Inputs!$F$25),0,(EXP(-0.25*('Growth&Yield'!J14^(1.8333-1/60*$C$1))))*$M$6*(DB22-Inputs!$F$25)*EXP(-($M$7*(DB22-Inputs!$F$25)))))) ->  | DM22: =IF(DB22="","",IF(DB22<(RParms!$A$31+$M$4),$DL22,$DL$514)) ->  | DN22: =IF(DB22="","",IF(OR(RParms!$A$30=FALSE,$DB22<RParms!$A$31),0,(EXP(-0.25*('Growth&Yield'!J14^(1.8333-1/60*$C$1))))*$O$6*($DB22-RParms!$A$31)*EXP(-($O$7*($DB22-RParms!$A$31))))) ->  | DO22: =IF(DB22="","",IF($DB22<(RParms!$A$31+$O$4),$DN22,$DN$514)) ->  | DQ22: =IF(DB22="","",(EXP(-0.25*('Growth&Yield'!J14^(1.8333-1/60*$C$1))))) ->  | DS22: =IF(DB22="","",IF($U$4=TRUE,GetFertilizerResponseAtAge($U$5,$C$1,$U$8,$U$6,$U$7,"HD",$DB22,"RESP")*$DQ22,0)) ->  | DU22: =IF(DB22="","",IF($U$4=TRUE,GetFertilizerResponseAtAge($U$5,$C$1,$U$8,$U$6,$U$7,"BA",$DB22,"RESP")*$DQ22,0)) ->  | DW22: =IF(DB22="","",IF($Y$4=TRUE,GetFertilizerResponseAtAge($Y$5,$C$1,$Y$8,$Y$6,$Y$7,"HD",$DB22,"RESP")*$DQ22,0)) ->  | DY22: =IF(DB22="","",IF($Y$4=TRUE,GetFertilizerResponseAtAge($Y$5,$C$1,$Y$8,$Y$6,$Y$7,"BA",$DB22,"RESP")*$DQ22,0)) ->  | EA22: =IF(DB22="","",IF($AC$4=TRUE,GetFertilizerResponseAtAge($AC$5,$C$1,$AC$8,$AC$6,$AC$7,"HD",$DB22,"RESP")*$DQ22,0)) ->  | EC22: =IF(DB22="","",IF($AC$4=TRUE,GetFertilizerResponseAtAge($AC$5,$C$1,$AC$8,$AC$6,$AC$7,"BA",$DB22,"RESP")*$DQ22,0)) ->  | EE22: =IF(DB22="","",IF($AG$4=TRUE,GetFertilizerResponseAtAge($AG$5,$C$1,$AG$8,$AG$6,$AG$7,"HD",$DB22,"RESP")*$DQ22,0)) ->  | EG22: =IF(DB22="","",IF($AG$4=TRUE,GetFertilizerResponseAtAge($AG$5,$C$1,$AG$8,$AG$6,$AG$7,"BA",$DB22,"RESP")*$DQ22,0)) -> 
A23: =+'Growth&Yield'!A15 -> 11 | B23: =+'Growth&Yield'!E15 ->  | C23: =IF(B23="","",IF(B23=0,0,SQRT(43560/'Growth&Yield'!$K15)/'Growth&Yield'!$Y15)) ->  | D23: =IF(B23="","",IF(B23=0,0,(EXP(-0.25*('Growth&Yield'!$Y15^(1.8333-1/60*$C$1))))*$E$7*$B23*EXP(-$E$6*$B23))) ->  | E23: =IF(B23="","",IF(Inputs!$K$8=TRUE,$D23,0)) ->  | F23: =IF(B23="","",(EXP(-0.25*('Growth&Yield'!H15^(1.8333-1/60*$C$1))))*$G$7*$B23*EXP(-$G$6*$B23)) ->  | G23: =IF(B23="","",IF(Inputs!$K$8=TRUE,$F23,0)) ->  | I23: =IF(B23="","",IF('Growth&Yield'!E15=0,0,(EXP(-0.25*('Growth&Yield'!H15^(1.8333-1/60*$C$1))))*$I$5*($B23-$I$6)*EXP(-$I$4*($B23-$I$6)))) ->  | J23: =IF(B23="","",IF(B23=0,0,(EXP(-0.25*('Growth&Yield'!H15^(1.8333-1/60*$C$1))))*$K$5*($B23-$I$6)*EXP(-$K$4*($B23-$I$6)))) ->  | L23: =IF(B23="","",IF(B23=0,0,IF(OR(Inputs!$K$14=FALSE,B23<Inputs!$F$25),0,(EXP(-0.25*('Growth&Yield'!H15^(1.8333-1/60*$C$1))))*$M$6*(B23-Inputs!$F$25)*EXP(-($M$7*(B23-Inputs!$F$25)))))) ->  | M23: =IF(B23="","",IF(B23<(RParms!$A$31+$M$4),$L23,$L$514)) ->  | N23: =IF(B23="","",IF(OR(RParms!$A$30=FALSE,$B23<RParms!$A$31),0,(EXP(-0.25*('Growth&Yield'!H15^(1.8333-1/60*$C$1))))*$O$6*($B23-RParms!$A$31)*EXP(-($O$7*($B23-RParms!$A$31))))) ->  | O23: =IF(B23="","",IF($B23<(RParms!$A$31+$O$4),$N23,$N$514)) ->  | Q23: =IF(B23="","",(EXP(-0.25*('Growth&Yield'!H15^(1.8333-1/60*$C$1))))) ->  | S23: =IF(B23="","",IF($U$4=TRUE,GetFertilizerResponseAtAge($U$5,$C$1,$U$8,$U$6,$U$7,"HD",$B23,"RESP")*$Q23,0)) ->  | U23: =IF(B23="","",IF($U$4=TRUE,GetFertilizerResponseAtAge($U$5,$C$1,$U$8,$U$6,$U$7,"BA",$B23,"RESP")*$Q23,0)) ->  | W23: =IF(B23="","",IF($Y$4=TRUE,GetFertilizerResponseAtAge($Y$5,$C$1,$Y$8,$Y$6,$Y$7,"HD",$B23,"RESP")*$Q23,0)) ->  | Y23: =IF(B23="","",IF($Y$4=TRUE,GetFertilizerResponseAtAge($Y$5,$C$1,$Y$8,$Y$6,$Y$7,"BA",$B23,"RESP")*$Q23,0)) ->  | AA23: =IF(B23="","",IF($AC$4=TRUE,GetFertilizerResponseAtAge($AC$5,$C$1,$AC$8,$AC$6,$AC$7,"HD",$B23,"RESP")*$Q23,0)) ->  | AC23: =IF(B23="","",IF($AC$4=TRUE,GetFertilizerResponseAtAge($AC$5,$C$1,$AC$8,$AC$6,$AC$7,"BA",$B23,"RESP")*$Q23,0)) ->  | AE23: =IF(B23="","",IF($AG$4=TRUE,GetFertilizerResponseAtAge($AG$5,$C$1,$AG$8,$AG$6,$AG$7,"HD",$B23,"RESP")*$Q23,0)) ->  | AG23: =IF(B23="","",IF($AG$4=TRUE,GetFertilizerResponseAtAge($AG$5,$C$1,$AG$8,$AG$6,$AG$7,"BA",$B23,"RESP")*$Q23,0)) ->  | BB23: =+'Growth&Yield'!F15 ->  | BC23: =IF(B23="","",IF(BB23=0,0,SQRT(43560/'Growth&Yield'!$N15)/'Growth&Yield'!$Z15)) ->  | BD23: =IF(B23="","",IF(BB23=0,0,(EXP(-0.25*('Growth&Yield'!$Z15^(1.8333-1/60*$C$1))))*$E$7*$BB23*EXP(-$E$6*$BB23))) ->  | BE23: =IF(B23="","",IF(Inputs!$K$8=TRUE,$BD23,0)) ->  | BF23: =IF(B23="","",(EXP(-0.25*('Growth&Yield'!I15^(1.8333-1/60*$C$1))))*$G$7*$BB23*EXP(-$G$6*$BB23)) ->  | BG23: =IF(B23="","",IF(Inputs!$K$8=TRUE,$BF23,0)) ->  | BI23: =IF(B23="","",IF(BB23=0,0,(EXP(-0.25*('Growth&Yield'!I15^(1.8333-1/60*$C$1))))*$I$5*($BB23-$I$6)*EXP(-$I$4*($BB23-$I$6)))) ->  | BJ23: =IF(B23="","",IF(BB23=0,0,(EXP(-0.25*('Growth&Yield'!I15^(1.8333-1/60*$C$1))))*$K$5*($BB23-$I$6)*EXP(-$K$4*($BB23-$I$6)))) ->  | BL23: =IF(B23="","",IF(BB23=0,0,IF(OR(Inputs!$K$14=FALSE,BB23<Inputs!$F$25),0,(EXP(-0.25*('Growth&Yield'!I15^(1.8333-1/60*$C$1))))*$M$6*(BB23-Inputs!$F$25)*EXP(-($M$7*(BB23-Inputs!$F$25)))))) ->  | BM23: =IF(B23="","",IF(BB23<(RParms!$A$31+$M$4),$BL23,$BL$514)) ->  | BN23: =IF(B23="","",IF(OR(RParms!$A$30=FALSE,$BB23<RParms!$A$31),0,(EXP(-0.25*('Growth&Yield'!I15^(1.8333-1/60*$C$1))))*$O$6*($BB23-RParms!$A$31)*EXP(-($O$7*($BB23-RParms!$A$31))))) ->  | BO23: =IF(B23="","",IF($BB23<(RParms!$A$31+$O$4),$BN23,$BN$514)) ->  | BQ23: =IF(B23="","",(EXP(-0.25*('Growth&Yield'!I15^(1.8333-1/60*$C$1))))) ->  | BS23: =IF(B23="","",IF($U$4=TRUE,GetFertilizerResponseAtAge($U$5,$C$1,$U$8,$U$6,$U$7,"HD",$BB23,"RESP")*$BQ23,0)) ->  | BU23: =IF(B23="","",IF($U$4=TRUE,GetFertilizerResponseAtAge($U$5,$C$1,$U$8,$U$6,$U$7,"BA",$BB23,"RESP")*$BQ23,0)) ->  | BW23: =IF(B23="","",IF($Y$4=TRUE,GetFertilizerResponseAtAge($Y$5,$C$1,$Y$8,$Y$6,$Y$7,"HD",$BB23,"RESP")*$BQ23,0)) ->  | BY23: =IF(B23="","",IF($Y$4=TRUE,GetFertilizerResponseAtAge($Y$5,$C$1,$Y$8,$Y$6,$Y$7,"BA",$BB23,"RESP")*$BQ23,0)) ->  | CA23: =IF($AC$4=TRUE,GetFertilizerResponseAtAge($AC$5,$C$1,$AC$8,$AC$6,$AC$7,"HD",$BB23,"RESP")*$BQ23,0) -> 0 | CB23: 0 | CC23: =IF($AC$4=TRUE,GetFertilizerResponseAtAge($AC$5,$C$1,$AC$8,$AC$6,$AC$7,"BA",$BB23,"RESP")*$BQ23,0) -> 0 | CE23: =IF($AG$4=TRUE,GetFertilizerResponseAtAge($AG$5,$C$1,$AG$8,$AG$6,$AG$7,"HD",$BB23,"RESP")*$BQ23,0) -> 0 | CF23: 0 | CG23: =IF($AG$4=TRUE,GetFertilizerResponseAtAge($AG$5,$C$1,$AG$8,$AG$6,$AG$7,"BA",$BB23,"RESP")*$BQ23,0) -> 0 | CH23: 1 | CI23: 1 | CJ23: 2 | CK23: 1 | CP23: 1 | CQ23: 1 | CR23: 2 | CS23: 1 | DB23: =+'Growth&Yield'!G15 ->  | DC23: =IF(DB23="","",IF(DB23=0,0,SQRT(43560/'Growth&Yield'!$R15)/'Growth&Yield'!$AA15)) ->  | DD23: =IF(DB23="","",IF(DB23=0,0,(EXP(-0.25*('Growth&Yield'!$AA15^(1.8333-1/60*$C$1))))*$E$7*$BB23*EXP(-$E$6*$BB23))) ->  | DE23: =IF(DB23="","",IF(Inputs!$K$8=TRUE,$DD23,0)) ->  | DF23: =IF(DB23="","",(EXP(-0.25*('Growth&Yield'!J15^(1.8333-1/60*$C$1))))*$G$7*$DB23*EXP(-$G$6*$DB23)) ->  | DG23: =IF(DB23="","",IF(Inputs!$K$8=TRUE,$DF23,0)) ->  | DI23: =IF(DB23="","",IF(DB23=0,0,(EXP(-0.25*('Growth&Yield'!J15^(1.8333-1/60*$C$1))))*$I$5*($DB23-$I$6)*EXP(-$I$4*($DB23-$I$6)))) ->  | DJ23: =IF(DB23="","",IF(DB23=0,0,(EXP(-0.25*('Growth&Yield'!J15^(1.8333-1/60*$C$1))))*$K$5*($DB23-$I$6)*EXP(-$K$4*($DB23-$I$6)))) ->  | DL23: =IF(DB23="","",IF(DB23=0,0,IF(OR(Inputs!$K$14=FALSE,DB23<Inputs!$F$25),0,(EXP(-0.25*('Growth&Yield'!J15^(1.8333-1/60*$C$1))))*$M$6*(DB23-Inputs!$F$25)*EXP(-($M$7*(DB23-Inputs!$F$25)))))) ->  | DM23: =IF(DB23="","",IF(DB23<(RParms!$A$31+$M$4),$DL23,$DL$514)) ->  | DN23: =IF(DB23="","",IF(OR(RParms!$A$30=FALSE,$DB23<RParms!$A$31),0,(EXP(-0.25*('Growth&Yield'!J15^(1.8333-1/60*$C$1))))*$O$6*($DB23-RParms!$A$31)*EXP(-($O$7*($DB23-RParms!$A$31))))) ->  | DO23: =IF(DB23="","",IF($DB23<(RParms!$A$31+$O$4),$DN23,$DN$514)) ->  | DQ23: =IF(DB23="","",(EXP(-0.25*('Growth&Yield'!J15^(1.8333-1/60*$C$1))))) ->  | DS23: =IF(DB23="","",IF($U$4=TRUE,GetFertilizerResponseAtAge($U$5,$C$1,$U$8,$U$6,$U$7,"HD",$DB23,"RESP")*$DQ23,0)) ->  | DU23: =IF(DB23="","",IF($U$4=TRUE,GetFertilizerResponseAtAge($U$5,$C$1,$U$8,$U$6,$U$7,"BA",$DB23,"RESP")*$DQ23,0)) ->  | DW23: =IF(DB23="","",IF($Y$4=TRUE,GetFertilizerResponseAtAge($Y$5,$C$1,$Y$8,$Y$6,$Y$7,"HD",$DB23,"RESP")*$DQ23,0)) ->  | DY23: =IF(DB23="","",IF($Y$4=TRUE,GetFertilizerResponseAtAge($Y$5,$C$1,$Y$8,$Y$6,$Y$7,"BA",$DB23,"RESP")*$DQ23,0)) ->  | EA23: =IF(DB23="","",IF($AC$4=TRUE,GetFertilizerResponseAtAge($AC$5,$C$1,$AC$8,$AC$6,$AC$7,"HD",$DB23,"RESP")*$DQ23,0)) ->  | EC23: =IF(DB23="","",IF($AC$4=TRUE,GetFertilizerResponseAtAge($AC$5,$C$1,$AC$8,$AC$6,$AC$7,"BA",$DB23,"RESP")*$DQ23,0)) ->  | EE23: =IF(DB23="","",IF($AG$4=TRUE,GetFertilizerResponseAtAge($AG$5,$C$1,$AG$8,$AG$6,$AG$7,"HD",$DB23,"RESP")*$DQ23,0)) ->  | EG23: =IF(DB23="","",IF($AG$4=TRUE,GetFertilizerResponseAtAge($AG$5,$C$1,$AG$8,$AG$6,$AG$7,"BA",$DB23,"RESP")*$DQ23,0)) -> 
A24: =+'Growth&Yield'!A16 -> 12 | B24: =+'Growth&Yield'!E16 ->  | C24: =IF(B24="","",IF(B24=0,0,SQRT(43560/'Growth&Yield'!$K16)/'Growth&Yield'!$Y16)) ->  | D24: =IF(B24="","",IF(B24=0,0,(EXP(-0.25*('Growth&Yield'!$Y16^(1.8333-1/60*$C$1))))*$E$7*$B24*EXP(-$E$6*$B24))) ->  | E24: =IF(B24="","",IF(Inputs!$K$8=TRUE,$D24,0)) ->  | F24: =IF(B24="","",(EXP(-0.25*('Growth&Yield'!H16^(1.8333-1/60*$C$1))))*$G$7*$B24*EXP(-$G$6*$B24)) ->  | G24: =IF(B24="","",IF(Inputs!$K$8=TRUE,$F24,0)) ->  | I24: =IF(B24="","",IF('Growth&Yield'!E16=0,0,(EXP(-0.25*('Growth&Yield'!H16^(1.8333-1/60*$C$1))))*$I$5*($B24-$I$6)*EXP(-$I$4*($B24-$I$6)))) ->  | J24: =IF(B24="","",IF(B24=0,0,(EXP(-0.25*('Growth&Yield'!H16^(1.8333-1/60*$C$1))))*$K$5*($B24-$I$6)*EXP(-$K$4*($B24-$I$6)))) ->  | L24: =IF(B24="","",IF(B24=0,0,IF(OR(Inputs!$K$14=FALSE,B24<Inputs!$F$25),0,(EXP(-0.25*('Growth&Yield'!H16^(1.8333-1/60*$C$1))))*$M$6*(B24-Inputs!$F$25)*EXP(-($M$7*(B24-Inputs!$F$25)))))) ->  | M24: =IF(B24="","",IF(B24<(RParms!$A$31+$M$4),$L24,$L$514)) ->  | N24: =IF(B24="","",IF(OR(RParms!$A$30=FALSE,$B24<RParms!$A$31),0,(EXP(-0.25*('Growth&Yield'!H16^(1.8333-1/60*$C$1))))*$O$6*($B24-RParms!$A$31)*EXP(-($O$7*($B24-RParms!$A$31))))) ->  | O24: =IF(B24="","",IF($B24<(RParms!$A$31+$O$4),$N24,$N$514)) ->  | Q24: =IF(B24="","",(EXP(-0.25*('Growth&Yield'!H16^(1.8333-1/60*$C$1))))) ->  | S24: =IF(B24="","",IF($U$4=TRUE,GetFertilizerResponseAtAge($U$5,$C$1,$U$8,$U$6,$U$7,"HD",$B24,"RESP")*$Q24,0)) ->  | U24: =IF(B24="","",IF($U$4=TRUE,GetFertilizerResponseAtAge($U$5,$C$1,$U$8,$U$6,$U$7,"BA",$B24,"RESP")*$Q24,0)) ->  | W24: =IF(B24="","",IF($Y$4=TRUE,GetFertilizerResponseAtAge($Y$5,$C$1,$Y$8,$Y$6,$Y$7,"HD",$B24,"RESP")*$Q24,0)) ->  | Y24: =IF(B24="","",IF($Y$4=TRUE,GetFertilizerResponseAtAge($Y$5,$C$1,$Y$8,$Y$6,$Y$7,"BA",$B24,"RESP")*$Q24,0)) ->  | AA24: =IF(B24="","",IF($AC$4=TRUE,GetFertilizerResponseAtAge($AC$5,$C$1,$AC$8,$AC$6,$AC$7,"HD",$B24,"RESP")*$Q24,0)) ->  | AC24: =IF(B24="","",IF($AC$4=TRUE,GetFertilizerResponseAtAge($AC$5,$C$1,$AC$8,$AC$6,$AC$7,"BA",$B24,"RESP")*$Q24,0)) ->  | AE24: =IF(B24="","",IF($AG$4=TRUE,GetFertilizerResponseAtAge($AG$5,$C$1,$AG$8,$AG$6,$AG$7,"HD",$B24,"RESP")*$Q24,0)) ->  | AG24: =IF(B24="","",IF($AG$4=TRUE,GetFertilizerResponseAtAge($AG$5,$C$1,$AG$8,$AG$6,$AG$7,"BA",$B24,"RESP")*$Q24,0)) ->  | BB24: =+'Growth&Yield'!F16 ->  | BC24: =IF(B24="","",IF(BB24=0,0,SQRT(43560/'Growth&Yield'!$N16)/'Growth&Yield'!$Z16)) ->  | BD24: =IF(B24="","",IF(BB24=0,0,(EXP(-0.25*('Growth&Yield'!$Z16^(1.8333-1/60*$C$1))))*$E$7*$BB24*EXP(-$E$6*$BB24))) ->  | BE24: =IF(B24="","",IF(Inputs!$K$8=TRUE,$BD24,0)) ->  | BF24: =IF(B24="","",(EXP(-0.25*('Growth&Yield'!I16^(1.8333-1/60*$C$1))))*$G$7*$BB24*EXP(-$G$6*$BB24)) ->  | BG24: =IF(B24="","",IF(Inputs!$K$8=TRUE,$BF24,0)) ->  | BI24: =IF(B24="","",IF(BB24=0,0,(EXP(-0.25*('Growth&Yield'!I16^(1.8333-1/60*$C$1))))*$I$5*($BB24-$I$6)*EXP(-$I$4*($BB24-$I$6)))) ->  | BJ24: =IF(B24="","",IF(BB24=0,0,(EXP(-0.25*('Growth&Yield'!I16^(1.8333-1/60*$C$1))))*$K$5*($BB24-$I$6)*EXP(-$K$4*($BB24-$I$6)))) ->  | BL24: =IF(B24="","",IF(BB24=0,0,IF(OR(Inputs!$K$14=FALSE,BB24<Inputs!$F$25),0,(EXP(-0.25*('Growth&Yield'!I16^(1.8333-1/60*$C$1))))*$M$6*(BB24-Inputs!$F$25)*EXP(-($M$7*(BB24-Inputs!$F$25)))))) ->  | BM24: =IF(B24="","",IF(BB24<(RParms!$A$31+$M$4),$BL24,$BL$514)) ->  | BN24: =IF(B24="","",IF(OR(RParms!$A$30=FALSE,$BB24<RParms!$A$31),0,(EXP(-0.25*('Growth&Yield'!I16^(1.8333-1/60*$C$1))))*$O$6*($BB24-RParms!$A$31)*EXP(-($O$7*($BB24-RParms!$A$31))))) ->  | BO24: =IF(B24="","",IF($BB24<(RParms!$A$31+$O$4),$BN24,$BN$514)) ->  | BQ24: =IF(B24="","",(EXP(-0.25*('Growth&Yield'!I16^(1.8333-1/60*$C$1))))) ->  | BS24: =IF(B24="","",IF($U$4=TRUE,GetFertilizerResponseAtAge($U$5,$C$1,$U$8,$U$6,$U$7,"HD",$BB24,"RESP")*$BQ24,0)) ->  | BU24: =IF(B24="","",IF($U$4=TRUE,GetFertilizerResponseAtAge($U$5,$C$1,$U$8,$U$6,$U$7,"BA",$BB24,"RESP")*$BQ24,0)) ->  | BW24: =IF(B24="","",IF($Y$4=TRUE,GetFertilizerResponseAtAge($Y$5,$C$1,$Y$8,$Y$6,$Y$7,"HD",$BB24,"RESP")*$BQ24,0)) ->  | BY24: =IF(B24="","",IF($Y$4=TRUE,GetFertilizerResponseAtAge($Y$5,$C$1,$Y$8,$Y$6,$Y$7,"BA",$BB24,"RESP")*$BQ24,0)) ->  | CA24: =IF($AC$4=TRUE,GetFertilizerResponseAtAge($AC$5,$C$1,$AC$8,$AC$6,$AC$7,"HD",$BB24,"RESP")*$BQ24,0) -> 0 | CB24: 0 | CC24: =IF($AC$4=TRUE,GetFertilizerResponseAtAge($AC$5,$C$1,$AC$8,$AC$6,$AC$7,"BA",$BB24,"RESP")*$BQ24,0) -> 0 | CE24: =IF($AG$4=TRUE,GetFertilizerResponseAtAge($AG$5,$C$1,$AG$8,$AG$6,$AG$7,"HD",$BB24,"RESP")*$BQ24,0) -> 0 | CF24: 0 | CG24: =IF($AG$4=TRUE,GetFertilizerResponseAtAge($AG$5,$C$1,$AG$8,$AG$6,$AG$7,"BA",$BB24,"RESP")*$BQ24,0) -> 0 | CH24: 1 | CI24: 1 | CJ24: 2 | CK24: 1 | CP24: 1 | CQ24: 1 | CR24: 2 | CS24: 1 | DB24: =+'Growth&Yield'!G16 ->  | DC24: =IF(DB24="","",IF(DB24=0,0,SQRT(43560/'Growth&Yield'!$R16)/'Growth&Yield'!$AA16)) ->  | DD24: =IF(DB24="","",IF(DB24=0,0,(EXP(-0.25*('Growth&Yield'!$AA16^(1.8333-1/60*$C$1))))*$E$7*$BB24*EXP(-$E$6*$BB24))) ->  | DE24: =IF(DB24="","",IF(Inputs!$K$8=TRUE,$DD24,0)) ->  | DF24: =IF(DB24="","",(EXP(-0.25*('Growth&Yield'!J16^(1.8333-1/60*$C$1))))*$G$7*$DB24*EXP(-$G$6*$DB24)) ->  | DG24: =IF(DB24="","",IF(Inputs!$K$8=TRUE,$DF24,0)) ->  | DI24: =IF(DB24="","",IF(DB24=0,0,(EXP(-0.25*('Growth&Yield'!J16^(1.8333-1/60*$C$1))))*$I$5*($DB24-$I$6)*EXP(-$I$4*($DB24-$I$6)))) ->  | DJ24: =IF(DB24="","",IF(DB24=0,0,(EXP(-0.25*('Growth&Yield'!J16^(1.8333-1/60*$C$1))))*$K$5*($DB24-$I$6)*EXP(-$K$4*($DB24-$I$6)))) ->  | DL24: =IF(DB24="","",IF(DB24=0,0,IF(OR(Inputs!$K$14=FALSE,DB24<Inputs!$F$25),0,(EXP(-0.25*('Growth&Yield'!J16^(1.8333-1/60*$C$1))))*$M$6*(DB24-Inputs!$F$25)*EXP(-($M$7*(DB24-Inputs!$F$25)))))) ->  | DM24: =IF(DB24="","",IF(DB24<(RParms!$A$31+$M$4),$DL24,$DL$514)) ->  | DN24: =IF(DB24="","",IF(OR(RParms!$A$30=FALSE,$DB24<RParms!$A$31),0,(EXP(-0.25*('Growth&Yield'!J16^(1.8333-1/60*$C$1))))*$O$6*($DB24-RParms!$A$31)*EXP(-($O$7*($DB24-RParms!$A$31))))) ->  | DO24: =IF(DB24="","",IF($DB24<(RParms!$A$31+$O$4),$DN24,$DN$514)) ->  | DQ24: =IF(DB24="","",(EXP(-0.25*('Growth&Yield'!J16^(1.8333-1/60*$C$1))))) ->  | DS24: =IF(DB24="","",IF($U$4=TRUE,GetFertilizerResponseAtAge($U$5,$C$1,$U$8,$U$6,$U$7,"HD",$DB24,"RESP")*$DQ24,0)) ->  | DU24: =IF(DB24="","",IF($U$4=TRUE,GetFertilizerResponseAtAge($U$5,$C$1,$U$8,$U$6,$U$7,"BA",$DB24,"RESP")*$DQ24,0)) ->  | DW24: =IF(DB24="","",IF($Y$4=TRUE,GetFertilizerResponseAtAge($Y$5,$C$1,$Y$8,$Y$6,$Y$7,"HD",$DB24,"RESP")*$DQ24,0)) ->  | DY24: =IF(DB24="","",IF($Y$4=TRUE,GetFertilizerResponseAtAge($Y$5,$C$1,$Y$8,$Y$6,$Y$7,"BA",$DB24,"RESP")*$DQ24,0)) ->  | EA24: =IF(DB24="","",IF($AC$4=TRUE,GetFertilizerResponseAtAge($AC$5,$C$1,$AC$8,$AC$6,$AC$7,"HD",$DB24,"RESP")*$DQ24,0)) ->  | EC24: =IF(DB24="","",IF($AC$4=TRUE,GetFertilizerResponseAtAge($AC$5,$C$1,$AC$8,$AC$6,$AC$7,"BA",$DB24,"RESP")*$DQ24,0)) ->  | EE24: =IF(DB24="","",IF($AG$4=TRUE,GetFertilizerResponseAtAge($AG$5,$C$1,$AG$8,$AG$6,$AG$7,"HD",$DB24,"RESP")*$DQ24,0)) ->  | EG24: =IF(DB24="","",IF($AG$4=TRUE,GetFertilizerResponseAtAge($AG$5,$C$1,$AG$8,$AG$6,$AG$7,"BA",$DB24,"RESP")*$DQ24,0)) -> 
A25: =+'Growth&Yield'!A17 -> 13 | B25: =+'Growth&Yield'!E17 ->  | C25: =IF(B25="","",IF(B25=0,0,SQRT(43560/'Growth&Yield'!$K17)/'Growth&Yield'!$Y17)) ->  | D25: =IF(B25="","",IF(B25=0,0,(EXP(-0.25*('Growth&Yield'!$Y17^(1.8333-1/60*$C$1))))*$E$7*$B25*EXP(-$E$6*$B25))) ->  | E25: =IF(B25="","",IF(Inputs!$K$8=TRUE,$D25,0)) ->  | F25: =IF(B25="","",(EXP(-0.25*('Growth&Yield'!H17^(1.8333-1/60*$C$1))))*$G$7*$B25*EXP(-$G$6*$B25)) ->  | G25: =IF(B25="","",IF(Inputs!$K$8=TRUE,$F25,0)) ->  | I25: =IF(B25="","",IF('Growth&Yield'!E17=0,0,(EXP(-0.25*('Growth&Yield'!H17^(1.8333-1/60*$C$1))))*$I$5*($B25-$I$6)*EXP(-$I$4*($B25-$I$6)))) ->  | J25: =IF(B25="","",IF(B25=0,0,(EXP(-0.25*('Growth&Yield'!H17^(1.8333-1/60*$C$1))))*$K$5*($B25-$I$6)*EXP(-$K$4*($B25-$I$6)))) ->  | L25: =IF(B25="","",IF(B25=0,0,IF(OR(Inputs!$K$14=FALSE,B25<Inputs!$F$25),0,(EXP(-0.25*('Growth&Yield'!H17^(1.8333-1/60*$C$1))))*$M$6*(B25-Inputs!$F$25)*EXP(-($M$7*(B25-Inputs!$F$25)))))) ->  | M25: =IF(B25="","",IF(B25<(RParms!$A$31+$M$4),$L25,$L$514)) ->  | N25: =IF(B25="","",IF(OR(RParms!$A$30=FALSE,$B25<RParms!$A$31),0,(EXP(-0.25*('Growth&Yield'!H17^(1.8333-1/60*$C$1))))*$O$6*($B25-RParms!$A$31)*EXP(-($O$7*($B25-RParms!$A$31))))) ->  | O25: =IF(B25="","",IF($B25<(RParms!$A$31+$O$4),$N25,$N$514)) ->  | Q25: =IF(B25="","",(EXP(-0.25*('Growth&Yield'!H17^(1.8333-1/60*$C$1))))) ->  | S25: =IF(B25="","",IF($U$4=TRUE,GetFertilizerResponseAtAge($U$5,$C$1,$U$8,$U$6,$U$7,"HD",$B25,"RESP")*$Q25,0)) ->  | U25: =IF(B25="","",IF($U$4=TRUE,GetFertilizerResponseAtAge($U$5,$C$1,$U$8,$U$6,$U$7,"BA",$B25,"RESP")*$Q25,0)) ->  | W25: =IF(B25="","",IF($Y$4=TRUE,GetFertilizerResponseAtAge($Y$5,$C$1,$Y$8,$Y$6,$Y$7,"HD",$B25,"RESP")*$Q25,0)) ->  | Y25: =IF(B25="","",IF($Y$4=TRUE,GetFertilizerResponseAtAge($Y$5,$C$1,$Y$8,$Y$6,$Y$7,"BA",$B25,"RESP")*$Q25,0)) ->  | AA25: =IF(B25="","",IF($AC$4=TRUE,GetFertilizerResponseAtAge($AC$5,$C$1,$AC$8,$AC$6,$AC$7,"HD",$B25,"RESP")*$Q25,0)) ->  | AC25: =IF(B25="","",IF($AC$4=TRUE,GetFertilizerResponseAtAge($AC$5,$C$1,$AC$8,$AC$6,$AC$7,"BA",$B25,"RESP")*$Q25,0)) ->  | AE25: =IF(B25="","",IF($AG$4=TRUE,GetFertilizerResponseAtAge($AG$5,$C$1,$AG$8,$AG$6,$AG$7,"HD",$B25,"RESP")*$Q25,0)) ->  | AG25: =IF(B25="","",IF($AG$4=TRUE,GetFertilizerResponseAtAge($AG$5,$C$1,$AG$8,$AG$6,$AG$7,"BA",$B25,"RESP")*$Q25,0)) ->  | BB25: =+'Growth&Yield'!F17 ->  | BC25: =IF(B25="","",IF(BB25=0,0,SQRT(43560/'Growth&Yield'!$N17)/'Growth&Yield'!$Z17)) ->  | BD25: =IF(B25="","",IF(BB25=0,0,(EXP(-0.25*('Growth&Yield'!$Z17^(1.8333-1/60*$C$1))))*$E$7*$BB25*EXP(-$E$6*$BB25))) ->  | BE25: =IF(B25="","",IF(Inputs!$K$8=TRUE,$BD25,0)) ->  | BF25: =IF(B25="","",(EXP(-0.25*('Growth&Yield'!I17^(1.8333-1/60*$C$1))))*$G$7*$BB25*EXP(-$G$6*$BB25)) ->  | BG25: =IF(B25="","",IF(Inputs!$K$8=TRUE,$BF25,0)) ->  | BI25: =IF(B25="","",IF(BB25=0,0,(EXP(-0.25*('Growth&Yield'!I17^(1.8333-1/60*$C$1))))*$I$5*($BB25-$I$6)*EXP(-$I$4*($BB25-$I$6)))) ->  | BJ25: =IF(B25="","",IF(BB25=0,0,(EXP(-0.25*('Growth&Yield'!I17^(1.8333-1/60*$C$1))))*$K$5*($BB25-$I$6)*EXP(-$K$4*($BB25-$I$6)))) ->  | BL25: =IF(B25="","",IF(BB25=0,0,IF(OR(Inputs!$K$14=FALSE,BB25<Inputs!$F$25),0,(EXP(-0.25*('Growth&Yield'!I17^(1.8333-1/60*$C$1))))*$M$6*(BB25-Inputs!$F$25)*EXP(-($M$7*(BB25-Inputs!$F$25)))))) ->  | BM25: =IF(B25="","",IF(BB25<(RParms!$A$31+$M$4),$BL25,$BL$514)) ->  | BN25: =IF(B25="","",IF(OR(RParms!$A$30=FALSE,$BB25<RParms!$A$31),0,(EXP(-0.25*('Growth&Yield'!I17^(1.8333-1/60*$C$1))))*$O$6*($BB25-RParms!$A$31)*EXP(-($O$7*($BB25-RParms!$A$31))))) ->  | BO25: =IF(B25="","",IF($BB25<(RParms!$A$31+$O$4),$BN25,$BN$514)) ->  | BQ25: =IF(B25="","",(EXP(-0.25*('Growth&Yield'!I17^(1.8333-1/60*$C$1))))) ->  | BS25: =IF(B25="","",IF($U$4=TRUE,GetFertilizerResponseAtAge($U$5,$C$1,$U$8,$U$6,$U$7,"HD",$BB25,"RESP")*$BQ25,0)) ->  | BU25: =IF(B25="","",IF($U$4=TRUE,GetFertilizerResponseAtAge($U$5,$C$1,$U$8,$U$6,$U$7,"BA",$BB25,"RESP")*$BQ25,0)) ->  | BW25: =IF(B25="","",IF($Y$4=TRUE,GetFertilizerResponseAtAge($Y$5,$C$1,$Y$8,$Y$6,$Y$7,"HD",$BB25,"RESP")*$BQ25,0)) ->  | BY25: =IF(B25="","",IF($Y$4=TRUE,GetFertilizerResponseAtAge($Y$5,$C$1,$Y$8,$Y$6,$Y$7,"BA",$BB25,"RESP")*$BQ25,0)) ->  | CA25: =IF($AC$4=TRUE,GetFertilizerResponseAtAge($AC$5,$C$1,$AC$8,$AC$6,$AC$7,"HD",$BB25,"RESP")*$BQ25,0) -> 0 | CB25: 0 | CC25: =IF($AC$4=TRUE,GetFertilizerResponseAtAge($AC$5,$C$1,$AC$8,$AC$6,$AC$7,"BA",$BB25,"RESP")*$BQ25,0) -> 0 | CE25: =IF($AG$4=TRUE,GetFertilizerResponseAtAge($AG$5,$C$1,$AG$8,$AG$6,$AG$7,"HD",$BB25,"RESP")*$BQ25,0) -> 0 | CF25: 0 | CG25: =IF($AG$4=TRUE,GetFertilizerResponseAtAge($AG$5,$C$1,$AG$8,$AG$6,$AG$7,"BA",$BB25,"RESP")*$BQ25,0) -> 0 | CH25: 1 | CI25: 1 | CJ25: 2 | CK25: 1 | CP25: 1 | CQ25: 1 | CR25: 2 | CS25: 1 | DB25: =+'Growth&Yield'!G17 ->  | DC25: =IF(DB25="","",IF(DB25=0,0,SQRT(43560/'Growth&Yield'!$R17)/'Growth&Yield'!$AA17)) ->  | DD25: =IF(DB25="","",IF(DB25=0,0,(EXP(-0.25*('Growth&Yield'!$AA17^(1.8333-1/60*$C$1))))*$E$7*$BB25*EXP(-$E$6*$BB25))) ->  | DE25: =IF(DB25="","",IF(Inputs!$K$8=TRUE,$DD25,0)) ->  | DF25: =IF(DB25="","",(EXP(-0.25*('Growth&Yield'!J17^(1.8333-1/60*$C$1))))*$G$7*$DB25*EXP(-$G$6*$DB25)) ->  | DG25: =IF(DB25="","",IF(Inputs!$K$8=TRUE,$DF25,0)) ->  | DI25: =IF(DB25="","",IF(DB25=0,0,(EXP(-0.25*('Growth&Yield'!J17^(1.8333-1/60*$C$1))))*$I$5*($DB25-$I$6)*EXP(-$I$4*($DB25-$I$6)))) ->  | DJ25: =IF(DB25="","",IF(DB25=0,0,(EXP(-0.25*('Growth&Yield'!J17^(1.8333-1/60*$C$1))))*$K$5*($DB25-$I$6)*EXP(-$K$4*($DB25-$I$6)))) ->  | DL25: =IF(DB25="","",IF(DB25=0,0,IF(OR(Inputs!$K$14=FALSE,DB25<Inputs!$F$25),0,(EXP(-0.25*('Growth&Yield'!J17^(1.8333-1/60*$C$1))))*$M$6*(DB25-Inputs!$F$25)*EXP(-($M$7*(DB25-Inputs!$F$25)))))) ->  | DM25: =IF(DB25="","",IF(DB25<(RParms!$A$31+$M$4),$DL25,$DL$514)) ->  | DN25: =IF(DB25="","",IF(OR(RParms!$A$30=FALSE,$DB25<RParms!$A$31),0,(EXP(-0.25*('Growth&Yield'!J17^(1.8333-1/60*$C$1))))*$O$6*($DB25-RParms!$A$31)*EXP(-($O$7*($DB25-RParms!$A$31))))) ->  | DO25: =IF(DB25="","",IF($DB25<(RParms!$A$31+$O$4),$DN25,$DN$514)) ->  | DQ25: =IF(DB25="","",(EXP(-0.25*('Growth&Yield'!J17^(1.8333-1/60*$C$1))))) ->  | DS25: =IF(DB25="","",IF($U$4=TRUE,GetFertilizerResponseAtAge($U$5,$C$1,$U$8,$U$6,$U$7,"HD",$DB25,"RESP")*$DQ25,0)) ->  | DU25: =IF(DB25="","",IF($U$4=TRUE,GetFertilizerResponseAtAge($U$5,$C$1,$U$8,$U$6,$U$7,"BA",$DB25,"RESP")*$DQ25,0)) ->  | DW25: =IF(DB25="","",IF($Y$4=TRUE,GetFertilizerResponseAtAge($Y$5,$C$1,$Y$8,$Y$6,$Y$7,"HD",$DB25,"RESP")*$DQ25,0)) ->  | DY25: =IF(DB25="","",IF($Y$4=TRUE,GetFertilizerResponseAtAge($Y$5,$C$1,$Y$8,$Y$6,$Y$7,"BA",$DB25,"RESP")*$DQ25,0)) ->  | EA25: =IF(DB25="","",IF($AC$4=TRUE,GetFertilizerResponseAtAge($AC$5,$C$1,$AC$8,$AC$6,$AC$7,"HD",$DB25,"RESP")*$DQ25,0)) ->  | EC25: =IF(DB25="","",IF($AC$4=TRUE,GetFertilizerResponseAtAge($AC$5,$C$1,$AC$8,$AC$6,$AC$7,"BA",$DB25,"RESP")*$DQ25,0)) ->  | EE25: =IF(DB25="","",IF($AG$4=TRUE,GetFertilizerResponseAtAge($AG$5,$C$1,$AG$8,$AG$6,$AG$7,"HD",$DB25,"RESP")*$DQ25,0)) ->  | EG25: =IF(DB25="","",IF($AG$4=TRUE,GetFertilizerResponseAtAge($AG$5,$C$1,$AG$8,$AG$6,$AG$7,"BA",$DB25,"RESP")*$DQ25,0)) -> 
A26: =+'Growth&Yield'!A18 -> 14 | B26: =+'Growth&Yield'!E18 ->  | C26: =IF(B26="","",IF(B26=0,0,SQRT(43560/'Growth&Yield'!$K18)/'Growth&Yield'!$Y18)) ->  | D26: =IF(B26="","",IF(B26=0,0,(EXP(-0.25*('Growth&Yield'!$Y18^(1.8333-1/60*$C$1))))*$E$7*$B26*EXP(-$E$6*$B26))) ->  | E26: =IF(B26="","",IF(Inputs!$K$8=TRUE,$D26,0)) ->  | F26: =IF(B26="","",(EXP(-0.25*('Growth&Yield'!H18^(1.8333-1/60*$C$1))))*$G$7*$B26*EXP(-$G$6*$B26)) ->  | G26: =IF(B26="","",IF(Inputs!$K$8=TRUE,$F26,0)) ->  | I26: =IF(B26="","",IF('Growth&Yield'!E18=0,0,(EXP(-0.25*('Growth&Yield'!H18^(1.8333-1/60*$C$1))))*$I$5*($B26-$I$6)*EXP(-$I$4*($B26-$I$6)))) ->  | J26: =IF(B26="","",IF(B26=0,0,(EXP(-0.25*('Growth&Yield'!H18^(1.8333-1/60*$C$1))))*$K$5*($B26-$I$6)*EXP(-$K$4*($B26-$I$6)))) ->  | L26: =IF(B26="","",IF(B26=0,0,IF(OR(Inputs!$K$14=FALSE,B26<Inputs!$F$25),0,(EXP(-0.25*('Growth&Yield'!H18^(1.8333-1/60*$C$1))))*$M$6*(B26-Inputs!$F$25)*EXP(-($M$7*(B26-Inputs!$F$25)))))) ->  | M26: =IF(B26="","",IF(B26<(RParms!$A$31+$M$4),$L26,$L$514)) ->  | N26: =IF(B26="","",IF(OR(RParms!$A$30=FALSE,$B26<RParms!$A$31),0,(EXP(-0.25*('Growth&Yield'!H18^(1.8333-1/60*$C$1))))*$O$6*($B26-RParms!$A$31)*EXP(-($O$7*($B26-RParms!$A$31))))) ->  | O26: =IF(B26="","",IF($B26<(RParms!$A$31+$O$4),$N26,$N$514)) ->  | Q26: =IF(B26="","",(EXP(-0.25*('Growth&Yield'!H18^(1.8333-1/60*$C$1))))) ->  | S26: =IF(B26="","",IF($U$4=TRUE,GetFertilizerResponseAtAge($U$5,$C$1,$U$8,$U$6,$U$7,"HD",$B26,"RESP")*$Q26,0)) ->  | U26: =IF(B26="","",IF($U$4=TRUE,GetFertilizerResponseAtAge($U$5,$C$1,$U$8,$U$6,$U$7,"BA",$B26,"RESP")*$Q26,0)) ->  | W26: =IF(B26="","",IF($Y$4=TRUE,GetFertilizerResponseAtAge($Y$5,$C$1,$Y$8,$Y$6,$Y$7,"HD",$B26,"RESP")*$Q26,0)) ->  | Y26: =IF(B26="","",IF($Y$4=TRUE,GetFertilizerResponseAtAge($Y$5,$C$1,$Y$8,$Y$6,$Y$7,"BA",$B26,"RESP")*$Q26,0)) ->  | AA26: =IF(B26="","",IF($AC$4=TRUE,GetFertilizerResponseAtAge($AC$5,$C$1,$AC$8,$AC$6,$AC$7,"HD",$B26,"RESP")*$Q26,0)) ->  | AC26: =IF(B26="","",IF($AC$4=TRUE,GetFertilizerResponseAtAge($AC$5,$C$1,$AC$8,$AC$6,$AC$7,"BA",$B26,"RESP")*$Q26,0)) ->  | AE26: =IF(B26="","",IF($AG$4=TRUE,GetFertilizerResponseAtAge($AG$5,$C$1,$AG$8,$AG$6,$AG$7,"HD",$B26,"RESP")*$Q26,0)) ->  | AG26: =IF(B26="","",IF($AG$4=TRUE,GetFertilizerResponseAtAge($AG$5,$C$1,$AG$8,$AG$6,$AG$7,"BA",$B26,"RESP")*$Q26,0)) ->  | BB26: =+'Growth&Yield'!F18 ->  | BC26: =IF(B26="","",IF(BB26=0,0,SQRT(43560/'Growth&Yield'!$N18)/'Growth&Yield'!$Z18)) ->  | BD26: =IF(B26="","",IF(BB26=0,0,(EXP(-0.25*('Growth&Yield'!$Z18^(1.8333-1/60*$C$1))))*$E$7*$BB26*EXP(-$E$6*$BB26))) ->  | BE26: =IF(B26="","",IF(Inputs!$K$8=TRUE,$BD26,0)) ->  | BF26: =IF(B26="","",(EXP(-0.25*('Growth&Yield'!I18^(1.8333-1/60*$C$1))))*$G$7*$BB26*EXP(-$G$6*$BB26)) ->  | BG26: =IF(B26="","",IF(Inputs!$K$8=TRUE,$BF26,0)) ->  | BI26: =IF(B26="","",IF(BB26=0,0,(EXP(-0.25*('Growth&Yield'!I18^(1.8333-1/60*$C$1))))*$I$5*($BB26-$I$6)*EXP(-$I$4*($BB26-$I$6)))) ->  | BJ26: =IF(B26="","",IF(BB26=0,0,(EXP(-0.25*('Growth&Yield'!I18^(1.8333-1/60*$C$1))))*$K$5*($BB26-$I$6)*EXP(-$K$4*($BB26-$I$6)))) ->  | BL26: =IF(B26="","",IF(BB26=0,0,IF(OR(Inputs!$K$14=FALSE,BB26<Inputs!$F$25),0,(EXP(-0.25*('Growth&Yield'!I18^(1.8333-1/60*$C$1))))*$M$6*(BB26-Inputs!$F$25)*EXP(-($M$7*(BB26-Inputs!$F$25)))))) ->  | BM26: =IF(B26="","",IF(BB26<(RParms!$A$31+$M$4),$BL26,$BL$514)) ->  | BN26: =IF(B26="","",IF(OR(RParms!$A$30=FALSE,$BB26<RParms!$A$31),0,(EXP(-0.25*('Growth&Yield'!I18^(1.8333-1/60*$C$1))))*$O$6*($BB26-RParms!$A$31)*EXP(-($O$7*($BB26-RParms!$A$31))))) ->  | BO26: =IF(B26="","",IF($BB26<(RParms!$A$31+$O$4),$BN26,$BN$514)) ->  | BQ26: =IF(B26="","",(EXP(-0.25*('Growth&Yield'!I18^(1.8333-1/60*$C$1))))) ->  | BS26: =IF(B26="","",IF($U$4=TRUE,GetFertilizerResponseAtAge($U$5,$C$1,$U$8,$U$6,$U$7,"HD",$BB26,"RESP")*$BQ26,0)) ->  | BU26: =IF(B26="","",IF($U$4=TRUE,GetFertilizerResponseAtAge($U$5,$C$1,$U$8,$U$6,$U$7,"BA",$BB26,"RESP")*$BQ26,0)) ->  | BW26: =IF(B26="","",IF($Y$4=TRUE,GetFertilizerResponseAtAge($Y$5,$C$1,$Y$8,$Y$6,$Y$7,"HD",$BB26,"RESP")*$BQ26,0)) ->  | BY26: =IF(B26="","",IF($Y$4=TRUE,GetFertilizerResponseAtAge($Y$5,$C$1,$Y$8,$Y$6,$Y$7,"BA",$BB26,"RESP")*$BQ26,0)) ->  | CA26: =IF($AC$4=TRUE,GetFertilizerResponseAtAge($AC$5,$C$1,$AC$8,$AC$6,$AC$7,"HD",$BB26,"RESP")*$BQ26,0) -> 0 | CB26: 0 | CC26: =IF($AC$4=TRUE,GetFertilizerResponseAtAge($AC$5,$C$1,$AC$8,$AC$6,$AC$7,"BA",$BB26,"RESP")*$BQ26,0) -> 0 | CE26: =IF($AG$4=TRUE,GetFertilizerResponseAtAge($AG$5,$C$1,$AG$8,$AG$6,$AG$7,"HD",$BB26,"RESP")*$BQ26,0) -> 0 | CF26: 0 | CG26: =IF($AG$4=TRUE,GetFertilizerResponseAtAge($AG$5,$C$1,$AG$8,$AG$6,$AG$7,"BA",$BB26,"RESP")*$BQ26,0) -> 0 | CH26: 1 | CI26: 1 | CJ26: 2 | CK26: 1 | CP26: 1 | CQ26: 1 | CR26: 2 | CS26: 1 | DB26: =+'Growth&Yield'!G18 ->  | DC26: =IF(DB26="","",IF(DB26=0,0,SQRT(43560/'Growth&Yield'!$R18)/'Growth&Yield'!$AA18)) ->  | DD26: =IF(DB26="","",IF(DB26=0,0,(EXP(-0.25*('Growth&Yield'!$AA18^(1.8333-1/60*$C$1))))*$E$7*$BB26*EXP(-$E$6*$BB26))) ->  | DE26: =IF(DB26="","",IF(Inputs!$K$8=TRUE,$DD26,0)) ->  | DF26: =IF(DB26="","",(EXP(-0.25*('Growth&Yield'!J18^(1.8333-1/60*$C$1))))*$G$7*$DB26*EXP(-$G$6*$DB26)) ->  | DG26: =IF(DB26="","",IF(Inputs!$K$8=TRUE,$DF26,0)) ->  | DI26: =IF(DB26="","",IF(DB26=0,0,(EXP(-0.25*('Growth&Yield'!J18^(1.8333-1/60*$C$1))))*$I$5*($DB26-$I$6)*EXP(-$I$4*($DB26-$I$6)))) ->  | DJ26: =IF(DB26="","",IF(DB26=0,0,(EXP(-0.25*('Growth&Yield'!J18^(1.8333-1/60*$C$1))))*$K$5*($DB26-$I$6)*EXP(-$K$4*($DB26-$I$6)))) ->  | DL26: =IF(DB26="","",IF(DB26=0,0,IF(OR(Inputs!$K$14=FALSE,DB26<Inputs!$F$25),0,(EXP(-0.25*('Growth&Yield'!J18^(1.8333-1/60*$C$1))))*$M$6*(DB26-Inputs!$F$25)*EXP(-($M$7*(DB26-Inputs!$F$25)))))) ->  | DM26: =IF(DB26="","",IF(DB26<(RParms!$A$31+$M$4),$DL26,$DL$514)) ->  | DN26: =IF(DB26="","",IF(OR(RParms!$A$30=FALSE,$DB26<RParms!$A$31),0,(EXP(-0.25*('Growth&Yield'!J18^(1.8333-1/60*$C$1))))*$O$6*($DB26-RParms!$A$31)*EXP(-($O$7*($DB26-RParms!$A$31))))) ->  | DO26: =IF(DB26="","",IF($DB26<(RParms!$A$31+$O$4),$DN26,$DN$514)) ->  | DQ26: =IF(DB26="","",(EXP(-0.25*('Growth&Yield'!J18^(1.8333-1/60*$C$1))))) ->  | DS26: =IF(DB26="","",IF($U$4=TRUE,GetFertilizerResponseAtAge($U$5,$C$1,$U$8,$U$6,$U$7,"HD",$DB26,"RESP")*$DQ26,0)) ->  | DU26: =IF(DB26="","",IF($U$4=TRUE,GetFertilizerResponseAtAge($U$5,$C$1,$U$8,$U$6,$U$7,"BA",$DB26,"RESP")*$DQ26,0)) ->  | DW26: =IF(DB26="","",IF($Y$4=TRUE,GetFertilizerResponseAtAge($Y$5,$C$1,$Y$8,$Y$6,$Y$7,"HD",$DB26,"RESP")*$DQ26,0)) ->  | DY26: =IF(DB26="","",IF($Y$4=TRUE,GetFertilizerResponseAtAge($Y$5,$C$1,$Y$8,$Y$6,$Y$7,"BA",$DB26,"RESP")*$DQ26,0)) ->  | EA26: =IF(DB26="","",IF($AC$4=TRUE,GetFertilizerResponseAtAge($AC$5,$C$1,$AC$8,$AC$6,$AC$7,"HD",$DB26,"RESP")*$DQ26,0)) ->  | EC26: =IF(DB26="","",IF($AC$4=TRUE,GetFertilizerResponseAtAge($AC$5,$C$1,$AC$8,$AC$6,$AC$7,"BA",$DB26,"RESP")*$DQ26,0)) ->  | EE26: =IF(DB26="","",IF($AG$4=TRUE,GetFertilizerResponseAtAge($AG$5,$C$1,$AG$8,$AG$6,$AG$7,"HD",$DB26,"RESP")*$DQ26,0)) ->  | EG26: =IF(DB26="","",IF($AG$4=TRUE,GetFertilizerResponseAtAge($AG$5,$C$1,$AG$8,$AG$6,$AG$7,"BA",$DB26,"RESP")*$DQ26,0)) -> 
A27: =+'Growth&Yield'!A19 -> 15 | B27: =+'Growth&Yield'!E19 ->  | C27: =IF(B27="","",IF(B27=0,0,SQRT(43560/'Growth&Yield'!$K19)/'Growth&Yield'!$Y19)) ->  | D27: =IF(B27="","",IF(B27=0,0,(EXP(-0.25*('Growth&Yield'!$Y19^(1.8333-1/60*$C$1))))*$E$7*$B27*EXP(-$E$6*$B27))) ->  | E27: =IF(B27="","",IF(Inputs!$K$8=TRUE,$D27,0)) ->  | F27: =IF(B27="","",(EXP(-0.25*('Growth&Yield'!H19^(1.8333-1/60*$C$1))))*$G$7*$B27*EXP(-$G$6*$B27)) ->  | G27: =IF(B27="","",IF(Inputs!$K$8=TRUE,$F27,0)) ->  | I27: =IF(B27="","",IF('Growth&Yield'!E19=0,0,(EXP(-0.25*('Growth&Yield'!H19^(1.8333-1/60*$C$1))))*$I$5*($B27-$I$6)*EXP(-$I$4*($B27-$I$6)))) ->  | J27: =IF(B27="","",IF(B27=0,0,(EXP(-0.25*('Growth&Yield'!H19^(1.8333-1/60*$C$1))))*$K$5*($B27-$I$6)*EXP(-$K$4*($B27-$I$6)))) ->  | L27: =IF(B27="","",IF(B27=0,0,IF(OR(Inputs!$K$14=FALSE,B27<Inputs!$F$25),0,(EXP(-0.25*('Growth&Yield'!H19^(1.8333-1/60*$C$1))))*$M$6*(B27-Inputs!$F$25)*EXP(-($M$7*(B27-Inputs!$F$25)))))) ->  | M27: =IF(B27="","",IF(B27<(RParms!$A$31+$M$4),$L27,$L$514)) ->  | N27: =IF(B27="","",IF(OR(RParms!$A$30=FALSE,$B27<RParms!$A$31),0,(EXP(-0.25*('Growth&Yield'!H19^(1.8333-1/60*$C$1))))*$O$6*($B27-RParms!$A$31)*EXP(-($O$7*($B27-RParms!$A$31))))) ->  | O27: =IF(B27="","",IF($B27<(RParms!$A$31+$O$4),$N27,$N$514)) ->  | Q27: =IF(B27="","",(EXP(-0.25*('Growth&Yield'!H19^(1.8333-1/60*$C$1))))) ->  | S27: =IF(B27="","",IF($U$4=TRUE,GetFertilizerResponseAtAge($U$5,$C$1,$U$8,$U$6,$U$7,"HD",$B27,"RESP")*$Q27,0)) ->  | U27: =IF(B27="","",IF($U$4=TRUE,GetFertilizerResponseAtAge($U$5,$C$1,$U$8,$U$6,$U$7,"BA",$B27,"RESP")*$Q27,0)) ->  | W27: =IF(B27="","",IF($Y$4=TRUE,GetFertilizerResponseAtAge($Y$5,$C$1,$Y$8,$Y$6,$Y$7,"HD",$B27,"RESP")*$Q27,0)) ->  | Y27: =IF(B27="","",IF($Y$4=TRUE,GetFertilizerResponseAtAge($Y$5,$C$1,$Y$8,$Y$6,$Y$7,"BA",$B27,"RESP")*$Q27,0)) ->  | AA27: =IF(B27="","",IF($AC$4=TRUE,GetFertilizerResponseAtAge($AC$5,$C$1,$AC$8,$AC$6,$AC$7,"HD",$B27,"RESP")*$Q27,0)) ->  | AC27: =IF(B27="","",IF($AC$4=TRUE,GetFertilizerResponseAtAge($AC$5,$C$1,$AC$8,$AC$6,$AC$7,"BA",$B27,"RESP")*$Q27,0)) ->  | AE27: =IF(B27="","",IF($AG$4=TRUE,GetFertilizerResponseAtAge($AG$5,$C$1,$AG$8,$AG$6,$AG$7,"HD",$B27,"RESP")*$Q27,0)) ->  | AG27: =IF(B27="","",IF($AG$4=TRUE,GetFertilizerResponseAtAge($AG$5,$C$1,$AG$8,$AG$6,$AG$7,"BA",$B27,"RESP")*$Q27,0)) ->  | BB27: =+'Growth&Yield'!F19 ->  | BC27: =IF(B27="","",IF(BB27=0,0,SQRT(43560/'Growth&Yield'!$N19)/'Growth&Yield'!$Z19)) ->  | BD27: =IF(B27="","",IF(BB27=0,0,(EXP(-0.25*('Growth&Yield'!$Z19^(1.8333-1/60*$C$1))))*$E$7*$BB27*EXP(-$E$6*$BB27))) ->  | BE27: =IF(B27="","",IF(Inputs!$K$8=TRUE,$BD27,0)) ->  | BF27: =IF(B27="","",(EXP(-0.25*('Growth&Yield'!I19^(1.8333-1/60*$C$1))))*$G$7*$BB27*EXP(-$G$6*$BB27)) ->  | BG27: =IF(B27="","",IF(Inputs!$K$8=TRUE,$BF27,0)) ->  | BI27: =IF(B27="","",IF(BB27=0,0,(EXP(-0.25*('Growth&Yield'!I19^(1.8333-1/60*$C$1))))*$I$5*($BB27-$I$6)*EXP(-$I$4*($BB27-$I$6)))) ->  | BJ27: =IF(B27="","",IF(BB27=0,0,(EXP(-0.25*('Growth&Yield'!I19^(1.8333-1/60*$C$1))))*$K$5*($BB27-$I$6)*EXP(-$K$4*($BB27-$I$6)))) ->  | BL27: =IF(B27="","",IF(BB27=0,0,IF(OR(Inputs!$K$14=FALSE,BB27<Inputs!$F$25),0,(EXP(-0.25*('Growth&Yield'!I19^(1.8333-1/60*$C$1))))*$M$6*(BB27-Inputs!$F$25)*EXP(-($M$7*(BB27-Inputs!$F$25)))))) ->  | BM27: =IF(B27="","",IF(BB27<(RParms!$A$31+$M$4),$BL27,$BL$514)) ->  | BN27: =IF(B27="","",IF(OR(RParms!$A$30=FALSE,$BB27<RParms!$A$31),0,(EXP(-0.25*('Growth&Yield'!I19^(1.8333-1/60*$C$1))))*$O$6*($BB27-RParms!$A$31)*EXP(-($O$7*($BB27-RParms!$A$31))))) ->  | BO27: =IF(B27="","",IF($BB27<(RParms!$A$31+$O$4),$BN27,$BN$514)) ->  | BQ27: =IF(B27="","",(EXP(-0.25*('Growth&Yield'!I19^(1.8333-1/60*$C$1))))) ->  | BS27: =IF(B27="","",IF($U$4=TRUE,GetFertilizerResponseAtAge($U$5,$C$1,$U$8,$U$6,$U$7,"HD",$BB27,"RESP")*$BQ27,0)) ->  | BU27: =IF(B27="","",IF($U$4=TRUE,GetFertilizerResponseAtAge($U$5,$C$1,$U$8,$U$6,$U$7,"BA",$BB27,"RESP")*$BQ27,0)) ->  | BW27: =IF(B27="","",IF($Y$4=TRUE,GetFertilizerResponseAtAge($Y$5,$C$1,$Y$8,$Y$6,$Y$7,"HD",$BB27,"RESP")*$BQ27,0)) ->  | BY27: =IF(B27="","",IF($Y$4=TRUE,GetFertilizerResponseAtAge($Y$5,$C$1,$Y$8,$Y$6,$Y$7,"BA",$BB27,"RESP")*$BQ27,0)) ->  | CA27: =IF($AC$4=TRUE,GetFertilizerResponseAtAge($AC$5,$C$1,$AC$8,$AC$6,$AC$7,"HD",$BB27,"RESP")*$BQ27,0) -> 0 | CB27: 0 | CC27: =IF($AC$4=TRUE,GetFertilizerResponseAtAge($AC$5,$C$1,$AC$8,$AC$6,$AC$7,"BA",$BB27,"RESP")*$BQ27,0) -> 0 | CE27: =IF($AG$4=TRUE,GetFertilizerResponseAtAge($AG$5,$C$1,$AG$8,$AG$6,$AG$7,"HD",$BB27,"RESP")*$BQ27,0) -> 0 | CF27: 0 | CG27: =IF($AG$4=TRUE,GetFertilizerResponseAtAge($AG$5,$C$1,$AG$8,$AG$6,$AG$7,"BA",$BB27,"RESP")*$BQ27,0) -> 0 | CH27: 1 | CI27: 1 | CJ27: 2 | CK27: 1 | CP27: 1 | CQ27: 1 | CR27: 2 | CS27: 1 | DB27: =+'Growth&Yield'!G19 ->  | DC27: =IF(DB27="","",IF(DB27=0,0,SQRT(43560/'Growth&Yield'!$R19)/'Growth&Yield'!$AA19)) ->  | DD27: =IF(DB27="","",IF(DB27=0,0,(EXP(-0.25*('Growth&Yield'!$AA19^(1.8333-1/60*$C$1))))*$E$7*$BB27*EXP(-$E$6*$BB27))) ->  | DE27: =IF(DB27="","",IF(Inputs!$K$8=TRUE,$DD27,0)) ->  | DF27: =IF(DB27="","",(EXP(-0.25*('Growth&Yield'!J19^(1.8333-1/60*$C$1))))*$G$7*$DB27*EXP(-$G$6*$DB27)) ->  | DG27: =IF(DB27="","",IF(Inputs!$K$8=TRUE,$DF27,0)) ->  | DI27: =IF(DB27="","",IF(DB27=0,0,(EXP(-0.25*('Growth&Yield'!J19^(1.8333-1/60*$C$1))))*$I$5*($DB27-$I$6)*EXP(-$I$4*($DB27-$I$6)))) ->  | DJ27: =IF(DB27="","",IF(DB27=0,0,(EXP(-0.25*('Growth&Yield'!J19^(1.8333-1/60*$C$1))))*$K$5*($DB27-$I$6)*EXP(-$K$4*($DB27-$I$6)))) ->  | DL27: =IF(DB27="","",IF(DB27=0,0,IF(OR(Inputs!$K$14=FALSE,DB27<Inputs!$F$25),0,(EXP(-0.25*('Growth&Yield'!J19^(1.8333-1/60*$C$1))))*$M$6*(DB27-Inputs!$F$25)*EXP(-($M$7*(DB27-Inputs!$F$25)))))) ->  | DM27: =IF(DB27="","",IF(DB27<(RParms!$A$31+$M$4),$DL27,$DL$514)) ->  | DN27: =IF(DB27="","",IF(OR(RParms!$A$30=FALSE,$DB27<RParms!$A$31),0,(EXP(-0.25*('Growth&Yield'!J19^(1.8333-1/60*$C$1))))*$O$6*($DB27-RParms!$A$31)*EXP(-($O$7*($DB27-RParms!$A$31))))) ->  | DO27: =IF(DB27="","",IF($DB27<(RParms!$A$31+$O$4),$DN27,$DN$514)) ->  | DQ27: =IF(DB27="","",(EXP(-0.25*('Growth&Yield'!J19^(1.8333-1/60*$C$1))))) ->  | DS27: =IF(DB27="","",IF($U$4=TRUE,GetFertilizerResponseAtAge($U$5,$C$1,$U$8,$U$6,$U$7,"HD",$DB27,"RESP")*$DQ27,0)) ->  | DU27: =IF(DB27="","",IF($U$4=TRUE,GetFertilizerResponseAtAge($U$5,$C$1,$U$8,$U$6,$U$7,"BA",$DB27,"RESP")*$DQ27,0)) ->  | DW27: =IF(DB27="","",IF($Y$4=TRUE,GetFertilizerResponseAtAge($Y$5,$C$1,$Y$8,$Y$6,$Y$7,"HD",$DB27,"RESP")*$DQ27,0)) ->  | DY27: =IF(DB27="","",IF($Y$4=TRUE,GetFertilizerResponseAtAge($Y$5,$C$1,$Y$8,$Y$6,$Y$7,"BA",$DB27,"RESP")*$DQ27,0)) ->  | EA27: =IF(DB27="","",IF($AC$4=TRUE,GetFertilizerResponseAtAge($AC$5,$C$1,$AC$8,$AC$6,$AC$7,"HD",$DB27,"RESP")*$DQ27,0)) ->  | EC27: =IF(DB27="","",IF($AC$4=TRUE,GetFertilizerResponseAtAge($AC$5,$C$1,$AC$8,$AC$6,$AC$7,"BA",$DB27,"RESP")*$DQ27,0)) ->  | EE27: =IF(DB27="","",IF($AG$4=TRUE,GetFertilizerResponseAtAge($AG$5,$C$1,$AG$8,$AG$6,$AG$7,"HD",$DB27,"RESP")*$DQ27,0)) ->  | EG27: =IF(DB27="","",IF($AG$4=TRUE,GetFertilizerResponseAtAge($AG$5,$C$1,$AG$8,$AG$6,$AG$7,"BA",$DB27,"RESP")*$DQ27,0)) -> 
A28: =+'Growth&Yield'!A20 -> 16 | B28: =+'Growth&Yield'!E20 ->  | C28: =IF(B28="","",IF(B28=0,0,SQRT(43560/'Growth&Yield'!$K20)/'Growth&Yield'!$Y20)) ->  | D28: =IF(B28="","",IF(B28=0,0,(EXP(-0.25*('Growth&Yield'!$Y20^(1.8333-1/60*$C$1))))*$E$7*$B28*EXP(-$E$6*$B28))) ->  | E28: =IF(B28="","",IF(Inputs!$K$8=TRUE,$D28,0)) ->  | F28: =IF(B28="","",(EXP(-0.25*('Growth&Yield'!H20^(1.8333-1/60*$C$1))))*$G$7*$B28*EXP(-$G$6*$B28)) ->  | G28: =IF(B28="","",IF(Inputs!$K$8=TRUE,$F28,0)) ->  | I28: =IF(B28="","",IF('Growth&Yield'!E20=0,0,(EXP(-0.25*('Growth&Yield'!H20^(1.8333-1/60*$C$1))))*$I$5*($B28-$I$6)*EXP(-$I$4*($B28-$I$6)))) ->  | J28: =IF(B28="","",IF(B28=0,0,(EXP(-0.25*('Growth&Yield'!H20^(1.8333-1/60*$C$1))))*$K$5*($B28-$I$6)*EXP(-$K$4*($B28-$I$6)))) ->  | L28: =IF(B28="","",IF(B28=0,0,IF(OR(Inputs!$K$14=FALSE,B28<Inputs!$F$25),0,(EXP(-0.25*('Growth&Yield'!H20^(1.8333-1/60*$C$1))))*$M$6*(B28-Inputs!$F$25)*EXP(-($M$7*(B28-Inputs!$F$25)))))) ->  | M28: =IF(B28="","",IF(B28<(RParms!$A$31+$M$4),$L28,$L$514)) ->  | N28: =IF(B28="","",IF(OR(RParms!$A$30=FALSE,$B28<RParms!$A$31),0,(EXP(-0.25*('Growth&Yield'!H20^(1.8333-1/60*$C$1))))*$O$6*($B28-RParms!$A$31)*EXP(-($O$7*($B28-RParms!$A$31))))) ->  | O28: =IF(B28="","",IF($B28<(RParms!$A$31+$O$4),$N28,$N$514)) ->  | Q28: =IF(B28="","",(EXP(-0.25*('Growth&Yield'!H20^(1.8333-1/60*$C$1))))) ->  | S28: =IF(B28="","",IF($U$4=TRUE,GetFertilizerResponseAtAge($U$5,$C$1,$U$8,$U$6,$U$7,"HD",$B28,"RESP")*$Q28,0)) ->  | U28: =IF(B28="","",IF($U$4=TRUE,GetFertilizerResponseAtAge($U$5,$C$1,$U$8,$U$6,$U$7,"BA",$B28,"RESP")*$Q28,0)) ->  | W28: =IF(B28="","",IF($Y$4=TRUE,GetFertilizerResponseAtAge($Y$5,$C$1,$Y$8,$Y$6,$Y$7,"HD",$B28,"RESP")*$Q28,0)) ->  | Y28: =IF(B28="","",IF($Y$4=TRUE,GetFertilizerResponseAtAge($Y$5,$C$1,$Y$8,$Y$6,$Y$7,"BA",$B28,"RESP")*$Q28,0)) ->  | AA28: =IF(B28="","",IF($AC$4=TRUE,GetFertilizerResponseAtAge($AC$5,$C$1,$AC$8,$AC$6,$AC$7,"HD",$B28,"RESP")*$Q28,0)) ->  | AC28: =IF(B28="","",IF($AC$4=TRUE,GetFertilizerResponseAtAge($AC$5,$C$1,$AC$8,$AC$6,$AC$7,"BA",$B28,"RESP")*$Q28,0)) ->  | AE28: =IF(B28="","",IF($AG$4=TRUE,GetFertilizerResponseAtAge($AG$5,$C$1,$AG$8,$AG$6,$AG$7,"HD",$B28,"RESP")*$Q28,0)) ->  | AG28: =IF(B28="","",IF($AG$4=TRUE,GetFertilizerResponseAtAge($AG$5,$C$1,$AG$8,$AG$6,$AG$7,"BA",$B28,"RESP")*$Q28,0)) ->  | BB28: =+'Growth&Yield'!F20 ->  | BC28: =IF(B28="","",IF(BB28=0,0,SQRT(43560/'Growth&Yield'!$N20)/'Growth&Yield'!$Z20)) ->  | BD28: =IF(B28="","",IF(BB28=0,0,(EXP(-0.25*('Growth&Yield'!$Z20^(1.8333-1/60*$C$1))))*$E$7*$BB28*EXP(-$E$6*$BB28))) ->  | BE28: =IF(B28="","",IF(Inputs!$K$8=TRUE,$BD28,0)) ->  | BF28: =IF(B28="","",(EXP(-0.25*('Growth&Yield'!I20^(1.8333-1/60*$C$1))))*$G$7*$BB28*EXP(-$G$6*$BB28)) ->  | BG28: =IF(B28="","",IF(Inputs!$K$8=TRUE,$BF28,0)) ->  | BI28: =IF(B28="","",IF(BB28=0,0,(EXP(-0.25*('Growth&Yield'!I20^(1.8333-1/60*$C$1))))*$I$5*($BB28-$I$6)*EXP(-$I$4*($BB28-$I$6)))) ->  | BJ28: =IF(B28="","",IF(BB28=0,0,(EXP(-0.25*('Growth&Yield'!I20^(1.8333-1/60*$C$1))))*$K$5*($BB28-$I$6)*EXP(-$K$4*($BB28-$I$6)))) ->  | BL28: =IF(B28="","",IF(BB28=0,0,IF(OR(Inputs!$K$14=FALSE,BB28<Inputs!$F$25),0,(EXP(-0.25*('Growth&Yield'!I20^(1.8333-1/60*$C$1))))*$M$6*(BB28-Inputs!$F$25)*EXP(-($M$7*(BB28-Inputs!$F$25)))))) ->  | BM28: =IF(B28="","",IF(BB28<(RParms!$A$31+$M$4),$BL28,$BL$514)) ->  | BN28: =IF(B28="","",IF(OR(RParms!$A$30=FALSE,$BB28<RParms!$A$31),0,(EXP(-0.25*('Growth&Yield'!I20^(1.8333-1/60*$C$1))))*$O$6*($BB28-RParms!$A$31)*EXP(-($O$7*($BB28-RParms!$A$31))))) ->  | BO28: =IF(B28="","",IF($BB28<(RParms!$A$31+$O$4),$BN28,$BN$514)) ->  | BQ28: =IF(B28="","",(EXP(-0.25*('Growth&Yield'!I20^(1.8333-1/60*$C$1))))) ->  | BS28: =IF(B28="","",IF($U$4=TRUE,GetFertilizerResponseAtAge($U$5,$C$1,$U$8,$U$6,$U$7,"HD",$BB28,"RESP")*$BQ28,0)) ->  | BU28: =IF(B28="","",IF($U$4=TRUE,GetFertilizerResponseAtAge($U$5,$C$1,$U$8,$U$6,$U$7,"BA",$BB28,"RESP")*$BQ28,0)) ->  | BW28: =IF(B28="","",IF($Y$4=TRUE,GetFertilizerResponseAtAge($Y$5,$C$1,$Y$8,$Y$6,$Y$7,"HD",$BB28,"RESP")*$BQ28,0)) ->  | BY28: =IF(B28="","",IF($Y$4=TRUE,GetFertilizerResponseAtAge($Y$5,$C$1,$Y$8,$Y$6,$Y$7,"BA",$BB28,"RESP")*$BQ28,0)) ->  | CA28: =IF($AC$4=TRUE,GetFertilizerResponseAtAge($AC$5,$C$1,$AC$8,$AC$6,$AC$7,"HD",$BB28,"RESP")*$BQ28,0) -> 0 | CB28: 0 | CC28: =IF($AC$4=TRUE,GetFertilizerResponseAtAge($AC$5,$C$1,$AC$8,$AC$6,$AC$7,"BA",$BB28,"RESP")*$BQ28,0) -> 0 | CE28: =IF($AG$4=TRUE,GetFertilizerResponseAtAge($AG$5,$C$1,$AG$8,$AG$6,$AG$7,"HD",$BB28,"RESP")*$BQ28,0) -> 0 | CF28: 0 | CG28: =IF($AG$4=TRUE,GetFertilizerResponseAtAge($AG$5,$C$1,$AG$8,$AG$6,$AG$7,"BA",$BB28,"RESP")*$BQ28,0) -> 0 | CH28: 1 | CI28: 1 | CJ28: 2 | CK28: 1 | CP28: 1 | CQ28: 1 | CR28: 2 | CS28: 1 | DB28: =+'Growth&Yield'!G20 ->  | DC28: =IF(DB28="","",IF(DB28=0,0,SQRT(43560/'Growth&Yield'!$R20)/'Growth&Yield'!$AA20)) ->  | DD28: =IF(DB28="","",IF(DB28=0,0,(EXP(-0.25*('Growth&Yield'!$AA20^(1.8333-1/60*$C$1))))*$E$7*$BB28*EXP(-$E$6*$BB28))) ->  | DE28: =IF(DB28="","",IF(Inputs!$K$8=TRUE,$DD28,0)) ->  | DF28: =IF(DB28="","",(EXP(-0.25*('Growth&Yield'!J20^(1.8333-1/60*$C$1))))*$G$7*$DB28*EXP(-$G$6*$DB28)) ->  | DG28: =IF(DB28="","",IF(Inputs!$K$8=TRUE,$DF28,0)) ->  | DI28: =IF(DB28="","",IF(DB28=0,0,(EXP(-0.25*('Growth&Yield'!J20^(1.8333-1/60*$C$1))))*$I$5*($DB28-$I$6)*EXP(-$I$4*($DB28-$I$6)))) ->  | DJ28: =IF(DB28="","",IF(DB28=0,0,(EXP(-0.25*('Growth&Yield'!J20^(1.8333-1/60*$C$1))))*$K$5*($DB28-$I$6)*EXP(-$K$4*($DB28-$I$6)))) ->  | DL28: =IF(DB28="","",IF(DB28=0,0,IF(OR(Inputs!$K$14=FALSE,DB28<Inputs!$F$25),0,(EXP(-0.25*('Growth&Yield'!J20^(1.8333-1/60*$C$1))))*$M$6*(DB28-Inputs!$F$25)*EXP(-($M$7*(DB28-Inputs!$F$25)))))) ->  | DM28: =IF(DB28="","",IF(DB28<(RParms!$A$31+$M$4),$DL28,$DL$514)) ->  | DN28: =IF(DB28="","",IF(OR(RParms!$A$30=FALSE,$DB28<RParms!$A$31),0,(EXP(-0.25*('Growth&Yield'!J20^(1.8333-1/60*$C$1))))*$O$6*($DB28-RParms!$A$31)*EXP(-($O$7*($DB28-RParms!$A$31))))) ->  | DO28: =IF(DB28="","",IF($DB28<(RParms!$A$31+$O$4),$DN28,$DN$514)) ->  | DQ28: =IF(DB28="","",(EXP(-0.25*('Growth&Yield'!J20^(1.8333-1/60*$C$1))))) ->  | DS28: =IF(DB28="","",IF($U$4=TRUE,GetFertilizerResponseAtAge($U$5,$C$1,$U$8,$U$6,$U$7,"HD",$DB28,"RESP")*$DQ28,0)) ->  | DU28: =IF(DB28="","",IF($U$4=TRUE,GetFertilizerResponseAtAge($U$5,$C$1,$U$8,$U$6,$U$7,"BA",$DB28,"RESP")*$DQ28,0)) ->  | DW28: =IF(DB28="","",IF($Y$4=TRUE,GetFertilizerResponseAtAge($Y$5,$C$1,$Y$8,$Y$6,$Y$7,"HD",$DB28,"RESP")*$DQ28,0)) ->  | DY28: =IF(DB28="","",IF($Y$4=TRUE,GetFertilizerResponseAtAge($Y$5,$C$1,$Y$8,$Y$6,$Y$7,"BA",$DB28,"RESP")*$DQ28,0)) ->  | EA28: =IF(DB28="","",IF($AC$4=TRUE,GetFertilizerResponseAtAge($AC$5,$C$1,$AC$8,$AC$6,$AC$7,"HD",$DB28,"RESP")*$DQ28,0)) ->  | EC28: =IF(DB28="","",IF($AC$4=TRUE,GetFertilizerResponseAtAge($AC$5,$C$1,$AC$8,$AC$6,$AC$7,"BA",$DB28,"RESP")*$DQ28,0)) ->  | EE28: =IF(DB28="","",IF($AG$4=TRUE,GetFertilizerResponseAtAge($AG$5,$C$1,$AG$8,$AG$6,$AG$7,"HD",$DB28,"RESP")*$DQ28,0)) ->  | EG28: =IF(DB28="","",IF($AG$4=TRUE,GetFertilizerResponseAtAge($AG$5,$C$1,$AG$8,$AG$6,$AG$7,"BA",$DB28,"RESP")*$DQ28,0)) -> 
A29: =+'Growth&Yield'!A21 -> 17 | B29: =+'Growth&Yield'!E21 ->  | C29: =IF(B29="","",IF(B29=0,0,SQRT(43560/'Growth&Yield'!$K21)/'Growth&Yield'!$Y21)) ->  | D29: =IF(B29="","",IF(B29=0,0,(EXP(-0.25*('Growth&Yield'!$Y21^(1.8333-1/60*$C$1))))*$E$7*$B29*EXP(-$E$6*$B29))) ->  | E29: =IF(B29="","",IF(Inputs!$K$8=TRUE,$D29,0)) ->  | F29: =IF(B29="","",(EXP(-0.25*('Growth&Yield'!H21^(1.8333-1/60*$C$1))))*$G$7*$B29*EXP(-$G$6*$B29)) ->  | G29: =IF(B29="","",IF(Inputs!$K$8=TRUE,$F29,0)) ->  | I29: =IF(B29="","",IF('Growth&Yield'!E21=0,0,(EXP(-0.25*('Growth&Yield'!H21^(1.8333-1/60*$C$1))))*$I$5*($B29-$I$6)*EXP(-$I$4*($B29-$I$6)))) ->  | J29: =IF(B29="","",IF(B29=0,0,(EXP(-0.25*('Growth&Yield'!H21^(1.8333-1/60*$C$1))))*$K$5*($B29-$I$6)*EXP(-$K$4*($B29-$I$6)))) ->  | L29: =IF(B29="","",IF(B29=0,0,IF(OR(Inputs!$K$14=FALSE,B29<Inputs!$F$25),0,(EXP(-0.25*('Growth&Yield'!H21^(1.8333-1/60*$C$1))))*$M$6*(B29-Inputs!$F$25)*EXP(-($M$7*(B29-Inputs!$F$25)))))) ->  | M29: =IF(B29="","",IF(B29<(RParms!$A$31+$M$4),$L29,$L$514)) ->  | N29: =IF(B29="","",IF(OR(RParms!$A$30=FALSE,$B29<RParms!$A$31),0,(EXP(-0.25*('Growth&Yield'!H21^(1.8333-1/60*$C$1))))*$O$6*($B29-RParms!$A$31)*EXP(-($O$7*($B29-RParms!$A$31))))) ->  | O29: =IF(B29="","",IF($B29<(RParms!$A$31+$O$4),$N29,$N$514)) ->  | Q29: =IF(B29="","",(EXP(-0.25*('Growth&Yield'!H21^(1.8333-1/60*$C$1))))) ->  | S29: =IF(B29="","",IF($U$4=TRUE,GetFertilizerResponseAtAge($U$5,$C$1,$U$8,$U$6,$U$7,"HD",$B29,"RESP")*$Q29,0)) ->  | U29: =IF(B29="","",IF($U$4=TRUE,GetFertilizerResponseAtAge($U$5,$C$1,$U$8,$U$6,$U$7,"BA",$B29,"RESP")*$Q29,0)) ->  | W29: =IF(B29="","",IF($Y$4=TRUE,GetFertilizerResponseAtAge($Y$5,$C$1,$Y$8,$Y$6,$Y$7,"HD",$B29,"RESP")*$Q29,0)) ->  | Y29: =IF(B29="","",IF($Y$4=TRUE,GetFertilizerResponseAtAge($Y$5,$C$1,$Y$8,$Y$6,$Y$7,"BA",$B29,"RESP")*$Q29,0)) ->  | AA29: =IF(B29="","",IF($AC$4=TRUE,GetFertilizerResponseAtAge($AC$5,$C$1,$AC$8,$AC$6,$AC$7,"HD",$B29,"RESP")*$Q29,0)) ->  | AC29: =IF(B29="","",IF($AC$4=TRUE,GetFertilizerResponseAtAge($AC$5,$C$1,$AC$8,$AC$6,$AC$7,"BA",$B29,"RESP")*$Q29,0)) ->  | AE29: =IF(B29="","",IF($AG$4=TRUE,GetFertilizerResponseAtAge($AG$5,$C$1,$AG$8,$AG$6,$AG$7,"HD",$B29,"RESP")*$Q29,0)) ->  | AG29: =IF(B29="","",IF($AG$4=TRUE,GetFertilizerResponseAtAge($AG$5,$C$1,$AG$8,$AG$6,$AG$7,"BA",$B29,"RESP")*$Q29,0)) ->  | BB29: =+'Growth&Yield'!F21 ->  | BC29: =IF(B29="","",IF(BB29=0,0,SQRT(43560/'Growth&Yield'!$N21)/'Growth&Yield'!$Z21)) ->  | BD29: =IF(B29="","",IF(BB29=0,0,(EXP(-0.25*('Growth&Yield'!$Z21^(1.8333-1/60*$C$1))))*$E$7*$BB29*EXP(-$E$6*$BB29))) ->  | BE29: =IF(B29="","",IF(Inputs!$K$8=TRUE,$BD29,0)) ->  | BF29: =IF(B29="","",(EXP(-0.25*('Growth&Yield'!I21^(1.8333-1/60*$C$1))))*$G$7*$BB29*EXP(-$G$6*$BB29)) ->  | BG29: =IF(B29="","",IF(Inputs!$K$8=TRUE,$BF29,0)) ->  | BI29: =IF(B29="","",IF(BB29=0,0,(EXP(-0.25*('Growth&Yield'!I21^(1.8333-1/60*$C$1))))*$I$5*($BB29-$I$6)*EXP(-$I$4*($BB29-$I$6)))) ->  | BJ29: =IF(B29="","",IF(BB29=0,0,(EXP(-0.25*('Growth&Yield'!I21^(1.8333-1/60*$C$1))))*$K$5*($BB29-$I$6)*EXP(-$K$4*($BB29-$I$6)))) ->  | BL29: =IF(B29="","",IF(BB29=0,0,IF(OR(Inputs!$K$14=FALSE,BB29<Inputs!$F$25),0,(EXP(-0.25*('Growth&Yield'!I21^(1.8333-1/60*$C$1))))*$M$6*(BB29-Inputs!$F$25)*EXP(-($M$7*(BB29-Inputs!$F$25)))))) ->  | BM29: =IF(B29="","",IF(BB29<(RParms!$A$31+$M$4),$BL29,$BL$514)) ->  | BN29: =IF(B29="","",IF(OR(RParms!$A$30=FALSE,$BB29<RParms!$A$31),0,(EXP(-0.25*('Growth&Yield'!I21^(1.8333-1/60*$C$1))))*$O$6*($BB29-RParms!$A$31)*EXP(-($O$7*($BB29-RParms!$A$31))))) ->  | BO29: =IF(B29="","",IF($BB29<(RParms!$A$31+$O$4),$BN29,$BN$514)) ->  | BQ29: =IF(B29="","",(EXP(-0.25*('Growth&Yield'!I21^(1.8333-1/60*$C$1))))) ->  | BS29: =IF(B29="","",IF($U$4=TRUE,GetFertilizerResponseAtAge($U$5,$C$1,$U$8,$U$6,$U$7,"HD",$BB29,"RESP")*$BQ29,0)) ->  | BU29: =IF(B29="","",IF($U$4=TRUE,GetFertilizerResponseAtAge($U$5,$C$1,$U$8,$U$6,$U$7,"BA",$BB29,"RESP")*$BQ29,0)) ->  | BW29: =IF(B29="","",IF($Y$4=TRUE,GetFertilizerResponseAtAge($Y$5,$C$1,$Y$8,$Y$6,$Y$7,"HD",$BB29,"RESP")*$BQ29,0)) ->  | BY29: =IF(B29="","",IF($Y$4=TRUE,GetFertilizerResponseAtAge($Y$5,$C$1,$Y$8,$Y$6,$Y$7,"BA",$BB29,"RESP")*$BQ29,0)) ->  | CA29: =IF($AC$4=TRUE,GetFertilizerResponseAtAge($AC$5,$C$1,$AC$8,$AC$6,$AC$7,"HD",$BB29,"RESP")*$BQ29,0) -> 0 | CB29: 0 | CC29: =IF($AC$4=TRUE,GetFertilizerResponseAtAge($AC$5,$C$1,$AC$8,$AC$6,$AC$7,"BA",$BB29,"RESP")*$BQ29,0) -> 0 | CE29: =IF($AG$4=TRUE,GetFertilizerResponseAtAge($AG$5,$C$1,$AG$8,$AG$6,$AG$7,"HD",$BB29,"RESP")*$BQ29,0) -> 0 | CF29: 0 | CG29: =IF($AG$4=TRUE,GetFertilizerResponseAtAge($AG$5,$C$1,$AG$8,$AG$6,$AG$7,"BA",$BB29,"RESP")*$BQ29,0) -> 0 | CH29: 1 | CI29: 1 | CJ29: 2 | CK29: 1 | CP29: 1 | CQ29: 1 | CR29: 2 | CS29: 1 | DB29: =+'Growth&Yield'!G21 ->  | DC29: =IF(DB29="","",IF(DB29=0,0,SQRT(43560/'Growth&Yield'!$R21)/'Growth&Yield'!$AA21)) ->  | DD29: =IF(DB29="","",IF(DB29=0,0,(EXP(-0.25*('Growth&Yield'!$AA21^(1.8333-1/60*$C$1))))*$E$7*$BB29*EXP(-$E$6*$BB29))) ->  | DE29: =IF(DB29="","",IF(Inputs!$K$8=TRUE,$DD29,0)) ->  | DF29: =IF(DB29="","",(EXP(-0.25*('Growth&Yield'!J21^(1.8333-1/60*$C$1))))*$G$7*$DB29*EXP(-$G$6*$DB29)) ->  | DG29: =IF(DB29="","",IF(Inputs!$K$8=TRUE,$DF29,0)) ->  | DI29: =IF(DB29="","",IF(DB29=0,0,(EXP(-0.25*('Growth&Yield'!J21^(1.8333-1/60*$C$1))))*$I$5*($DB29-$I$6)*EXP(-$I$4*($DB29-$I$6)))) ->  | DJ29: =IF(DB29="","",IF(DB29=0,0,(EXP(-0.25*('Growth&Yield'!J21^(1.8333-1/60*$C$1))))*$K$5*($DB29-$I$6)*EXP(-$K$4*($DB29-$I$6)))) ->  | DL29: =IF(DB29="","",IF(DB29=0,0,IF(OR(Inputs!$K$14=FALSE,DB29<Inputs!$F$25),0,(EXP(-0.25*('Growth&Yield'!J21^(1.8333-1/60*$C$1))))*$M$6*(DB29-Inputs!$F$25)*EXP(-($M$7*(DB29-Inputs!$F$25)))))) ->  | DM29: =IF(DB29="","",IF(DB29<(RParms!$A$31+$M$4),$DL29,$DL$514)) ->  | DN29: =IF(DB29="","",IF(OR(RParms!$A$30=FALSE,$DB29<RParms!$A$31),0,(EXP(-0.25*('Growth&Yield'!J21^(1.8333-1/60*$C$1))))*$O$6*($DB29-RParms!$A$31)*EXP(-($O$7*($DB29-RParms!$A$31))))) ->  | DO29: =IF(DB29="","",IF($DB29<(RParms!$A$31+$O$4),$DN29,$DN$514)) ->  | DQ29: =IF(DB29="","",(EXP(-0.25*('Growth&Yield'!J21^(1.8333-1/60*$C$1))))) ->  | DS29: =IF(DB29="","",IF($U$4=TRUE,GetFertilizerResponseAtAge($U$5,$C$1,$U$8,$U$6,$U$7,"HD",$DB29,"RESP")*$DQ29,0)) ->  | DU29: =IF(DB29="","",IF($U$4=TRUE,GetFertilizerResponseAtAge($U$5,$C$1,$U$8,$U$6,$U$7,"BA",$DB29,"RESP")*$DQ29,0)) ->  | DW29: =IF(DB29="","",IF($Y$4=TRUE,GetFertilizerResponseAtAge($Y$5,$C$1,$Y$8,$Y$6,$Y$7,"HD",$DB29,"RESP")*$DQ29,0)) ->  | DY29: =IF(DB29="","",IF($Y$4=TRUE,GetFertilizerResponseAtAge($Y$5,$C$1,$Y$8,$Y$6,$Y$7,"BA",$DB29,"RESP")*$DQ29,0)) ->  | EA29: =IF(DB29="","",IF($AC$4=TRUE,GetFertilizerResponseAtAge($AC$5,$C$1,$AC$8,$AC$6,$AC$7,"HD",$DB29,"RESP")*$DQ29,0)) ->  | EC29: =IF(DB29="","",IF($AC$4=TRUE,GetFertilizerResponseAtAge($AC$5,$C$1,$AC$8,$AC$6,$AC$7,"BA",$DB29,"RESP")*$DQ29,0)) ->  | EE29: =IF(DB29="","",IF($AG$4=TRUE,GetFertilizerResponseAtAge($AG$5,$C$1,$AG$8,$AG$6,$AG$7,"HD",$DB29,"RESP")*$DQ29,0)) ->  | EG29: =IF(DB29="","",IF($AG$4=TRUE,GetFertilizerResponseAtAge($AG$5,$C$1,$AG$8,$AG$6,$AG$7,"BA",$DB29,"RESP")*$DQ29,0)) -> 
A30: =+'Growth&Yield'!A22 -> 18 | B30: =+'Growth&Yield'!E22 ->  | C30: =IF(B30="","",IF(B30=0,0,SQRT(43560/'Growth&Yield'!$K22)/'Growth&Yield'!$Y22)) ->  | D30: =IF(B30="","",IF(B30=0,0,(EXP(-0.25*('Growth&Yield'!$Y22^(1.8333-1/60*$C$1))))*$E$7*$B30*EXP(-$E$6*$B30))) ->  | E30: =IF(B30="","",IF(Inputs!$K$8=TRUE,$D30,0)) ->  | F30: =IF(B30="","",(EXP(-0.25*('Growth&Yield'!H22^(1.8333-1/60*$C$1))))*$G$7*$B30*EXP(-$G$6*$B30)) ->  | G30: =IF(B30="","",IF(Inputs!$K$8=TRUE,$F30,0)) ->  | I30: =IF(B30="","",IF('Growth&Yield'!E22=0,0,(EXP(-0.25*('Growth&Yield'!H22^(1.8333-1/60*$C$1))))*$I$5*($B30-$I$6)*EXP(-$I$4*($B30-$I$6)))) ->  | J30: =IF(B30="","",IF(B30=0,0,(EXP(-0.25*('Growth&Yield'!H22^(1.8333-1/60*$C$1))))*$K$5*($B30-$I$6)*EXP(-$K$4*($B30-$I$6)))) ->  | L30: =IF(B30="","",IF(B30=0,0,IF(OR(Inputs!$K$14=FALSE,B30<Inputs!$F$25),0,(EXP(-0.25*('Growth&Yield'!H22^(1.8333-1/60*$C$1))))*$M$6*(B30-Inputs!$F$25)*EXP(-($M$7*(B30-Inputs!$F$25)))))) ->  | M30: =IF(B30="","",IF(B30<(RParms!$A$31+$M$4),$L30,$L$514)) ->  | N30: =IF(B30="","",IF(OR(RParms!$A$30=FALSE,$B30<RParms!$A$31),0,(EXP(-0.25*('Growth&Yield'!H22^(1.8333-1/60*$C$1))))*$O$6*($B30-RParms!$A$31)*EXP(-($O$7*($B30-RParms!$A$31))))) ->  | O30: =IF(B30="","",IF($B30<(RParms!$A$31+$O$4),$N30,$N$514)) ->  | Q30: =IF(B30="","",(EXP(-0.25*('Growth&Yield'!H22^(1.8333-1/60*$C$1))))) ->  | S30: =IF(B30="","",IF($U$4=TRUE,GetFertilizerResponseAtAge($U$5,$C$1,$U$8,$U$6,$U$7,"HD",$B30,"RESP")*$Q30,0)) ->  | U30: =IF(B30="","",IF($U$4=TRUE,GetFertilizerResponseAtAge($U$5,$C$1,$U$8,$U$6,$U$7,"BA",$B30,"RESP")*$Q30,0)) ->  | W30: =IF(B30="","",IF($Y$4=TRUE,GetFertilizerResponseAtAge($Y$5,$C$1,$Y$8,$Y$6,$Y$7,"HD",$B30,"RESP")*$Q30,0)) ->  | Y30: =IF(B30="","",IF($Y$4=TRUE,GetFertilizerResponseAtAge($Y$5,$C$1,$Y$8,$Y$6,$Y$7,"BA",$B30,"RESP")*$Q30,0)) ->  | AA30: =IF(B30="","",IF($AC$4=TRUE,GetFertilizerResponseAtAge($AC$5,$C$1,$AC$8,$AC$6,$AC$7,"HD",$B30,"RESP")*$Q30,0)) ->  | AC30: =IF(B30="","",IF($AC$4=TRUE,GetFertilizerResponseAtAge($AC$5,$C$1,$AC$8,$AC$6,$AC$7,"BA",$B30,"RESP")*$Q30,0)) ->  | AE30: =IF(B30="","",IF($AG$4=TRUE,GetFertilizerResponseAtAge($AG$5,$C$1,$AG$8,$AG$6,$AG$7,"HD",$B30,"RESP")*$Q30,0)) ->  | AG30: =IF(B30="","",IF($AG$4=TRUE,GetFertilizerResponseAtAge($AG$5,$C$1,$AG$8,$AG$6,$AG$7,"BA",$B30,"RESP")*$Q30,0)) ->  | BB30: =+'Growth&Yield'!F22 ->  | BC30: =IF(B30="","",IF(BB30=0,0,SQRT(43560/'Growth&Yield'!$N22)/'Growth&Yield'!$Z22)) ->  | BD30: =IF(B30="","",IF(BB30=0,0,(EXP(-0.25*('Growth&Yield'!$Z22^(1.8333-1/60*$C$1))))*$E$7*$BB30*EXP(-$E$6*$BB30))) ->  | BE30: =IF(B30="","",IF(Inputs!$K$8=TRUE,$BD30,0)) ->  | BF30: =IF(B30="","",(EXP(-0.25*('Growth&Yield'!I22^(1.8333-1/60*$C$1))))*$G$7*$BB30*EXP(-$G$6*$BB30)) ->  | BG30: =IF(B30="","",IF(Inputs!$K$8=TRUE,$BF30,0)) ->  | BI30: =IF(B30="","",IF(BB30=0,0,(EXP(-0.25*('Growth&Yield'!I22^(1.8333-1/60*$C$1))))*$I$5*($BB30-$I$6)*EXP(-$I$4*($BB30-$I$6)))) ->  | BJ30: =IF(B30="","",IF(BB30=0,0,(EXP(-0.25*('Growth&Yield'!I22^(1.8333-1/60*$C$1))))*$K$5*($BB30-$I$6)*EXP(-$K$4*($BB30-$I$6)))) ->  | BL30: =IF(B30="","",IF(BB30=0,0,IF(OR(Inputs!$K$14=FALSE,BB30<Inputs!$F$25),0,(EXP(-0.25*('Growth&Yield'!I22^(1.8333-1/60*$C$1))))*$M$6*(BB30-Inputs!$F$25)*EXP(-($M$7*(BB30-Inputs!$F$25)))))) ->  | BM30: =IF(B30="","",IF(BB30<(RParms!$A$31+$M$4),$BL30,$BL$514)) ->  | BN30: =IF(B30="","",IF(OR(RParms!$A$30=FALSE,$BB30<RParms!$A$31),0,(EXP(-0.25*('Growth&Yield'!I22^(1.8333-1/60*$C$1))))*$O$6*($BB30-RParms!$A$31)*EXP(-($O$7*($BB30-RParms!$A$31))))) ->  | BO30: =IF(B30="","",IF($BB30<(RParms!$A$31+$O$4),$BN30,$BN$514)) ->  | BQ30: =IF(B30="","",(EXP(-0.25*('Growth&Yield'!I22^(1.8333-1/60*$C$1))))) ->  | BS30: =IF(B30="","",IF($U$4=TRUE,GetFertilizerResponseAtAge($U$5,$C$1,$U$8,$U$6,$U$7,"HD",$BB30,"RESP")*$BQ30,0)) ->  | BU30: =IF(B30="","",IF($U$4=TRUE,GetFertilizerResponseAtAge($U$5,$C$1,$U$8,$U$6,$U$7,"BA",$BB30,"RESP")*$BQ30,0)) ->  | BW30: =IF(B30="","",IF($Y$4=TRUE,GetFertilizerResponseAtAge($Y$5,$C$1,$Y$8,$Y$6,$Y$7,"HD",$BB30,"RESP")*$BQ30,0)) ->  | BY30: =IF(B30="","",IF($Y$4=TRUE,GetFertilizerResponseAtAge($Y$5,$C$1,$Y$8,$Y$6,$Y$7,"BA",$BB30,"RESP")*$BQ30,0)) ->  | CA30: =IF($AC$4=TRUE,GetFertilizerResponseAtAge($AC$5,$C$1,$AC$8,$AC$6,$AC$7,"HD",$BB30,"RESP")*$BQ30,0) -> 0 | CB30: 0 | CC30: =IF($AC$4=TRUE,GetFertilizerResponseAtAge($AC$5,$C$1,$AC$8,$AC$6,$AC$7,"BA",$BB30,"RESP")*$BQ30,0) -> 0 | CE30: =IF($AG$4=TRUE,GetFertilizerResponseAtAge($AG$5,$C$1,$AG$8,$AG$6,$AG$7,"HD",$BB30,"RESP")*$BQ30,0) -> 0 | CF30: 0 | CG30: =IF($AG$4=TRUE,GetFertilizerResponseAtAge($AG$5,$C$1,$AG$8,$AG$6,$AG$7,"BA",$BB30,"RESP")*$BQ30,0) -> 0 | CH30: 1 | CI30: 1 | CJ30: 2 | CK30: 1 | CP30: 1 | CQ30: 1 | CR30: 2 | CS30: 1 | DB30: =+'Growth&Yield'!G22 ->  | DC30: =IF(DB30="","",IF(DB30=0,0,SQRT(43560/'Growth&Yield'!$R22)/'Growth&Yield'!$AA22)) ->  | DD30: =IF(DB30="","",IF(DB30=0,0,(EXP(-0.25*('Growth&Yield'!$AA22^(1.8333-1/60*$C$1))))*$E$7*$BB30*EXP(-$E$6*$BB30))) ->  | DE30: =IF(DB30="","",IF(Inputs!$K$8=TRUE,$DD30,0)) ->  | DF30: =IF(DB30="","",(EXP(-0.25*('Growth&Yield'!J22^(1.8333-1/60*$C$1))))*$G$7*$DB30*EXP(-$G$6*$DB30)) ->  | DG30: =IF(DB30="","",IF(Inputs!$K$8=TRUE,$DF30,0)) ->  | DI30: =IF(DB30="","",IF(DB30=0,0,(EXP(-0.25*('Growth&Yield'!J22^(1.8333-1/60*$C$1))))*$I$5*($DB30-$I$6)*EXP(-$I$4*($DB30-$I$6)))) ->  | DJ30: =IF(DB30="","",IF(DB30=0,0,(EXP(-0.25*('Growth&Yield'!J22^(1.8333-1/60*$C$1))))*$K$5*($DB30-$I$6)*EXP(-$K$4*($DB30-$I$6)))) ->  | DL30: =IF(DB30="","",IF(DB30=0,0,IF(OR(Inputs!$K$14=FALSE,DB30<Inputs!$F$25),0,(EXP(-0.25*('Growth&Yield'!J22^(1.8333-1/60*$C$1))))*$M$6*(DB30-Inputs!$F$25)*EXP(-($M$7*(DB30-Inputs!$F$25)))))) ->  | DM30: =IF(DB30="","",IF(DB30<(RParms!$A$31+$M$4),$DL30,$DL$514)) ->  | DN30: =IF(DB30="","",IF(OR(RParms!$A$30=FALSE,$DB30<RParms!$A$31),0,(EXP(-0.25*('Growth&Yield'!J22^(1.8333-1/60*$C$1))))*$O$6*($DB30-RParms!$A$31)*EXP(-($O$7*($DB30-RParms!$A$31))))) ->  | DO30: =IF(DB30="","",IF($DB30<(RParms!$A$31+$O$4),$DN30,$DN$514)) ->  | DQ30: =IF(DB30="","",(EXP(-0.25*('Growth&Yield'!J22^(1.8333-1/60*$C$1))))) ->  | DS30: =IF(DB30="","",IF($U$4=TRUE,GetFertilizerResponseAtAge($U$5,$C$1,$U$8,$U$6,$U$7,"HD",$DB30,"RESP")*$DQ30,0)) ->  | DU30: =IF(DB30="","",IF($U$4=TRUE,GetFertilizerResponseAtAge($U$5,$C$1,$U$8,$U$6,$U$7,"BA",$DB30,"RESP")*$DQ30,0)) ->  | DW30: =IF(DB30="","",IF($Y$4=TRUE,GetFertilizerResponseAtAge($Y$5,$C$1,$Y$8,$Y$6,$Y$7,"HD",$DB30,"RESP")*$DQ30,0)) ->  | DY30: =IF(DB30="","",IF($Y$4=TRUE,GetFertilizerResponseAtAge($Y$5,$C$1,$Y$8,$Y$6,$Y$7,"BA",$DB30,"RESP")*$DQ30,0)) ->  | EA30: =IF(DB30="","",IF($AC$4=TRUE,GetFertilizerResponseAtAge($AC$5,$C$1,$AC$8,$AC$6,$AC$7,"HD",$DB30,"RESP")*$DQ30,0)) ->  | EC30: =IF(DB30="","",IF($AC$4=TRUE,GetFertilizerResponseAtAge($AC$5,$C$1,$AC$8,$AC$6,$AC$7,"BA",$DB30,"RESP")*$DQ30,0)) ->  | EE30: =IF(DB30="","",IF($AG$4=TRUE,GetFertilizerResponseAtAge($AG$5,$C$1,$AG$8,$AG$6,$AG$7,"HD",$DB30,"RESP")*$DQ30,0)) ->  | EG30: =IF(DB30="","",IF($AG$4=TRUE,GetFertilizerResponseAtAge($AG$5,$C$1,$AG$8,$AG$6,$AG$7,"BA",$DB30,"RESP")*$DQ30,0)) -> 
A31: =+'Growth&Yield'!A23 -> 19 | B31: =+'Growth&Yield'!E23 ->  | C31: =IF(B31="","",IF(B31=0,0,SQRT(43560/'Growth&Yield'!$K23)/'Growth&Yield'!$Y23)) ->  | D31: =IF(B31="","",IF(B31=0,0,(EXP(-0.25*('Growth&Yield'!$Y23^(1.8333-1/60*$C$1))))*$E$7*$B31*EXP(-$E$6*$B31))) ->  | E31: =IF(B31="","",IF(Inputs!$K$8=TRUE,$D31,0)) ->  | F31: =IF(B31="","",(EXP(-0.25*('Growth&Yield'!H23^(1.8333-1/60*$C$1))))*$G$7*$B31*EXP(-$G$6*$B31)) ->  | G31: =IF(B31="","",IF(Inputs!$K$8=TRUE,$F31,0)) ->  | I31: =IF(B31="","",IF('Growth&Yield'!E23=0,0,(EXP(-0.25*('Growth&Yield'!H23^(1.8333-1/60*$C$1))))*$I$5*($B31-$I$6)*EXP(-$I$4*($B31-$I$6)))) ->  | J31: =IF(B31="","",IF(B31=0,0,(EXP(-0.25*('Growth&Yield'!H23^(1.8333-1/60*$C$1))))*$K$5*($B31-$I$6)*EXP(-$K$4*($B31-$I$6)))) ->  | L31: =IF(B31="","",IF(B31=0,0,IF(OR(Inputs!$K$14=FALSE,B31<Inputs!$F$25),0,(EXP(-0.25*('Growth&Yield'!H23^(1.8333-1/60*$C$1))))*$M$6*(B31-Inputs!$F$25)*EXP(-($M$7*(B31-Inputs!$F$25)))))) ->  | M31: =IF(B31="","",IF(B31<(RParms!$A$31+$M$4),$L31,$L$514)) ->  | N31: =IF(B31="","",IF(OR(RParms!$A$30=FALSE,$B31<RParms!$A$31),0,(EXP(-0.25*('Growth&Yield'!H23^(1.8333-1/60*$C$1))))*$O$6*($B31-RParms!$A$31)*EXP(-($O$7*($B31-RParms!$A$31))))) ->  | O31: =IF(B31="","",IF($B31<(RParms!$A$31+$O$4),$N31,$N$514)) ->  | Q31: =IF(B31="","",(EXP(-0.25*('Growth&Yield'!H23^(1.8333-1/60*$C$1))))) ->  | S31: =IF(B31="","",IF($U$4=TRUE,GetFertilizerResponseAtAge($U$5,$C$1,$U$8,$U$6,$U$7,"HD",$B31,"RESP")*$Q31,0)) ->  | U31: =IF(B31="","",IF($U$4=TRUE,GetFertilizerResponseAtAge($U$5,$C$1,$U$8,$U$6,$U$7,"BA",$B31,"RESP")*$Q31,0)) ->  | W31: =IF(B31="","",IF($Y$4=TRUE,GetFertilizerResponseAtAge($Y$5,$C$1,$Y$8,$Y$6,$Y$7,"HD",$B31,"RESP")*$Q31,0)) ->  | Y31: =IF(B31="","",IF($Y$4=TRUE,GetFertilizerResponseAtAge($Y$5,$C$1,$Y$8,$Y$6,$Y$7,"BA",$B31,"RESP")*$Q31,0)) ->  | AA31: =IF(B31="","",IF($AC$4=TRUE,GetFertilizerResponseAtAge($AC$5,$C$1,$AC$8,$AC$6,$AC$7,"HD",$B31,"RESP")*$Q31,0)) ->  | AC31: =IF(B31="","",IF($AC$4=TRUE,GetFertilizerResponseAtAge($AC$5,$C$1,$AC$8,$AC$6,$AC$7,"BA",$B31,"RESP")*$Q31,0)) ->  | AE31: =IF(B31="","",IF($AG$4=TRUE,GetFertilizerResponseAtAge($AG$5,$C$1,$AG$8,$AG$6,$AG$7,"HD",$B31,"RESP")*$Q31,0)) ->  | AG31: =IF(B31="","",IF($AG$4=TRUE,GetFertilizerResponseAtAge($AG$5,$C$1,$AG$8,$AG$6,$AG$7,"BA",$B31,"RESP")*$Q31,0)) ->  | BB31: =+'Growth&Yield'!F23 ->  | BC31: =IF(B31="","",IF(BB31=0,0,SQRT(43560/'Growth&Yield'!$N23)/'Growth&Yield'!$Z23)) ->  | BD31: =IF(B31="","",IF(BB31=0,0,(EXP(-0.25*('Growth&Yield'!$Z23^(1.8333-1/60*$C$1))))*$E$7*$BB31*EXP(-$E$6*$BB31))) ->  | BE31: =IF(B31="","",IF(Inputs!$K$8=TRUE,$BD31,0)) ->  | BF31: =IF(B31="","",(EXP(-0.25*('Growth&Yield'!I23^(1.8333-1/60*$C$1))))*$G$7*$BB31*EXP(-$G$6*$BB31)) ->  | BG31: =IF(B31="","",IF(Inputs!$K$8=TRUE,$BF31,0)) ->  | BI31: =IF(B31="","",IF(BB31=0,0,(EXP(-0.25*('Growth&Yield'!I23^(1.8333-1/60*$C$1))))*$I$5*($BB31-$I$6)*EXP(-$I$4*($BB31-$I$6)))) ->  | BJ31: =IF(B31="","",IF(BB31=0,0,(EXP(-0.25*('Growth&Yield'!I23^(1.8333-1/60*$C$1))))*$K$5*($BB31-$I$6)*EXP(-$K$4*($BB31-$I$6)))) ->  | BL31: =IF(B31="","",IF(BB31=0,0,IF(OR(Inputs!$K$14=FALSE,BB31<Inputs!$F$25),0,(EXP(-0.25*('Growth&Yield'!I23^(1.8333-1/60*$C$1))))*$M$6*(BB31-Inputs!$F$25)*EXP(-($M$7*(BB31-Inputs!$F$25)))))) ->  | BM31: =IF(B31="","",IF(BB31<(RParms!$A$31+$M$4),$BL31,$BL$514)) ->  | BN31: =IF(B31="","",IF(OR(RParms!$A$30=FALSE,$BB31<RParms!$A$31),0,(EXP(-0.25*('Growth&Yield'!I23^(1.8333-1/60*$C$1))))*$O$6*($BB31-RParms!$A$31)*EXP(-($O$7*($BB31-RParms!$A$31))))) ->  | BO31: =IF(B31="","",IF($BB31<(RParms!$A$31+$O$4),$BN31,$BN$514)) ->  | BQ31: =IF(B31="","",(EXP(-0.25*('Growth&Yield'!I23^(1.8333-1/60*$C$1))))) ->  | BS31: =IF(B31="","",IF($U$4=TRUE,GetFertilizerResponseAtAge($U$5,$C$1,$U$8,$U$6,$U$7,"HD",$BB31,"RESP")*$BQ31,0)) ->  | BU31: =IF(B31="","",IF($U$4=TRUE,GetFertilizerResponseAtAge($U$5,$C$1,$U$8,$U$6,$U$7,"BA",$BB31,"RESP")*$BQ31,0)) ->  | BW31: =IF(B31="","",IF($Y$4=TRUE,GetFertilizerResponseAtAge($Y$5,$C$1,$Y$8,$Y$6,$Y$7,"HD",$BB31,"RESP")*$BQ31,0)) ->  | BY31: =IF(B31="","",IF($Y$4=TRUE,GetFertilizerResponseAtAge($Y$5,$C$1,$Y$8,$Y$6,$Y$7,"BA",$BB31,"RESP")*$BQ31,0)) ->  | CA31: =IF($AC$4=TRUE,GetFertilizerResponseAtAge($AC$5,$C$1,$AC$8,$AC$6,$AC$7,"HD",$BB31,"RESP")*$BQ31,0) -> 0 | CB31: 0 | CC31: =IF($AC$4=TRUE,GetFertilizerResponseAtAge($AC$5,$C$1,$AC$8,$AC$6,$AC$7,"BA",$BB31,"RESP")*$BQ31,0) -> 0 | CE31: =IF($AG$4=TRUE,GetFertilizerResponseAtAge($AG$5,$C$1,$AG$8,$AG$6,$AG$7,"HD",$BB31,"RESP")*$BQ31,0) -> 0 | CF31: 0 | CG31: =IF($AG$4=TRUE,GetFertilizerResponseAtAge($AG$5,$C$1,$AG$8,$AG$6,$AG$7,"BA",$BB31,"RESP")*$BQ31,0) -> 0 | CH31: 1 | CI31: 1 | CJ31: 2 | CK31: 1 | CP31: 1 | CQ31: 1 | CR31: 2 | CS31: 1 | DB31: =+'Growth&Yield'!G23 ->  | DC31: =IF(DB31="","",IF(DB31=0,0,SQRT(43560/'Growth&Yield'!$R23)/'Growth&Yield'!$AA23)) ->  | DD31: =IF(DB31="","",IF(DB31=0,0,(EXP(-0.25*('Growth&Yield'!$AA23^(1.8333-1/60*$C$1))))*$E$7*$BB31*EXP(-$E$6*$BB31))) ->  | DE31: =IF(DB31="","",IF(Inputs!$K$8=TRUE,$DD31,0)) ->  | DF31: =IF(DB31="","",(EXP(-0.25*('Growth&Yield'!J23^(1.8333-1/60*$C$1))))*$G$7*$DB31*EXP(-$G$6*$DB31)) ->  | DG31: =IF(DB31="","",IF(Inputs!$K$8=TRUE,$DF31,0)) ->  | DI31: =IF(DB31="","",IF(DB31=0,0,(EXP(-0.25*('Growth&Yield'!J23^(1.8333-1/60*$C$1))))*$I$5*($DB31-$I$6)*EXP(-$I$4*($DB31-$I$6)))) ->  | DJ31: =IF(DB31="","",IF(DB31=0,0,(EXP(-0.25*('Growth&Yield'!J23^(1.8333-1/60*$C$1))))*$K$5*($DB31-$I$6)*EXP(-$K$4*($DB31-$I$6)))) ->  | DL31: =IF(DB31="","",IF(DB31=0,0,IF(OR(Inputs!$K$14=FALSE,DB31<Inputs!$F$25),0,(EXP(-0.25*('Growth&Yield'!J23^(1.8333-1/60*$C$1))))*$M$6*(DB31-Inputs!$F$25)*EXP(-($M$7*(DB31-Inputs!$F$25)))))) ->  | DM31: =IF(DB31="","",IF(DB31<(RParms!$A$31+$M$4),$DL31,$DL$514)) ->  | DN31: =IF(DB31="","",IF(OR(RParms!$A$30=FALSE,$DB31<RParms!$A$31),0,(EXP(-0.25*('Growth&Yield'!J23^(1.8333-1/60*$C$1))))*$O$6*($DB31-RParms!$A$31)*EXP(-($O$7*($DB31-RParms!$A$31))))) ->  | DO31: =IF(DB31="","",IF($DB31<(RParms!$A$31+$O$4),$DN31,$DN$514)) ->  | DQ31: =IF(DB31="","",(EXP(-0.25*('Growth&Yield'!J23^(1.8333-1/60*$C$1))))) ->  | DS31: =IF(DB31="","",IF($U$4=TRUE,GetFertilizerResponseAtAge($U$5,$C$1,$U$8,$U$6,$U$7,"HD",$DB31,"RESP")*$DQ31,0)) ->  | DU31: =IF(DB31="","",IF($U$4=TRUE,GetFertilizerResponseAtAge($U$5,$C$1,$U$8,$U$6,$U$7,"BA",$DB31,"RESP")*$DQ31,0)) ->  | DW31: =IF(DB31="","",IF($Y$4=TRUE,GetFertilizerResponseAtAge($Y$5,$C$1,$Y$8,$Y$6,$Y$7,"HD",$DB31,"RESP")*$DQ31,0)) ->  | DY31: =IF(DB31="","",IF($Y$4=TRUE,GetFertilizerResponseAtAge($Y$5,$C$1,$Y$8,$Y$6,$Y$7,"BA",$DB31,"RESP")*$DQ31,0)) ->  | EA31: =IF(DB31="","",IF($AC$4=TRUE,GetFertilizerResponseAtAge($AC$5,$C$1,$AC$8,$AC$6,$AC$7,"HD",$DB31,"RESP")*$DQ31,0)) ->  | EC31: =IF(DB31="","",IF($AC$4=TRUE,GetFertilizerResponseAtAge($AC$5,$C$1,$AC$8,$AC$6,$AC$7,"BA",$DB31,"RESP")*$DQ31,0)) ->  | EE31: =IF(DB31="","",IF($AG$4=TRUE,GetFertilizerResponseAtAge($AG$5,$C$1,$AG$8,$AG$6,$AG$7,"HD",$DB31,"RESP")*$DQ31,0)) ->  | EG31: =IF(DB31="","",IF($AG$4=TRUE,GetFertilizerResponseAtAge($AG$5,$C$1,$AG$8,$AG$6,$AG$7,"BA",$DB31,"RESP")*$DQ31,0)) -> 
A32: =+'Growth&Yield'!A24 -> 20 | B32: =+'Growth&Yield'!E24 ->  | C32: =IF(B32="","",IF(B32=0,0,SQRT(43560/'Growth&Yield'!$K24)/'Growth&Yield'!$Y24)) ->  | D32: =IF(B32="","",IF(B32=0,0,(EXP(-0.25*('Growth&Yield'!$Y24^(1.8333-1/60*$C$1))))*$E$7*$B32*EXP(-$E$6*$B32))) ->  | E32: =IF(B32="","",IF(Inputs!$K$8=TRUE,$D32,0)) ->  | F32: =IF(B32="","",(EXP(-0.25*('Growth&Yield'!H24^(1.8333-1/60*$C$1))))*$G$7*$B32*EXP(-$G$6*$B32)) ->  | G32: =IF(B32="","",IF(Inputs!$K$8=TRUE,$F32,0)) ->  | I32: =IF(B32="","",IF('Growth&Yield'!E24=0,0,(EXP(-0.25*('Growth&Yield'!H24^(1.8333-1/60*$C$1))))*$I$5*($B32-$I$6)*EXP(-$I$4*($B32-$I$6)))) ->  | J32: =IF(B32="","",IF(B32=0,0,(EXP(-0.25*('Growth&Yield'!H24^(1.8333-1/60*$C$1))))*$K$5*($B32-$I$6)*EXP(-$K$4*($B32-$I$6)))) ->  | L32: =IF(B32="","",IF(B32=0,0,IF(OR(Inputs!$K$14=FALSE,B32<Inputs!$F$25),0,(EXP(-0.25*('Growth&Yield'!H24^(1.8333-1/60*$C$1))))*$M$6*(B32-Inputs!$F$25)*EXP(-($M$7*(B32-Inputs!$F$25)))))) ->  | M32: =IF(B32="","",IF(B32<(RParms!$A$31+$M$4),$L32,$L$514)) ->  | N32: =IF(B32="","",IF(OR(RParms!$A$30=FALSE,$B32<RParms!$A$31),0,(EXP(-0.25*('Growth&Yield'!H24^(1.8333-1/60*$C$1))))*$O$6*($B32-RParms!$A$31)*EXP(-($O$7*($B32-RParms!$A$31))))) ->  | O32: =IF(B32="","",IF($B32<(RParms!$A$31+$O$4),$N32,$N$514)) ->  | Q32: =IF(B32="","",(EXP(-0.25*('Growth&Yield'!H24^(1.8333-1/60*$C$1))))) ->  | S32: =IF(B32="","",IF($U$4=TRUE,GetFertilizerResponseAtAge($U$5,$C$1,$U$8,$U$6,$U$7,"HD",$B32,"RESP")*$Q32,0)) ->  | U32: =IF(B32="","",IF($U$4=TRUE,GetFertilizerResponseAtAge($U$5,$C$1,$U$8,$U$6,$U$7,"BA",$B32,"RESP")*$Q32,0)) ->  | W32: =IF(B32="","",IF($Y$4=TRUE,GetFertilizerResponseAtAge($Y$5,$C$1,$Y$8,$Y$6,$Y$7,"HD",$B32,"RESP")*$Q32,0)) ->  | Y32: =IF(B32="","",IF($Y$4=TRUE,GetFertilizerResponseAtAge($Y$5,$C$1,$Y$8,$Y$6,$Y$7,"BA",$B32,"RESP")*$Q32,0)) ->  | AA32: =IF(B32="","",IF($AC$4=TRUE,GetFertilizerResponseAtAge($AC$5,$C$1,$AC$8,$AC$6,$AC$7,"HD",$B32,"RESP")*$Q32,0)) ->  | AC32: =IF(B32="","",IF($AC$4=TRUE,GetFertilizerResponseAtAge($AC$5,$C$1,$AC$8,$AC$6,$AC$7,"BA",$B32,"RESP")*$Q32,0)) ->  | AE32: =IF(B32="","",IF($AG$4=TRUE,GetFertilizerResponseAtAge($AG$5,$C$1,$AG$8,$AG$6,$AG$7,"HD",$B32,"RESP")*$Q32,0)) ->  | AG32: =IF(B32="","",IF($AG$4=TRUE,GetFertilizerResponseAtAge($AG$5,$C$1,$AG$8,$AG$6,$AG$7,"BA",$B32,"RESP")*$Q32,0)) ->  | BB32: =+'Growth&Yield'!F24 ->  | BC32: =IF(B32="","",IF(BB32=0,0,SQRT(43560/'Growth&Yield'!$N24)/'Growth&Yield'!$Z24)) ->  | BD32: =IF(B32="","",IF(BB32=0,0,(EXP(-0.25*('Growth&Yield'!$Z24^(1.8333-1/60*$C$1))))*$E$7*$BB32*EXP(-$E$6*$BB32))) ->  | BE32: =IF(B32="","",IF(Inputs!$K$8=TRUE,$BD32,0)) ->  | BF32: =IF(B32="","",(EXP(-0.25*('Growth&Yield'!I24^(1.8333-1/60*$C$1))))*$G$7*$BB32*EXP(-$G$6*$BB32)) ->  | BG32: =IF(B32="","",IF(Inputs!$K$8=TRUE,$BF32,0)) ->  | BI32: =IF(B32="","",IF(BB32=0,0,(EXP(-0.25*('Growth&Yield'!I24^(1.8333-1/60*$C$1))))*$I$5*($BB32-$I$6)*EXP(-$I$4*($BB32-$I$6)))) ->  | BJ32: =IF(B32="","",IF(BB32=0,0,(EXP(-0.25*('Growth&Yield'!I24^(1.8333-1/60*$C$1))))*$K$5*($BB32-$I$6)*EXP(-$K$4*($BB32-$I$6)))) ->  | BL32: =IF(B32="","",IF(BB32=0,0,IF(OR(Inputs!$K$14=FALSE,BB32<Inputs!$F$25),0,(EXP(-0.25*('Growth&Yield'!I24^(1.8333-1/60*$C$1))))*$M$6*(BB32-Inputs!$F$25)*EXP(-($M$7*(BB32-Inputs!$F$25)))))) ->  | BM32: =IF(B32="","",IF(BB32<(RParms!$A$31+$M$4),$BL32,$BL$514)) ->  | BN32: =IF(B32="","",IF(OR(RParms!$A$30=FALSE,$BB32<RParms!$A$31),0,(EXP(-0.25*('Growth&Yield'!I24^(1.8333-1/60*$C$1))))*$O$6*($BB32-RParms!$A$31)*EXP(-($O$7*($BB32-RParms!$A$31))))) ->  | BO32: =IF(B32="","",IF($BB32<(RParms!$A$31+$O$4),$BN32,$BN$514)) ->  | BQ32: =IF(B32="","",(EXP(-0.25*('Growth&Yield'!I24^(1.8333-1/60*$C$1))))) ->  | BS32: =IF(B32="","",IF($U$4=TRUE,GetFertilizerResponseAtAge($U$5,$C$1,$U$8,$U$6,$U$7,"HD",$BB32,"RESP")*$BQ32,0)) ->  | BU32: =IF(B32="","",IF($U$4=TRUE,GetFertilizerResponseAtAge($U$5,$C$1,$U$8,$U$6,$U$7,"BA",$BB32,"RESP")*$BQ32,0)) ->  | BW32: =IF(B32="","",IF($Y$4=TRUE,GetFertilizerResponseAtAge($Y$5,$C$1,$Y$8,$Y$6,$Y$7,"HD",$BB32,"RESP")*$BQ32,0)) ->  | BX32: =IF(B32="","",IF($BB32<($Y$5+$X$9),$BW32,$BW$514)) ->  | BY32: =IF(B32="","",IF($Y$4=TRUE,GetFertilizerResponseAtAge($Y$5,$C$1,$Y$8,$Y$6,$Y$7,"BA",$BB32,"RESP")*$BQ32,0)) ->  | CA32: =IF($AC$4=TRUE,GetFertilizerResponseAtAge($AC$5,$C$1,$AC$8,$AC$6,$AC$7,"HD",$BB32,"RESP")*$BQ32,0) -> 0 | CB32: 0 | CC32: =IF($AC$4=TRUE,GetFertilizerResponseAtAge($AC$5,$C$1,$AC$8,$AC$6,$AC$7,"BA",$BB32,"RESP")*$BQ32,0) -> 0 | CE32: =IF($AG$4=TRUE,GetFertilizerResponseAtAge($AG$5,$C$1,$AG$8,$AG$6,$AG$7,"HD",$BB32,"RESP")*$BQ32,0) -> 0 | CF32: 0 | CG32: =IF($AG$4=TRUE,GetFertilizerResponseAtAge($AG$5,$C$1,$AG$8,$AG$6,$AG$7,"BA",$BB32,"RESP")*$BQ32,0) -> 0 | CH32: 1 | CI32: 1 | CJ32: =SUM(CH32:CI32) -> 2 | CK32: 1 | CN32: =SUM(CL32:CM32) ->  | CP32: 1 | CQ32: 1 | CR32: =SUM(CP32:CQ32) -> 2 | CS32: 1 | CV32: =SUM(CT32:CU32) ->  | DB32: =+'Growth&Yield'!G24 ->  | DC32: =IF(DB32="","",IF(DB32=0,0,SQRT(43560/'Growth&Yield'!$R24)/'Growth&Yield'!$AA24)) ->  | DD32: =IF(DB32="","",IF(DB32=0,0,(EXP(-0.25*('Growth&Yield'!$AA24^(1.8333-1/60*$C$1))))*$E$7*$BB32*EXP(-$E$6*$BB32))) ->  | DE32: =IF(DB32="","",IF(Inputs!$K$8=TRUE,$DD32,0)) ->  | DF32: =IF(DB32="","",(EXP(-0.25*('Growth&Yield'!J24^(1.8333-1/60*$C$1))))*$G$7*$DB32*EXP(-$G$6*$DB32)) ->  | DG32: =IF(DB32="","",IF(Inputs!$K$8=TRUE,$DF32,0)) ->  | DI32: =IF(DB32="","",IF(DB32=0,0,(EXP(-0.25*('Growth&Yield'!J24^(1.8333-1/60*$C$1))))*$I$5*($DB32-$I$6)*EXP(-$I$4*($DB32-$I$6)))) ->  | DJ32: =IF(DB32="","",IF(DB32=0,0,(EXP(-0.25*('Growth&Yield'!J24^(1.8333-1/60*$C$1))))*$K$5*($DB32-$I$6)*EXP(-$K$4*($DB32-$I$6)))) ->  | DL32: =IF(DB32="","",IF(DB32=0,0,IF(OR(Inputs!$K$14=FALSE,DB32<Inputs!$F$25),0,(EXP(-0.25*('Growth&Yield'!J24^(1.8333-1/60*$C$1))))*$M$6*(DB32-Inputs!$F$25)*EXP(-($M$7*(DB32-Inputs!$F$25)))))) ->  | DM32: =IF(DB32="","",IF(DB32<(RParms!$A$31+$M$4),$DL32,$DL$514)) ->  | DN32: =IF(DB32="","",IF(OR(RParms!$A$30=FALSE,$DB32<RParms!$A$31),0,(EXP(-0.25*('Growth&Yield'!J24^(1.8333-1/60*$C$1))))*$O$6*($DB32-RParms!$A$31)*EXP(-($O$7*($DB32-RParms!$A$31))))) ->  | DO32: =IF(DB32="","",IF($DB32<(RParms!$A$31+$O$4),$DN32,$DN$514)) ->  | DQ32: =IF(DB32="","",(EXP(-0.25*('Growth&Yield'!J24^(1.8333-1/60*$C$1))))) ->  | DS32: =IF(DB32="","",IF($U$4=TRUE,GetFertilizerResponseAtAge($U$5,$C$1,$U$8,$U$6,$U$7,"HD",$DB32,"RESP")*$DQ32,0)) ->  | DU32: =IF(DB32="","",IF($U$4=TRUE,GetFertilizerResponseAtAge($U$5,$C$1,$U$8,$U$6,$U$7,"BA",$DB32,"RESP")*$DQ32,0)) ->  | DW32: =IF(DB32="","",IF($Y$4=TRUE,GetFertilizerResponseAtAge($Y$5,$C$1,$Y$8,$Y$6,$Y$7,"HD",$DB32,"RESP")*$DQ32,0)) ->  | DY32: =IF(DB32="","",IF($Y$4=TRUE,GetFertilizerResponseAtAge($Y$5,$C$1,$Y$8,$Y$6,$Y$7,"BA",$DB32,"RESP")*$DQ32,0)) ->  | EA32: =IF(DB32="","",IF($AC$4=TRUE,GetFertilizerResponseAtAge($AC$5,$C$1,$AC$8,$AC$6,$AC$7,"HD",$DB32,"RESP")*$DQ32,0)) ->  | EC32: =IF(DB32="","",IF($AC$4=TRUE,GetFertilizerResponseAtAge($AC$5,$C$1,$AC$8,$AC$6,$AC$7,"BA",$DB32,"RESP")*$DQ32,0)) ->  | EE32: =IF(DB32="","",IF($AG$4=TRUE,GetFertilizerResponseAtAge($AG$5,$C$1,$AG$8,$AG$6,$AG$7,"HD",$DB32,"RESP")*$DQ32,0)) ->  | EG32: =IF(DB32="","",IF($AG$4=TRUE,GetFertilizerResponseAtAge($AG$5,$C$1,$AG$8,$AG$6,$AG$7,"BA",$DB32,"RESP")*$DQ32,0)) -> 
A33: =+'Growth&Yield'!A25 -> 21 | B33: =+'Growth&Yield'!E25 ->  | C33: =IF(B33="","",IF(B33=0,0,SQRT(43560/'Growth&Yield'!$K25)/'Growth&Yield'!$Y25)) ->  | D33: =IF(B33="","",IF(B33=0,0,(EXP(-0.25*('Growth&Yield'!$Y25^(1.8333-1/60*$C$1))))*$E$7*$B33*EXP(-$E$6*$B33))) ->  | E33: =IF(B33="","",IF(Inputs!$K$8=TRUE,$D33,0)) ->  | F33: =IF(B33="","",(EXP(-0.25*('Growth&Yield'!H25^(1.8333-1/60*$C$1))))*$G$7*$B33*EXP(-$G$6*$B33)) ->  | G33: =IF(B33="","",IF(Inputs!$K$8=TRUE,$F33,0)) ->  | I33: =IF(B33="","",IF('Growth&Yield'!E25=0,0,(EXP(-0.25*('Growth&Yield'!H25^(1.8333-1/60*$C$1))))*$I$5*($B33-$I$6)*EXP(-$I$4*($B33-$I$6)))) ->  | J33: =IF(B33="","",IF(B33=0,0,(EXP(-0.25*('Growth&Yield'!H25^(1.8333-1/60*$C$1))))*$K$5*($B33-$I$6)*EXP(-$K$4*($B33-$I$6)))) ->  | L33: =IF(B33="","",IF(B33=0,0,IF(OR(Inputs!$K$14=FALSE,B33<Inputs!$F$25),0,(EXP(-0.25*('Growth&Yield'!H25^(1.8333-1/60*$C$1))))*$M$6*(B33-Inputs!$F$25)*EXP(-($M$7*(B33-Inputs!$F$25)))))) ->  | M33: =IF(B33="","",IF(B33<(RParms!$A$31+$M$4),$L33,$L$514)) ->  | N33: =IF(B33="","",IF(OR(RParms!$A$30=FALSE,$B33<RParms!$A$31),0,(EXP(-0.25*('Growth&Yield'!H25^(1.8333-1/60*$C$1))))*$O$6*($B33-RParms!$A$31)*EXP(-($O$7*($B33-RParms!$A$31))))) ->  | O33: =IF(B33="","",IF($B33<(RParms!$A$31+$O$4),$N33,$N$514)) ->  | Q33: =IF(B33="","",(EXP(-0.25*('Growth&Yield'!H25^(1.8333-1/60*$C$1))))) ->  | S33: =IF(B33="","",IF($U$4=TRUE,GetFertilizerResponseAtAge($U$5,$C$1,$U$8,$U$6,$U$7,"HD",$B33,"RESP")*$Q33,0)) ->  | T33: =IF(B33="","",IF($B33<($U$5+$T$9),$S33,$S$514)) ->  | U33: =IF(B33="","",IF($U$4=TRUE,GetFertilizerResponseAtAge($U$5,$C$1,$U$8,$U$6,$U$7,"BA",$B33,"RESP")*$Q33,0)) ->  | W33: =IF(B33="","",IF($Y$4=TRUE,GetFertilizerResponseAtAge($Y$5,$C$1,$Y$8,$Y$6,$Y$7,"HD",$B33,"RESP")*$Q33,0)) ->  | X33: =IF(B33="","",IF($B33<($Y$5+$X$9),$W33,$W$514)) ->  | Y33: =IF(B33="","",IF($Y$4=TRUE,GetFertilizerResponseAtAge($Y$5,$C$1,$Y$8,$Y$6,$Y$7,"BA",$B33,"RESP")*$Q33,0)) ->  | AA33: =IF(B33="","",IF($AC$4=TRUE,GetFertilizerResponseAtAge($AC$5,$C$1,$AC$8,$AC$6,$AC$7,"HD",$B33,"RESP")*$Q33,0)) ->  | AB33: =IF(B33="","",IF($B33<($AC$5+$AB$9),$AA33,$AA$514)) ->  | AC33: =IF(B33="","",IF($AC$4=TRUE,GetFertilizerResponseAtAge($AC$5,$C$1,$AC$8,$AC$6,$AC$7,"BA",$B33,"RESP")*$Q33,0)) ->  | AE33: =IF(B33="","",IF($AG$4=TRUE,GetFertilizerResponseAtAge($AG$5,$C$1,$AG$8,$AG$6,$AG$7,"HD",$B33,"RESP")*$Q33,0)) ->  | AF33: =IF(B33="","",IF($B33<($AG$5+$AF$9),$AE33,$AE$514)) ->  | AG33: =IF(B33="","",IF($AG$4=TRUE,GetFertilizerResponseAtAge($AG$5,$C$1,$AG$8,$AG$6,$AG$7,"BA",$B33,"RESP")*$Q33,0)) ->  | AH33: =IF(B33="","",IF($I33>0,1,0)) ->  | AI33: =IF(B33="","",IF($M33>0,1,0)) ->  | AJ33: =IF(B33="","",SUM(AH33:AI33)) ->  | AK33: =IF(B33="","",IF($AJ33>1,1,$AJ33)) ->  | AL33: =IF(B33="","",$AK33*($E33+$I33+$M33)) ->  | AM33: =IF(B33="","",$T33+0.9*$X33+0.8*$AB33+0.7*$AF33) ->  | AN33: =IF(B33="","",SUM(AL33:AM33)) ->  | AP33: =IF(B33="","",IF($J33>0,1,0)) ->  | AQ33: =IF(B33="","",IF($O33>0,1,0)) ->  | AR33: =IF(B33="","",SUM(AP33:AQ33)) ->  | AS33: =IF(B33="","",IF($AR33>1,1,$AR33)) ->  | AT33: =IF(B33="","",$AS33*($G33+$J33+$O33)) ->  | AU33: =IF(B33="","",$U33+0.9*$Y33+0.8*$AC33+0.7*$AG33) ->  | AV33: =IF(B33="","",SUM(AT33:AU33)) ->  | BB33: =+'Growth&Yield'!F25 ->  | BC33: =IF(B33="","",IF(BB33=0,0,SQRT(43560/'Growth&Yield'!$N25)/'Growth&Yield'!$Z25)) ->  | BD33: =IF(B33="","",IF(BB33=0,0,(EXP(-0.25*('Growth&Yield'!$Z25^(1.8333-1/60*$C$1))))*$E$7*$BB33*EXP(-$E$6*$BB33))) ->  | BE33: =IF(B33="","",IF(Inputs!$K$8=TRUE,$BD33,0)) ->  | BF33: =IF(B33="","",(EXP(-0.25*('Growth&Yield'!I25^(1.8333-1/60*$C$1))))*$G$7*$BB33*EXP(-$G$6*$BB33)) ->  | BG33: =IF(B33="","",IF(Inputs!$K$8=TRUE,$BF33,0)) ->  | BI33: =IF(B33="","",IF(BB33=0,0,(EXP(-0.25*('Growth&Yield'!I25^(1.8333-1/60*$C$1))))*$I$5*($BB33-$I$6)*EXP(-$I$4*($BB33-$I$6)))) ->  | BJ33: =IF(B33="","",IF(BB33=0,0,(EXP(-0.25*('Growth&Yield'!I25^(1.8333-1/60*$C$1))))*$K$5*($BB33-$I$6)*EXP(-$K$4*($BB33-$I$6)))) ->  | BL33: =IF(B33="","",IF(BB33=0,0,IF(OR(Inputs!$K$14=FALSE,BB33<Inputs!$F$25),0,(EXP(-0.25*('Growth&Yield'!I25^(1.8333-1/60*$C$1))))*$M$6*(BB33-Inputs!$F$25)*EXP(-($M$7*(BB33-Inputs!$F$25)))))) ->  | BM33: =IF(B33="","",IF(BB33<(RParms!$A$31+$M$4),$BL33,$BL$514)) ->  | BN33: =IF(B33="","",IF(OR(RParms!$A$30=FALSE,$BB33<RParms!$A$31),0,(EXP(-0.25*('Growth&Yield'!I25^(1.8333-1/60*$C$1))))*$O$6*($BB33-RParms!$A$31)*EXP(-($O$7*($BB33-RParms!$A$31))))) ->  | BO33: =IF(B33="","",IF($BB33<(RParms!$A$31+$O$4),$BN33,$BN$514)) ->  | BQ33: =IF(B33="","",(EXP(-0.25*('Growth&Yield'!I25^(1.8333-1/60*$C$1))))) ->  | BS33: =IF(B33="","",IF($U$4=TRUE,GetFertilizerResponseAtAge($U$5,$C$1,$U$8,$U$6,$U$7,"HD",$BB33,"RESP")*$BQ33,0)) ->  | BT33: =IF(B33="","",IF($BB33<($U$5+$T$9),$BS33,$BS$514)) ->  | BU33: =IF(B33="","",IF($U$4=TRUE,GetFertilizerResponseAtAge($U$5,$C$1,$U$8,$U$6,$U$7,"BA",$BB33,"RESP")*$BQ33,0)) ->  | BW33: =IF(B33="","",IF($Y$4=TRUE,GetFertilizerResponseAtAge($Y$5,$C$1,$Y$8,$Y$6,$Y$7,"HD",$BB33,"RESP")*$BQ33,0)) ->  | BX33: =IF(B33="","",IF($BB33<($Y$5+$X$9),$BW33,$BW$514)) ->  | BY33: =IF(B33="","",IF($Y$4=TRUE,GetFertilizerResponseAtAge($Y$5,$C$1,$Y$8,$Y$6,$Y$7,"BA",$BB33,"RESP")*$BQ33,0)) ->  | CA33: =IF(B33="","",IF($AC$4=TRUE,GetFertilizerResponseAtAge($AC$5,$C$1,$AC$8,$AC$6,$AC$7,"HD",$BB33,"RESP")*$BQ33,0)) ->  | CB33: =IF(B33="","",IF($BB33<($AC$5+$AB$9),$CA33,$CA$514)) ->  | CC33: =IF(B33="","",IF($AC$4=TRUE,GetFertilizerResponseAtAge($AC$5,$C$1,$AC$8,$AC$6,$AC$7,"BA",$BB33,"RESP")*$BQ33,0)) ->  | CE33: =IF(B33="","",IF($AG$4=TRUE,GetFertilizerResponseAtAge($AG$5,$C$1,$AG$8,$AG$6,$AG$7,"HD",$BB33,"RESP")*$BQ33,0)) ->  | CF33: =IF(B33="","",IF($BB33<($AG$5+$AF$9),$CE33,$CE$514)) ->  | CG33: =IF(B33="","",IF($AG$4=TRUE,GetFertilizerResponseAtAge($AG$5,$C$1,$AG$8,$AG$6,$AG$7,"BA",$BB33,"RESP")*$BQ33,0)) ->  | CH33: =IF(B33="","",IF($BI33>0,1,0)) ->  | CI33: =IF(B33="","",IF($BM33>0,1,0)) ->  | CJ33: =IF(B33="","",SUM(CH33:CI33)) ->  | CK33: =IF(B33="","",IF($CJ33>1,1,$CJ33)) ->  | CL33: =IF(B33="","",$CK33*($BE33+$BI33+$BM33)) ->  | CM33: =IF(B33="","",$BT33+0.9*$BX33+0.8*$CB33+0.7*$CF33) ->  | CN33: =IF(B33="","",SUM(CL33:CM33)) ->  | CP33: =IF(B33="","",IF($BJ33>0,1,0)) ->  | CQ33: =IF(B33="","",IF($BO33>0,1,0)) ->  | CR33: =IF(B33="","",SUM(CP33:CQ33)) ->  | CS33: =IF(B33="","",IF($CR33>1,1,$CR33)) ->  | CT33: =IF(B33="","",$CS33*($BG33+$BJ33+$BO33)) ->  | CU33: =IF(B33="","",$BU33+0.9*$BY33+0.8*$CC33+0.7*$CG33) ->  | CV33: =IF(B33="","",SUM(CT33:CU33)) ->  | DB33: =+'Growth&Yield'!G25 ->  | DC33: =IF(DB33="","",IF(DB33=0,0,SQRT(43560/'Growth&Yield'!$R25)/'Growth&Yield'!$AA25)) ->  | DD33: =IF(DB33="","",IF(DB33=0,0,(EXP(-0.25*('Growth&Yield'!$AA25^(1.8333-1/60*$C$1))))*$E$7*$BB33*EXP(-$E$6*$BB33))) ->  | DE33: =IF(DB33="","",IF(Inputs!$K$8=TRUE,$DD33,0)) ->  | DF33: =IF(DB33="","",(EXP(-0.25*('Growth&Yield'!J25^(1.8333-1/60*$C$1))))*$G$7*$DB33*EXP(-$G$6*$DB33)) ->  | DG33: =IF(DB33="","",IF(Inputs!$K$8=TRUE,$DF33,0)) ->  | DI33: =IF(DB33="","",IF(DB33=0,0,(EXP(-0.25*('Growth&Yield'!J25^(1.8333-1/60*$C$1))))*$I$5*($DB33-$I$6)*EXP(-$I$4*($DB33-$I$6)))) ->  | DJ33: =IF(DB33="","",IF(DB33=0,0,(EXP(-0.25*('Growth&Yield'!J25^(1.8333-1/60*$C$1))))*$K$5*($DB33-$I$6)*EXP(-$K$4*($DB33-$I$6)))) ->  | DL33: =IF(DB33="","",IF(DB33=0,0,IF(OR(Inputs!$K$14=FALSE,DB33<Inputs!$F$25),0,(EXP(-0.25*('Growth&Yield'!J25^(1.8333-1/60*$C$1))))*$M$6*(DB33-Inputs!$F$25)*EXP(-($M$7*(DB33-Inputs!$F$25)))))) ->  | DM33: =IF(DB33="","",IF(DB33<(RParms!$A$31+$M$4),$DL33,$DL$514)) ->  | DN33: =IF(DB33="","",IF(OR(RParms!$A$30=FALSE,$DB33<RParms!$A$31),0,(EXP(-0.25*('Growth&Yield'!J25^(1.8333-1/60*$C$1))))*$O$6*($DB33-RParms!$A$31)*EXP(-($O$7*($DB33-RParms!$A$31))))) ->  | DO33: =IF(DB33="","",IF($DB33<(RParms!$A$31+$O$4),$DN33,$DN$514)) ->  | DQ33: =IF(DB33="","",(EXP(-0.25*('Growth&Yield'!J25^(1.8333-1/60*$C$1))))) ->  | DS33: =IF(DB33="","",IF($U$4=TRUE,GetFertilizerResponseAtAge($U$5,$C$1,$U$8,$U$6,$U$7,"HD",$DB33,"RESP")*$DQ33,0)) ->  | DT33: =IF(DB33="","",IF($DB33<($U$5+$T$9),$DS33,$DS$514)) ->  | DU33: =IF(DB33="","",IF($U$4=TRUE,GetFertilizerResponseAtAge($U$5,$C$1,$U$8,$U$6,$U$7,"BA",$DB33,"RESP")*$DQ33,0)) ->  | DW33: =IF(DB33="","",IF($Y$4=TRUE,GetFertilizerResponseAtAge($Y$5,$C$1,$Y$8,$Y$6,$Y$7,"HD",$DB33,"RESP")*$DQ33,0)) ->  | DX33: =IF(DB33="","",IF($DB33<($Y$5+$X$9),$DW33,$DW$514)) ->  | DY33: =IF(DB33="","",IF($Y$4=TRUE,GetFertilizerResponseAtAge($Y$5,$C$1,$Y$8,$Y$6,$Y$7,"BA",$DB33,"RESP")*$DQ33,0)) ->  | EA33: =IF(DB33="","",IF($AC$4=TRUE,GetFertilizerResponseAtAge($AC$5,$C$1,$AC$8,$AC$6,$AC$7,"HD",$DB33,"RESP")*$DQ33,0)) ->  | EB33: =IF(DB33="","",IF($DB33<($AC$5+$AB$9),$EA33,$EA$514)) ->  | EC33: =IF(DB33="","",IF($AC$4=TRUE,GetFertilizerResponseAtAge($AC$5,$C$1,$AC$8,$AC$6,$AC$7,"BA",$DB33,"RESP")*$DQ33,0)) ->  | EE33: =IF(DB33="","",IF($AG$4=TRUE,GetFertilizerResponseAtAge($AG$5,$C$1,$AG$8,$AG$6,$AG$7,"HD",$DB33,"RESP")*$DQ33,0)) ->  | EF33: =IF(DB33="","",IF($DB33<($AG$5+$AF$9),$EE33,$EE$514)) ->  | EG33: =IF(DB33="","",IF($AG$4=TRUE,GetFertilizerResponseAtAge($AG$5,$C$1,$AG$8,$AG$6,$AG$7,"BA",$DB33,"RESP")*$DQ33,0)) ->  | EH33: =IF(DB33="","",IF($DI33>0,1,0)) ->  | EI33: =IF(DB33="","",IF($DM33>0,1,0)) ->  | EJ33: =IF(DB33="","",SUM(EH33:EI33)) ->  | EK33: =IF(DB33="","",IF($EJ33>1,1,$EJ33)) ->  | EL33: =IF(DB33="","",$EK33*($DE33+$DI33+$DM33)) ->  | EM33: =IF(DB33="","",$DT33+0.9*$DX33+0.8*$EB33+0.7*$EF33) ->  | EN33: =IF(DB33="","",SUM(EL33:EM33)) ->  | EP33: =IF(DB33="","",IF($DJ33>0,1,0)) ->  | EQ33: =IF(DB33="","",IF($DO33>0,1,0)) ->  | ER33: =IF(DB33="","",SUM(EP33:EQ33)) ->  | ES33: =IF(DB33="","",IF($ER33>1,1,$ER33)) ->  | ET33: =IF(DB33="","",$ES33*($DG33+$DJ33+$DO33)) ->  | EU33: =IF(DB33="","",$DU33+0.9*$DY33+0.8*$EC33+0.7*$EG33) ->  | EV33: =IF(DB33="","",SUM(ET33:EU33)) -> 
